Workbook

Sheet INTRO
C1: The current version should be used in countries endemic for Loasis
B2: Joint request for selected PC medicines v.3.1 (L)
B4: As part of global efforts to accelerate expansion of preventive chemotherapy (PC) for control and elimination of lymphatic filariasis, schistosomiasis and soil-transmitted helminthiases, the World Health Organization (WHO) facilitates the supply of albendazole 400 mg tablets (GSK) to national lymphatic filariasis elimination programmes and national soil-transmitted helminth control programmes; diethylcarbamazine citrate 100 mg tablets (Eisai) to national lymphatic filariasis elimination programmes; mebendazole 500 mg tablets (J&J) for national soil-transmitted helminth control programmes; and praziquantel 600 mg tablets (Merck KGaA) for school-age children to national schistosomiasis control programmes. WHO also collaborates to supply ivermectin 3 mg tablets (Merck) for onchocerciasis and lymphatic filariasis donation programmes. This Excel-based tool is designed to assist countries in quantifying the number of tablets of relevant PC medicines required to reach the planned target population and districts for the year of request. Output of the tool is a joint request for PC medicines, which can be printed, signed and submitted to WHO to request these medicines.
B6: Structure of the application (worksheets):
B8: INTRO | C8: This worksheet includes guides on how to complete the joint request for selected PC medicines and information about the status of PC for endemic diseases in the country.
B9: COUNTRY_INFO | C9: This worksheet includes information about administrative structure of the country, population by age group, status of endemicity for each disease, population requiring PC and planned interventions.
B10: ALB_MBD, PZQ and IVM | C10: These worksheets include information about endemic districts targeted for treatment with specified PC medicines, treatment plan, and number of tablets required and requested.
B11: SUMMARY | C11: This worksheet includes summary of number of tablets requested, information about stock, and date for submission of requested medicines. Before generating the report (run macros) please select the medicine for which the report is needed. Follow the same rule to see the number of people to be treated for the specific disease. This worksheet should be printed and submitted as a joint request for selected PC medicines (see the instruction for submission in the SUMMARY worksheet).
B13: Instruction for data entry
B15: Most of the cells in the above-mentioned worksheets include formula that are calculated automatically according to the treatment policy recommended by WHO for each disease. See the link http://www.who.int/neglected_diseases/preventive_chemotherapy/pct_manual/en/index.html
B17: Please enter your data into the cells according to their colour code:
C19: White - cell is not protected. Please enter the value of the requested indicator.
C21: Yellow - cell is protected and includes name of indicator. No data entry required.
C23: Orange - cell is not protected and includes a drop-down menu. Please select the value from the drop-down list.
C26: Green - cell is not protected and includes formula. Please change the value only if your data are different from those that are calculated automatically.
C29: Blue - cell is protected and includes formula. No data entry required.
B31: Country data
B33: COUNTRY | E33: DRC
B35: Year for request of the medicine | E35: 2019
B37: Is country endemic for lymphatic filariasis (LF)? | E37: Endemic
B39: Is country endemic for onchocerciasis (ONCHO)? | E39: Endemic
B41: Is country endemic for soil-transmitted helminthiases (STH)? | E41: Endemic
B43: Is country endemic for schistosomiasis (SCH)? | E43: Endemic
B45: How many administrative units in the country? | E45: 519
B47: If demographical data at the second administrative level are not available by age group, please enter the proportion (%) of population by age group in the country. If data are available, please leave these cells blank.
B48: 1-4 years age | C48: Preschool-age children (PreSAC) | E48: 0.17
B49: 5-14 years age | C49: School-age children (SAC) | E49: 0.35
B50: 15 years + | C50: Adults | E50: 0.46

Sheet COUNTRY_INFO
A1: COUNTRY INFORMATION
A2: Administrative structure, population by age group, status of endemicity and planned interventions
A4: TOTAL | D4: =SUM(D$9:D$1000) -> 101066692.4 | E4: =SUM(E$9:E$1000) -> 17181333 | F4: =SUM(F$9:F$1000) -> 35373339 | G4: =SUM(G$9:G$1000) -> 46490673 | M4: =SUM(M$9:M$1000) -> 45210538.87 | N4: =SUM(N$9:N$1000) -> 49276524.34 | O4: =SUM(O$9:O$1000) -> 29203591 | P4: =SUM(P$9:P$1000) -> 15205948.86
A6: Country administrative structure | D6: Population | H6: Endemicity | M6: Population requiring PC | Q6: Number of treatment rounds planned for the year | U6: Epidemiological surveys planned for the year
A7: Country | B7: Province/State | C7: District | D7: Total | E7: PreSAC | F7: SAC | G7: Adults | H7: LF | I7: Oncho | J7: STH | K7: SCH | L7: Loa | M7: LF | N7: Oncho | O7: STH | P7: SCH | Q7: LF | R7: Oncho | S7: STH | T7: SCH | U7: LF | V7: Oncho | W7: STH | X7: SCH | Y7: IU_ID | Z7: IU_Name
A9: =IF(INTRO!$E$33<>0,INTRO!$E$33, " ") -> DRC | B9: BAS UELE | C9: Aketi | D9: 136846.5519 | E9: =IF(INTRO!$E$48="","",ROUND($D9*INTRO!$E$48,0)) -> 23264 | F9: =IF(INTRO!$E$49="","",ROUND($D9*INTRO!$E$49,0)) -> 47896 | G9: =IF(INTRO!$E$50="","",ROUND($D9*INTRO!$E$50,0)) -> 62949 | H9: 1 | I9: 1 | J9: 1 | K9: 1 | L9: 1 | M9: =IF(INTRO!$E$37="Endemic",IF($H9>0,IF($H9=4,"Unknown",IF($H9=99,"Stopped",$D9)),0),"Not required") -> 136846.5519 | N9: =IF(INTRO!$E$39="Endemic", IF($I9>0, IF($I9=4,"Unknown",IF($I9=99,"Stopped",$D9)), 0),"Not required") -> 136846.5519 | O9: =IF(INTRO!$E$41="Endemic", IF(AND($J9>1,$J9<5), IF($J9=4, "Unknown", E9+F9), 0),"Not required") -> 0 | P9: =IF(INTRO!$E$43="Endemic", IF(AND($K9>0,$K9<5), IF($K9=4,"Unknown", IF($K9=1, $F9*0.33, IF($K9=2, $F9*0.5+$G9*0.2, SUM(F9:G9)))), 0),"Not required") -> 15805.68 | Q9: 1 | R9: 1 | S9: 0 | T9: 0 | Y9: 14216 | Z9: Aketi
A10: =IF(INTRO!$E$33<>0,INTRO!$E$33, " ") -> DRC | B10: BAS UELE | C10: Ango | D10: 125167.1038 | E10: =IF(INTRO!$E$48="","",ROUND($D10*INTRO!$E$48,0)) -> 21278 | F10: =IF(INTRO!$E$49="","",ROUND($D10*INTRO!$E$49,0)) -> 43808 | G10: =IF(INTRO!$E$50="","",ROUND($D10*INTRO!$E$50,0)) -> 57577 | H10: 0 | I10: 1 | J10: 3 | K10: 1 | L10: 1 | M10: =IF(INTRO!$E$37="Endemic",IF($H10>0,IF($H10=4,"Unknown",IF($H10=99,"Stopped",$D10)),0),"Not required") -> 0 | N10: =IF(INTRO!$E$39="Endemic", IF($I10>0, IF($I10=4,"Unknown",IF($I10=99,"Stopped",$D10)), 0),"Not required") -> 125167.1038 | O10: =IF(INTRO!$E$41="Endemic", IF(AND($J10>1,$J10<5), IF($J10=4, "Unknown", E10+F10), 0),"Not required") -> 65086 | P10: =IF(INTRO!$E$43="Endemic", IF(AND($K10>0,$K10<5), IF($K10=4,"Unknown", IF($K10=1, $F10*0.33, IF($K10=2, $F10*0.5+$G10*0.2, SUM(F10:G10)))), 0),"Not required") -> 14456.64 | Q10: 0 | R10: 1 | S10: 2 | T10: 0 | Y10: 14217 | Z10: Ango
A11: =IF(INTRO!$E$33<>0,INTRO!$E$33, " ") -> DRC | B11: BAS UELE | C11: Bili (Bas-Ueles) | D11: 74658.48761 | E11: =IF(INTRO!$E$48="","",ROUND($D11*INTRO!$E$48,0)) -> 12692 | F11: =IF(INTRO!$E$49="","",ROUND($D11*INTRO!$E$49,0)) -> 26130 | G11: =IF(INTRO!$E$50="","",ROUND($D11*INTRO!$E$50,0)) -> 34343 | H11: 0 | I11: 1 | J11: 2 | K11: 1 | L11: 1 | M11: =IF(INTRO!$E$37="Endemic",IF($H11>0,IF($H11=4,"Unknown",IF($H11=99,"Stopped",$D11)),0),"Not required") -> 0 | N11: =IF(INTRO!$E$39="Endemic", IF($I11>0, IF($I11=4,"Unknown",IF($I11=99,"Stopped",$D11)), 0),"Not required") -> 74658.48761 | O11: =IF(INTRO!$E$41="Endemic", IF(AND($J11>1,$J11<5), IF($J11=4, "Unknown", E11+F11), 0),"Not required") -> 38822 | P11: =IF(INTRO!$E$43="Endemic", IF(AND($K11>0,$K11<5), IF($K11=4,"Unknown", IF($K11=1, $F11*0.33, IF($K11=2, $F11*0.5+$G11*0.2, SUM(F11:G11)))), 0),"Not required") -> 8622.9 | Q11: 0 | R11: 1 | S11: 1 | T11: 0 | Y11: 13903 | Z11: Bili (Bas-Ueles)
A12: =IF(INTRO!$E$33<>0,INTRO!$E$33, " ") -> DRC | B12: BAS UELE | C12: Bondo | D12: 147476.7699 | E12: =IF(INTRO!$E$48="","",ROUND($D12*INTRO!$E$48,0)) -> 25071 | F12: =IF(INTRO!$E$49="","",ROUND($D12*INTRO!$E$49,0)) -> 51617 | G12: =IF(INTRO!$E$50="","",ROUND($D12*INTRO!$E$50,0)) -> 67839 | H12: 1 | I12: 1 | J12: 2 | K12: 2 | L12: 1 | M12: =IF(INTRO!$E$37="Endemic",IF($H12>0,IF($H12=4,"Unknown",IF($H12=99,"Stopped",$D12)),0),"Not required") -> 147476.7699 | N12: =IF(INTRO!$E$39="Endemic", IF($I12>0, IF($I12=4,"Unknown",IF($I12=99,"Stopped",$D12)), 0),"Not required") -> 147476.7699 | O12: =IF(INTRO!$E$41="Endemic", IF(AND($J12>1,$J12<5), IF($J12=4, "Unknown", E12+F12), 0),"Not required") -> 76688 | P12: =IF(INTRO!$E$43="Endemic", IF(AND($K12>0,$K12<5), IF($K12=4,"Unknown", IF($K12=1, $F12*0.33, IF($K12=2, $F12*0.5+$G12*0.2, SUM(F12:G12)))), 0),"Not required") -> 39376.3 | Q12: 1 | R12: 1 | S12: 1 | T12: 1 | Y12: 14232 | Z12: Bondo
A13: =IF(INTRO!$E$33<>0,INTRO!$E$33, " ") -> DRC | B13: BAS UELE | C13: Buta | D13: 215194.0169 | E13: =IF(INTRO!$E$48="","",ROUND($D13*INTRO!$E$48,0)) -> 36583 | F13: =IF(INTRO!$E$49="","",ROUND($D13*INTRO!$E$49,0)) -> 75318 | G13: =IF(INTRO!$E$50="","",ROUND($D13*INTRO!$E$50,0)) -> 98989 | H13: 1 | I13: 1 | J13: 2 | K13: 3 | L13: 1 | M13: =IF(INTRO!$E$37="Endemic",IF($H13>0,IF($H13=4,"Unknown",IF($H13=99,"Stopped",$D13)),0),"Not required") -> 215194.0169 | N13: =IF(INTRO!$E$39="Endemic", IF($I13>0, IF($I13=4,"Unknown",IF($I13=99,"Stopped",$D13)), 0),"Not required") -> 215194.0169 | O13: =IF(INTRO!$E$41="Endemic", IF(AND($J13>1,$J13<5), IF($J13=4, "Unknown", E13+F13), 0),"Not required") -> 111901 | P13: =IF(INTRO!$E$43="Endemic", IF(AND($K13>0,$K13<5), IF($K13=4,"Unknown", IF($K13=1, $F13*0.33, IF($K13=2, $F13*0.5+$G13*0.2, SUM(F13:G13)))), 0),"Not required") -> 174307 | Q13: 1 | R13: 1 | S13: 1 | T13: 1 | Y13: 14234 | Z13: Buta
A14: =IF(INTRO!$E$33<>0,INTRO!$E$33, " ") -> DRC | B14: BAS UELE | C14: Dingela | D14: 144953.9497 | E14: =IF(INTRO!$E$48="","",ROUND($D14*INTRO!$E$48,0)) -> 24642 | F14: =IF(INTRO!$E$49="","",ROUND($D14*INTRO!$E$49,0)) -> 50734 | G14: =IF(INTRO!$E$50="","",ROUND($D14*INTRO!$E$50,0)) -> 66679 | H14: 0 | I14: 1 | J14: 3 | K14: 1 | L14: 1 | M14: =IF(INTRO!$E$37="Endemic",IF($H14>0,IF($H14=4,"Unknown",IF($H14=99,"Stopped",$D14)),0),"Not required") -> 0 | N14: =IF(INTRO!$E$39="Endemic", IF($I14>0, IF($I14=4,"Unknown",IF($I14=99,"Stopped",$D14)), 0),"Not required") -> 144953.9497 | O14: =IF(INTRO!$E$41="Endemic", IF(AND($J14>1,$J14<5), IF($J14=4, "Unknown", E14+F14), 0),"Not required") -> 75376 | P14: =IF(INTRO!$E$43="Endemic", IF(AND($K14>0,$K14<5), IF($K14=4,"Unknown", IF($K14=1, $F14*0.33, IF($K14=2, $F14*0.5+$G14*0.2, SUM(F14:G14)))), 0),"Not required") -> 16742.22 | Q14: 0 | R14: 1 | S14: 2 | T14: 0 | Y14: 14241 | Z14: Dingela
A15: =IF(INTRO!$E$33<>0,INTRO!$E$33, " ") -> DRC | B15: BAS UELE | C15: Likati | D15: 86657.05443 | E15: =IF(INTRO!$E$48="","",ROUND($D15*INTRO!$E$48,0)) -> 14732 | F15: =IF(INTRO!$E$49="","",ROUND($D15*INTRO!$E$49,0)) -> 30330 | G15: =IF(INTRO!$E$50="","",ROUND($D15*INTRO!$E$50,0)) -> 39862 | H15: 1 | I15: 1 | J15: 1 | K15: 3 | L15: 1 | M15: =IF(INTRO!$E$37="Endemic",IF($H15>0,IF($H15=4,"Unknown",IF($H15=99,"Stopped",$D15)),0),"Not required") -> 86657.05443 | N15: =IF(INTRO!$E$39="Endemic", IF($I15>0, IF($I15=4,"Unknown",IF($I15=99,"Stopped",$D15)), 0),"Not required") -> 86657.05443 | O15: =IF(INTRO!$E$41="Endemic", IF(AND($J15>1,$J15<5), IF($J15=4, "Unknown", E15+F15), 0),"Not required") -> 0 | P15: =IF(INTRO!$E$43="Endemic", IF(AND($K15>0,$K15<5), IF($K15=4,"Unknown", IF($K15=1, $F15*0.33, IF($K15=2, $F15*0.5+$G15*0.2, SUM(F15:G15)))), 0),"Not required") -> 70192 | Q15: 1 | R15: 1 | S15: 0 | T15: 1 | Y15: 14252 | Z15: Likati
A16: =IF(INTRO!$E$33<>0,INTRO!$E$33, " ") -> DRC | B16: BAS UELE | C16: Monga | D16: 94425.4045 | E16: =IF(INTRO!$E$48="","",ROUND($D16*INTRO!$E$48,0)) -> 16052 | F16: =IF(INTRO!$E$49="","",ROUND($D16*INTRO!$E$49,0)) -> 33049 | G16: =IF(INTRO!$E$50="","",ROUND($D16*INTRO!$E$50,0)) -> 43436 | H16: 1 | I16: 1 | J16: 2 | K16: 2 | L16: 1 | M16: =IF(INTRO!$E$37="Endemic",IF($H16>0,IF($H16=4,"Unknown",IF($H16=99,"Stopped",$D16)),0),"Not required") -> 94425.4045 | N16: =IF(INTRO!$E$39="Endemic", IF($I16>0, IF($I16=4,"Unknown",IF($I16=99,"Stopped",$D16)), 0),"Not required") -> 94425.4045 | O16: =IF(INTRO!$E$41="Endemic", IF(AND($J16>1,$J16<5), IF($J16=4, "Unknown", E16+F16), 0),"Not required") -> 49101 | P16: =IF(INTRO!$E$43="Endemic", IF(AND($K16>0,$K16<5), IF($K16=4,"Unknown", IF($K16=1, $F16*0.33, IF($K16=2, $F16*0.5+$G16*0.2, SUM(F16:G16)))), 0),"Not required") -> 25211.7 | Q16: 1 | R16: 1 | S16: 1 | T16: 1 | Y16: 14266 | Z16: Monga
A17: =IF(INTRO!$E$33<>0,INTRO!$E$33, " ") -> DRC | B17: BAS UELE | C17: Poko | D17: 145361.3353 | E17: =IF(INTRO!$E$48="","",ROUND($D17*INTRO!$E$48,0)) -> 24711 | F17: =IF(INTRO!$E$49="","",ROUND($D17*INTRO!$E$49,0)) -> 50876 | G17: =IF(INTRO!$E$50="","",ROUND($D17*INTRO!$E$50,0)) -> 66866 | H17: 1 | I17: 1 | J17: 2 | K17: 2 | L17: 1 | M17: =IF(INTRO!$E$37="Endemic",IF($H17>0,IF($H17=4,"Unknown",IF($H17=99,"Stopped",$D17)),0),"Not required") -> 145361.3353 | N17: =IF(INTRO!$E$39="Endemic", IF($I17>0, IF($I17=4,"Unknown",IF($I17=99,"Stopped",$D17)), 0),"Not required") -> 145361.3353 | O17: =IF(INTRO!$E$41="Endemic", IF(AND($J17>1,$J17<5), IF($J17=4, "Unknown", E17+F17), 0),"Not required") -> 75587 | P17: =IF(INTRO!$E$43="Endemic", IF(AND($K17>0,$K17<5), IF($K17=4,"Unknown", IF($K17=1, $F17*0.33, IF($K17=2, $F17*0.5+$G17*0.2, SUM(F17:G17)))), 0),"Not required") -> 38811.2 | Q17: 1 | R17: 1 | S17: 1 | T17: 1 | Y17: 14276 | Z17: Poko
A18: =IF(INTRO!$E$33<>0,INTRO!$E$33, " ") -> DRC | B18: BAS UELE | C18: Titule | D18: 88752.7722 | E18: =IF(INTRO!$E$48="","",ROUND($D18*INTRO!$E$48,0)) -> 15088 | F18: =IF(INTRO!$E$49="","",ROUND($D18*INTRO!$E$49,0)) -> 31063 | G18: =IF(INTRO!$E$50="","",ROUND($D18*INTRO!$E$50,0)) -> 40826 | H18: 0 | I18: 1 | J18: 3 | K18: 2 | L18: 1 | M18: =IF(INTRO!$E$37="Endemic",IF($H18>0,IF($H18=4,"Unknown",IF($H18=99,"Stopped",$D18)),0),"Not required") -> 0 | N18: =IF(INTRO!$E$39="Endemic", IF($I18>0, IF($I18=4,"Unknown",IF($I18=99,"Stopped",$D18)), 0),"Not required") -> 88752.7722 | O18: =IF(INTRO!$E$41="Endemic", IF(AND($J18>1,$J18<5), IF($J18=4, "Unknown", E18+F18), 0),"Not required") -> 46151 | P18: =IF(INTRO!$E$43="Endemic", IF(AND($K18>0,$K18<5), IF($K18=4,"Unknown", IF($K18=1, $F18*0.33, IF($K18=2, $F18*0.5+$G18*0.2, SUM(F18:G18)))), 0),"Not required") -> 23696.7 | Q18: 0 | R18: 1 | S18: 2 | T18: 1 | Y18: 14282 | Z18: Titule
A19: =IF(INTRO!$E$33<>0,INTRO!$E$33, " ") -> DRC | B19: BAS UELE | C19: Viadana | D19: 124217.5983 | E19: =IF(INTRO!$E$48="","",ROUND($D19*INTRO!$E$48,0)) -> 21117 | F19: =IF(INTRO!$E$49="","",ROUND($D19*INTRO!$E$49,0)) -> 43476 | G19: =IF(INTRO!$E$50="","",ROUND($D19*INTRO!$E$50,0)) -> 57140 | H19: 1 | I19: 1 | J19: 3 | K19: 1 | L19: 1 | M19: =IF(INTRO!$E$37="Endemic",IF($H19>0,IF($H19=4,"Unknown",IF($H19=99,"Stopped",$D19)),0),"Not required") -> 124217.5983 | N19: =IF(INTRO!$E$39="Endemic", IF($I19>0, IF($I19=4,"Unknown",IF($I19=99,"Stopped",$D19)), 0),"Not required") -> 124217.5983 | O19: =IF(INTRO!$E$41="Endemic", IF(AND($J19>1,$J19<5), IF($J19=4, "Unknown", E19+F19), 0),"Not required") -> 64593 | P19: =IF(INTRO!$E$43="Endemic", IF(AND($K19>0,$K19<5), IF($K19=4,"Unknown", IF($K19=1, $F19*0.33, IF($K19=2, $F19*0.5+$G19*0.2, SUM(F19:G19)))), 0),"Not required") -> 14347.08 | Q19: 1 | R19: 1 | S19: 2 | T19: 0 | Y19: 14285 | Z19: Viadana
A20: =IF(INTRO!$E$33<>0,INTRO!$E$33, " ") -> DRC | B20: EQUATEUR | C20: Basankusu | D20: 275986.1649 | E20: =IF(INTRO!$E$48="","",ROUND($D20*INTRO!$E$48,0)) -> 46918 | F20: =IF(INTRO!$E$49="","",ROUND($D20*INTRO!$E$49,0)) -> 96595 | G20: =IF(INTRO!$E$50="","",ROUND($D20*INTRO!$E$50,0)) -> 126954 | H20: 1 | I20: 1 | J20: 3 | K20: 0 | L20: 1 | M20: =IF(INTRO!$E$37="Endemic",IF($H20>0,IF($H20=4,"Unknown",IF($H20=99,"Stopped",$D20)),0),"Not required") -> 275986.1649 | N20: =IF(INTRO!$E$39="Endemic", IF($I20>0, IF($I20=4,"Unknown",IF($I20=99,"Stopped",$D20)), 0),"Not required") -> 275986.1649 | O20: =IF(INTRO!$E$41="Endemic", IF(AND($J20>1,$J20<5), IF($J20=4, "Unknown", E20+F20), 0),"Not required") -> 143513 | P20: =IF(INTRO!$E$43="Endemic", IF(AND($K20>0,$K20<5), IF($K20=4,"Unknown", IF($K20=1, $F20*0.33, IF($K20=2, $F20*0.5+$G20*0.2, SUM(F20:G20)))), 0),"Not required") -> 0 | Q20: 1 | R20: 1 | S20: 2 | T20: 0 | Y20: 13901 | Z20: Basankusu
A21: =IF(INTRO!$E$33<>0,INTRO!$E$33, " ") -> DRC | B21: EQUATEUR | C21: Bikoro | D21: 172995.6585 | E21: =IF(INTRO!$E$48="","",ROUND($D21*INTRO!$E$48,0)) -> 29409 | F21: =IF(INTRO!$E$49="","",ROUND($D21*INTRO!$E$49,0)) -> 60548 | G21: =IF(INTRO!$E$50="","",ROUND($D21*INTRO!$E$50,0)) -> 79578 | H21: 1 | I21: 0 | J21: 3 | K21: 1 | L21: 1 | M21: =IF(INTRO!$E$37="Endemic",IF($H21>0,IF($H21=4,"Unknown",IF($H21=99,"Stopped",$D21)),0),"Not required") -> 172995.6585 | N21: =IF(INTRO!$E$39="Endemic", IF($I21>0, IF($I21=4,"Unknown",IF($I21=99,"Stopped",$D21)), 0),"Not required") -> 0 | O21: =IF(INTRO!$E$41="Endemic", IF(AND($J21>1,$J21<5), IF($J21=4, "Unknown", E21+F21), 0),"Not required") -> 89957 | P21: =IF(INTRO!$E$43="Endemic", IF(AND($K21>0,$K21<5), IF($K21=4,"Unknown", IF($K21=1, $F21*0.33, IF($K21=2, $F21*0.5+$G21*0.2, SUM(F21:G21)))), 0),"Not required") -> 19980.84 | Q21: 1 | R21: 0 | S21: 2 | T21: 0 | Y21: 13902 | Z21: Bikoro
A22: =IF(INTRO!$E$33<>0,INTRO!$E$33, " ") -> DRC | B22: EQUATEUR | C22: Bolenge | D22: 111569.5485 | E22: =IF(INTRO!$E$48="","",ROUND($D22*INTRO!$E$48,0)) -> 18967 | F22: =IF(INTRO!$E$49="","",ROUND($D22*INTRO!$E$49,0)) -> 39049 | G22: =IF(INTRO!$E$50="","",ROUND($D22*INTRO!$E$50,0)) -> 51322 | H22: 0 | I22: 1 | J22: 3 | K22: 1 | L22: 1 | M22: =IF(INTRO!$E$37="Endemic",IF($H22>0,IF($H22=4,"Unknown",IF($H22=99,"Stopped",$D22)),0),"Not required") -> 0 | N22: =IF(INTRO!$E$39="Endemic", IF($I22>0, IF($I22=4,"Unknown",IF($I22=99,"Stopped",$D22)), 0),"Not required") -> 111569.5485 | O22: =IF(INTRO!$E$41="Endemic", IF(AND($J22>1,$J22<5), IF($J22=4, "Unknown", E22+F22), 0),"Not required") -> 58016 | P22: =IF(INTRO!$E$43="Endemic", IF(AND($K22>0,$K22<5), IF($K22=4,"Unknown", IF($K22=1, $F22*0.33, IF($K22=2, $F22*0.5+$G22*0.2, SUM(F22:G22)))), 0),"Not required") -> 12886.17 | Q22: 0 | R22: 1 | S22: 2 | T22: 0 | Y22: 13909 | Z22: Bolenge
A23: =IF(INTRO!$E$33<>0,INTRO!$E$33, " ") -> DRC | B23: EQUATEUR | C23: Bolomba | D23: 620960.6835 | E23: =IF(INTRO!$E$48="","",ROUND($D23*INTRO!$E$48,0)) -> 105563 | F23: =IF(INTRO!$E$49="","",ROUND($D23*INTRO!$E$49,0)) -> 217336 | G23: =IF(INTRO!$E$50="","",ROUND($D23*INTRO!$E$50,0)) -> 285642 | H23: 1 | I23: 1 | J23: 3 | K23: 1 | L23: 1 | M23: =IF(INTRO!$E$37="Endemic",IF($H23>0,IF($H23=4,"Unknown",IF($H23=99,"Stopped",$D23)),0),"Not required") -> 620960.6835 | N23: =IF(INTRO!$E$39="Endemic", IF($I23>0, IF($I23=4,"Unknown",IF($I23=99,"Stopped",$D23)), 0),"Not required") -> 620960.6835 | O23: =IF(INTRO!$E$41="Endemic", IF(AND($J23>1,$J23<5), IF($J23=4, "Unknown", E23+F23), 0),"Not required") -> 322899 | P23: =IF(INTRO!$E$43="Endemic", IF(AND($K23>0,$K23<5), IF($K23=4,"Unknown", IF($K23=1, $F23*0.33, IF($K23=2, $F23*0.5+$G23*0.2, SUM(F23:G23)))), 0),"Not required") -> 71720.88 | Q23: 1 | R23: 1 | S23: 2 | T23: 0 | Y23: 13910 | Z23: Bolomba
A24: =IF(INTRO!$E$33<>0,INTRO!$E$33, " ") -> DRC | B24: EQUATEUR | C24: Bomongo | D24: 122260.2378 | E24: =IF(INTRO!$E$48="","",ROUND($D24*INTRO!$E$48,0)) -> 20784 | F24: =IF(INTRO!$E$49="","",ROUND($D24*INTRO!$E$49,0)) -> 42791 | G24: =IF(INTRO!$E$50="","",ROUND($D24*INTRO!$E$50,0)) -> 56240 | H24: 1 | I24: 0 | J24: 2 | K24: 2 | L24: 1 | M24: =IF(INTRO!$E$37="Endemic",IF($H24>0,IF($H24=4,"Unknown",IF($H24=99,"Stopped",$D24)),0),"Not required") -> 122260.2378 | N24: =IF(INTRO!$E$39="Endemic", IF($I24>0, IF($I24=4,"Unknown",IF($I24=99,"Stopped",$D24)), 0),"Not required") -> 0 | O24: =IF(INTRO!$E$41="Endemic", IF(AND($J24>1,$J24<5), IF($J24=4, "Unknown", E24+F24), 0),"Not required") -> 63575 | P24: =IF(INTRO!$E$43="Endemic", IF(AND($K24>0,$K24<5), IF($K24=4,"Unknown", IF($K24=1, $F24*0.33, IF($K24=2, $F24*0.5+$G24*0.2, SUM(F24:G24)))), 0),"Not required") -> 32643.5 | Q24: 1 | R24: 0 | S24: 1 | T24: 1 | Y24: 13912 | Z24: Bomongo
A25: =IF(INTRO!$E$33<>0,INTRO!$E$33, " ") -> DRC | B25: EQUATEUR | C25: Djombo | D25: 134028.8015 | E25: =IF(INTRO!$E$48="","",ROUND($D25*INTRO!$E$48,0)) -> 22785 | F25: =IF(INTRO!$E$49="","",ROUND($D25*INTRO!$E$49,0)) -> 46910 | G25: =IF(INTRO!$E$50="","",ROUND($D25*INTRO!$E$50,0)) -> 61653 | H25: 1 | I25: 1 | J25: 3 | K25: 1 | L25: 1 | M25: =IF(INTRO!$E$37="Endemic",IF($H25>0,IF($H25=4,"Unknown",IF($H25=99,"Stopped",$D25)),0),"Not required") -> 134028.8015 | N25: =IF(INTRO!$E$39="Endemic", IF($I25>0, IF($I25=4,"Unknown",IF($I25=99,"Stopped",$D25)), 0),"Not required") -> 134028.8015 | O25: =IF(INTRO!$E$41="Endemic", IF(AND($J25>1,$J25<5), IF($J25=4, "Unknown", E25+F25), 0),"Not required") -> 69695 | P25: =IF(INTRO!$E$43="Endemic", IF(AND($K25>0,$K25<5), IF($K25=4,"Unknown", IF($K25=1, $F25*0.33, IF($K25=2, $F25*0.5+$G25*0.2, SUM(F25:G25)))), 0),"Not required") -> 15480.3 | Q25: 1 | R25: 1 | S25: 2 | T25: 0 | Y25: 13925 | Z25: Djombo
A26: =IF(INTRO!$E$33<>0,INTRO!$E$33, " ") -> DRC | B26: EQUATEUR | C26: Iboko | D26: 130985.0794 | E26: =IF(INTRO!$E$48="","",ROUND($D26*INTRO!$E$48,0)) -> 22267 | F26: =IF(INTRO!$E$49="","",ROUND($D26*INTRO!$E$49,0)) -> 45845 | G26: =IF(INTRO!$E$50="","",ROUND($D26*INTRO!$E$50,0)) -> 60253 | H26: 0 | I26: 0 | J26: 2 | K26: 1 | L26: 1 | M26: =IF(INTRO!$E$37="Endemic",IF($H26>0,IF($H26=4,"Unknown",IF($H26=99,"Stopped",$D26)),0),"Not required") -> 0 | N26: =IF(INTRO!$E$39="Endemic", IF($I26>0, IF($I26=4,"Unknown",IF($I26=99,"Stopped",$D26)), 0),"Not required") -> 0 | O26: =IF(INTRO!$E$41="Endemic", IF(AND($J26>1,$J26<5), IF($J26=4, "Unknown", E26+F26), 0),"Not required") -> 68112 | P26: =IF(INTRO!$E$43="Endemic", IF(AND($K26>0,$K26<5), IF($K26=4,"Unknown", IF($K26=1, $F26*0.33, IF($K26=2, $F26*0.5+$G26*0.2, SUM(F26:G26)))), 0),"Not required") -> 15128.85 | Q26: 0 | R26: 0 | S26: 1 | T26: 0 | Y26: 13928 | Z26: Iboko
A27: =IF(INTRO!$E$33<>0,INTRO!$E$33, " ") -> DRC | B27: EQUATEUR | C27: Ingende | D27: 169157.3223 | E27: =IF(INTRO!$E$48="","",ROUND($D27*INTRO!$E$48,0)) -> 28757 | F27: =IF(INTRO!$E$49="","",ROUND($D27*INTRO!$E$49,0)) -> 59205 | G27: =IF(INTRO!$E$50="","",ROUND($D27*INTRO!$E$50,0)) -> 77812 | H27: 1 | I27: 1 | J27: 3 | K27: 1 | L27: 1 | M27: =IF(INTRO!$E$37="Endemic",IF($H27>0,IF($H27=4,"Unknown",IF($H27=99,"Stopped",$D27)),0),"Not required") -> 169157.3223 | N27: =IF(INTRO!$E$39="Endemic", IF($I27>0, IF($I27=4,"Unknown",IF($I27=99,"Stopped",$D27)), 0),"Not required") -> 169157.3223 | O27: =IF(INTRO!$E$41="Endemic", IF(AND($J27>1,$J27<5), IF($J27=4, "Unknown", E27+F27), 0),"Not required") -> 87962 | P27: =IF(INTRO!$E$43="Endemic", IF(AND($K27>0,$K27<5), IF($K27=4,"Unknown", IF($K27=1, $F27*0.33, IF($K27=2, $F27*0.5+$G27*0.2, SUM(F27:G27)))), 0),"Not required") -> 19537.65 | Q27: 1 | R27: 1 | S27: 2 | T27: 0 | Y27: 13930 | Z27: Ingende
A28: =IF(INTRO!$E$33<>0,INTRO!$E$33, " ") -> DRC | B28: EQUATEUR | C28: Irebu | D28: 42589.8305 | E28: =IF(INTRO!$E$48="","",ROUND($D28*INTRO!$E$48,0)) -> 7240 | F28: =IF(INTRO!$E$49="","",ROUND($D28*INTRO!$E$49,0)) -> 14906 | G28: =IF(INTRO!$E$50="","",ROUND($D28*INTRO!$E$50,0)) -> 19591 | H28: 0 | I28: 0 | J28: 1 | K28: 1 | L28: 1 | M28: =IF(INTRO!$E$37="Endemic",IF($H28>0,IF($H28=4,"Unknown",IF($H28=99,"Stopped",$D28)),0),"Not required") -> 0 | N28: =IF(INTRO!$E$39="Endemic", IF($I28>0, IF($I28=4,"Unknown",IF($I28=99,"Stopped",$D28)), 0),"Not required") -> 0 | O28: =IF(INTRO!$E$41="Endemic", IF(AND($J28>1,$J28<5), IF($J28=4, "Unknown", E28+F28), 0),"Not required") -> 0 | P28: =IF(INTRO!$E$43="Endemic", IF(AND($K28>0,$K28<5), IF($K28=4,"Unknown", IF($K28=1, $F28*0.33, IF($K28=2, $F28*0.5+$G28*0.2, SUM(F28:G28)))), 0),"Not required") -> 4918.98 | Q28: 0 | R28: 0 | S28: 0 | T28: 0 | Y28: 13931 | Z28: Irebu
A29: =IF(INTRO!$E$33<>0,INTRO!$E$33, " ") -> DRC | B29: EQUATEUR | C29: Lilanga Bobangi | D29: 94349.0197 | E29: =IF(INTRO!$E$48="","",ROUND($D29*INTRO!$E$48,0)) -> 16039 | F29: =IF(INTRO!$E$49="","",ROUND($D29*INTRO!$E$49,0)) -> 33022 | G29: =IF(INTRO!$E$50="","",ROUND($D29*INTRO!$E$50,0)) -> 43401 | H29: 0 | I29: 0 | J29: 2 | K29: 2 | L29: 1 | M29: =IF(INTRO!$E$37="Endemic",IF($H29>0,IF($H29=4,"Unknown",IF($H29=99,"Stopped",$D29)),0),"Not required") -> 0 | N29: =IF(INTRO!$E$39="Endemic", IF($I29>0, IF($I29=4,"Unknown",IF($I29=99,"Stopped",$D29)), 0),"Not required") -> 0 | O29: =IF(INTRO!$E$41="Endemic", IF(AND($J29>1,$J29<5), IF($J29=4, "Unknown", E29+F29), 0),"Not required") -> 49061 | P29: =IF(INTRO!$E$43="Endemic", IF(AND($K29>0,$K29<5), IF($K29=4,"Unknown", IF($K29=1, $F29*0.33, IF($K29=2, $F29*0.5+$G29*0.2, SUM(F29:G29)))), 0),"Not required") -> 25191.2 | Q29: 0 | R29: 0 | S29: 1 | T29: 1 | Y29: 13966 | Z29: Lilanga Bobangi
A30: =IF(INTRO!$E$33<>0,INTRO!$E$33, " ") -> DRC | B30: EQUATEUR | C30: Lotumbe | D30: 138712.675 | E30: =IF(INTRO!$E$48="","",ROUND($D30*INTRO!$E$48,0)) -> 23581 | F30: =IF(INTRO!$E$49="","",ROUND($D30*INTRO!$E$49,0)) -> 48549 | G30: =IF(INTRO!$E$50="","",ROUND($D30*INTRO!$E$50,0)) -> 63808 | H30: 0 | I30: 1 | J30: 3 | K30: 0 | L30: 1 | M30: =IF(INTRO!$E$37="Endemic",IF($H30>0,IF($H30=4,"Unknown",IF($H30=99,"Stopped",$D30)),0),"Not required") -> 0 | N30: =IF(INTRO!$E$39="Endemic", IF($I30>0, IF($I30=4,"Unknown",IF($I30=99,"Stopped",$D30)), 0),"Not required") -> 138712.675 | O30: =IF(INTRO!$E$41="Endemic", IF(AND($J30>1,$J30<5), IF($J30=4, "Unknown", E30+F30), 0),"Not required") -> 72130 | P30: =IF(INTRO!$E$43="Endemic", IF(AND($K30>0,$K30<5), IF($K30=4,"Unknown", IF($K30=1, $F30*0.33, IF($K30=2, $F30*0.5+$G30*0.2, SUM(F30:G30)))), 0),"Not required") -> 0 | Q30: 0 | R30: 1 | S30: 2 | T30: 0 | Y30: 13939 | Z30: Lotumbe
A31: =IF(INTRO!$E$33<>0,INTRO!$E$33, " ") -> DRC | B31: EQUATEUR | C31: Lukolela | D31: 168564.2792 | E31: =IF(INTRO!$E$48="","",ROUND($D31*INTRO!$E$48,0)) -> 28656 | F31: =IF(INTRO!$E$49="","",ROUND($D31*INTRO!$E$49,0)) -> 58997 | G31: =IF(INTRO!$E$50="","",ROUND($D31*INTRO!$E$50,0)) -> 77540 | H31: 0 | I31: 0 | J31: 1 | K31: 2 | L31: 1 | M31: =IF(INTRO!$E$37="Endemic",IF($H31>0,IF($H31=4,"Unknown",IF($H31=99,"Stopped",$D31)),0),"Not required") -> 0 | N31: =IF(INTRO!$E$39="Endemic", IF($I31>0, IF($I31=4,"Unknown",IF($I31=99,"Stopped",$D31)), 0),"Not required") -> 0 | O31: =IF(INTRO!$E$41="Endemic", IF(AND($J31>1,$J31<5), IF($J31=4, "Unknown", E31+F31), 0),"Not required") -> 0 | P31: =IF(INTRO!$E$43="Endemic", IF(AND($K31>0,$K31<5), IF($K31=4,"Unknown", IF($K31=1, $F31*0.33, IF($K31=2, $F31*0.5+$G31*0.2, SUM(F31:G31)))), 0),"Not required") -> 45006.5 | Q31: 0 | R31: 0 | S31: 0 | T31: 1 | Y31: 13940 | Z31: Lukolela
A32: =IF(INTRO!$E$33<>0,INTRO!$E$33, " ") -> DRC | B32: EQUATEUR | C32: Makanza | D32: 135816.418 | E32: =IF(INTRO!$E$48="","",ROUND($D32*INTRO!$E$48,0)) -> 23089 | F32: =IF(INTRO!$E$49="","",ROUND($D32*INTRO!$E$49,0)) -> 47536 | G32: =IF(INTRO!$E$50="","",ROUND($D32*INTRO!$E$50,0)) -> 62476 | H32: 0 | I32: 0 | J32: 2 | K32: 0 | L32: 1 | M32: =IF(INTRO!$E$37="Endemic",IF($H32>0,IF($H32=4,"Unknown",IF($H32=99,"Stopped",$D32)),0),"Not required") -> 0 | N32: =IF(INTRO!$E$39="Endemic", IF($I32>0, IF($I32=4,"Unknown",IF($I32=99,"Stopped",$D32)), 0),"Not required") -> 0 | O32: =IF(INTRO!$E$41="Endemic", IF(AND($J32>1,$J32<5), IF($J32=4, "Unknown", E32+F32), 0),"Not required") -> 70625 | P32: =IF(INTRO!$E$43="Endemic", IF(AND($K32>0,$K32<5), IF($K32=4,"Unknown", IF($K32=1, $F32*0.33, IF($K32=2, $F32*0.5+$G32*0.2, SUM(F32:G32)))), 0),"Not required") -> 0 | Q32: 0 | R32: 0 | S32: 1 | T32: 0 | Y32: 13942 | Z32: Makanza
A33: =IF(INTRO!$E$33<>0,INTRO!$E$33, " ") -> DRC | B33: EQUATEUR | C33: Mampoko | D33: 126343.6419 | E33: =IF(INTRO!$E$48="","",ROUND($D33*INTRO!$E$48,0)) -> 21478 | F33: =IF(INTRO!$E$49="","",ROUND($D33*INTRO!$E$49,0)) -> 44220 | G33: =IF(INTRO!$E$50="","",ROUND($D33*INTRO!$E$50,0)) -> 58118 | H33: 1 | I33: 1 | J33: 0 | K33: 0 | L33: 1 | M33: =IF(INTRO!$E$37="Endemic",IF($H33>0,IF($H33=4,"Unknown",IF($H33=99,"Stopped",$D33)),0),"Not required") -> 126343.6419 | N33: =IF(INTRO!$E$39="Endemic", IF($I33>0, IF($I33=4,"Unknown",IF($I33=99,"Stopped",$D33)), 0),"Not required") -> 126343.6419 | O33: =IF(INTRO!$E$41="Endemic", IF(AND($J33>1,$J33<5), IF($J33=4, "Unknown", E33+F33), 0),"Not required") -> 0 | P33: =IF(INTRO!$E$43="Endemic", IF(AND($K33>0,$K33<5), IF($K33=4,"Unknown", IF($K33=1, $F33*0.33, IF($K33=2, $F33*0.5+$G33*0.2, SUM(F33:G33)))), 0),"Not required") -> 0 | Q33: 1 | R33: 1 | S33: 0 | T33: 0 | Y33: 13941 | Z33: Mampoko
A34: =IF(INTRO!$E$33<>0,INTRO!$E$33, " ") -> DRC | B34: EQUATEUR | C34: Mbandaka | D34: 199397.2159 | E34: =IF(INTRO!$E$48="","",ROUND($D34*INTRO!$E$48,0)) -> 33898 | F34: =IF(INTRO!$E$49="","",ROUND($D34*INTRO!$E$49,0)) -> 69789 | G34: =IF(INTRO!$E$50="","",ROUND($D34*INTRO!$E$50,0)) -> 91723 | H34: 1 | I34: 0 | J34: 1 | K34: 1 | L34: 1 | M34: =IF(INTRO!$E$37="Endemic",IF($H34>0,IF($H34=4,"Unknown",IF($H34=99,"Stopped",$D34)),0),"Not required") -> 199397.2159 | N34: =IF(INTRO!$E$39="Endemic", IF($I34>0, IF($I34=4,"Unknown",IF($I34=99,"Stopped",$D34)), 0),"Not required") -> 0 | O34: =IF(INTRO!$E$41="Endemic", IF(AND($J34>1,$J34<5), IF($J34=4, "Unknown", E34+F34), 0),"Not required") -> 0 | P34: =IF(INTRO!$E$43="Endemic", IF(AND($K34>0,$K34<5), IF($K34=4,"Unknown", IF($K34=1, $F34*0.33, IF($K34=2, $F34*0.5+$G34*0.2, SUM(F34:G34)))), 0),"Not required") -> 23030.37 | Q34: 1 | R34: 0 | S34: 0 | T34: 1 | Y34: 13944 | Z34: Mbandaka
A35: =IF(INTRO!$E$33<>0,INTRO!$E$33, " ") -> DRC | B35: EQUATEUR | C35: Monieka | D35: 89043.4588 | E35: =IF(INTRO!$E$48="","",ROUND($D35*INTRO!$E$48,0)) -> 15137 | F35: =IF(INTRO!$E$49="","",ROUND($D35*INTRO!$E$49,0)) -> 31165 | G35: =IF(INTRO!$E$50="","",ROUND($D35*INTRO!$E$50,0)) -> 40960 | H35: 1 | I35: 1 | J35: 1 | K35: 1 | L35: 1 | M35: =IF(INTRO!$E$37="Endemic",IF($H35>0,IF($H35=4,"Unknown",IF($H35=99,"Stopped",$D35)),0),"Not required") -> 89043.4588 | N35: =IF(INTRO!$E$39="Endemic", IF($I35>0, IF($I35=4,"Unknown",IF($I35=99,"Stopped",$D35)), 0),"Not required") -> 89043.4588 | O35: =IF(INTRO!$E$41="Endemic", IF(AND($J35>1,$J35<5), IF($J35=4, "Unknown", E35+F35), 0),"Not required") -> 0 | P35: =IF(INTRO!$E$43="Endemic", IF(AND($K35>0,$K35<5), IF($K35=4,"Unknown", IF($K35=1, $F35*0.33, IF($K35=2, $F35*0.5+$G35*0.2, SUM(F35:G35)))), 0),"Not required") -> 10284.45 | Q35: 1 | R35: 1 | S35: 0 | T35: 0 | Y35: 13950 | Z35: Monieka
A36: =IF(INTRO!$E$33<>0,INTRO!$E$33, " ") -> DRC | B36: EQUATEUR | C36: Ntondo | D36: 77196.3885 | E36: =IF(INTRO!$E$48="","",ROUND($D36*INTRO!$E$48,0)) -> 13123 | F36: =IF(INTRO!$E$49="","",ROUND($D36*INTRO!$E$49,0)) -> 27019 | G36: =IF(INTRO!$E$50="","",ROUND($D36*INTRO!$E$50,0)) -> 35510 | H36: 1 | I36: 0 | J36: 3 | K36: 2 | L36: 1 | M36: =IF(INTRO!$E$37="Endemic",IF($H36>0,IF($H36=4,"Unknown",IF($H36=99,"Stopped",$D36)),0),"Not required") -> 77196.3885 | N36: =IF(INTRO!$E$39="Endemic", IF($I36>0, IF($I36=4,"Unknown",IF($I36=99,"Stopped",$D36)), 0),"Not required") -> 0 | O36: =IF(INTRO!$E$41="Endemic", IF(AND($J36>1,$J36<5), IF($J36=4, "Unknown", E36+F36), 0),"Not required") -> 40142 | P36: =IF(INTRO!$E$43="Endemic", IF(AND($K36>0,$K36<5), IF($K36=4,"Unknown", IF($K36=1, $F36*0.33, IF($K36=2, $F36*0.5+$G36*0.2, SUM(F36:G36)))), 0),"Not required") -> 20611.5 | Q36: 1 | R36: 0 | S36: 2 | T36: 1 | Y36: 13953 | Z36: Ntondo
A37: =IF(INTRO!$E$33<>0,INTRO!$E$33, " ") -> DRC | B37: EQUATEUR | C37: Wangata | D37: 187359.1836 | E37: =IF(INTRO!$E$48="","",ROUND($D37*INTRO!$E$48,0)) -> 31851 | F37: =IF(INTRO!$E$49="","",ROUND($D37*INTRO!$E$49,0)) -> 65576 | G37: =IF(INTRO!$E$50="","",ROUND($D37*INTRO!$E$50,0)) -> 86185 | H37: 1 | I37: 1 | J37: 3 | K37: 1 | L37: 1 | M37: =IF(INTRO!$E$37="Endemic",IF($H37>0,IF($H37=4,"Unknown",IF($H37=99,"Stopped",$D37)),0),"Not required") -> 187359.1836 | N37: =IF(INTRO!$E$39="Endemic", IF($I37>0, IF($I37=4,"Unknown",IF($I37=99,"Stopped",$D37)), 0),"Not required") -> 187359.1836 | O37: =IF(INTRO!$E$41="Endemic", IF(AND($J37>1,$J37<5), IF($J37=4, "Unknown", E37+F37), 0),"Not required") -> 97427 | P37: =IF(INTRO!$E$43="Endemic", IF(AND($K37>0,$K37<5), IF($K37=4,"Unknown", IF($K37=1, $F37*0.33, IF($K37=2, $F37*0.5+$G37*0.2, SUM(F37:G37)))), 0),"Not required") -> 21640.08 | Q37: 1 | R37: 1 | S37: 2 | T37: 0 | Y37: 13957 | Z37: Wangata
A38: =IF(INTRO!$E$33<>0,INTRO!$E$33, " ") -> DRC | B38: HAUT KATANGA | C38: Kafubu | D38: 105191.4177 | E38: =IF(INTRO!$E$48="","",ROUND($D38*INTRO!$E$48,0)) -> 17883 | F38: =IF(INTRO!$E$49="","",ROUND($D38*INTRO!$E$49,0)) -> 36817 | G38: =IF(INTRO!$E$50="","",ROUND($D38*INTRO!$E$50,0)) -> 48388 | H38: 0 | I38: 1 | J38: 1 | K38: 1 | L38: 0 | M38: =IF(INTRO!$E$37="Endemic",IF($H38>0,IF($H38=4,"Unknown",IF($H38=99,"Stopped",$D38)),0),"Not required") -> 0 | N38: =IF(INTRO!$E$39="Endemic", IF($I38>0, IF($I38=4,"Unknown",IF($I38=99,"Stopped",$D38)), 0),"Not required") -> 105191.4177 | O38: =IF(INTRO!$E$41="Endemic", IF(AND($J38>1,$J38<5), IF($J38=4, "Unknown", E38+F38), 0),"Not required") -> 0 | P38: =IF(INTRO!$E$43="Endemic", IF(AND($K38>0,$K38<5), IF($K38=4,"Unknown", IF($K38=1, $F38*0.33, IF($K38=2, $F38*0.5+$G38*0.2, SUM(F38:G38)))), 0),"Not required") -> 12149.61 | Q38: 0 | R38: 1 | S38: 0 | T38: 0 | Y38: 14071 | Z38: Kafubu
A39: =IF(INTRO!$E$33<>0,INTRO!$E$33, " ") -> DRC | B39: HAUT KATANGA | C39: Kamalondo | D39: 53942.5214 | E39: =IF(INTRO!$E$48="","",ROUND($D39*INTRO!$E$48,0)) -> 9170 | F39: =IF(INTRO!$E$49="","",ROUND($D39*INTRO!$E$49,0)) -> 18880 | G39: =IF(INTRO!$E$50="","",ROUND($D39*INTRO!$E$50,0)) -> 24814 | H39: 0 | I39: 0 | J39: 2 | K39: 1 | L39: 0 | M39: =IF(INTRO!$E$37="Endemic",IF($H39>0,IF($H39=4,"Unknown",IF($H39=99,"Stopped",$D39)),0),"Not required") -> 0 | N39: =IF(INTRO!$E$39="Endemic", IF($I39>0, IF($I39=4,"Unknown",IF($I39=99,"Stopped",$D39)), 0),"Not required") -> 0 | O39: =IF(INTRO!$E$41="Endemic", IF(AND($J39>1,$J39<5), IF($J39=4, "Unknown", E39+F39), 0),"Not required") -> 28050 | P39: =IF(INTRO!$E$43="Endemic", IF(AND($K39>0,$K39<5), IF($K39=4,"Unknown", IF($K39=1, $F39*0.33, IF($K39=2, $F39*0.5+$G39*0.2, SUM(F39:G39)))), 0),"Not required") -> 6230.4 | Q39: 0 | R39: 0 | S39: 1 | T39: 1 | Y39: 14074 | Z39: Kamalondo
A40: =IF(INTRO!$E$33<>0,INTRO!$E$33, " ") -> DRC | B40: HAUT KATANGA | C40: Kambove | D40: 130420.66 | E40: =IF(INTRO!$E$48="","",ROUND($D40*INTRO!$E$48,0)) -> 22172 | F40: =IF(INTRO!$E$49="","",ROUND($D40*INTRO!$E$49,0)) -> 45647 | G40: =IF(INTRO!$E$50="","",ROUND($D40*INTRO!$E$50,0)) -> 59994 | H40: 0 | I40: 0 | J40: 1 | K40: 0 | L40: 1 | M40: =IF(INTRO!$E$37="Endemic",IF($H40>0,IF($H40=4,"Unknown",IF($H40=99,"Stopped",$D40)),0),"Not required") -> 0 | N40: =IF(INTRO!$E$39="Endemic", IF($I40>0, IF($I40=4,"Unknown",IF($I40=99,"Stopped",$D40)), 0),"Not required") -> 0 | O40: =IF(INTRO!$E$41="Endemic", IF(AND($J40>1,$J40<5), IF($J40=4, "Unknown", E40+F40), 0),"Not required") -> 0 | P40: =IF(INTRO!$E$43="Endemic", IF(AND($K40>0,$K40<5), IF($K40=4,"Unknown", IF($K40=1, $F40*0.33, IF($K40=2, $F40*0.5+$G40*0.2, SUM(F40:G40)))), 0),"Not required") -> 0 | Q40: 0 | R40: 0 | S40: 0 | T40: 0 | Y40: 14075 | Z40: Kambove
A41: =IF(INTRO!$E$33<>0,INTRO!$E$33, " ") -> DRC | B41: HAUT KATANGA | C41: Kampemba | D41: 455165.5049 | E41: =IF(INTRO!$E$48="","",ROUND($D41*INTRO!$E$48,0)) -> 77378 | F41: =IF(INTRO!$E$49="","",ROUND($D41*INTRO!$E$49,0)) -> 159308 | G41: =IF(INTRO!$E$50="","",ROUND($D41*INTRO!$E$50,0)) -> 209376 | H41: 0 | I41: 0 | J41: 1 | K41: 2 | L41: 0 | M41: =IF(INTRO!$E$37="Endemic",IF($H41>0,IF($H41=4,"Unknown",IF($H41=99,"Stopped",$D41)),0),"Not required") -> 0 | N41: =IF(INTRO!$E$39="Endemic", IF($I41>0, IF($I41=4,"Unknown",IF($I41=99,"Stopped",$D41)), 0),"Not required") -> 0 | O41: =IF(INTRO!$E$41="Endemic", IF(AND($J41>1,$J41<5), IF($J41=4, "Unknown", E41+F41), 0),"Not required") -> 0 | P41: =IF(INTRO!$E$43="Endemic", IF(AND($K41>0,$K41<5), IF($K41=4,"Unknown", IF($K41=1, $F41*0.33, IF($K41=2, $F41*0.5+$G41*0.2, SUM(F41:G41)))), 0),"Not required") -> 121529.2 | Q41: 0 | R41: 0 | S41: 0 | T41: 1 | Y41: 14080 | Z41: Kampemba
A42: =IF(INTRO!$E$33<>0,INTRO!$E$33, " ") -> DRC | B42: HAUT KATANGA | C42: Kapolobwe | D42: 175764.35 | E42: =IF(INTRO!$E$48="","",ROUND($D42*INTRO!$E$48,0)) -> 29880 | F42: =IF(INTRO!$E$49="","",ROUND($D42*INTRO!$E$49,0)) -> 61518 | G42: =IF(INTRO!$E$50="","",ROUND($D42*INTRO!$E$50,0)) -> 80852 | H42: 0 | I42: 0 | J42: 0 | K42: 2 | L42: 0 | M42: =IF(INTRO!$E$37="Endemic",IF($H42>0,IF($H42=4,"Unknown",IF($H42=99,"Stopped",$D42)),0),"Not required") -> 0 | N42: =IF(INTRO!$E$39="Endemic", IF($I42>0, IF($I42=4,"Unknown",IF($I42=99,"Stopped",$D42)), 0),"Not required") -> 0 | O42: =IF(INTRO!$E$41="Endemic", IF(AND($J42>1,$J42<5), IF($J42=4, "Unknown", E42+F42), 0),"Not required") -> 0 | P42: =IF(INTRO!$E$43="Endemic", IF(AND($K42>0,$K42<5), IF($K42=4,"Unknown", IF($K42=1, $F42*0.33, IF($K42=2, $F42*0.5+$G42*0.2, SUM(F42:G42)))), 0),"Not required") -> 46929.4 | Q42: 0 | R42: 0 | S42: 0 | T42: 0 | Y42: 14081 | Z42: Kapolobwe
A43: =IF(INTRO!$E$33<>0,INTRO!$E$33, " ") -> DRC | B43: HAUT KATANGA | C43: Kasenga | D43: 152241.2718 | E43: =IF(INTRO!$E$48="","",ROUND($D43*INTRO!$E$48,0)) -> 25881 | F43: =IF(INTRO!$E$49="","",ROUND($D43*INTRO!$E$49,0)) -> 53284 | G43: =IF(INTRO!$E$50="","",ROUND($D43*INTRO!$E$50,0)) -> 70031 | H43: 1 | I43: 0 | J43: 1 | K43: 2 | L43: 0 | M43: =IF(INTRO!$E$37="Endemic",IF($H43>0,IF($H43=4,"Unknown",IF($H43=99,"Stopped",$D43)),0),"Not required") -> 152241.2718 | N43: =IF(INTRO!$E$39="Endemic", IF($I43>0, IF($I43=4,"Unknown",IF($I43=99,"Stopped",$D43)), 0),"Not required") -> 0 | O43: =IF(INTRO!$E$41="Endemic", IF(AND($J43>1,$J43<5), IF($J43=4, "Unknown", E43+F43), 0),"Not required") -> 0 | P43: =IF(INTRO!$E$43="Endemic", IF(AND($K43>0,$K43<5), IF($K43=4,"Unknown", IF($K43=1, $F43*0.33, IF($K43=2, $F43*0.5+$G43*0.2, SUM(F43:G43)))), 0),"Not required") -> 40648.2 | Q43: 1 | R43: 0 | S43: 0 | T43: 0 | Y43: 14083 | Z43: Kasenga
A44: =IF(INTRO!$E$33<>0,INTRO!$E$33, " ") -> DRC | B44: HAUT KATANGA | C44: Kashobwe | D44: 168007.1551 | E44: =IF(INTRO!$E$48="","",ROUND($D44*INTRO!$E$48,0)) -> 28561 | F44: =IF(INTRO!$E$49="","",ROUND($D44*INTRO!$E$49,0)) -> 58803 | G44: =IF(INTRO!$E$50="","",ROUND($D44*INTRO!$E$50,0)) -> 77283 | H44: 0 | I44: 0 | J44: 1 | K44: 2 | L44: 4 | M44: =IF(INTRO!$E$37="Endemic",IF($H44>0,IF($H44=4,"Unknown",IF($H44=99,"Stopped",$D44)),0),"Not required") -> 0 | N44: =IF(INTRO!$E$39="Endemic", IF($I44>0, IF($I44=4,"Unknown",IF($I44=99,"Stopped",$D44)), 0),"Not required") -> 0 | O44: =IF(INTRO!$E$41="Endemic", IF(AND($J44>1,$J44<5), IF($J44=4, "Unknown", E44+F44), 0),"Not required") -> 0 | P44: =IF(INTRO!$E$43="Endemic", IF(AND($K44>0,$K44<5), IF($K44=4,"Unknown", IF($K44=1, $F44*0.33, IF($K44=2, $F44*0.5+$G44*0.2, SUM(F44:G44)))), 0),"Not required") -> 44858.1 | Q44: 0 | R44: 0 | S44: 0 | T44: 1 | Y44: 14337 | Z44: Kashobwe
A45: =IF(INTRO!$E$33<>0,INTRO!$E$33, " ") -> DRC | B45: HAUT KATANGA | C45: Katuba | D45: 198120.9532 | E45: =IF(INTRO!$E$48="","",ROUND($D45*INTRO!$E$48,0)) -> 33681 | F45: =IF(INTRO!$E$49="","",ROUND($D45*INTRO!$E$49,0)) -> 69342 | G45: =IF(INTRO!$E$50="","",ROUND($D45*INTRO!$E$50,0)) -> 91136 | H45: 0 | I45: 0 | J45: 2 | K45: 0 | L45: 0 | M45: =IF(INTRO!$E$37="Endemic",IF($H45>0,IF($H45=4,"Unknown",IF($H45=99,"Stopped",$D45)),0),"Not required") -> 0 | N45: =IF(INTRO!$E$39="Endemic", IF($I45>0, IF($I45=4,"Unknown",IF($I45=99,"Stopped",$D45)), 0),"Not required") -> 0 | O45: =IF(INTRO!$E$41="Endemic", IF(AND($J45>1,$J45<5), IF($J45=4, "Unknown", E45+F45), 0),"Not required") -> 103023 | P45: =IF(INTRO!$E$43="Endemic", IF(AND($K45>0,$K45<5), IF($K45=4,"Unknown", IF($K45=1, $F45*0.33, IF($K45=2, $F45*0.5+$G45*0.2, SUM(F45:G45)))), 0),"Not required") -> 0 | Q45: 0 | R45: 0 | S45: 1 | T45: 0 | Y45: 14085 | Z45: Katuba
A46: =IF(INTRO!$E$33<>0,INTRO!$E$33, " ") -> DRC | B46: HAUT KATANGA | C46: Kenya | D46: 222001.8122 | E46: =IF(INTRO!$E$48="","",ROUND($D46*INTRO!$E$48,0)) -> 37740 | F46: =IF(INTRO!$E$49="","",ROUND($D46*INTRO!$E$49,0)) -> 77701 | G46: =IF(INTRO!$E$50="","",ROUND($D46*INTRO!$E$50,0)) -> 102121 | H46: 1 | I46: 0 | J46: 1 | K46: 0 | L46: 0 | M46: =IF(INTRO!$E$37="Endemic",IF($H46>0,IF($H46=4,"Unknown",IF($H46=99,"Stopped",$D46)),0),"Not required") -> 222001.8122 | N46: =IF(INTRO!$E$39="Endemic", IF($I46>0, IF($I46=4,"Unknown",IF($I46=99,"Stopped",$D46)), 0),"Not required") -> 0 | O46: =IF(INTRO!$E$41="Endemic", IF(AND($J46>1,$J46<5), IF($J46=4, "Unknown", E46+F46), 0),"Not required") -> 0 | P46: =IF(INTRO!$E$43="Endemic", IF(AND($K46>0,$K46<5), IF($K46=4,"Unknown", IF($K46=1, $F46*0.33, IF($K46=2, $F46*0.5+$G46*0.2, SUM(F46:G46)))), 0),"Not required") -> 0 | Q46: 1 | R46: 0 | S46: 0 | T46: 0 | Y46: 14087 | Z46: Kenya
A47: =IF(INTRO!$E$33<>0,INTRO!$E$33, " ") -> DRC | B47: HAUT KATANGA | C47: Kikula | D47: 233253.8 | E47: =IF(INTRO!$E$48="","",ROUND($D47*INTRO!$E$48,0)) -> 39653 | F47: =IF(INTRO!$E$49="","",ROUND($D47*INTRO!$E$49,0)) -> 81639 | G47: =IF(INTRO!$E$50="","",ROUND($D47*INTRO!$E$50,0)) -> 107297 | H47: 0 | I47: 0 | J47: 0 | K47: 1 | L47: 0 | M47: =IF(INTRO!$E$37="Endemic",IF($H47>0,IF($H47=4,"Unknown",IF($H47=99,"Stopped",$D47)),0),"Not required") -> 0 | N47: =IF(INTRO!$E$39="Endemic", IF($I47>0, IF($I47=4,"Unknown",IF($I47=99,"Stopped",$D47)), 0),"Not required") -> 0 | O47: =IF(INTRO!$E$41="Endemic", IF(AND($J47>1,$J47<5), IF($J47=4, "Unknown", E47+F47), 0),"Not required") -> 0 | P47: =IF(INTRO!$E$43="Endemic", IF(AND($K47>0,$K47<5), IF($K47=4,"Unknown", IF($K47=1, $F47*0.33, IF($K47=2, $F47*0.5+$G47*0.2, SUM(F47:G47)))), 0),"Not required") -> 26940.87 | Q47: 0 | R47: 0 | S47: 0 | T47: 1 | Y47: 14089 | Z47: Kikula
A48: =IF(INTRO!$E$33<>0,INTRO!$E$33, " ") -> DRC | B48: HAUT KATANGA | C48: Kilela Balanda | D48: 108690.7206 | E48: =IF(INTRO!$E$48="","",ROUND($D48*INTRO!$E$48,0)) -> 18477 | F48: =IF(INTRO!$E$49="","",ROUND($D48*INTRO!$E$49,0)) -> 38042 | G48: =IF(INTRO!$E$50="","",ROUND($D48*INTRO!$E$50,0)) -> 49998 | H48: 0 | I48: 0 | J48: 1 | K48: 1 | L48: 0 | M48: =IF(INTRO!$E$37="Endemic",IF($H48>0,IF($H48=4,"Unknown",IF($H48=99,"Stopped",$D48)),0),"Not required") -> 0 | N48: =IF(INTRO!$E$39="Endemic", IF($I48>0, IF($I48=4,"Unknown",IF($I48=99,"Stopped",$D48)), 0),"Not required") -> 0 | O48: =IF(INTRO!$E$41="Endemic", IF(AND($J48>1,$J48<5), IF($J48=4, "Unknown", E48+F48), 0),"Not required") -> 0 | P48: =IF(INTRO!$E$43="Endemic", IF(AND($K48>0,$K48<5), IF($K48=4,"Unknown", IF($K48=1, $F48*0.33, IF($K48=2, $F48*0.5+$G48*0.2, SUM(F48:G48)))), 0),"Not required") -> 12553.86 | Q48: 0 | R48: 0 | S48: 0 | T48: 0 | Y48: 14090 | Z48: Kilela Balanda
A49: =IF(INTRO!$E$33<>0,INTRO!$E$33, " ") -> DRC | B49: HAUT KATANGA | C49: Kilwa | D49: 376736.199 | E49: =IF(INTRO!$E$48="","",ROUND($D49*INTRO!$E$48,0)) -> 64045 | F49: =IF(INTRO!$E$49="","",ROUND($D49*INTRO!$E$49,0)) -> 131858 | G49: =IF(INTRO!$E$50="","",ROUND($D49*INTRO!$E$50,0)) -> 173299 | H49: 1 | I49: 0 | J49: 1 | K49: 2 | L49: 0 | M49: =IF(INTRO!$E$37="Endemic",IF($H49>0,IF($H49=4,"Unknown",IF($H49=99,"Stopped",$D49)),0),"Not required") -> 376736.199 | N49: =IF(INTRO!$E$39="Endemic", IF($I49>0, IF($I49=4,"Unknown",IF($I49=99,"Stopped",$D49)), 0),"Not required") -> 0 | O49: =IF(INTRO!$E$41="Endemic", IF(AND($J49>1,$J49<5), IF($J49=4, "Unknown", E49+F49), 0),"Not required") -> 0 | P49: =IF(INTRO!$E$43="Endemic", IF(AND($K49>0,$K49<5), IF($K49=4,"Unknown", IF($K49=1, $F49*0.33, IF($K49=2, $F49*0.5+$G49*0.2, SUM(F49:G49)))), 0),"Not required") -> 100588.8 | Q49: 1 | R49: 0 | S49: 0 | T49: 0 | Y49: 14091 | Z49: Kilwa
A50: =IF(INTRO!$E$33<>0,INTRO!$E$33, " ") -> DRC | B50: HAUT KATANGA | C50: Kipushi | D50: 234527.8585 | E50: =IF(INTRO!$E$48="","",ROUND($D50*INTRO!$E$48,0)) -> 39870 | F50: =IF(INTRO!$E$49="","",ROUND($D50*INTRO!$E$49,0)) -> 82085 | G50: =IF(INTRO!$E$50="","",ROUND($D50*INTRO!$E$50,0)) -> 107883 | H50: 1 | I50: 1 | J50: 1 | K50: 2 | L50: 0 | M50: =IF(INTRO!$E$37="Endemic",IF($H50>0,IF($H50=4,"Unknown",IF($H50=99,"Stopped",$D50)),0),"Not required") -> 234527.8585 | N50: =IF(INTRO!$E$39="Endemic", IF($I50>0, IF($I50=4,"Unknown",IF($I50=99,"Stopped",$D50)), 0),"Not required") -> 234527.8585 | O50: =IF(INTRO!$E$41="Endemic", IF(AND($J50>1,$J50<5), IF($J50=4, "Unknown", E50+F50), 0),"Not required") -> 0 | P50: =IF(INTRO!$E$43="Endemic", IF(AND($K50>0,$K50<5), IF($K50=4,"Unknown", IF($K50=1, $F50*0.33, IF($K50=2, $F50*0.5+$G50*0.2, SUM(F50:G50)))), 0),"Not required") -> 62619.1 | Q50: 1 | R50: 1 | S50: 0 | T50: 0 | Y50: 14094 | Z50: Kipushi
A51: =IF(INTRO!$E$33<>0,INTRO!$E$33, " ") -> DRC | B51: HAUT KATANGA | C51: Kisanga | D51: 280507.2645 | E51: =IF(INTRO!$E$48="","",ROUND($D51*INTRO!$E$48,0)) -> 47686 | F51: =IF(INTRO!$E$49="","",ROUND($D51*INTRO!$E$49,0)) -> 98178 | G51: =IF(INTRO!$E$50="","",ROUND($D51*INTRO!$E$50,0)) -> 129033 | H51: 1 | I51: 0 | J51: 1 | K51: 0 | L51: 0 | M51: =IF(INTRO!$E$37="Endemic",IF($H51>0,IF($H51=4,"Unknown",IF($H51=99,"Stopped",$D51)),0),"Not required") -> 280507.2645 | N51: =IF(INTRO!$E$39="Endemic", IF($I51>0, IF($I51=4,"Unknown",IF($I51=99,"Stopped",$D51)), 0),"Not required") -> 0 | O51: =IF(INTRO!$E$41="Endemic", IF(AND($J51>1,$J51<5), IF($J51=4, "Unknown", E51+F51), 0),"Not required") -> 0 | P51: =IF(INTRO!$E$43="Endemic", IF(AND($K51>0,$K51<5), IF($K51=4,"Unknown", IF($K51=1, $F51*0.33, IF($K51=2, $F51*0.5+$G51*0.2, SUM(F51:G51)))), 0),"Not required") -> 0 | Q51: 1 | R51: 0 | S51: 0 | T51: 0 | Y51: 14095 | Z51: Kisanga
A52: =IF(INTRO!$E$33<>0,INTRO!$E$33, " ") -> DRC | B52: HAUT KATANGA | C52: Kowe | D52: 52720.3646 | E52: =IF(INTRO!$E$48="","",ROUND($D52*INTRO!$E$48,0)) -> 8962 | F52: =IF(INTRO!$E$49="","",ROUND($D52*INTRO!$E$49,0)) -> 18452 | G52: =IF(INTRO!$E$50="","",ROUND($D52*INTRO!$E$50,0)) -> 24251 | H52: 0 | I52: 0 | J52: 2 | K52: 1 | L52: 4 | M52: =IF(INTRO!$E$37="Endemic",IF($H52>0,IF($H52=4,"Unknown",IF($H52=99,"Stopped",$D52)),0),"Not required") -> 0 | N52: =IF(INTRO!$E$39="Endemic", IF($I52>0, IF($I52=4,"Unknown",IF($I52=99,"Stopped",$D52)), 0),"Not required") -> 0 | O52: =IF(INTRO!$E$41="Endemic", IF(AND($J52>1,$J52<5), IF($J52=4, "Unknown", E52+F52), 0),"Not required") -> 27414 | P52: =IF(INTRO!$E$43="Endemic", IF(AND($K52>0,$K52<5), IF($K52=4,"Unknown", IF($K52=1, $F52*0.33, IF($K52=2, $F52*0.5+$G52*0.2, SUM(F52:G52)))), 0),"Not required") -> 6089.16 | Q52: 0 | R52: 0 | S52: 1 | T52: 0 | Y52: 14098 | Z52: Kowe
A53: =IF(INTRO!$E$33<>0,INTRO!$E$33, " ") -> DRC | B53: HAUT KATANGA | C53: Likasi | D53: 188264.1313 | E53: =IF(INTRO!$E$48="","",ROUND($D53*INTRO!$E$48,0)) -> 32005 | F53: =IF(INTRO!$E$49="","",ROUND($D53*INTRO!$E$49,0)) -> 65892 | G53: =IF(INTRO!$E$50="","",ROUND($D53*INTRO!$E$50,0)) -> 86602 | H53: 1 | I53: 0 | J53: 1 | K53: 0 | L53: 0 | M53: =IF(INTRO!$E$37="Endemic",IF($H53>0,IF($H53=4,"Unknown",IF($H53=99,"Stopped",$D53)),0),"Not required") -> 188264.1313 | N53: =IF(INTRO!$E$39="Endemic", IF($I53>0, IF($I53=4,"Unknown",IF($I53=99,"Stopped",$D53)), 0),"Not required") -> 0 | O53: =IF(INTRO!$E$41="Endemic", IF(AND($J53>1,$J53<5), IF($J53=4, "Unknown", E53+F53), 0),"Not required") -> 0 | P53: =IF(INTRO!$E$43="Endemic", IF(AND($K53>0,$K53<5), IF($K53=4,"Unknown", IF($K53=1, $F53*0.33, IF($K53=2, $F53*0.5+$G53*0.2, SUM(F53:G53)))), 0),"Not required") -> 0 | Q53: 1 | R53: 0 | S53: 0 | T53: 0 | Y53: 14099 | Z53: Likasi
A54: =IF(INTRO!$E$33<>0,INTRO!$E$33, " ") -> DRC | B54: HAUT KATANGA | C54: Lubumbashi | D54: 194234.8765 | E54: =IF(INTRO!$E$48="","",ROUND($D54*INTRO!$E$48,0)) -> 33020 | F54: =IF(INTRO!$E$49="","",ROUND($D54*INTRO!$E$49,0)) -> 67982 | G54: =IF(INTRO!$E$50="","",ROUND($D54*INTRO!$E$50,0)) -> 89348 | H54: 1 | I54: 0 | J54: 1 | K54: 1 | L54: 0 | M54: =IF(INTRO!$E$37="Endemic",IF($H54>0,IF($H54=4,"Unknown",IF($H54=99,"Stopped",$D54)),0),"Not required") -> 194234.8765 | N54: =IF(INTRO!$E$39="Endemic", IF($I54>0, IF($I54=4,"Unknown",IF($I54=99,"Stopped",$D54)), 0),"Not required") -> 0 | O54: =IF(INTRO!$E$41="Endemic", IF(AND($J54>1,$J54<5), IF($J54=4, "Unknown", E54+F54), 0),"Not required") -> 0 | P54: =IF(INTRO!$E$43="Endemic", IF(AND($K54>0,$K54<5), IF($K54=4,"Unknown", IF($K54=1, $F54*0.33, IF($K54=2, $F54*0.5+$G54*0.2, SUM(F54:G54)))), 0),"Not required") -> 22434.06 | Q54: 1 | R54: 0 | S54: 0 | T54: 1 | Y54: 14102 | Z54: Lubumbashi
A55: =IF(INTRO!$E$33<>0,INTRO!$E$33, " ") -> DRC | B55: HAUT KATANGA | C55: Lukafu | D55: 99186.7237 | E55: =IF(INTRO!$E$48="","",ROUND($D55*INTRO!$E$48,0)) -> 16862 | F55: =IF(INTRO!$E$49="","",ROUND($D55*INTRO!$E$49,0)) -> 34715 | G55: =IF(INTRO!$E$50="","",ROUND($D55*INTRO!$E$50,0)) -> 45626 | H55: 1 | I55: 0 | J55: 1 | K55: 2 | L55: 0 | M55: =IF(INTRO!$E$37="Endemic",IF($H55>0,IF($H55=4,"Unknown",IF($H55=99,"Stopped",$D55)),0),"Not required") -> 99186.7237 | N55: =IF(INTRO!$E$39="Endemic", IF($I55>0, IF($I55=4,"Unknown",IF($I55=99,"Stopped",$D55)), 0),"Not required") -> 0 | O55: =IF(INTRO!$E$41="Endemic", IF(AND($J55>1,$J55<5), IF($J55=4, "Unknown", E55+F55), 0),"Not required") -> 0 | P55: =IF(INTRO!$E$43="Endemic", IF(AND($K55>0,$K55<5), IF($K55=4,"Unknown", IF($K55=1, $F55*0.33, IF($K55=2, $F55*0.5+$G55*0.2, SUM(F55:G55)))), 0),"Not required") -> 26482.7 | Q55: 1 | R55: 0 | S55: 0 | T55: 0 | Y55: 14103 | Z55: Lukafu
A56: =IF(INTRO!$E$33<>0,INTRO!$E$33, " ") -> DRC | B56: HAUT KATANGA | C56: Mitwaba | D56: 113517.3609 | E56: =IF(INTRO!$E$48="","",ROUND($D56*INTRO!$E$48,0)) -> 19298 | F56: =IF(INTRO!$E$49="","",ROUND($D56*INTRO!$E$49,0)) -> 39731 | G56: =IF(INTRO!$E$50="","",ROUND($D56*INTRO!$E$50,0)) -> 52218 | H56: 1 | I56: 1 | J56: 1 | K56: 1 | L56: 0 | M56: =IF(INTRO!$E$37="Endemic",IF($H56>0,IF($H56=4,"Unknown",IF($H56=99,"Stopped",$D56)),0),"Not required") -> 113517.3609 | N56: =IF(INTRO!$E$39="Endemic", IF($I56>0, IF($I56=4,"Unknown",IF($I56=99,"Stopped",$D56)), 0),"Not required") -> 113517.3609 | O56: =IF(INTRO!$E$41="Endemic", IF(AND($J56>1,$J56<5), IF($J56=4, "Unknown", E56+F56), 0),"Not required") -> 0 | P56: =IF(INTRO!$E$43="Endemic", IF(AND($K56>0,$K56<5), IF($K56=4,"Unknown", IF($K56=1, $F56*0.33, IF($K56=2, $F56*0.5+$G56*0.2, SUM(F56:G56)))), 0),"Not required") -> 13111.23 | Q56: 1 | R56: 1 | S56: 0 | T56: 1 | Y56: 14109 | Z56: Mitwaba
A57: =IF(INTRO!$E$33<>0,INTRO!$E$33, " ") -> DRC | B57: HAUT KATANGA | C57: Mufunga Sampwe | D57: 185818.7568 | E57: =IF(INTRO!$E$48="","",ROUND($D57*INTRO!$E$48,0)) -> 31589 | F57: =IF(INTRO!$E$49="","",ROUND($D57*INTRO!$E$49,0)) -> 65037 | G57: =IF(INTRO!$E$50="","",ROUND($D57*INTRO!$E$50,0)) -> 85477 | H57: 1 | I57: 1 | J57: 1 | K57: 0 | L57: 0 | M57: =IF(INTRO!$E$37="Endemic",IF($H57>0,IF($H57=4,"Unknown",IF($H57=99,"Stopped",$D57)),0),"Not required") -> 185818.7568 | N57: =IF(INTRO!$E$39="Endemic", IF($I57>0, IF($I57=4,"Unknown",IF($I57=99,"Stopped",$D57)), 0),"Not required") -> 185818.7568 | O57: =IF(INTRO!$E$41="Endemic", IF(AND($J57>1,$J57<5), IF($J57=4, "Unknown", E57+F57), 0),"Not required") -> 0 | P57: =IF(INTRO!$E$43="Endemic", IF(AND($K57>0,$K57<5), IF($K57=4,"Unknown", IF($K57=1, $F57*0.33, IF($K57=2, $F57*0.5+$G57*0.2, SUM(F57:G57)))), 0),"Not required") -> 0 | Q57: 1 | R57: 1 | S57: 0 | T57: 0 | Y57: 14112 | Z57: Mufunga Sampwe
A58: =IF(INTRO!$E$33<>0,INTRO!$E$33, " ") -> DRC | B58: HAUT KATANGA | C58: Mumbunda | D58: 160522.41 | E58: =IF(INTRO!$E$48="","",ROUND($D58*INTRO!$E$48,0)) -> 27289 | F58: =IF(INTRO!$E$49="","",ROUND($D58*INTRO!$E$49,0)) -> 56183 | G58: =IF(INTRO!$E$50="","",ROUND($D58*INTRO!$E$50,0)) -> 73840 | H58: 0 | I58: 0 | J58: 1 | K58: 0 | L58: 0 | M58: =IF(INTRO!$E$37="Endemic",IF($H58>0,IF($H58=4,"Unknown",IF($H58=99,"Stopped",$D58)),0),"Not required") -> 0 | N58: =IF(INTRO!$E$39="Endemic", IF($I58>0, IF($I58=4,"Unknown",IF($I58=99,"Stopped",$D58)), 0),"Not required") -> 0 | O58: =IF(INTRO!$E$41="Endemic", IF(AND($J58>1,$J58<5), IF($J58=4, "Unknown", E58+F58), 0),"Not required") -> 0 | P58: =IF(INTRO!$E$43="Endemic", IF(AND($K58>0,$K58<5), IF($K58=4,"Unknown", IF($K58=1, $F58*0.33, IF($K58=2, $F58*0.5+$G58*0.2, SUM(F58:G58)))), 0),"Not required") -> 0 | Q58: 0 | R58: 0 | S58: 0 | T58: 0 | Y58: 14111 | Z58: Mumbunda
A59: =IF(INTRO!$E$33<>0,INTRO!$E$33, " ") -> DRC | B59: HAUT KATANGA | C59: Panda | D59: 92997.67 | E59: =IF(INTRO!$E$48="","",ROUND($D59*INTRO!$E$48,0)) -> 15810 | F59: =IF(INTRO!$E$49="","",ROUND($D59*INTRO!$E$49,0)) -> 32549 | G59: =IF(INTRO!$E$50="","",ROUND($D59*INTRO!$E$50,0)) -> 42779 | H59: 0 | I59: 0 | J59: 1 | K59: 0 | L59: 0 | M59: =IF(INTRO!$E$37="Endemic",IF($H59>0,IF($H59=4,"Unknown",IF($H59=99,"Stopped",$D59)),0),"Not required") -> 0 | N59: =IF(INTRO!$E$39="Endemic", IF($I59>0, IF($I59=4,"Unknown",IF($I59=99,"Stopped",$D59)), 0),"Not required") -> 0 | O59: =IF(INTRO!$E$41="Endemic", IF(AND($J59>1,$J59<5), IF($J59=4, "Unknown", E59+F59), 0),"Not required") -> 0 | P59: =IF(INTRO!$E$43="Endemic", IF(AND($K59>0,$K59<5), IF($K59=4,"Unknown", IF($K59=1, $F59*0.33, IF($K59=2, $F59*0.5+$G59*0.2, SUM(F59:G59)))), 0),"Not required") -> 0 | Q59: 0 | R59: 0 | S59: 0 | T59: 0 | Y59: 14118 | Z59: Panda
A60: =IF(INTRO!$E$33<>0,INTRO!$E$33, " ") -> DRC | B60: HAUT KATANGA | C60: Pweto | D60: 259972.0294 | E60: =IF(INTRO!$E$48="","",ROUND($D60*INTRO!$E$48,0)) -> 44195 | F60: =IF(INTRO!$E$49="","",ROUND($D60*INTRO!$E$49,0)) -> 90990 | G60: =IF(INTRO!$E$50="","",ROUND($D60*INTRO!$E$50,0)) -> 119587 | H60: 0 | I60: 0 | J60: 1 | K60: 1 | L60: 0 | M60: =IF(INTRO!$E$37="Endemic",IF($H60>0,IF($H60=4,"Unknown",IF($H60=99,"Stopped",$D60)),0),"Not required") -> 0 | N60: =IF(INTRO!$E$39="Endemic", IF($I60>0, IF($I60=4,"Unknown",IF($I60=99,"Stopped",$D60)), 0),"Not required") -> 0 | O60: =IF(INTRO!$E$41="Endemic", IF(AND($J60>1,$J60<5), IF($J60=4, "Unknown", E60+F60), 0),"Not required") -> 0 | P60: =IF(INTRO!$E$43="Endemic", IF(AND($K60>0,$K60<5), IF($K60=4,"Unknown", IF($K60=1, $F60*0.33, IF($K60=2, $F60*0.5+$G60*0.2, SUM(F60:G60)))), 0),"Not required") -> 30026.7 | Q60: 0 | R60: 0 | S60: 0 | T60: 0 | Y60: 14119 | Z60: Pweto
A61: =IF(INTRO!$E$33<>0,INTRO!$E$33, " ") -> DRC | B61: HAUT KATANGA | C61: Ruashi | D61: 290042.85 | E61: =IF(INTRO!$E$48="","",ROUND($D61*INTRO!$E$48,0)) -> 49307 | F61: =IF(INTRO!$E$49="","",ROUND($D61*INTRO!$E$49,0)) -> 101515 | G61: =IF(INTRO!$E$50="","",ROUND($D61*INTRO!$E$50,0)) -> 133420 | H61: 0 | I61: 0 | J61: 1 | K61: 0 | L61: 0 | M61: =IF(INTRO!$E$37="Endemic",IF($H61>0,IF($H61=4,"Unknown",IF($H61=99,"Stopped",$D61)),0),"Not required") -> 0 | N61: =IF(INTRO!$E$39="Endemic", IF($I61>0, IF($I61=4,"Unknown",IF($I61=99,"Stopped",$D61)), 0),"Not required") -> 0 | O61: =IF(INTRO!$E$41="Endemic", IF(AND($J61>1,$J61<5), IF($J61=4, "Unknown", E61+F61), 0),"Not required") -> 0 | P61: =IF(INTRO!$E$43="Endemic", IF(AND($K61>0,$K61<5), IF($K61=4,"Unknown", IF($K61=1, $F61*0.33, IF($K61=2, $F61*0.5+$G61*0.2, SUM(F61:G61)))), 0),"Not required") -> 0 | Q61: 0 | R61: 0 | S61: 0 | T61: 0 | Y61: 14120 | Z61: Ruashi
A62: =IF(INTRO!$E$33<>0,INTRO!$E$33, " ") -> DRC | B62: HAUT KATANGA | C62: Sakania | D62: 188358.5514 | E62: =IF(INTRO!$E$48="","",ROUND($D62*INTRO!$E$48,0)) -> 32021 | F62: =IF(INTRO!$E$49="","",ROUND($D62*INTRO!$E$49,0)) -> 65925 | G62: =IF(INTRO!$E$50="","",ROUND($D62*INTRO!$E$50,0)) -> 86645 | H62: 1 | I62: 0 | J62: 1 | K62: 2 | L62: 0 | M62: =IF(INTRO!$E$37="Endemic",IF($H62>0,IF($H62=4,"Unknown",IF($H62=99,"Stopped",$D62)),0),"Not required") -> 188358.5514 | N62: =IF(INTRO!$E$39="Endemic", IF($I62>0, IF($I62=4,"Unknown",IF($I62=99,"Stopped",$D62)), 0),"Not required") -> 0 | O62: =IF(INTRO!$E$41="Endemic", IF(AND($J62>1,$J62<5), IF($J62=4, "Unknown", E62+F62), 0),"Not required") -> 0 | P62: =IF(INTRO!$E$43="Endemic", IF(AND($K62>0,$K62<5), IF($K62=4,"Unknown", IF($K62=1, $F62*0.33, IF($K62=2, $F62*0.5+$G62*0.2, SUM(F62:G62)))), 0),"Not required") -> 50291.5 | Q62: 1 | R62: 0 | S62: 0 | T62: 0 | Y62: 14121 | Z62: Sakania
A63: =IF(INTRO!$E$33<>0,INTRO!$E$33, " ") -> DRC | B63: HAUT KATANGA | C63: Tshamilemba | D63: 262881.9266 | E63: =IF(INTRO!$E$48="","",ROUND($D63*INTRO!$E$48,0)) -> 44690 | F63: =IF(INTRO!$E$49="","",ROUND($D63*INTRO!$E$49,0)) -> 92009 | G63: =IF(INTRO!$E$50="","",ROUND($D63*INTRO!$E$50,0)) -> 120926 | H63: 0 | I63: 0 | J63: 1 | K63: 1 | L63: 0 | M63: =IF(INTRO!$E$37="Endemic",IF($H63>0,IF($H63=4,"Unknown",IF($H63=99,"Stopped",$D63)),0),"Not required") -> 0 | N63: =IF(INTRO!$E$39="Endemic", IF($I63>0, IF($I63=4,"Unknown",IF($I63=99,"Stopped",$D63)), 0),"Not required") -> 0 | O63: =IF(INTRO!$E$41="Endemic", IF(AND($J63>1,$J63<5), IF($J63=4, "Unknown", E63+F63), 0),"Not required") -> 0 | P63: =IF(INTRO!$E$43="Endemic", IF(AND($K63>0,$K63<5), IF($K63=4,"Unknown", IF($K63=1, $F63*0.33, IF($K63=2, $F63*0.5+$G63*0.2, SUM(F63:G63)))), 0),"Not required") -> 30362.97 | Q63: 0 | R63: 0 | S63: 0 | T63: 0 | Y63: 14124 | Z63: Tshamilemba
A64: =IF(INTRO!$E$33<>0,INTRO!$E$33, " ") -> DRC | B64: HAUT KATANGA | C64: Vangu | D64: 149944.4233 | E64: =IF(INTRO!$E$48="","",ROUND($D64*INTRO!$E$48,0)) -> 25491 | F64: =IF(INTRO!$E$49="","",ROUND($D64*INTRO!$E$49,0)) -> 52481 | G64: =IF(INTRO!$E$50="","",ROUND($D64*INTRO!$E$50,0)) -> 68974 | H64: 0 | I64: 0 | J64: 2 | K64: 1 | L64: 4 | M64: =IF(INTRO!$E$37="Endemic",IF($H64>0,IF($H64=4,"Unknown",IF($H64=99,"Stopped",$D64)),0),"Not required") -> 0 | N64: =IF(INTRO!$E$39="Endemic", IF($I64>0, IF($I64=4,"Unknown",IF($I64=99,"Stopped",$D64)), 0),"Not required") -> 0 | O64: =IF(INTRO!$E$41="Endemic", IF(AND($J64>1,$J64<5), IF($J64=4, "Unknown", E64+F64), 0),"Not required") -> 77972 | P64: =IF(INTRO!$E$43="Endemic", IF(AND($K64>0,$K64<5), IF($K64=4,"Unknown", IF($K64=1, $F64*0.33, IF($K64=2, $F64*0.5+$G64*0.2, SUM(F64:G64)))), 0),"Not required") -> 17318.73 | Q64: 0 | R64: 0 | S64: 1 | T64: 1 | Y64: 14125 | Z64: Vangu
A65: =IF(INTRO!$E$33<>0,INTRO!$E$33, " ") -> DRC | B65: HAUT LOMAMI | C65: Bukama | D65: 380029.83 | E65: =IF(INTRO!$E$48="","",ROUND($D65*INTRO!$E$48,0)) -> 64605 | F65: =IF(INTRO!$E$49="","",ROUND($D65*INTRO!$E$49,0)) -> 133010 | G65: =IF(INTRO!$E$50="","",ROUND($D65*INTRO!$E$50,0)) -> 174814 | H65: 0 | I65: 0 | J65: 1 | K65: 2 | L65: 1 | M65: =IF(INTRO!$E$37="Endemic",IF($H65>0,IF($H65=4,"Unknown",IF($H65=99,"Stopped",$D65)),0),"Not required") -> 0 | N65: =IF(INTRO!$E$39="Endemic", IF($I65>0, IF($I65=4,"Unknown",IF($I65=99,"Stopped",$D65)), 0),"Not required") -> 0 | O65: =IF(INTRO!$E$41="Endemic", IF(AND($J65>1,$J65<5), IF($J65=4, "Unknown", E65+F65), 0),"Not required") -> 0 | P65: =IF(INTRO!$E$43="Endemic", IF(AND($K65>0,$K65<5), IF($K65=4,"Unknown", IF($K65=1, $F65*0.33, IF($K65=2, $F65*0.5+$G65*0.2, SUM(F65:G65)))), 0),"Not required") -> 101467.8 | Q65: 0 | R65: 0 | S65: 0 | T65: 0 | Y65: 14061 | Z65: Bukama
A66: =IF(INTRO!$E$33<>0,INTRO!$E$33, " ") -> DRC | B66: HAUT LOMAMI | C66: Butumba | D66: 224753.21 | E66: =IF(INTRO!$E$48="","",ROUND($D66*INTRO!$E$48,0)) -> 38208 | F66: =IF(INTRO!$E$49="","",ROUND($D66*INTRO!$E$49,0)) -> 78664 | G66: =IF(INTRO!$E$50="","",ROUND($D66*INTRO!$E$50,0)) -> 103386 | H66: 0 | I66: 0 | J66: 1 | K66: 2 | L66: 1 | M66: =IF(INTRO!$E$37="Endemic",IF($H66>0,IF($H66=4,"Unknown",IF($H66=99,"Stopped",$D66)),0),"Not required") -> 0 | N66: =IF(INTRO!$E$39="Endemic", IF($I66>0, IF($I66=4,"Unknown",IF($I66=99,"Stopped",$D66)), 0),"Not required") -> 0 | O66: =IF(INTRO!$E$41="Endemic", IF(AND($J66>1,$J66<5), IF($J66=4, "Unknown", E66+F66), 0),"Not required") -> 0 | P66: =IF(INTRO!$E$43="Endemic", IF(AND($K66>0,$K66<5), IF($K66=4,"Unknown", IF($K66=1, $F66*0.33, IF($K66=2, $F66*0.5+$G66*0.2, SUM(F66:G66)))), 0),"Not required") -> 60009.2 | Q66: 0 | R66: 0 | S66: 0 | T66: 0 | Y66: 14063 | Z66: Butumba
A67: =IF(INTRO!$E$33<>0,INTRO!$E$33, " ") -> DRC | B67: HAUT LOMAMI | C67: Kabondo Dianda | D67: 277065.88 | E67: =IF(INTRO!$E$48="","",ROUND($D67*INTRO!$E$48,0)) -> 47101 | F67: =IF(INTRO!$E$49="","",ROUND($D67*INTRO!$E$49,0)) -> 96973 | G67: =IF(INTRO!$E$50="","",ROUND($D67*INTRO!$E$50,0)) -> 127450 | H67: 0 | I67: 0 | J67: 1 | K67: 1 | L67: 1 | M67: =IF(INTRO!$E$37="Endemic",IF($H67>0,IF($H67=4,"Unknown",IF($H67=99,"Stopped",$D67)),0),"Not required") -> 0 | N67: =IF(INTRO!$E$39="Endemic", IF($I67>0, IF($I67=4,"Unknown",IF($I67=99,"Stopped",$D67)), 0),"Not required") -> 0 | O67: =IF(INTRO!$E$41="Endemic", IF(AND($J67>1,$J67<5), IF($J67=4, "Unknown", E67+F67), 0),"Not required") -> 0 | P67: =IF(INTRO!$E$43="Endemic", IF(AND($K67>0,$K67<5), IF($K67=4,"Unknown", IF($K67=1, $F67*0.33, IF($K67=2, $F67*0.5+$G67*0.2, SUM(F67:G67)))), 0),"Not required") -> 32001.09 | Q67: 0 | R67: 0 | S67: 0 | T67: 1 | Y67: 14068 | Z67: Kabondo Dianda
A68: =IF(INTRO!$E$33<>0,INTRO!$E$33, " ") -> DRC | B68: HAUT LOMAMI | C68: Kabongo | D68: 418877.2688 | E68: =IF(INTRO!$E$48="","",ROUND($D68*INTRO!$E$48,0)) -> 71209 | F68: =IF(INTRO!$E$49="","",ROUND($D68*INTRO!$E$49,0)) -> 146607 | G68: =IF(INTRO!$E$50="","",ROUND($D68*INTRO!$E$50,0)) -> 192684 | H68: 1 | I68: 0 | J68: 0 | K68: 2 | L68: 0 | M68: =IF(INTRO!$E$37="Endemic",IF($H68>0,IF($H68=4,"Unknown",IF($H68=99,"Stopped",$D68)),0),"Not required") -> 418877.2688 | N68: =IF(INTRO!$E$39="Endemic", IF($I68>0, IF($I68=4,"Unknown",IF($I68=99,"Stopped",$D68)), 0),"Not required") -> 0 | O68: =IF(INTRO!$E$41="Endemic", IF(AND($J68>1,$J68<5), IF($J68=4, "Unknown", E68+F68), 0),"Not required") -> 0 | P68: =IF(INTRO!$E$43="Endemic", IF(AND($K68>0,$K68<5), IF($K68=4,"Unknown", IF($K68=1, $F68*0.33, IF($K68=2, $F68*0.5+$G68*0.2, SUM(F68:G68)))), 0),"Not required") -> 111840.3 | Q68: 1 | R68: 0 | S68: 0 | T68: 0 | Y68: 14069 | Z68: Kabongo
A69: =IF(INTRO!$E$33<>0,INTRO!$E$33, " ") -> DRC | B69: HAUT LOMAMI | C69: Kamina | D69: 332125.354 | E69: =IF(INTRO!$E$48="","",ROUND($D69*INTRO!$E$48,0)) -> 56461 | F69: =IF(INTRO!$E$49="","",ROUND($D69*INTRO!$E$49,0)) -> 116244 | G69: =IF(INTRO!$E$50="","",ROUND($D69*INTRO!$E$50,0)) -> 152778 | H69: 0 | I69: 0 | J69: 2 | K69: 0 | L69: 0 | M69: =IF(INTRO!$E$37="Endemic",IF($H69>0,IF($H69=4,"Unknown",IF($H69=99,"Stopped",$D69)),0),"Not required") -> 0 | N69: =IF(INTRO!$E$39="Endemic", IF($I69>0, IF($I69=4,"Unknown",IF($I69=99,"Stopped",$D69)), 0),"Not required") -> 0 | O69: =IF(INTRO!$E$41="Endemic", IF(AND($J69>1,$J69<5), IF($J69=4, "Unknown", E69+F69), 0),"Not required") -> 172705 | P69: =IF(INTRO!$E$43="Endemic", IF(AND($K69>0,$K69<5), IF($K69=4,"Unknown", IF($K69=1, $F69*0.33, IF($K69=2, $F69*0.5+$G69*0.2, SUM(F69:G69)))), 0),"Not required") -> 0 | Q69: 0 | R69: 0 | S69: 1 | T69: 0 | Y69: 14076 | Z69: Kamina
A70: =IF(INTRO!$E$33<>0,INTRO!$E$33, " ") -> DRC | B70: HAUT LOMAMI | C70: Kamina Base (Baka) | D70: 35875.3944 | E70: =IF(INTRO!$E$48="","",ROUND($D70*INTRO!$E$48,0)) -> 6099 | F70: =IF(INTRO!$E$49="","",ROUND($D70*INTRO!$E$49,0)) -> 12556 | G70: =IF(INTRO!$E$50="","",ROUND($D70*INTRO!$E$50,0)) -> 16503 | H70: 1 | I70: 0 | J70: 0 | K70: 0 | L70: 0 | M70: =IF(INTRO!$E$37="Endemic",IF($H70>0,IF($H70=4,"Unknown",IF($H70=99,"Stopped",$D70)),0),"Not required") -> 35875.3944 | N70: =IF(INTRO!$E$39="Endemic", IF($I70>0, IF($I70=4,"Unknown",IF($I70=99,"Stopped",$D70)), 0),"Not required") -> 0 | O70: =IF(INTRO!$E$41="Endemic", IF(AND($J70>1,$J70<5), IF($J70=4, "Unknown", E70+F70), 0),"Not required") -> 0 | P70: =IF(INTRO!$E$43="Endemic", IF(AND($K70>0,$K70<5), IF($K70=4,"Unknown", IF($K70=1, $F70*0.33, IF($K70=2, $F70*0.5+$G70*0.2, SUM(F70:G70)))), 0),"Not required") -> 0 | Q70: 1 | R70: 0 | S70: 0 | T70: 0 | Y70: 14060 | Z70: Kamina Base (Baka)
A71: =IF(INTRO!$E$33<>0,INTRO!$E$33, " ") -> DRC | B71: HAUT LOMAMI | C71: Kaniama | D71: 327088.2008 | E71: =IF(INTRO!$E$48="","",ROUND($D71*INTRO!$E$48,0)) -> 55605 | F71: =IF(INTRO!$E$49="","",ROUND($D71*INTRO!$E$49,0)) -> 114481 | G71: =IF(INTRO!$E$50="","",ROUND($D71*INTRO!$E$50,0)) -> 150461 | H71: 1 | I71: 0 | J71: 0 | K71: 0 | L71: 0 | M71: =IF(INTRO!$E$37="Endemic",IF($H71>0,IF($H71=4,"Unknown",IF($H71=99,"Stopped",$D71)),0),"Not required") -> 327088.2008 | N71: =IF(INTRO!$E$39="Endemic", IF($I71>0, IF($I71=4,"Unknown",IF($I71=99,"Stopped",$D71)), 0),"Not required") -> 0 | O71: =IF(INTRO!$E$41="Endemic", IF(AND($J71>1,$J71<5), IF($J71=4, "Unknown", E71+F71), 0),"Not required") -> 0 | P71: =IF(INTRO!$E$43="Endemic", IF(AND($K71>0,$K71<5), IF($K71=4,"Unknown", IF($K71=1, $F71*0.33, IF($K71=2, $F71*0.5+$G71*0.2, SUM(F71:G71)))), 0),"Not required") -> 0 | Q71: 1 | R71: 0 | S71: 0 | T71: 0 | Y71: 14077 | Z71: Kaniama
A72: =IF(INTRO!$E$33<>0,INTRO!$E$33, " ") -> DRC | B72: HAUT LOMAMI | C72: Kayamba | D72: 113949.1472 | E72: =IF(INTRO!$E$48="","",ROUND($D72*INTRO!$E$48,0)) -> 19371 | F72: =IF(INTRO!$E$49="","",ROUND($D72*INTRO!$E$49,0)) -> 39882 | G72: =IF(INTRO!$E$50="","",ROUND($D72*INTRO!$E$50,0)) -> 52417 | H72: 1 | I72: 1 | J72: 1 | K72: 2 | L72: 0 | M72: =IF(INTRO!$E$37="Endemic",IF($H72>0,IF($H72=4,"Unknown",IF($H72=99,"Stopped",$D72)),0),"Not required") -> 113949.1472 | N72: =IF(INTRO!$E$39="Endemic", IF($I72>0, IF($I72=4,"Unknown",IF($I72=99,"Stopped",$D72)), 0),"Not required") -> 113949.1472 | O72: =IF(INTRO!$E$41="Endemic", IF(AND($J72>1,$J72<5), IF($J72=4, "Unknown", E72+F72), 0),"Not required") -> 0 | P72: =IF(INTRO!$E$43="Endemic", IF(AND($K72>0,$K72<5), IF($K72=4,"Unknown", IF($K72=1, $F72*0.33, IF($K72=2, $F72*0.5+$G72*0.2, SUM(F72:G72)))), 0),"Not required") -> 30424.4 | Q72: 1 | R72: 1 | S72: 0 | T72: 1 | Y72: 14086 | Z72: Kayamba
A73: =IF(INTRO!$E$33<>0,INTRO!$E$33, " ") -> DRC | B73: HAUT LOMAMI | C73: Kinda | D73: 102610.66 | E73: =IF(INTRO!$E$48="","",ROUND($D73*INTRO!$E$48,0)) -> 17444 | F73: =IF(INTRO!$E$49="","",ROUND($D73*INTRO!$E$49,0)) -> 35914 | G73: =IF(INTRO!$E$50="","",ROUND($D73*INTRO!$E$50,0)) -> 47201 | H73: 0 | I73: 0 | J73: 1 | K73: 2 | L73: 1 | M73: =IF(INTRO!$E$37="Endemic",IF($H73>0,IF($H73=4,"Unknown",IF($H73=99,"Stopped",$D73)),0),"Not required") -> 0 | N73: =IF(INTRO!$E$39="Endemic", IF($I73>0, IF($I73=4,"Unknown",IF($I73=99,"Stopped",$D73)), 0),"Not required") -> 0 | O73: =IF(INTRO!$E$41="Endemic", IF(AND($J73>1,$J73<5), IF($J73=4, "Unknown", E73+F73), 0),"Not required") -> 0 | P73: =IF(INTRO!$E$43="Endemic", IF(AND($K73>0,$K73<5), IF($K73=4,"Unknown", IF($K73=1, $F73*0.33, IF($K73=2, $F73*0.5+$G73*0.2, SUM(F73:G73)))), 0),"Not required") -> 27397.2 | Q73: 0 | R73: 0 | S73: 0 | T73: 0 | Y73: 14092 | Z73: Kinda
A74: =IF(INTRO!$E$33<>0,INTRO!$E$33, " ") -> DRC | B74: HAUT LOMAMI | C74: Kinkonja | D74: 287883.97 | E74: =IF(INTRO!$E$48="","",ROUND($D74*INTRO!$E$48,0)) -> 48940 | F74: =IF(INTRO!$E$49="","",ROUND($D74*INTRO!$E$49,0)) -> 100759 | G74: =IF(INTRO!$E$50="","",ROUND($D74*INTRO!$E$50,0)) -> 132427 | H74: 0 | I74: 0 | J74: 1 | K74: 1 | L74: 1 | M74: =IF(INTRO!$E$37="Endemic",IF($H74>0,IF($H74=4,"Unknown",IF($H74=99,"Stopped",$D74)),0),"Not required") -> 0 | N74: =IF(INTRO!$E$39="Endemic", IF($I74>0, IF($I74=4,"Unknown",IF($I74=99,"Stopped",$D74)), 0),"Not required") -> 0 | O74: =IF(INTRO!$E$41="Endemic", IF(AND($J74>1,$J74<5), IF($J74=4, "Unknown", E74+F74), 0),"Not required") -> 0 | P74: =IF(INTRO!$E$43="Endemic", IF(AND($K74>0,$K74<5), IF($K74=4,"Unknown", IF($K74=1, $F74*0.33, IF($K74=2, $F74*0.5+$G74*0.2, SUM(F74:G74)))), 0),"Not required") -> 33250.47 | Q74: 0 | R74: 0 | S74: 0 | T74: 1 | Y74: 14093 | Z74: Kinkonja
A75: =IF(INTRO!$E$33<>0,INTRO!$E$33, " ") -> DRC | B75: HAUT LOMAMI | C75: Kitenge | D75: 318058.8809 | E75: =IF(INTRO!$E$48="","",ROUND($D75*INTRO!$E$48,0)) -> 54070 | F75: =IF(INTRO!$E$49="","",ROUND($D75*INTRO!$E$49,0)) -> 111321 | G75: =IF(INTRO!$E$50="","",ROUND($D75*INTRO!$E$50,0)) -> 146307 | H75: 0 | I75: 1 | J75: 1 | K75: 0 | L75: 1 | M75: =IF(INTRO!$E$37="Endemic",IF($H75>0,IF($H75=4,"Unknown",IF($H75=99,"Stopped",$D75)),0),"Not required") -> 0 | N75: =IF(INTRO!$E$39="Endemic", IF($I75>0, IF($I75=4,"Unknown",IF($I75=99,"Stopped",$D75)), 0),"Not required") -> 318058.8809 | O75: =IF(INTRO!$E$41="Endemic", IF(AND($J75>1,$J75<5), IF($J75=4, "Unknown", E75+F75), 0),"Not required") -> 0 | P75: =IF(INTRO!$E$43="Endemic", IF(AND($K75>0,$K75<5), IF($K75=4,"Unknown", IF($K75=1, $F75*0.33, IF($K75=2, $F75*0.5+$G75*0.2, SUM(F75:G75)))), 0),"Not required") -> 0 | Q75: 0 | R75: 1 | S75: 0 | T75: 0 | Y75: 14096 | Z75: Kitenge
A76: =IF(INTRO!$E$33<>0,INTRO!$E$33, " ") -> DRC | B76: HAUT LOMAMI | C76: Lwamba | D76: 155697.89 | E76: =IF(INTRO!$E$48="","",ROUND($D76*INTRO!$E$48,0)) -> 26469 | F76: =IF(INTRO!$E$49="","",ROUND($D76*INTRO!$E$49,0)) -> 54494 | G76: =IF(INTRO!$E$50="","",ROUND($D76*INTRO!$E$50,0)) -> 71621 | H76: 0 | I76: 0 | J76: 1 | K76: 1 | L76: 1 | M76: =IF(INTRO!$E$37="Endemic",IF($H76>0,IF($H76=4,"Unknown",IF($H76=99,"Stopped",$D76)),0),"Not required") -> 0 | N76: =IF(INTRO!$E$39="Endemic", IF($I76>0, IF($I76=4,"Unknown",IF($I76=99,"Stopped",$D76)), 0),"Not required") -> 0 | O76: =IF(INTRO!$E$41="Endemic", IF(AND($J76>1,$J76<5), IF($J76=4, "Unknown", E76+F76), 0),"Not required") -> 0 | P76: =IF(INTRO!$E$43="Endemic", IF(AND($K76>0,$K76<5), IF($K76=4,"Unknown", IF($K76=1, $F76*0.33, IF($K76=2, $F76*0.5+$G76*0.2, SUM(F76:G76)))), 0),"Not required") -> 17983.02 | Q76: 0 | R76: 0 | S76: 0 | T76: 1 | Y76: 14104 | Z76: Lwamba
A77: =IF(INTRO!$E$33<>0,INTRO!$E$33, " ") -> DRC | B77: HAUT LOMAMI | C77: Malemba Nkulu | D77: 372428.945 | E77: =IF(INTRO!$E$48="","",ROUND($D77*INTRO!$E$48,0)) -> 63313 | F77: =IF(INTRO!$E$49="","",ROUND($D77*INTRO!$E$49,0)) -> 130350 | G77: =IF(INTRO!$E$50="","",ROUND($D77*INTRO!$E$50,0)) -> 171317 | H77: 0 | I77: 0 | J77: 1 | K77: 2 | L77: 1 | M77: =IF(INTRO!$E$37="Endemic",IF($H77>0,IF($H77=4,"Unknown",IF($H77=99,"Stopped",$D77)),0),"Not required") -> 0 | N77: =IF(INTRO!$E$39="Endemic", IF($I77>0, IF($I77=4,"Unknown",IF($I77=99,"Stopped",$D77)), 0),"Not required") -> 0 | O77: =IF(INTRO!$E$41="Endemic", IF(AND($J77>1,$J77<5), IF($J77=4, "Unknown", E77+F77), 0),"Not required") -> 0 | P77: =IF(INTRO!$E$43="Endemic", IF(AND($K77>0,$K77<5), IF($K77=4,"Unknown", IF($K77=1, $F77*0.33, IF($K77=2, $F77*0.5+$G77*0.2, SUM(F77:G77)))), 0),"Not required") -> 99438.4 | Q77: 0 | R77: 0 | S77: 0 | T77: 1 | Y77: 14105 | Z77: Malemba Nkulu
A78: =IF(INTRO!$E$33<>0,INTRO!$E$33, " ") -> DRC | B78: HAUT LOMAMI | C78: Mukanga | D78: 233338.5896 | E78: =IF(INTRO!$E$48="","",ROUND($D78*INTRO!$E$48,0)) -> 39668 | F78: =IF(INTRO!$E$49="","",ROUND($D78*INTRO!$E$49,0)) -> 81669 | G78: =IF(INTRO!$E$50="","",ROUND($D78*INTRO!$E$50,0)) -> 107336 | H78: 0 | I78: 0 | J78: 1 | K78: 2 | L78: 1 | M78: =IF(INTRO!$E$37="Endemic",IF($H78>0,IF($H78=4,"Unknown",IF($H78=99,"Stopped",$D78)),0),"Not required") -> 0 | N78: =IF(INTRO!$E$39="Endemic", IF($I78>0, IF($I78=4,"Unknown",IF($I78=99,"Stopped",$D78)), 0),"Not required") -> 0 | O78: =IF(INTRO!$E$41="Endemic", IF(AND($J78>1,$J78<5), IF($J78=4, "Unknown", E78+F78), 0),"Not required") -> 0 | P78: =IF(INTRO!$E$43="Endemic", IF(AND($K78>0,$K78<5), IF($K78=4,"Unknown", IF($K78=1, $F78*0.33, IF($K78=2, $F78*0.5+$G78*0.2, SUM(F78:G78)))), 0),"Not required") -> 62301.7 | Q78: 0 | R78: 0 | S78: 0 | T78: 1 | Y78: 14113 | Z78: Mukanga
A79: =IF(INTRO!$E$33<>0,INTRO!$E$33, " ") -> DRC | B79: HAUT LOMAMI | C79: Mulongo | D79: 307499.29 | E79: =IF(INTRO!$E$48="","",ROUND($D79*INTRO!$E$48,0)) -> 52275 | F79: =IF(INTRO!$E$49="","",ROUND($D79*INTRO!$E$49,0)) -> 107625 | G79: =IF(INTRO!$E$50="","",ROUND($D79*INTRO!$E$50,0)) -> 141450 | H79: 0 | I79: 0 | J79: 1 | K79: 0 | L79: 1 | M79: =IF(INTRO!$E$37="Endemic",IF($H79>0,IF($H79=4,"Unknown",IF($H79=99,"Stopped",$D79)),0),"Not required") -> 0 | N79: =IF(INTRO!$E$39="Endemic", IF($I79>0, IF($I79=4,"Unknown",IF($I79=99,"Stopped",$D79)), 0),"Not required") -> 0 | O79: =IF(INTRO!$E$41="Endemic", IF(AND($J79>1,$J79<5), IF($J79=4, "Unknown", E79+F79), 0),"Not required") -> 0 | P79: =IF(INTRO!$E$43="Endemic", IF(AND($K79>0,$K79<5), IF($K79=4,"Unknown", IF($K79=1, $F79*0.33, IF($K79=2, $F79*0.5+$G79*0.2, SUM(F79:G79)))), 0),"Not required") -> 0 | Q79: 0 | R79: 0 | S79: 0 | T79: 0 | Y79: 14114 | Z79: Mulongo
A80: =IF(INTRO!$E$33<>0,INTRO!$E$33, " ") -> DRC | B80: HAUT LOMAMI | C80: Songa | D80: 211501.024 | E80: =IF(INTRO!$E$48="","",ROUND($D80*INTRO!$E$48,0)) -> 35955 | F80: =IF(INTRO!$E$49="","",ROUND($D80*INTRO!$E$49,0)) -> 74025 | G80: =IF(INTRO!$E$50="","",ROUND($D80*INTRO!$E$50,0)) -> 97290 | H80: 1 | I80: 0 | J80: 2 | K80: 2 | L80: 0 | M80: =IF(INTRO!$E$37="Endemic",IF($H80>0,IF($H80=4,"Unknown",IF($H80=99,"Stopped",$D80)),0),"Not required") -> 211501.024 | N80: =IF(INTRO!$E$39="Endemic", IF($I80>0, IF($I80=4,"Unknown",IF($I80=99,"Stopped",$D80)), 0),"Not required") -> 0 | O80: =IF(INTRO!$E$41="Endemic", IF(AND($J80>1,$J80<5), IF($J80=4, "Unknown", E80+F80), 0),"Not required") -> 109980 | P80: =IF(INTRO!$E$43="Endemic", IF(AND($K80>0,$K80<5), IF($K80=4,"Unknown", IF($K80=1, $F80*0.33, IF($K80=2, $F80*0.5+$G80*0.2, SUM(F80:G80)))), 0),"Not required") -> 56470.5 | Q80: 1 | R80: 0 | S80: 1 | T80: 0 | Y80: 14123 | Z80: Songa
A81: =IF(INTRO!$E$33<>0,INTRO!$E$33, " ") -> DRC | B81: HAUT UELE | C81: Aba | D81: 144402.2817 | E81: =IF(INTRO!$E$48="","",ROUND($D81*INTRO!$E$48,0)) -> 24548 | F81: =IF(INTRO!$E$49="","",ROUND($D81*INTRO!$E$49,0)) -> 50541 | G81: =IF(INTRO!$E$50="","",ROUND($D81*INTRO!$E$50,0)) -> 66425 | H81: 1 | I81: 0 | J81: 1 | K81: 1 | L81: 1 | M81: =IF(INTRO!$E$37="Endemic",IF($H81>0,IF($H81=4,"Unknown",IF($H81=99,"Stopped",$D81)),0),"Not required") -> 144402.2817 | N81: =IF(INTRO!$E$39="Endemic", IF($I81>0, IF($I81=4,"Unknown",IF($I81=99,"Stopped",$D81)), 0),"Not required") -> 0 | O81: =IF(INTRO!$E$41="Endemic", IF(AND($J81>1,$J81<5), IF($J81=4, "Unknown", E81+F81), 0),"Not required") -> 0 | P81: =IF(INTRO!$E$43="Endemic", IF(AND($K81>0,$K81<5), IF($K81=4,"Unknown", IF($K81=1, $F81*0.33, IF($K81=2, $F81*0.5+$G81*0.2, SUM(F81:G81)))), 0),"Not required") -> 16678.53 | Q81: 1 | R81: 0 | S81: 0 | T81: 0 | Y81: 14213 | Z81: Aba
A82: =IF(INTRO!$E$33<>0,INTRO!$E$33, " ") -> DRC | B82: HAUT UELE | C82: Bomamangbetu | D82: 119161.3489 | E82: =IF(INTRO!$E$48="","",ROUND($D82*INTRO!$E$48,0)) -> 20257 | F82: =IF(INTRO!$E$49="","",ROUND($D82*INTRO!$E$49,0)) -> 41706 | G82: =IF(INTRO!$E$50="","",ROUND($D82*INTRO!$E$50,0)) -> 54814 | H82: 0 | I82: 1 | J82: 1 | K82: 1 | L82: 1 | M82: =IF(INTRO!$E$37="Endemic",IF($H82>0,IF($H82=4,"Unknown",IF($H82=99,"Stopped",$D82)),0),"Not required") -> 0 | N82: =IF(INTRO!$E$39="Endemic", IF($I82>0, IF($I82=4,"Unknown",IF($I82=99,"Stopped",$D82)), 0),"Not required") -> 119161.3489 | O82: =IF(INTRO!$E$41="Endemic", IF(AND($J82>1,$J82<5), IF($J82=4, "Unknown", E82+F82), 0),"Not required") -> 0 | P82: =IF(INTRO!$E$43="Endemic", IF(AND($K82>0,$K82<5), IF($K82=4,"Unknown", IF($K82=1, $F82*0.33, IF($K82=2, $F82*0.5+$G82*0.2, SUM(F82:G82)))), 0),"Not required") -> 13762.98 | Q82: 0 | R82: 1 | S82: 0 | T82: 0 | Y82: 14330 | Z82: Bomamangbetu
A83: =IF(INTRO!$E$33<>0,INTRO!$E$33, " ") -> DRC | B83: HAUT UELE | C83: Doruma | D83: 82018.179 | E83: =IF(INTRO!$E$48="","",ROUND($D83*INTRO!$E$48,0)) -> 13943 | F83: =IF(INTRO!$E$49="","",ROUND($D83*INTRO!$E$49,0)) -> 28706 | G83: =IF(INTRO!$E$50="","",ROUND($D83*INTRO!$E$50,0)) -> 37728 | H83: 1 | I83: 0 | J83: 1 | K83: 1 | L83: 1 | M83: =IF(INTRO!$E$37="Endemic",IF($H83>0,IF($H83=4,"Unknown",IF($H83=99,"Stopped",$D83)),0),"Not required") -> 82018.179 | N83: =IF(INTRO!$E$39="Endemic", IF($I83>0, IF($I83=4,"Unknown",IF($I83=99,"Stopped",$D83)), 0),"Not required") -> 0 | O83: =IF(INTRO!$E$41="Endemic", IF(AND($J83>1,$J83<5), IF($J83=4, "Unknown", E83+F83), 0),"Not required") -> 0 | P83: =IF(INTRO!$E$43="Endemic", IF(AND($K83>0,$K83<5), IF($K83=4,"Unknown", IF($K83=1, $F83*0.33, IF($K83=2, $F83*0.5+$G83*0.2, SUM(F83:G83)))), 0),"Not required") -> 9472.98 | Q83: 1 | R83: 0 | S83: 0 | T83: 0 | Y83: 14236 | Z83: Doruma
A84: =IF(INTRO!$E$33<>0,INTRO!$E$33, " ") -> DRC | B84: HAUT UELE | C84: Dungu | D84: 100248.2072 | E84: =IF(INTRO!$E$48="","",ROUND($D84*INTRO!$E$48,0)) -> 17042 | F84: =IF(INTRO!$E$49="","",ROUND($D84*INTRO!$E$49,0)) -> 35087 | G84: =IF(INTRO!$E$50="","",ROUND($D84*INTRO!$E$50,0)) -> 46114 | H84: 0 | I84: 1 | J84: 1 | K84: 1 | L84: 1 | M84: =IF(INTRO!$E$37="Endemic",IF($H84>0,IF($H84=4,"Unknown",IF($H84=99,"Stopped",$D84)),0),"Not required") -> 0 | N84: =IF(INTRO!$E$39="Endemic", IF($I84>0, IF($I84=4,"Unknown",IF($I84=99,"Stopped",$D84)), 0),"Not required") -> 100248.2072 | O84: =IF(INTRO!$E$41="Endemic", IF(AND($J84>1,$J84<5), IF($J84=4, "Unknown", E84+F84), 0),"Not required") -> 0 | P84: =IF(INTRO!$E$43="Endemic", IF(AND($K84>0,$K84<5), IF($K84=4,"Unknown", IF($K84=1, $F84*0.33, IF($K84=2, $F84*0.5+$G84*0.2, SUM(F84:G84)))), 0),"Not required") -> 11578.71 | Q84: 0 | R84: 1 | S84: 0 | T84: 0 | Y84: 14238 | Z84: Dungu
A85: =IF(INTRO!$E$33<>0,INTRO!$E$33, " ") -> DRC | B85: HAUT UELE | C85: Faradje | D85: 137431.1078 | E85: =IF(INTRO!$E$48="","",ROUND($D85*INTRO!$E$48,0)) -> 23363 | F85: =IF(INTRO!$E$49="","",ROUND($D85*INTRO!$E$49,0)) -> 48101 | G85: =IF(INTRO!$E$50="","",ROUND($D85*INTRO!$E$50,0)) -> 63218 | H85: 1 | I85: 1 | J85: 1 | K85: 1 | L85: 1 | M85: =IF(INTRO!$E$37="Endemic",IF($H85>0,IF($H85=4,"Unknown",IF($H85=99,"Stopped",$D85)),0),"Not required") -> 137431.1078 | N85: =IF(INTRO!$E$39="Endemic", IF($I85>0, IF($I85=4,"Unknown",IF($I85=99,"Stopped",$D85)), 0),"Not required") -> 137431.1078 | O85: =IF(INTRO!$E$41="Endemic", IF(AND($J85>1,$J85<5), IF($J85=4, "Unknown", E85+F85), 0),"Not required") -> 0 | P85: =IF(INTRO!$E$43="Endemic", IF(AND($K85>0,$K85<5), IF($K85=4,"Unknown", IF($K85=1, $F85*0.33, IF($K85=2, $F85*0.5+$G85*0.2, SUM(F85:G85)))), 0),"Not required") -> 15873.33 | Q85: 1 | R85: 1 | S85: 0 | T85: 0 | Y85: 14239 | Z85: Faradje
A86: =IF(INTRO!$E$33<>0,INTRO!$E$33, " ") -> DRC | B86: HAUT UELE | C86: Gombari | D86: 19958.7117 | E86: =IF(INTRO!$E$48="","",ROUND($D86*INTRO!$E$48,0)) -> 3393 | F86: =IF(INTRO!$E$49="","",ROUND($D86*INTRO!$E$49,0)) -> 6986 | G86: =IF(INTRO!$E$50="","",ROUND($D86*INTRO!$E$50,0)) -> 9181 | H86: 1 | I86: 0 | J86: 1 | K86: 1 | L86: 1 | M86: =IF(INTRO!$E$37="Endemic",IF($H86>0,IF($H86=4,"Unknown",IF($H86=99,"Stopped",$D86)),0),"Not required") -> 19958.7117 | N86: =IF(INTRO!$E$39="Endemic", IF($I86>0, IF($I86=4,"Unknown",IF($I86=99,"Stopped",$D86)), 0),"Not required") -> 0 | O86: =IF(INTRO!$E$41="Endemic", IF(AND($J86>1,$J86<5), IF($J86=4, "Unknown", E86+F86), 0),"Not required") -> 0 | P86: =IF(INTRO!$E$43="Endemic", IF(AND($K86>0,$K86<5), IF($K86=4,"Unknown", IF($K86=1, $F86*0.33, IF($K86=2, $F86*0.5+$G86*0.2, SUM(F86:G86)))), 0),"Not required") -> 2305.38 | Q86: 1 | R86: 0 | S86: 0 | T86: 0 | Y86: 14243 | Z86: Gombari
A87: =IF(INTRO!$E$33<>0,INTRO!$E$33, " ") -> DRC | B87: HAUT UELE | C87: Isiro | D87: 261820.5719 | E87: =IF(INTRO!$E$48="","",ROUND($D87*INTRO!$E$48,0)) -> 44509 | F87: =IF(INTRO!$E$49="","",ROUND($D87*INTRO!$E$49,0)) -> 91637 | G87: =IF(INTRO!$E$50="","",ROUND($D87*INTRO!$E$50,0)) -> 120437 | H87: 1 | I87: 1 | J87: 1 | K87: 2 | L87: 1 | M87: =IF(INTRO!$E$37="Endemic",IF($H87>0,IF($H87=4,"Unknown",IF($H87=99,"Stopped",$D87)),0),"Not required") -> 261820.5719 | N87: =IF(INTRO!$E$39="Endemic", IF($I87>0, IF($I87=4,"Unknown",IF($I87=99,"Stopped",$D87)), 0),"Not required") -> 261820.5719 | O87: =IF(INTRO!$E$41="Endemic", IF(AND($J87>1,$J87<5), IF($J87=4, "Unknown", E87+F87), 0),"Not required") -> 0 | P87: =IF(INTRO!$E$43="Endemic", IF(AND($K87>0,$K87<5), IF($K87=4,"Unknown", IF($K87=1, $F87*0.33, IF($K87=2, $F87*0.5+$G87*0.2, SUM(F87:G87)))), 0),"Not required") -> 69905.9 | Q87: 1 | R87: 1 | S87: 0 | T87: 1 | Y87: 14245 | Z87: Isiro
A88: =IF(INTRO!$E$33<>0,INTRO!$E$33, " ") -> DRC | B88: HAUT UELE | C88: Makoro | D88: 161803.1635 | E88: =IF(INTRO!$E$48="","",ROUND($D88*INTRO!$E$48,0)) -> 27507 | F88: =IF(INTRO!$E$49="","",ROUND($D88*INTRO!$E$49,0)) -> 56631 | G88: =IF(INTRO!$E$50="","",ROUND($D88*INTRO!$E$50,0)) -> 74429 | H88: 0 | I88: 1 | J88: 1 | K88: 1 | L88: 1 | M88: =IF(INTRO!$E$37="Endemic",IF($H88>0,IF($H88=4,"Unknown",IF($H88=99,"Stopped",$D88)),0),"Not required") -> 0 | N88: =IF(INTRO!$E$39="Endemic", IF($I88>0, IF($I88=4,"Unknown",IF($I88=99,"Stopped",$D88)), 0),"Not required") -> 161803.1635 | O88: =IF(INTRO!$E$41="Endemic", IF(AND($J88>1,$J88<5), IF($J88=4, "Unknown", E88+F88), 0),"Not required") -> 0 | P88: =IF(INTRO!$E$43="Endemic", IF(AND($K88>0,$K88<5), IF($K88=4,"Unknown", IF($K88=1, $F88*0.33, IF($K88=2, $F88*0.5+$G88*0.2, SUM(F88:G88)))), 0),"Not required") -> 18688.23 | Q88: 0 | R88: 1 | S88: 0 | T88: 0 | Y88: 14260 | Z88: Makoro
A89: =IF(INTRO!$E$33<>0,INTRO!$E$33, " ") -> DRC | B89: HAUT UELE | C89: Niangara | D89: 119498.7151 | E89: =IF(INTRO!$E$48="","",ROUND($D89*INTRO!$E$48,0)) -> 20315 | F89: =IF(INTRO!$E$49="","",ROUND($D89*INTRO!$E$49,0)) -> 41825 | G89: =IF(INTRO!$E$50="","",ROUND($D89*INTRO!$E$50,0)) -> 54969 | H89: 1 | I89: 1 | J89: 1 | K89: 1 | L89: 1 | M89: =IF(INTRO!$E$37="Endemic",IF($H89>0,IF($H89=4,"Unknown",IF($H89=99,"Stopped",$D89)),0),"Not required") -> 119498.7151 | N89: =IF(INTRO!$E$39="Endemic", IF($I89>0, IF($I89=4,"Unknown",IF($I89=99,"Stopped",$D89)), 0),"Not required") -> 119498.7151 | O89: =IF(INTRO!$E$41="Endemic", IF(AND($J89>1,$J89<5), IF($J89=4, "Unknown", E89+F89), 0),"Not required") -> 0 | P89: =IF(INTRO!$E$43="Endemic", IF(AND($K89>0,$K89<5), IF($K89=4,"Unknown", IF($K89=1, $F89*0.33, IF($K89=2, $F89*0.5+$G89*0.2, SUM(F89:G89)))), 0),"Not required") -> 13802.25 | Q89: 1 | R89: 1 | S89: 0 | T89: 0 | Y89: 14268 | Z89: Niangara
A90: =IF(INTRO!$E$33<>0,INTRO!$E$33, " ") -> DRC | B90: HAUT UELE | C90: Pawa | D90: 199646.5274 | E90: =IF(INTRO!$E$48="","",ROUND($D90*INTRO!$E$48,0)) -> 33940 | F90: =IF(INTRO!$E$49="","",ROUND($D90*INTRO!$E$49,0)) -> 69876 | G90: =IF(INTRO!$E$50="","",ROUND($D90*INTRO!$E$50,0)) -> 91837 | H90: 1 | I90: 1 | J90: 0 | K90: 1 | L90: 1 | M90: =IF(INTRO!$E$37="Endemic",IF($H90>0,IF($H90=4,"Unknown",IF($H90=99,"Stopped",$D90)),0),"Not required") -> 199646.5274 | N90: =IF(INTRO!$E$39="Endemic", IF($I90>0, IF($I90=4,"Unknown",IF($I90=99,"Stopped",$D90)), 0),"Not required") -> 199646.5274 | O90: =IF(INTRO!$E$41="Endemic", IF(AND($J90>1,$J90<5), IF($J90=4, "Unknown", E90+F90), 0),"Not required") -> 0 | P90: =IF(INTRO!$E$43="Endemic", IF(AND($K90>0,$K90<5), IF($K90=4,"Unknown", IF($K90=1, $F90*0.33, IF($K90=2, $F90*0.5+$G90*0.2, SUM(F90:G90)))), 0),"Not required") -> 23059.08 | Q90: 1 | R90: 1 | S90: 0 | T90: 0 | Y90: 14275 | Z90: Pawa
A91: =IF(INTRO!$E$33<>0,INTRO!$E$33, " ") -> DRC | B91: HAUT UELE | C91: Rungu | D91: 120354.8614 | E91: =IF(INTRO!$E$48="","",ROUND($D91*INTRO!$E$48,0)) -> 20460 | F91: =IF(INTRO!$E$49="","",ROUND($D91*INTRO!$E$49,0)) -> 42124 | G91: =IF(INTRO!$E$50="","",ROUND($D91*INTRO!$E$50,0)) -> 55363 | H91: 1 | I91: 1 | J91: 1 | K91: 1 | L91: 1 | M91: =IF(INTRO!$E$37="Endemic",IF($H91>0,IF($H91=4,"Unknown",IF($H91=99,"Stopped",$D91)),0),"Not required") -> 120354.8614 | N91: =IF(INTRO!$E$39="Endemic", IF($I91>0, IF($I91=4,"Unknown",IF($I91=99,"Stopped",$D91)), 0),"Not required") -> 120354.8614 | O91: =IF(INTRO!$E$41="Endemic", IF(AND($J91>1,$J91<5), IF($J91=4, "Unknown", E91+F91), 0),"Not required") -> 0 | P91: =IF(INTRO!$E$43="Endemic", IF(AND($K91>0,$K91<5), IF($K91=4,"Unknown", IF($K91=1, $F91*0.33, IF($K91=2, $F91*0.5+$G91*0.2, SUM(F91:G91)))), 0),"Not required") -> 13900.92 | Q91: 1 | R91: 1 | S91: 0 | T91: 0 | Y91: 14279 | Z91: Rungu
A92: =IF(INTRO!$E$33<>0,INTRO!$E$33, " ") -> DRC | B92: HAUT UELE | C92: Wamba | D92: 134853.1208 | E92: =IF(INTRO!$E$48="","",ROUND($D92*INTRO!$E$48,0)) -> 22925 | F92: =IF(INTRO!$E$49="","",ROUND($D92*INTRO!$E$49,0)) -> 47199 | G92: =IF(INTRO!$E$50="","",ROUND($D92*INTRO!$E$50,0)) -> 62032 | H92: 0 | I92: 1 | J92: 1 | K92: 1 | L92: 1 | M92: =IF(INTRO!$E$37="Endemic",IF($H92>0,IF($H92=4,"Unknown",IF($H92=99,"Stopped",$D92)),0),"Not required") -> 0 | N92: =IF(INTRO!$E$39="Endemic", IF($I92>0, IF($I92=4,"Unknown",IF($I92=99,"Stopped",$D92)), 0),"Not required") -> 134853.1208 | O92: =IF(INTRO!$E$41="Endemic", IF(AND($J92>1,$J92<5), IF($J92=4, "Unknown", E92+F92), 0),"Not required") -> 0 | P92: =IF(INTRO!$E$43="Endemic", IF(AND($K92>0,$K92<5), IF($K92=4,"Unknown", IF($K92=1, $F92*0.33, IF($K92=2, $F92*0.5+$G92*0.2, SUM(F92:G92)))), 0),"Not required") -> 15575.67 | Q92: 0 | R92: 1 | S92: 0 | T92: 0 | Y92: 14286 | Z92: Wamba
A93: =IF(INTRO!$E$33<>0,INTRO!$E$33, " ") -> DRC | B93: HAUT UELE | C93: Wasta | D93: 293398.2604 | E93: =IF(INTRO!$E$48="","",ROUND($D93*INTRO!$E$48,0)) -> 49878 | F93: =IF(INTRO!$E$49="","",ROUND($D93*INTRO!$E$49,0)) -> 102689 | G93: =IF(INTRO!$E$50="","",ROUND($D93*INTRO!$E$50,0)) -> 134963 | H93: 1 | I93: 1 | J93: 1 | K93: 2 | L93: 1 | M93: =IF(INTRO!$E$37="Endemic",IF($H93>0,IF($H93=4,"Unknown",IF($H93=99,"Stopped",$D93)),0),"Not required") -> 293398.2604 | N93: =IF(INTRO!$E$39="Endemic", IF($I93>0, IF($I93=4,"Unknown",IF($I93=99,"Stopped",$D93)), 0),"Not required") -> 293398.2604 | O93: =IF(INTRO!$E$41="Endemic", IF(AND($J93>1,$J93<5), IF($J93=4, "Unknown", E93+F93), 0),"Not required") -> 0 | P93: =IF(INTRO!$E$43="Endemic", IF(AND($K93>0,$K93<5), IF($K93=4,"Unknown", IF($K93=1, $F93*0.33, IF($K93=2, $F93*0.5+$G93*0.2, SUM(F93:G93)))), 0),"Not required") -> 78337.1 | Q93: 1 | R93: 1 | S93: 0 | T93: 1 | Y93: 14288 | Z93: Wasta
A94: =IF(INTRO!$E$33<>0,INTRO!$E$33, " ") -> DRC | B94: ITURI | C94: Adi | D94: 182107.7286 | E94: =IF(INTRO!$E$48="","",ROUND($D94*INTRO!$E$48,0)) -> 30958 | F94: =IF(INTRO!$E$49="","",ROUND($D94*INTRO!$E$49,0)) -> 63738 | G94: =IF(INTRO!$E$50="","",ROUND($D94*INTRO!$E$50,0)) -> 83770 | H94: 0 | I94: 1 | J94: 1 | K94: 0 | L94: 1 | M94: =IF(INTRO!$E$37="Endemic",IF($H94>0,IF($H94=4,"Unknown",IF($H94=99,"Stopped",$D94)),0),"Not required") -> 0 | N94: =IF(INTRO!$E$39="Endemic", IF($I94>0, IF($I94=4,"Unknown",IF($I94=99,"Stopped",$D94)), 0),"Not required") -> 182107.7286 | O94: =IF(INTRO!$E$41="Endemic", IF(AND($J94>1,$J94<5), IF($J94=4, "Unknown", E94+F94), 0),"Not required") -> 0 | P94: =IF(INTRO!$E$43="Endemic", IF(AND($K94>0,$K94<5), IF($K94=4,"Unknown", IF($K94=1, $F94*0.33, IF($K94=2, $F94*0.5+$G94*0.2, SUM(F94:G94)))), 0),"Not required") -> 0 | Q94: 0 | R94: 1 | S94: 0 | T94: 0 | Y94: 14214 | Z94: Adi
A95: =IF(INTRO!$E$33<>0,INTRO!$E$33, " ") -> DRC | B95: ITURI | C95: Adja | D95: 143830.4566 | E95: =IF(INTRO!$E$48="","",ROUND($D95*INTRO!$E$48,0)) -> 24451 | F95: =IF(INTRO!$E$49="","",ROUND($D95*INTRO!$E$49,0)) -> 50341 | G95: =IF(INTRO!$E$50="","",ROUND($D95*INTRO!$E$50,0)) -> 66162 | H95: 0 | I95: 1 | J95: 1 | K95: 0 | L95: 1 | M95: =IF(INTRO!$E$37="Endemic",IF($H95>0,IF($H95=4,"Unknown",IF($H95=99,"Stopped",$D95)),0),"Not required") -> 0 | N95: =IF(INTRO!$E$39="Endemic", IF($I95>0, IF($I95=4,"Unknown",IF($I95=99,"Stopped",$D95)), 0),"Not required") -> 143830.4566 | O95: =IF(INTRO!$E$41="Endemic", IF(AND($J95>1,$J95<5), IF($J95=4, "Unknown", E95+F95), 0),"Not required") -> 0 | P95: =IF(INTRO!$E$43="Endemic", IF(AND($K95>0,$K95<5), IF($K95=4,"Unknown", IF($K95=1, $F95*0.33, IF($K95=2, $F95*0.5+$G95*0.2, SUM(F95:G95)))), 0),"Not required") -> 0 | Q95: 0 | R95: 1 | S95: 0 | T95: 0 | Y95: 14215 | Z95: Adja
A96: =IF(INTRO!$E$33<>0,INTRO!$E$33, " ") -> DRC | B96: ITURI | C96: Angumu | D96: 185809.2087 | E96: =IF(INTRO!$E$48="","",ROUND($D96*INTRO!$E$48,0)) -> 31588 | F96: =IF(INTRO!$E$49="","",ROUND($D96*INTRO!$E$49,0)) -> 65033 | G96: =IF(INTRO!$E$50="","",ROUND($D96*INTRO!$E$50,0)) -> 85472 | H96: 1 | I96: 1 | J96: 0 | K96: 1 | L96: 1 | M96: =IF(INTRO!$E$37="Endemic",IF($H96>0,IF($H96=4,"Unknown",IF($H96=99,"Stopped",$D96)),0),"Not required") -> 185809.2087 | N96: =IF(INTRO!$E$39="Endemic", IF($I96>0, IF($I96=4,"Unknown",IF($I96=99,"Stopped",$D96)), 0),"Not required") -> 185809.2087 | O96: =IF(INTRO!$E$41="Endemic", IF(AND($J96>1,$J96<5), IF($J96=4, "Unknown", E96+F96), 0),"Not required") -> 0 | P96: =IF(INTRO!$E$43="Endemic", IF(AND($K96>0,$K96<5), IF($K96=4,"Unknown", IF($K96=1, $F96*0.33, IF($K96=2, $F96*0.5+$G96*0.2, SUM(F96:G96)))), 0),"Not required") -> 21460.89 | Q96: 1 | R96: 1 | S96: 0 | T96: 1 | Y96: 14218 | Z96: Angumu
A97: =IF(INTRO!$E$33<>0,INTRO!$E$33, " ") -> DRC | B97: ITURI | C97: Ariwara | D97: 235978.1088 | E97: =IF(INTRO!$E$48="","",ROUND($D97*INTRO!$E$48,0)) -> 40116 | F97: =IF(INTRO!$E$49="","",ROUND($D97*INTRO!$E$49,0)) -> 82592 | G97: =IF(INTRO!$E$50="","",ROUND($D97*INTRO!$E$50,0)) -> 108550 | H97: 1 | I97: 0 | J97: 1 | K97: 0 | L97: 0 | M97: =IF(INTRO!$E$37="Endemic",IF($H97>0,IF($H97=4,"Unknown",IF($H97=99,"Stopped",$D97)),0),"Not required") -> 235978.1088 | N97: =IF(INTRO!$E$39="Endemic", IF($I97>0, IF($I97=4,"Unknown",IF($I97=99,"Stopped",$D97)), 0),"Not required") -> 0 | O97: =IF(INTRO!$E$41="Endemic", IF(AND($J97>1,$J97<5), IF($J97=4, "Unknown", E97+F97), 0),"Not required") -> 0 | P97: =IF(INTRO!$E$43="Endemic", IF(AND($K97>0,$K97<5), IF($K97=4,"Unknown", IF($K97=1, $F97*0.33, IF($K97=2, $F97*0.5+$G97*0.2, SUM(F97:G97)))), 0),"Not required") -> 0 | Q97: 1 | R97: 0 | S97: 0 | T97: 0 | Y97: 14219 | Z97: Ariwara
A98: =IF(INTRO!$E$33<>0,INTRO!$E$33, " ") -> DRC | B98: ITURI | C98: Aru | D98: 176855.0611 | E98: =IF(INTRO!$E$48="","",ROUND($D98*INTRO!$E$48,0)) -> 30065 | F98: =IF(INTRO!$E$49="","",ROUND($D98*INTRO!$E$49,0)) -> 61899 | G98: =IF(INTRO!$E$50="","",ROUND($D98*INTRO!$E$50,0)) -> 81353 | H98: 0 | I98: 0 | J98: 1 | K98: 2 | L98: 0 | M98: =IF(INTRO!$E$37="Endemic",IF($H98>0,IF($H98=4,"Unknown",IF($H98=99,"Stopped",$D98)),0),"Not required") -> 0 | N98: =IF(INTRO!$E$39="Endemic", IF($I98>0, IF($I98=4,"Unknown",IF($I98=99,"Stopped",$D98)), 0),"Not required") -> 0 | O98: =IF(INTRO!$E$41="Endemic", IF(AND($J98>1,$J98<5), IF($J98=4, "Unknown", E98+F98), 0),"Not required") -> 0 | P98: =IF(INTRO!$E$43="Endemic", IF(AND($K98>0,$K98<5), IF($K98=4,"Unknown", IF($K98=1, $F98*0.33, IF($K98=2, $F98*0.5+$G98*0.2, SUM(F98:G98)))), 0),"Not required") -> 47220.1 | Q98: 0 | R98: 0 | S98: 0 | T98: 1 | Y98: 14220 | Z98: Aru
A99: =IF(INTRO!$E$33<>0,INTRO!$E$33, " ") -> DRC | B99: ITURI | C99: Augnba | D99: 195168.4685 | E99: =IF(INTRO!$E$48="","",ROUND($D99*INTRO!$E$48,0)) -> 33179 | F99: =IF(INTRO!$E$49="","",ROUND($D99*INTRO!$E$49,0)) -> 68309 | G99: =IF(INTRO!$E$50="","",ROUND($D99*INTRO!$E$50,0)) -> 89777 | H99: 0 | I99: 1 | J99: 2 | K99: 1 | L99: 0 | M99: =IF(INTRO!$E$37="Endemic",IF($H99>0,IF($H99=4,"Unknown",IF($H99=99,"Stopped",$D99)),0),"Not required") -> 0 | N99: =IF(INTRO!$E$39="Endemic", IF($I99>0, IF($I99=4,"Unknown",IF($I99=99,"Stopped",$D99)), 0),"Not required") -> 195168.4685 | O99: =IF(INTRO!$E$41="Endemic", IF(AND($J99>1,$J99<5), IF($J99=4, "Unknown", E99+F99), 0),"Not required") -> 101488 | P99: =IF(INTRO!$E$43="Endemic", IF(AND($K99>0,$K99<5), IF($K99=4,"Unknown", IF($K99=1, $F99*0.33, IF($K99=2, $F99*0.5+$G99*0.2, SUM(F99:G99)))), 0),"Not required") -> 22541.97 | Q99: 0 | R99: 1 | S99: 1 | T99: 0 | Y99: 14221 | Z99: Augnba
A100: =IF(INTRO!$E$33<>0,INTRO!$E$33, " ") -> DRC | B100: ITURI | C100: Bambu | D100: 98819.6523 | E100: =IF(INTRO!$E$48="","",ROUND($D100*INTRO!$E$48,0)) -> 16799 | F100: =IF(INTRO!$E$49="","",ROUND($D100*INTRO!$E$49,0)) -> 34587 | G100: =IF(INTRO!$E$50="","",ROUND($D100*INTRO!$E$50,0)) -> 45457 | H100: 1 | I100: 0 | J100: 1 | K100: 1 | L100: 0 | M100: =IF(INTRO!$E$37="Endemic",IF($H100>0,IF($H100=4,"Unknown",IF($H100=99,"Stopped",$D100)),0),"Not required") -> 98819.6523 | N100: =IF(INTRO!$E$39="Endemic", IF($I100>0, IF($I100=4,"Unknown",IF($I100=99,"Stopped",$D100)), 0),"Not required") -> 0 | O100: =IF(INTRO!$E$41="Endemic", IF(AND($J100>1,$J100<5), IF($J100=4, "Unknown", E100+F100), 0),"Not required") -> 0 | P100: =IF(INTRO!$E$43="Endemic", IF(AND($K100>0,$K100<5), IF($K100=4,"Unknown", IF($K100=1, $F100*0.33, IF($K100=2, $F100*0.5+$G100*0.2, SUM(F100:G100)))), 0),"Not required") -> 11413.71 | Q100: 1 | R100: 0 | S100: 0 | T100: 0 | Y100: 14224 | Z100: Bambu
A101: =IF(INTRO!$E$33<>0,INTRO!$E$33, " ") -> DRC | B101: ITURI | C101: Biringi | D101: 155307.2728 | E101: =IF(INTRO!$E$48="","",ROUND($D101*INTRO!$E$48,0)) -> 26402 | F101: =IF(INTRO!$E$49="","",ROUND($D101*INTRO!$E$49,0)) -> 54358 | G101: =IF(INTRO!$E$50="","",ROUND($D101*INTRO!$E$50,0)) -> 71441 | H101: 1 | I101: 1 | J101: 1 | K101: 2 | L101: 1 | M101: =IF(INTRO!$E$37="Endemic",IF($H101>0,IF($H101=4,"Unknown",IF($H101=99,"Stopped",$D101)),0),"Not required") -> 155307.2728 | N101: =IF(INTRO!$E$39="Endemic", IF($I101>0, IF($I101=4,"Unknown",IF($I101=99,"Stopped",$D101)), 0),"Not required") -> 155307.2728 | O101: =IF(INTRO!$E$41="Endemic", IF(AND($J101>1,$J101<5), IF($J101=4, "Unknown", E101+F101), 0),"Not required") -> 0 | P101: =IF(INTRO!$E$43="Endemic", IF(AND($K101>0,$K101<5), IF($K101=4,"Unknown", IF($K101=1, $F101*0.33, IF($K101=2, $F101*0.5+$G101*0.2, SUM(F101:G101)))), 0),"Not required") -> 41467.2 | Q101: 1 | R101: 1 | S101: 0 | T101: 0 | Y101: 14230 | Z101: Biringi
A102: =IF(INTRO!$E$33<>0,INTRO!$E$33, " ") -> DRC | B102: ITURI | C102: Boga | D102: 76782.6375 | E102: =IF(INTRO!$E$48="","",ROUND($D102*INTRO!$E$48,0)) -> 13053 | F102: =IF(INTRO!$E$49="","",ROUND($D102*INTRO!$E$49,0)) -> 26874 | G102: =IF(INTRO!$E$50="","",ROUND($D102*INTRO!$E$50,0)) -> 35320 | H102: 1 | I102: 1 | J102: 1 | K102: 2 | L102: 1 | M102: =IF(INTRO!$E$37="Endemic",IF($H102>0,IF($H102=4,"Unknown",IF($H102=99,"Stopped",$D102)),0),"Not required") -> 76782.6375 | N102: =IF(INTRO!$E$39="Endemic", IF($I102>0, IF($I102=4,"Unknown",IF($I102=99,"Stopped",$D102)), 0),"Not required") -> 76782.6375 | O102: =IF(INTRO!$E$41="Endemic", IF(AND($J102>1,$J102<5), IF($J102=4, "Unknown", E102+F102), 0),"Not required") -> 0 | P102: =IF(INTRO!$E$43="Endemic", IF(AND($K102>0,$K102<5), IF($K102=4,"Unknown", IF($K102=1, $F102*0.33, IF($K102=2, $F102*0.5+$G102*0.2, SUM(F102:G102)))), 0),"Not required") -> 20501 | Q102: 1 | R102: 1 | S102: 0 | T102: 0 | Y102: 14231 | Z102: Boga
A103: =IF(INTRO!$E$33<>0,INTRO!$E$33, " ") -> DRC | B103: ITURI | C103: Bunia | D103: 286131.0954 | E103: =IF(INTRO!$E$48="","",ROUND($D103*INTRO!$E$48,0)) -> 48642 | F103: =IF(INTRO!$E$49="","",ROUND($D103*INTRO!$E$49,0)) -> 100146 | G103: =IF(INTRO!$E$50="","",ROUND($D103*INTRO!$E$50,0)) -> 131620 | H103: 1 | I103: 0 | J103: 1 | K103: 2 | L103: 0 | M103: =IF(INTRO!$E$37="Endemic",IF($H103>0,IF($H103=4,"Unknown",IF($H103=99,"Stopped",$D103)),0),"Not required") -> 286131.0954 | N103: =IF(INTRO!$E$39="Endemic", IF($I103>0, IF($I103=4,"Unknown",IF($I103=99,"Stopped",$D103)), 0),"Not required") -> 0 | O103: =IF(INTRO!$E$41="Endemic", IF(AND($J103>1,$J103<5), IF($J103=4, "Unknown", E103+F103), 0),"Not required") -> 0 | P103: =IF(INTRO!$E$43="Endemic", IF(AND($K103>0,$K103<5), IF($K103=4,"Unknown", IF($K103=1, $F103*0.33, IF($K103=2, $F103*0.5+$G103*0.2, SUM(F103:G103)))), 0),"Not required") -> 76397 | Q103: 1 | R103: 0 | S103: 0 | T103: 1 | Y103: 14233 | Z103: Bunia
A104: =IF(INTRO!$E$33<>0,INTRO!$E$33, " ") -> DRC | B104: ITURI | C104: Damas | D104: 129850.9773 | E104: =IF(INTRO!$E$48="","",ROUND($D104*INTRO!$E$48,0)) -> 22075 | F104: =IF(INTRO!$E$49="","",ROUND($D104*INTRO!$E$49,0)) -> 45448 | G104: =IF(INTRO!$E$50="","",ROUND($D104*INTRO!$E$50,0)) -> 59731 | H104: 1 | I104: 1 | J104: 1 | K104: 1 | L104: 1 | M104: =IF(INTRO!$E$37="Endemic",IF($H104>0,IF($H104=4,"Unknown",IF($H104=99,"Stopped",$D104)),0),"Not required") -> 129850.9773 | N104: =IF(INTRO!$E$39="Endemic", IF($I104>0, IF($I104=4,"Unknown",IF($I104=99,"Stopped",$D104)), 0),"Not required") -> 129850.9773 | O104: =IF(INTRO!$E$41="Endemic", IF(AND($J104>1,$J104<5), IF($J104=4, "Unknown", E104+F104), 0),"Not required") -> 0 | P104: =IF(INTRO!$E$43="Endemic", IF(AND($K104>0,$K104<5), IF($K104=4,"Unknown", IF($K104=1, $F104*0.33, IF($K104=2, $F104*0.5+$G104*0.2, SUM(F104:G104)))), 0),"Not required") -> 14997.84 | Q104: 1 | R104: 1 | S104: 0 | T104: 1 | Y104: 14235 | Z104: Damas
A105: =IF(INTRO!$E$33<>0,INTRO!$E$33, " ") -> DRC | B105: ITURI | C105: Drodro | D105: 90437.4814 | E105: =IF(INTRO!$E$48="","",ROUND($D105*INTRO!$E$48,0)) -> 15374 | F105: =IF(INTRO!$E$49="","",ROUND($D105*INTRO!$E$49,0)) -> 31653 | G105: =IF(INTRO!$E$50="","",ROUND($D105*INTRO!$E$50,0)) -> 41601 | H105: 0 | I105: 0 | J105: 1 | K105: 2 | L105: 0 | M105: =IF(INTRO!$E$37="Endemic",IF($H105>0,IF($H105=4,"Unknown",IF($H105=99,"Stopped",$D105)),0),"Not required") -> 0 | N105: =IF(INTRO!$E$39="Endemic", IF($I105>0, IF($I105=4,"Unknown",IF($I105=99,"Stopped",$D105)), 0),"Not required") -> 0 | O105: =IF(INTRO!$E$41="Endemic", IF(AND($J105>1,$J105<5), IF($J105=4, "Unknown", E105+F105), 0),"Not required") -> 0 | P105: =IF(INTRO!$E$43="Endemic", IF(AND($K105>0,$K105<5), IF($K105=4,"Unknown", IF($K105=1, $F105*0.33, IF($K105=2, $F105*0.5+$G105*0.2, SUM(F105:G105)))), 0),"Not required") -> 24146.7 | Q105: 0 | R105: 0 | S105: 0 | T105: 1 | Y105: 14237 | Z105: Drodro
A106: =IF(INTRO!$E$33<>0,INTRO!$E$33, " ") -> DRC | B106: ITURI | C106: Fataki | D106: 145979.84 | E106: =IF(INTRO!$E$48="","",ROUND($D106*INTRO!$E$48,0)) -> 24817 | F106: =IF(INTRO!$E$49="","",ROUND($D106*INTRO!$E$49,0)) -> 51093 | G106: =IF(INTRO!$E$50="","",ROUND($D106*INTRO!$E$50,0)) -> 67151 | H106: 1 | I106: 0 | J106: 1 | K106: 1 | L106: 0 | M106: =IF(INTRO!$E$37="Endemic",IF($H106>0,IF($H106=4,"Unknown",IF($H106=99,"Stopped",$D106)),0),"Not required") -> 145979.84 | N106: =IF(INTRO!$E$39="Endemic", IF($I106>0, IF($I106=4,"Unknown",IF($I106=99,"Stopped",$D106)), 0),"Not required") -> 0 | O106: =IF(INTRO!$E$41="Endemic", IF(AND($J106>1,$J106<5), IF($J106=4, "Unknown", E106+F106), 0),"Not required") -> 0 | P106: =IF(INTRO!$E$43="Endemic", IF(AND($K106>0,$K106<5), IF($K106=4,"Unknown", IF($K106=1, $F106*0.33, IF($K106=2, $F106*0.5+$G106*0.2, SUM(F106:G106)))), 0),"Not required") -> 16860.69 | Q106: 1 | R106: 0 | S106: 0 | T106: 0 | Y106: 14240 | Z106: Fataki
A107: =IF(INTRO!$E$33<>0,INTRO!$E$33, " ") -> DRC | B107: ITURI | C107: Gethy | D107: 197516.2402 | E107: =IF(INTRO!$E$48="","",ROUND($D107*INTRO!$E$48,0)) -> 33578 | F107: =IF(INTRO!$E$49="","",ROUND($D107*INTRO!$E$49,0)) -> 69131 | G107: =IF(INTRO!$E$50="","",ROUND($D107*INTRO!$E$50,0)) -> 90857 | H107: 0 | I107: 1 | J107: 1 | K107: 2 | L107: 1 | M107: =IF(INTRO!$E$37="Endemic",IF($H107>0,IF($H107=4,"Unknown",IF($H107=99,"Stopped",$D107)),0),"Not required") -> 0 | N107: =IF(INTRO!$E$39="Endemic", IF($I107>0, IF($I107=4,"Unknown",IF($I107=99,"Stopped",$D107)), 0),"Not required") -> 197516.2402 | O107: =IF(INTRO!$E$41="Endemic", IF(AND($J107>1,$J107<5), IF($J107=4, "Unknown", E107+F107), 0),"Not required") -> 0 | P107: =IF(INTRO!$E$43="Endemic", IF(AND($K107>0,$K107<5), IF($K107=4,"Unknown", IF($K107=1, $F107*0.33, IF($K107=2, $F107*0.5+$G107*0.2, SUM(F107:G107)))), 0),"Not required") -> 52736.9 | Q107: 0 | R107: 1 | S107: 0 | T107: 0 | Y107: 14242 | Z107: Gethy
A108: =IF(INTRO!$E$33<>0,INTRO!$E$33, " ") -> DRC | B108: ITURI | C108: Jiba | D108: 114603.7225 | E108: =IF(INTRO!$E$48="","",ROUND($D108*INTRO!$E$48,0)) -> 19483 | F108: =IF(INTRO!$E$49="","",ROUND($D108*INTRO!$E$49,0)) -> 40111 | G108: =IF(INTRO!$E$50="","",ROUND($D108*INTRO!$E$50,0)) -> 52718 | H108: 1 | I108: 0 | J108: 1 | K108: 1 | L108: 0 | M108: =IF(INTRO!$E$37="Endemic",IF($H108>0,IF($H108=4,"Unknown",IF($H108=99,"Stopped",$D108)),0),"Not required") -> 114603.7225 | N108: =IF(INTRO!$E$39="Endemic", IF($I108>0, IF($I108=4,"Unknown",IF($I108=99,"Stopped",$D108)), 0),"Not required") -> 0 | O108: =IF(INTRO!$E$41="Endemic", IF(AND($J108>1,$J108<5), IF($J108=4, "Unknown", E108+F108), 0),"Not required") -> 0 | P108: =IF(INTRO!$E$43="Endemic", IF(AND($K108>0,$K108<5), IF($K108=4,"Unknown", IF($K108=1, $F108*0.33, IF($K108=2, $F108*0.5+$G108*0.2, SUM(F108:G108)))), 0),"Not required") -> 13236.63 | Q108: 1 | R108: 0 | S108: 0 | T108: 0 | Y108: 14246 | Z108: Jiba
A109: =IF(INTRO!$E$33<>0,INTRO!$E$33, " ") -> DRC | B109: ITURI | C109: Kambale | D109: 141709.7175 | E109: =IF(INTRO!$E$48="","",ROUND($D109*INTRO!$E$48,0)) -> 24091 | F109: =IF(INTRO!$E$49="","",ROUND($D109*INTRO!$E$49,0)) -> 49598 | G109: =IF(INTRO!$E$50="","",ROUND($D109*INTRO!$E$50,0)) -> 65186 | H109: 1 | I109: 1 | J109: 1 | K109: 0 | L109: 1 | M109: =IF(INTRO!$E$37="Endemic",IF($H109>0,IF($H109=4,"Unknown",IF($H109=99,"Stopped",$D109)),0),"Not required") -> 141709.7175 | N109: =IF(INTRO!$E$39="Endemic", IF($I109>0, IF($I109=4,"Unknown",IF($I109=99,"Stopped",$D109)), 0),"Not required") -> 141709.7175 | O109: =IF(INTRO!$E$41="Endemic", IF(AND($J109>1,$J109<5), IF($J109=4, "Unknown", E109+F109), 0),"Not required") -> 0 | P109: =IF(INTRO!$E$43="Endemic", IF(AND($K109>0,$K109<5), IF($K109=4,"Unknown", IF($K109=1, $F109*0.33, IF($K109=2, $F109*0.5+$G109*0.2, SUM(F109:G109)))), 0),"Not required") -> 0 | Q109: 1 | R109: 1 | S109: 0 | T109: 0 | Y109: 14248 | Z109: Kambale
A110: =IF(INTRO!$E$33<>0,INTRO!$E$33, " ") -> DRC | B110: ITURI | C110: Kilo | D110: 49933.3803 | E110: =IF(INTRO!$E$48="","",ROUND($D110*INTRO!$E$48,0)) -> 8489 | F110: =IF(INTRO!$E$49="","",ROUND($D110*INTRO!$E$49,0)) -> 17477 | G110: =IF(INTRO!$E$50="","",ROUND($D110*INTRO!$E$50,0)) -> 22969 | H110: 1 | I110: 0 | J110: 2 | K110: 2 | L110: 0 | M110: =IF(INTRO!$E$37="Endemic",IF($H110>0,IF($H110=4,"Unknown",IF($H110=99,"Stopped",$D110)),0),"Not required") -> 49933.3803 | N110: =IF(INTRO!$E$39="Endemic", IF($I110>0, IF($I110=4,"Unknown",IF($I110=99,"Stopped",$D110)), 0),"Not required") -> 0 | O110: =IF(INTRO!$E$41="Endemic", IF(AND($J110>1,$J110<5), IF($J110=4, "Unknown", E110+F110), 0),"Not required") -> 25966 | P110: =IF(INTRO!$E$43="Endemic", IF(AND($K110>0,$K110<5), IF($K110=4,"Unknown", IF($K110=1, $F110*0.33, IF($K110=2, $F110*0.5+$G110*0.2, SUM(F110:G110)))), 0),"Not required") -> 13332.3 | Q110: 1 | R110: 0 | S110: 1 | T110: 1 | Y110: 14249 | Z110: Kilo
A111: =IF(INTRO!$E$33<>0,INTRO!$E$33, " ") -> DRC | B111: ITURI | C111: Komanda | D111: 231702.6818 | E111: =IF(INTRO!$E$48="","",ROUND($D111*INTRO!$E$48,0)) -> 39389 | F111: =IF(INTRO!$E$49="","",ROUND($D111*INTRO!$E$49,0)) -> 81096 | G111: =IF(INTRO!$E$50="","",ROUND($D111*INTRO!$E$50,0)) -> 106583 | H111: 1 | I111: 1 | J111: 1 | K111: 2 | L111: 1 | M111: =IF(INTRO!$E$37="Endemic",IF($H111>0,IF($H111=4,"Unknown",IF($H111=99,"Stopped",$D111)),0),"Not required") -> 231702.6818 | N111: =IF(INTRO!$E$39="Endemic", IF($I111>0, IF($I111=4,"Unknown",IF($I111=99,"Stopped",$D111)), 0),"Not required") -> 231702.6818 | O111: =IF(INTRO!$E$41="Endemic", IF(AND($J111>1,$J111<5), IF($J111=4, "Unknown", E111+F111), 0),"Not required") -> 0 | P111: =IF(INTRO!$E$43="Endemic", IF(AND($K111>0,$K111<5), IF($K111=4,"Unknown", IF($K111=1, $F111*0.33, IF($K111=2, $F111*0.5+$G111*0.2, SUM(F111:G111)))), 0),"Not required") -> 61864.6 | Q111: 1 | R111: 1 | S111: 0 | T111: 0 | Y111: 14250 | Z111: Komanda
A112: =IF(INTRO!$E$33<>0,INTRO!$E$33, " ") -> DRC | B112: ITURI | C112: Laybo | D112: 184654.0943 | E112: =IF(INTRO!$E$48="","",ROUND($D112*INTRO!$E$48,0)) -> 31391 | F112: =IF(INTRO!$E$49="","",ROUND($D112*INTRO!$E$49,0)) -> 64629 | G112: =IF(INTRO!$E$50="","",ROUND($D112*INTRO!$E$50,0)) -> 84941 | H112: 0 | I112: 1 | J112: 1 | K112: 0 | L112: 1 | M112: =IF(INTRO!$E$37="Endemic",IF($H112>0,IF($H112=4,"Unknown",IF($H112=99,"Stopped",$D112)),0),"Not required") -> 0 | N112: =IF(INTRO!$E$39="Endemic", IF($I112>0, IF($I112=4,"Unknown",IF($I112=99,"Stopped",$D112)), 0),"Not required") -> 184654.0943 | O112: =IF(INTRO!$E$41="Endemic", IF(AND($J112>1,$J112<5), IF($J112=4, "Unknown", E112+F112), 0),"Not required") -> 0 | P112: =IF(INTRO!$E$43="Endemic", IF(AND($K112>0,$K112<5), IF($K112=4,"Unknown", IF($K112=1, $F112*0.33, IF($K112=2, $F112*0.5+$G112*0.2, SUM(F112:G112)))), 0),"Not required") -> 0 | Q112: 0 | R112: 1 | S112: 0 | T112: 0 | Y112: 14251 | Z112: Laybo
A113: =IF(INTRO!$E$33<>0,INTRO!$E$33, " ") -> DRC | B113: ITURI | C113: Linga | D113: 127213.5799 | E113: =IF(INTRO!$E$48="","",ROUND($D113*INTRO!$E$48,0)) -> 21626 | F113: =IF(INTRO!$E$49="","",ROUND($D113*INTRO!$E$49,0)) -> 44525 | G113: =IF(INTRO!$E$50="","",ROUND($D113*INTRO!$E$50,0)) -> 58518 | H113: 1 | I113: 0 | J113: 1 | K113: 1 | L113: 0 | M113: =IF(INTRO!$E$37="Endemic",IF($H113>0,IF($H113=4,"Unknown",IF($H113=99,"Stopped",$D113)),0),"Not required") -> 127213.5799 | N113: =IF(INTRO!$E$39="Endemic", IF($I113>0, IF($I113=4,"Unknown",IF($I113=99,"Stopped",$D113)), 0),"Not required") -> 0 | O113: =IF(INTRO!$E$41="Endemic", IF(AND($J113>1,$J113<5), IF($J113=4, "Unknown", E113+F113), 0),"Not required") -> 0 | P113: =IF(INTRO!$E$43="Endemic", IF(AND($K113>0,$K113<5), IF($K113=4,"Unknown", IF($K113=1, $F113*0.33, IF($K113=2, $F113*0.5+$G113*0.2, SUM(F113:G113)))), 0),"Not required") -> 14693.25 | Q113: 1 | R113: 0 | S113: 0 | T113: 0 | Y113: 14253 | Z113: Linga
A114: =IF(INTRO!$E$33<>0,INTRO!$E$33, " ") -> DRC | B114: ITURI | C114: Lita | D114: 146815.8292 | E114: =IF(INTRO!$E$48="","",ROUND($D114*INTRO!$E$48,0)) -> 24959 | F114: =IF(INTRO!$E$49="","",ROUND($D114*INTRO!$E$49,0)) -> 51386 | G114: =IF(INTRO!$E$50="","",ROUND($D114*INTRO!$E$50,0)) -> 67535 | H114: 0 | I114: 0 | J114: 1 | K114: 1 | L114: 1 | M114: =IF(INTRO!$E$37="Endemic",IF($H114>0,IF($H114=4,"Unknown",IF($H114=99,"Stopped",$D114)),0),"Not required") -> 0 | N114: =IF(INTRO!$E$39="Endemic", IF($I114>0, IF($I114=4,"Unknown",IF($I114=99,"Stopped",$D114)), 0),"Not required") -> 0 | O114: =IF(INTRO!$E$41="Endemic", IF(AND($J114>1,$J114<5), IF($J114=4, "Unknown", E114+F114), 0),"Not required") -> 0 | P114: =IF(INTRO!$E$43="Endemic", IF(AND($K114>0,$K114<5), IF($K114=4,"Unknown", IF($K114=1, $F114*0.33, IF($K114=2, $F114*0.5+$G114*0.2, SUM(F114:G114)))), 0),"Not required") -> 16957.38 | Q114: 0 | R114: 0 | S114: 0 | T114: 0 | Y114: 14254 | Z114: Lita
A115: =IF(INTRO!$E$33<>0,INTRO!$E$33, " ") -> DRC | B115: ITURI | C115: Logo | D115: 115847.2489 | E115: =IF(INTRO!$E$48="","",ROUND($D115*INTRO!$E$48,0)) -> 19694 | F115: =IF(INTRO!$E$49="","",ROUND($D115*INTRO!$E$49,0)) -> 40547 | G115: =IF(INTRO!$E$50="","",ROUND($D115*INTRO!$E$50,0)) -> 53290 | H115: 0 | I115: 0 | J115: 1 | K115: 1 | L115: 0 | M115: =IF(INTRO!$E$37="Endemic",IF($H115>0,IF($H115=4,"Unknown",IF($H115=99,"Stopped",$D115)),0),"Not required") -> 0 | N115: =IF(INTRO!$E$39="Endemic", IF($I115>0, IF($I115=4,"Unknown",IF($I115=99,"Stopped",$D115)), 0),"Not required") -> 0 | O115: =IF(INTRO!$E$41="Endemic", IF(AND($J115>1,$J115<5), IF($J115=4, "Unknown", E115+F115), 0),"Not required") -> 0 | P115: =IF(INTRO!$E$43="Endemic", IF(AND($K115>0,$K115<5), IF($K115=4,"Unknown", IF($K115=1, $F115*0.33, IF($K115=2, $F115*0.5+$G115*0.2, SUM(F115:G115)))), 0),"Not required") -> 13380.51 | Q115: 0 | R115: 0 | S115: 0 | T115: 1 | Y115: 14255 | Z115: Logo
A116: =IF(INTRO!$E$33<>0,INTRO!$E$33, " ") -> DRC | B116: ITURI | C116: Lolwa | D116: 66038.9032 | E116: =IF(INTRO!$E$48="","",ROUND($D116*INTRO!$E$48,0)) -> 11227 | F116: =IF(INTRO!$E$49="","",ROUND($D116*INTRO!$E$49,0)) -> 23114 | G116: =IF(INTRO!$E$50="","",ROUND($D116*INTRO!$E$50,0)) -> 30378 | H116: 1 | I116: 1 | J116: 1 | K116: 2 | L116: 1 | M116: =IF(INTRO!$E$37="Endemic",IF($H116>0,IF($H116=4,"Unknown",IF($H116=99,"Stopped",$D116)),0),"Not required") -> 66038.9032 | N116: =IF(INTRO!$E$39="Endemic", IF($I116>0, IF($I116=4,"Unknown",IF($I116=99,"Stopped",$D116)), 0),"Not required") -> 66038.9032 | O116: =IF(INTRO!$E$41="Endemic", IF(AND($J116>1,$J116<5), IF($J116=4, "Unknown", E116+F116), 0),"Not required") -> 0 | P116: =IF(INTRO!$E$43="Endemic", IF(AND($K116>0,$K116<5), IF($K116=4,"Unknown", IF($K116=1, $F116*0.33, IF($K116=2, $F116*0.5+$G116*0.2, SUM(F116:G116)))), 0),"Not required") -> 17632.6 | Q116: 1 | R116: 1 | S116: 0 | T116: 0 | Y116: 13992 | Z116: Lolwa
A117: =IF(INTRO!$E$33<>0,INTRO!$E$33, " ") -> DRC | B117: ITURI | C117: Mahagi | D117: 196187.9934 | E117: =IF(INTRO!$E$48="","",ROUND($D117*INTRO!$E$48,0)) -> 33352 | F117: =IF(INTRO!$E$49="","",ROUND($D117*INTRO!$E$49,0)) -> 68666 | G117: =IF(INTRO!$E$50="","",ROUND($D117*INTRO!$E$50,0)) -> 90246 | H117: 0 | I117: 0 | J117: 1 | K117: 1 | L117: 0 | M117: =IF(INTRO!$E$37="Endemic",IF($H117>0,IF($H117=4,"Unknown",IF($H117=99,"Stopped",$D117)),0),"Not required") -> 0 | N117: =IF(INTRO!$E$39="Endemic", IF($I117>0, IF($I117=4,"Unknown",IF($I117=99,"Stopped",$D117)), 0),"Not required") -> 0 | O117: =IF(INTRO!$E$41="Endemic", IF(AND($J117>1,$J117<5), IF($J117=4, "Unknown", E117+F117), 0),"Not required") -> 0 | P117: =IF(INTRO!$E$43="Endemic", IF(AND($K117>0,$K117<5), IF($K117=4,"Unknown", IF($K117=1, $F117*0.33, IF($K117=2, $F117*0.5+$G117*0.2, SUM(F117:G117)))), 0),"Not required") -> 22659.78 | Q117: 0 | R117: 0 | S117: 0 | T117: 1 | Y117: 14258 | Z117: Mahagi
A118: =IF(INTRO!$E$33<>0,INTRO!$E$33, " ") -> DRC | B118: ITURI | C118: Mambasa | D118: 116169.6109 | E118: =IF(INTRO!$E$48="","",ROUND($D118*INTRO!$E$48,0)) -> 19749 | F118: =IF(INTRO!$E$49="","",ROUND($D118*INTRO!$E$49,0)) -> 40659 | G118: =IF(INTRO!$E$50="","",ROUND($D118*INTRO!$E$50,0)) -> 53438 | H118: 1 | I118: 1 | J118: 1 | K118: 2 | L118: 1 | M118: =IF(INTRO!$E$37="Endemic",IF($H118>0,IF($H118=4,"Unknown",IF($H118=99,"Stopped",$D118)),0),"Not required") -> 116169.6109 | N118: =IF(INTRO!$E$39="Endemic", IF($I118>0, IF($I118=4,"Unknown",IF($I118=99,"Stopped",$D118)), 0),"Not required") -> 116169.6109 | O118: =IF(INTRO!$E$41="Endemic", IF(AND($J118>1,$J118<5), IF($J118=4, "Unknown", E118+F118), 0),"Not required") -> 0 | P118: =IF(INTRO!$E$43="Endemic", IF(AND($K118>0,$K118<5), IF($K118=4,"Unknown", IF($K118=1, $F118*0.33, IF($K118=2, $F118*0.5+$G118*0.2, SUM(F118:G118)))), 0),"Not required") -> 31017.1 | Q118: 1 | R118: 1 | S118: 0 | T118: 0 | Y118: 14261 | Z118: Mambasa
A119: =IF(INTRO!$E$33<>0,INTRO!$E$33, " ") -> DRC | B119: ITURI | C119: Mandima | D119: 168281.0189 | E119: =IF(INTRO!$E$48="","",ROUND($D119*INTRO!$E$48,0)) -> 28608 | F119: =IF(INTRO!$E$49="","",ROUND($D119*INTRO!$E$49,0)) -> 58898 | G119: =IF(INTRO!$E$50="","",ROUND($D119*INTRO!$E$50,0)) -> 77409 | H119: 1 | I119: 1 | J119: 2 | K119: 1 | L119: 1 | M119: =IF(INTRO!$E$37="Endemic",IF($H119>0,IF($H119=4,"Unknown",IF($H119=99,"Stopped",$D119)),0),"Not required") -> 168281.0189 | N119: =IF(INTRO!$E$39="Endemic", IF($I119>0, IF($I119=4,"Unknown",IF($I119=99,"Stopped",$D119)), 0),"Not required") -> 168281.0189 | O119: =IF(INTRO!$E$41="Endemic", IF(AND($J119>1,$J119<5), IF($J119=4, "Unknown", E119+F119), 0),"Not required") -> 87506 | P119: =IF(INTRO!$E$43="Endemic", IF(AND($K119>0,$K119<5), IF($K119=4,"Unknown", IF($K119=1, $F119*0.33, IF($K119=2, $F119*0.5+$G119*0.2, SUM(F119:G119)))), 0),"Not required") -> 19436.34 | Q119: 1 | R119: 1 | S119: 1 | T119: 1 | Y119: 14262 | Z119: Mandima
A120: =IF(INTRO!$E$33<>0,INTRO!$E$33, " ") -> DRC | B120: ITURI | C120: Mangala | D120: 96976.869 | E120: =IF(INTRO!$E$48="","",ROUND($D120*INTRO!$E$48,0)) -> 16486 | F120: =IF(INTRO!$E$49="","",ROUND($D120*INTRO!$E$49,0)) -> 33942 | G120: =IF(INTRO!$E$50="","",ROUND($D120*INTRO!$E$50,0)) -> 44609 | H120: 1 | I120: 0 | J120: 2 | K120: 1 | L120: 0 | M120: =IF(INTRO!$E$37="Endemic",IF($H120>0,IF($H120=4,"Unknown",IF($H120=99,"Stopped",$D120)),0),"Not required") -> 96976.869 | N120: =IF(INTRO!$E$39="Endemic", IF($I120>0, IF($I120=4,"Unknown",IF($I120=99,"Stopped",$D120)), 0),"Not required") -> 0 | O120: =IF(INTRO!$E$41="Endemic", IF(AND($J120>1,$J120<5), IF($J120=4, "Unknown", E120+F120), 0),"Not required") -> 50428 | P120: =IF(INTRO!$E$43="Endemic", IF(AND($K120>0,$K120<5), IF($K120=4,"Unknown", IF($K120=1, $F120*0.33, IF($K120=2, $F120*0.5+$G120*0.2, SUM(F120:G120)))), 0),"Not required") -> 11200.86 | Q120: 1 | R120: 0 | S120: 1 | T120: 0 | Y120: 14263 | Z120: Mangala
A121: =IF(INTRO!$E$33<>0,INTRO!$E$33, " ") -> DRC | B121: ITURI | C121: Mongbwalu | D121: 147272.0162 | E121: =IF(INTRO!$E$48="","",ROUND($D121*INTRO!$E$48,0)) -> 25036 | F121: =IF(INTRO!$E$49="","",ROUND($D121*INTRO!$E$49,0)) -> 51545 | G121: =IF(INTRO!$E$50="","",ROUND($D121*INTRO!$E$50,0)) -> 67745 | H121: 0 | I121: 1 | J121: 2 | K121: 2 | L121: 1 | M121: =IF(INTRO!$E$37="Endemic",IF($H121>0,IF($H121=4,"Unknown",IF($H121=99,"Stopped",$D121)),0),"Not required") -> 0 | N121: =IF(INTRO!$E$39="Endemic", IF($I121>0, IF($I121=4,"Unknown",IF($I121=99,"Stopped",$D121)), 0),"Not required") -> 147272.0162 | O121: =IF(INTRO!$E$41="Endemic", IF(AND($J121>1,$J121<5), IF($J121=4, "Unknown", E121+F121), 0),"Not required") -> 76581 | P121: =IF(INTRO!$E$43="Endemic", IF(AND($K121>0,$K121<5), IF($K121=4,"Unknown", IF($K121=1, $F121*0.33, IF($K121=2, $F121*0.5+$G121*0.2, SUM(F121:G121)))), 0),"Not required") -> 39321.5 | Q121: 0 | R121: 1 | S121: 1 | T121: 0 | Y121: 14267 | Z121: Mongbwalu
A122: =IF(INTRO!$E$33<>0,INTRO!$E$33, " ") -> DRC | B122: ITURI | C122: Niania | D122: 76800.6728 | E122: =IF(INTRO!$E$48="","",ROUND($D122*INTRO!$E$48,0)) -> 13056 | F122: =IF(INTRO!$E$49="","",ROUND($D122*INTRO!$E$49,0)) -> 26880 | G122: =IF(INTRO!$E$50="","",ROUND($D122*INTRO!$E$50,0)) -> 35328 | H122: 1 | I122: 1 | J122: 1 | K122: 2 | L122: 1 | M122: =IF(INTRO!$E$37="Endemic",IF($H122>0,IF($H122=4,"Unknown",IF($H122=99,"Stopped",$D122)),0),"Not required") -> 76800.6728 | N122: =IF(INTRO!$E$39="Endemic", IF($I122>0, IF($I122=4,"Unknown",IF($I122=99,"Stopped",$D122)), 0),"Not required") -> 76800.6728 | O122: =IF(INTRO!$E$41="Endemic", IF(AND($J122>1,$J122<5), IF($J122=4, "Unknown", E122+F122), 0),"Not required") -> 0 | P122: =IF(INTRO!$E$43="Endemic", IF(AND($K122>0,$K122<5), IF($K122=4,"Unknown", IF($K122=1, $F122*0.33, IF($K122=2, $F122*0.5+$G122*0.2, SUM(F122:G122)))), 0),"Not required") -> 20505.6 | Q122: 1 | R122: 1 | S122: 0 | T122: 0 | Y122: 14269 | Z122: Niania
A123: =IF(INTRO!$E$33<>0,INTRO!$E$33, " ") -> DRC | B123: ITURI | C123: Nizi | D123: 98162.9552 | E123: =IF(INTRO!$E$48="","",ROUND($D123*INTRO!$E$48,0)) -> 16688 | F123: =IF(INTRO!$E$49="","",ROUND($D123*INTRO!$E$49,0)) -> 34357 | G123: =IF(INTRO!$E$50="","",ROUND($D123*INTRO!$E$50,0)) -> 45155 | H123: 1 | I123: 0 | J123: 2 | K123: 1 | L123: 0 | M123: =IF(INTRO!$E$37="Endemic",IF($H123>0,IF($H123=4,"Unknown",IF($H123=99,"Stopped",$D123)),0),"Not required") -> 98162.9552 | N123: =IF(INTRO!$E$39="Endemic", IF($I123>0, IF($I123=4,"Unknown",IF($I123=99,"Stopped",$D123)), 0),"Not required") -> 0 | O123: =IF(INTRO!$E$41="Endemic", IF(AND($J123>1,$J123<5), IF($J123=4, "Unknown", E123+F123), 0),"Not required") -> 51045 | P123: =IF(INTRO!$E$43="Endemic", IF(AND($K123>0,$K123<5), IF($K123=4,"Unknown", IF($K123=1, $F123*0.33, IF($K123=2, $F123*0.5+$G123*0.2, SUM(F123:G123)))), 0),"Not required") -> 11337.81 | Q123: 1 | R123: 0 | S123: 1 | T123: 0 | Y123: 14270 | Z123: Nizi
A124: =IF(INTRO!$E$33<>0,INTRO!$E$33, " ") -> DRC | B124: ITURI | C124: Nyankunde | D124: 108044.5194 | E124: =IF(INTRO!$E$48="","",ROUND($D124*INTRO!$E$48,0)) -> 18368 | F124: =IF(INTRO!$E$49="","",ROUND($D124*INTRO!$E$49,0)) -> 37816 | G124: =IF(INTRO!$E$50="","",ROUND($D124*INTRO!$E$50,0)) -> 49700 | H124: 1 | I124: 1 | J124: 1 | K124: 2 | L124: 1 | M124: =IF(INTRO!$E$37="Endemic",IF($H124>0,IF($H124=4,"Unknown",IF($H124=99,"Stopped",$D124)),0),"Not required") -> 108044.5194 | N124: =IF(INTRO!$E$39="Endemic", IF($I124>0, IF($I124=4,"Unknown",IF($I124=99,"Stopped",$D124)), 0),"Not required") -> 108044.5194 | O124: =IF(INTRO!$E$41="Endemic", IF(AND($J124>1,$J124<5), IF($J124=4, "Unknown", E124+F124), 0),"Not required") -> 0 | P124: =IF(INTRO!$E$43="Endemic", IF(AND($K124>0,$K124<5), IF($K124=4,"Unknown", IF($K124=1, $F124*0.33, IF($K124=2, $F124*0.5+$G124*0.2, SUM(F124:G124)))), 0),"Not required") -> 28848 | Q124: 1 | R124: 1 | S124: 0 | T124: 0 | Y124: 14271 | Z124: Nyankunde
A125: =IF(INTRO!$E$33<>0,INTRO!$E$33, " ") -> DRC | B125: ITURI | C125: Nyarambe | D125: 237680.8533 | E125: =IF(INTRO!$E$48="","",ROUND($D125*INTRO!$E$48,0)) -> 40406 | F125: =IF(INTRO!$E$49="","",ROUND($D125*INTRO!$E$49,0)) -> 83188 | G125: =IF(INTRO!$E$50="","",ROUND($D125*INTRO!$E$50,0)) -> 109333 | H125: 1 | I125: 0 | J125: 0 | K125: 3 | L125: 4 | M125: =IF(INTRO!$E$37="Endemic",IF($H125>0,IF($H125=4,"Unknown",IF($H125=99,"Stopped",$D125)),0),"Not required") -> 237680.8533 | N125: =IF(INTRO!$E$39="Endemic", IF($I125>0, IF($I125=4,"Unknown",IF($I125=99,"Stopped",$D125)), 0),"Not required") -> 0 | O125: =IF(INTRO!$E$41="Endemic", IF(AND($J125>1,$J125<5), IF($J125=4, "Unknown", E125+F125), 0),"Not required") -> 0 | P125: =IF(INTRO!$E$43="Endemic", IF(AND($K125>0,$K125<5), IF($K125=4,"Unknown", IF($K125=1, $F125*0.33, IF($K125=2, $F125*0.5+$G125*0.2, SUM(F125:G125)))), 0),"Not required") -> 192521 | Q125: 1 | R125: 0 | S125: 0 | T125: 1 | Y125: 14272 | Z125: Nyarambe
A126: =IF(INTRO!$E$33<>0,INTRO!$E$33, " ") -> DRC | B126: ITURI | C126: Rethy | D126: 232130.2245 | E126: =IF(INTRO!$E$48="","",ROUND($D126*INTRO!$E$48,0)) -> 39462 | F126: =IF(INTRO!$E$49="","",ROUND($D126*INTRO!$E$49,0)) -> 81246 | G126: =IF(INTRO!$E$50="","",ROUND($D126*INTRO!$E$50,0)) -> 106780 | H126: 1 | I126: 1 | J126: 1 | K126: 1 | L126: 1 | M126: =IF(INTRO!$E$37="Endemic",IF($H126>0,IF($H126=4,"Unknown",IF($H126=99,"Stopped",$D126)),0),"Not required") -> 232130.2245 | N126: =IF(INTRO!$E$39="Endemic", IF($I126>0, IF($I126=4,"Unknown",IF($I126=99,"Stopped",$D126)), 0),"Not required") -> 232130.2245 | O126: =IF(INTRO!$E$41="Endemic", IF(AND($J126>1,$J126<5), IF($J126=4, "Unknown", E126+F126), 0),"Not required") -> 0 | P126: =IF(INTRO!$E$43="Endemic", IF(AND($K126>0,$K126<5), IF($K126=4,"Unknown", IF($K126=1, $F126*0.33, IF($K126=2, $F126*0.5+$G126*0.2, SUM(F126:G126)))), 0),"Not required") -> 26811.18 | Q126: 1 | R126: 1 | S126: 0 | T126: 1 | Y126: 14277 | Z126: Rethy
A127: =IF(INTRO!$E$33<>0,INTRO!$E$33, " ") -> DRC | B127: ITURI | C127: Rimba | D127: 244846.1719 | E127: =IF(INTRO!$E$48="","",ROUND($D127*INTRO!$E$48,0)) -> 41624 | F127: =IF(INTRO!$E$49="","",ROUND($D127*INTRO!$E$49,0)) -> 85696 | G127: =IF(INTRO!$E$50="","",ROUND($D127*INTRO!$E$50,0)) -> 112629 | H127: 0 | I127: 1 | J127: 1 | K127: 1 | L127: 1 | M127: =IF(INTRO!$E$37="Endemic",IF($H127>0,IF($H127=4,"Unknown",IF($H127=99,"Stopped",$D127)),0),"Not required") -> 0 | N127: =IF(INTRO!$E$39="Endemic", IF($I127>0, IF($I127=4,"Unknown",IF($I127=99,"Stopped",$D127)), 0),"Not required") -> 244846.1719 | O127: =IF(INTRO!$E$41="Endemic", IF(AND($J127>1,$J127<5), IF($J127=4, "Unknown", E127+F127), 0),"Not required") -> 0 | P127: =IF(INTRO!$E$43="Endemic", IF(AND($K127>0,$K127<5), IF($K127=4,"Unknown", IF($K127=1, $F127*0.33, IF($K127=2, $F127*0.5+$G127*0.2, SUM(F127:G127)))), 0),"Not required") -> 28279.68 | Q127: 0 | R127: 1 | S127: 0 | T127: 1 | Y127: 14278 | Z127: Rimba
A128: =IF(INTRO!$E$33<>0,INTRO!$E$33, " ") -> DRC | B128: ITURI | C128: Rwampara | D128: 152686.8498 | E128: =IF(INTRO!$E$48="","",ROUND($D128*INTRO!$E$48,0)) -> 25957 | F128: =IF(INTRO!$E$49="","",ROUND($D128*INTRO!$E$49,0)) -> 53440 | G128: =IF(INTRO!$E$50="","",ROUND($D128*INTRO!$E$50,0)) -> 70236 | H128: 1 | I128: 1 | J128: 1 | K128: 2 | L128: 1 | M128: =IF(INTRO!$E$37="Endemic",IF($H128>0,IF($H128=4,"Unknown",IF($H128=99,"Stopped",$D128)),0),"Not required") -> 152686.8498 | N128: =IF(INTRO!$E$39="Endemic", IF($I128>0, IF($I128=4,"Unknown",IF($I128=99,"Stopped",$D128)), 0),"Not required") -> 152686.8498 | O128: =IF(INTRO!$E$41="Endemic", IF(AND($J128>1,$J128<5), IF($J128=4, "Unknown", E128+F128), 0),"Not required") -> 0 | P128: =IF(INTRO!$E$43="Endemic", IF(AND($K128>0,$K128<5), IF($K128=4,"Unknown", IF($K128=1, $F128*0.33, IF($K128=2, $F128*0.5+$G128*0.2, SUM(F128:G128)))), 0),"Not required") -> 40767.2 | Q128: 1 | R128: 1 | S128: 0 | T128: 0 | Y128: 14280 | Z128: Rwampara
A129: =IF(INTRO!$E$33<>0,INTRO!$E$33, " ") -> DRC | B129: ITURI | C129: Tchomia | D129: 73773.9251 | E129: =IF(INTRO!$E$48="","",ROUND($D129*INTRO!$E$48,0)) -> 12542 | F129: =IF(INTRO!$E$49="","",ROUND($D129*INTRO!$E$49,0)) -> 25821 | G129: =IF(INTRO!$E$50="","",ROUND($D129*INTRO!$E$50,0)) -> 33936 | H129: 1 | I129: 0 | J129: 1 | K129: 3 | L129: 0 | M129: =IF(INTRO!$E$37="Endemic",IF($H129>0,IF($H129=4,"Unknown",IF($H129=99,"Stopped",$D129)),0),"Not required") -> 73773.9251 | N129: =IF(INTRO!$E$39="Endemic", IF($I129>0, IF($I129=4,"Unknown",IF($I129=99,"Stopped",$D129)), 0),"Not required") -> 0 | O129: =IF(INTRO!$E$41="Endemic", IF(AND($J129>1,$J129<5), IF($J129=4, "Unknown", E129+F129), 0),"Not required") -> 0 | P129: =IF(INTRO!$E$43="Endemic", IF(AND($K129>0,$K129<5), IF($K129=4,"Unknown", IF($K129=1, $F129*0.33, IF($K129=2, $F129*0.5+$G129*0.2, SUM(F129:G129)))), 0),"Not required") -> 59757 | Q129: 1 | R129: 0 | S129: 0 | T129: 1 | Y129: 14281 | Z129: Tchomia
A130: =IF(INTRO!$E$33<>0,INTRO!$E$33, " ") -> DRC | B130: KASAI | C130: Banga Lubaka | D130: 217222.4577 | E130: =IF(INTRO!$E$48="","",ROUND($D130*INTRO!$E$48,0)) -> 36928 | F130: =IF(INTRO!$E$49="","",ROUND($D130*INTRO!$E$49,0)) -> 76028 | G130: =IF(INTRO!$E$50="","",ROUND($D130*INTRO!$E$50,0)) -> 99922 | H130: 1 | I130: 1 | J130: 3 | K130: 0 | L130: 1 | M130: =IF(INTRO!$E$37="Endemic",IF($H130>0,IF($H130=4,"Unknown",IF($H130=99,"Stopped",$D130)),0),"Not required") -> 217222.4577 | N130: =IF(INTRO!$E$39="Endemic", IF($I130>0, IF($I130=4,"Unknown",IF($I130=99,"Stopped",$D130)), 0),"Not required") -> 217222.4577 | O130: =IF(INTRO!$E$41="Endemic", IF(AND($J130>1,$J130<5), IF($J130=4, "Unknown", E130+F130), 0),"Not required") -> 112956 | P130: =IF(INTRO!$E$43="Endemic", IF(AND($K130>0,$K130<5), IF($K130=4,"Unknown", IF($K130=1, $F130*0.33, IF($K130=2, $F130*0.5+$G130*0.2, SUM(F130:G130)))), 0),"Not required") -> 0 | Q130: 1 | R130: 1 | S130: 2 | T130: 0 | Y130: 13968 | Z130: Banga Lubaka
A131: =IF(INTRO!$E$33<>0,INTRO!$E$33, " ") -> DRC | B131: KASAI | C131: Bulape | D131: 198890.1057 | E131: =IF(INTRO!$E$48="","",ROUND($D131*INTRO!$E$48,0)) -> 33811 | F131: =IF(INTRO!$E$49="","",ROUND($D131*INTRO!$E$49,0)) -> 69612 | G131: =IF(INTRO!$E$50="","",ROUND($D131*INTRO!$E$50,0)) -> 91489 | H131: 0 | I131: 1 | J131: 2 | K131: 0 | L131: 1 | M131: =IF(INTRO!$E$37="Endemic",IF($H131>0,IF($H131=4,"Unknown",IF($H131=99,"Stopped",$D131)),0),"Not required") -> 0 | N131: =IF(INTRO!$E$39="Endemic", IF($I131>0, IF($I131=4,"Unknown",IF($I131=99,"Stopped",$D131)), 0),"Not required") -> 198890.1057 | O131: =IF(INTRO!$E$41="Endemic", IF(AND($J131>1,$J131<5), IF($J131=4, "Unknown", E131+F131), 0),"Not required") -> 103423 | P131: =IF(INTRO!$E$43="Endemic", IF(AND($K131>0,$K131<5), IF($K131=4,"Unknown", IF($K131=1, $F131*0.33, IF($K131=2, $F131*0.5+$G131*0.2, SUM(F131:G131)))), 0),"Not required") -> 0 | Q131: 0 | R131: 1 | S131: 1 | T131: 0 | Y131: 13972 | Z131: Bulape
A132: =IF(INTRO!$E$33<>0,INTRO!$E$33, " ") -> DRC | B132: KASAI | C132: Dekese | D132: 240542.1006 | E132: =IF(INTRO!$E$48="","",ROUND($D132*INTRO!$E$48,0)) -> 40892 | F132: =IF(INTRO!$E$49="","",ROUND($D132*INTRO!$E$49,0)) -> 84190 | G132: =IF(INTRO!$E$50="","",ROUND($D132*INTRO!$E$50,0)) -> 110649 | H132: 0 | I132: 1 | J132: 3 | K132: 0 | L132: 1 | M132: =IF(INTRO!$E$37="Endemic",IF($H132>0,IF($H132=4,"Unknown",IF($H132=99,"Stopped",$D132)),0),"Not required") -> 0 | N132: =IF(INTRO!$E$39="Endemic", IF($I132>0, IF($I132=4,"Unknown",IF($I132=99,"Stopped",$D132)), 0),"Not required") -> 240542.1006 | O132: =IF(INTRO!$E$41="Endemic", IF(AND($J132>1,$J132<5), IF($J132=4, "Unknown", E132+F132), 0),"Not required") -> 125082 | P132: =IF(INTRO!$E$43="Endemic", IF(AND($K132>0,$K132<5), IF($K132=4,"Unknown", IF($K132=1, $F132*0.33, IF($K132=2, $F132*0.5+$G132*0.2, SUM(F132:G132)))), 0),"Not required") -> 0 | Q132: 0 | R132: 1 | S132: 2 | T132: 0 | Y132: 13973 | Z132: Dekese
A133: =IF(INTRO!$E$33<>0,INTRO!$E$33, " ") -> DRC | B133: KASAI | C133: Ilebo | D133: 216232.638 | E133: =IF(INTRO!$E$48="","",ROUND($D133*INTRO!$E$48,0)) -> 36760 | F133: =IF(INTRO!$E$49="","",ROUND($D133*INTRO!$E$49,0)) -> 75681 | G133: =IF(INTRO!$E$50="","",ROUND($D133*INTRO!$E$50,0)) -> 99467 | H133: 1 | I133: 1 | J133: 2 | K133: 0 | L133: 4 | M133: =IF(INTRO!$E$37="Endemic",IF($H133>0,IF($H133=4,"Unknown",IF($H133=99,"Stopped",$D133)),0),"Not required") -> 216232.638 | N133: =IF(INTRO!$E$39="Endemic", IF($I133>0, IF($I133=4,"Unknown",IF($I133=99,"Stopped",$D133)), 0),"Not required") -> 216232.638 | O133: =IF(INTRO!$E$41="Endemic", IF(AND($J133>1,$J133<5), IF($J133=4, "Unknown", E133+F133), 0),"Not required") -> 112441 | P133: =IF(INTRO!$E$43="Endemic", IF(AND($K133>0,$K133<5), IF($K133=4,"Unknown", IF($K133=1, $F133*0.33, IF($K133=2, $F133*0.5+$G133*0.2, SUM(F133:G133)))), 0),"Not required") -> 0 | Q133: 1 | R133: 1 | S133: 1 | T133: 0 | Y133: 13976 | Z133: Ilebo
A134: =IF(INTRO!$E$33<>0,INTRO!$E$33, " ") -> DRC | B134: KASAI | C134: Kakenge | D134: 201246.3646 | E134: =IF(INTRO!$E$48="","",ROUND($D134*INTRO!$E$48,0)) -> 34212 | F134: =IF(INTRO!$E$49="","",ROUND($D134*INTRO!$E$49,0)) -> 70436 | G134: =IF(INTRO!$E$50="","",ROUND($D134*INTRO!$E$50,0)) -> 92573 | H134: 0 | I134: 1 | J134: 2 | K134: 0 | L134: 1 | M134: =IF(INTRO!$E$37="Endemic",IF($H134>0,IF($H134=4,"Unknown",IF($H134=99,"Stopped",$D134)),0),"Not required") -> 0 | N134: =IF(INTRO!$E$39="Endemic", IF($I134>0, IF($I134=4,"Unknown",IF($I134=99,"Stopped",$D134)), 0),"Not required") -> 201246.3646 | O134: =IF(INTRO!$E$41="Endemic", IF(AND($J134>1,$J134<5), IF($J134=4, "Unknown", E134+F134), 0),"Not required") -> 104648 | P134: =IF(INTRO!$E$43="Endemic", IF(AND($K134>0,$K134<5), IF($K134=4,"Unknown", IF($K134=1, $F134*0.33, IF($K134=2, $F134*0.5+$G134*0.2, SUM(F134:G134)))), 0),"Not required") -> 0 | Q134: 0 | R134: 1 | S134: 1 | T134: 0 | Y134: 13977 | Z134: Kakenge
A135: =IF(INTRO!$E$33<>0,INTRO!$E$33, " ") -> DRC | B135: KASAI | C135: Kalonda | D135: 474257.3097 | E135: =IF(INTRO!$E$48="","",ROUND($D135*INTRO!$E$48,0)) -> 80624 | F135: =IF(INTRO!$E$49="","",ROUND($D135*INTRO!$E$49,0)) -> 165990 | G135: =IF(INTRO!$E$50="","",ROUND($D135*INTRO!$E$50,0)) -> 218158 | H135: 0 | I135: 1 | J135: 1 | K135: 0 | L135: 1 | M135: =IF(INTRO!$E$37="Endemic",IF($H135>0,IF($H135=4,"Unknown",IF($H135=99,"Stopped",$D135)),0),"Not required") -> 0 | N135: =IF(INTRO!$E$39="Endemic", IF($I135>0, IF($I135=4,"Unknown",IF($I135=99,"Stopped",$D135)), 0),"Not required") -> 474257.3097 | O135: =IF(INTRO!$E$41="Endemic", IF(AND($J135>1,$J135<5), IF($J135=4, "Unknown", E135+F135), 0),"Not required") -> 0 | P135: =IF(INTRO!$E$43="Endemic", IF(AND($K135>0,$K135<5), IF($K135=4,"Unknown", IF($K135=1, $F135*0.33, IF($K135=2, $F135*0.5+$G135*0.2, SUM(F135:G135)))), 0),"Not required") -> 0 | Q135: 0 | R135: 1 | S135: 0 | T135: 0 | Y135: 13978 | Z135: Kalonda
A136: =IF(INTRO!$E$33<>0,INTRO!$E$33, " ") -> DRC | B136: KASAI | C136: Kamonya | D136: 378309.5137 | E136: =IF(INTRO!$E$48="","",ROUND($D136*INTRO!$E$48,0)) -> 64313 | F136: =IF(INTRO!$E$49="","",ROUND($D136*INTRO!$E$49,0)) -> 132408 | G136: =IF(INTRO!$E$50="","",ROUND($D136*INTRO!$E$50,0)) -> 174022 | H136: 1 | I136: 1 | J136: 1 | K136: 0 | L136: 1 | M136: =IF(INTRO!$E$37="Endemic",IF($H136>0,IF($H136=4,"Unknown",IF($H136=99,"Stopped",$D136)),0),"Not required") -> 378309.5137 | N136: =IF(INTRO!$E$39="Endemic", IF($I136>0, IF($I136=4,"Unknown",IF($I136=99,"Stopped",$D136)), 0),"Not required") -> 378309.5137 | O136: =IF(INTRO!$E$41="Endemic", IF(AND($J136>1,$J136<5), IF($J136=4, "Unknown", E136+F136), 0),"Not required") -> 0 | P136: =IF(INTRO!$E$43="Endemic", IF(AND($K136>0,$K136<5), IF($K136=4,"Unknown", IF($K136=1, $F136*0.33, IF($K136=2, $F136*0.5+$G136*0.2, SUM(F136:G136)))), 0),"Not required") -> 0 | Q136: 1 | R136: 1 | S136: 0 | T136: 0 | Y136: 14340 | Z136: Kamonya
A137: =IF(INTRO!$E$33<>0,INTRO!$E$33, " ") -> DRC | B137: KASAI | C137: Kamwesha | D137: 506648.7085 | E137: =IF(INTRO!$E$48="","",ROUND($D137*INTRO!$E$48,0)) -> 86130 | F137: =IF(INTRO!$E$49="","",ROUND($D137*INTRO!$E$49,0)) -> 177327 | G137: =IF(INTRO!$E$50="","",ROUND($D137*INTRO!$E$50,0)) -> 233058 | H137: 1 | I137: 1 | J137: 1 | K137: 0 | L137: 1 | M137: =IF(INTRO!$E$37="Endemic",IF($H137>0,IF($H137=4,"Unknown",IF($H137=99,"Stopped",$D137)),0),"Not required") -> 506648.7085 | N137: =IF(INTRO!$E$39="Endemic", IF($I137>0, IF($I137=4,"Unknown",IF($I137=99,"Stopped",$D137)), 0),"Not required") -> 506648.7085 | O137: =IF(INTRO!$E$41="Endemic", IF(AND($J137>1,$J137<5), IF($J137=4, "Unknown", E137+F137), 0),"Not required") -> 0 | P137: =IF(INTRO!$E$43="Endemic", IF(AND($K137>0,$K137<5), IF($K137=4,"Unknown", IF($K137=1, $F137*0.33, IF($K137=2, $F137*0.5+$G137*0.2, SUM(F137:G137)))), 0),"Not required") -> 0 | Q137: 1 | R137: 1 | S137: 0 | T137: 0 | Y137: 13979 | Z137: Kamwesha
A138: =IF(INTRO!$E$33<>0,INTRO!$E$33, " ") -> DRC | B138: KASAI | C138: Kanzala | D138: 852893.5806 | E138: =IF(INTRO!$E$48="","",ROUND($D138*INTRO!$E$48,0)) -> 144992 | F138: =IF(INTRO!$E$49="","",ROUND($D138*INTRO!$E$49,0)) -> 298513 | G138: =IF(INTRO!$E$50="","",ROUND($D138*INTRO!$E$50,0)) -> 392331 | H138: 0 | I138: 1 | J138: 1 | K138: 0 | L138: 1 | M138: =IF(INTRO!$E$37="Endemic",IF($H138>0,IF($H138=4,"Unknown",IF($H138=99,"Stopped",$D138)),0),"Not required") -> 0 | N138: =IF(INTRO!$E$39="Endemic", IF($I138>0, IF($I138=4,"Unknown",IF($I138=99,"Stopped",$D138)), 0),"Not required") -> 852893.5806 | O138: =IF(INTRO!$E$41="Endemic", IF(AND($J138>1,$J138<5), IF($J138=4, "Unknown", E138+F138), 0),"Not required") -> 0 | P138: =IF(INTRO!$E$43="Endemic", IF(AND($K138>0,$K138<5), IF($K138=4,"Unknown", IF($K138=1, $F138*0.33, IF($K138=2, $F138*0.5+$G138*0.2, SUM(F138:G138)))), 0),"Not required") -> 0 | Q138: 0 | R138: 1 | S138: 0 | T138: 0 | Y138: 13981 | Z138: Kanzala
A139: =IF(INTRO!$E$33<>0,INTRO!$E$33, " ") -> DRC | B139: KASAI | C139: Kitangwa | D139: 304184.4307 | E139: =IF(INTRO!$E$48="","",ROUND($D139*INTRO!$E$48,0)) -> 51711 | F139: =IF(INTRO!$E$49="","",ROUND($D139*INTRO!$E$49,0)) -> 106465 | G139: =IF(INTRO!$E$50="","",ROUND($D139*INTRO!$E$50,0)) -> 139925 | H139: 1 | I139: 1 | J139: 1 | K139: 0 | L139: 1 | M139: =IF(INTRO!$E$37="Endemic",IF($H139>0,IF($H139=4,"Unknown",IF($H139=99,"Stopped",$D139)),0),"Not required") -> 304184.4307 | N139: =IF(INTRO!$E$39="Endemic", IF($I139>0, IF($I139=4,"Unknown",IF($I139=99,"Stopped",$D139)), 0),"Not required") -> 304184.4307 | O139: =IF(INTRO!$E$41="Endemic", IF(AND($J139>1,$J139<5), IF($J139=4, "Unknown", E139+F139), 0),"Not required") -> 0 | P139: =IF(INTRO!$E$43="Endemic", IF(AND($K139>0,$K139<5), IF($K139=4,"Unknown", IF($K139=1, $F139*0.33, IF($K139=2, $F139*0.5+$G139*0.2, SUM(F139:G139)))), 0),"Not required") -> 0 | Q139: 1 | R139: 1 | S139: 0 | T139: 0 | Y139: 13985 | Z139: Kitangwa
A140: =IF(INTRO!$E$33<>0,INTRO!$E$33, " ") -> DRC | B140: KASAI | C140: Luebo | D140: 282178.182 | E140: =IF(INTRO!$E$48="","",ROUND($D140*INTRO!$E$48,0)) -> 47970 | F140: =IF(INTRO!$E$49="","",ROUND($D140*INTRO!$E$49,0)) -> 98762 | G140: =IF(INTRO!$E$50="","",ROUND($D140*INTRO!$E$50,0)) -> 129802 | H140: 1 | I140: 1 | J140: 3 | K140: 1 | L140: 0 | M140: =IF(INTRO!$E$37="Endemic",IF($H140>0,IF($H140=4,"Unknown",IF($H140=99,"Stopped",$D140)),0),"Not required") -> 282178.182 | N140: =IF(INTRO!$E$39="Endemic", IF($I140>0, IF($I140=4,"Unknown",IF($I140=99,"Stopped",$D140)), 0),"Not required") -> 282178.182 | O140: =IF(INTRO!$E$41="Endemic", IF(AND($J140>1,$J140<5), IF($J140=4, "Unknown", E140+F140), 0),"Not required") -> 146732 | P140: =IF(INTRO!$E$43="Endemic", IF(AND($K140>0,$K140<5), IF($K140=4,"Unknown", IF($K140=1, $F140*0.33, IF($K140=2, $F140*0.5+$G140*0.2, SUM(F140:G140)))), 0),"Not required") -> 32591.46 | Q140: 1 | R140: 1 | S140: 2 | T140: 1 | Y140: 13989 | Z140: Luebo
A141: =IF(INTRO!$E$33<>0,INTRO!$E$33, " ") -> DRC | B141: KASAI | C141: Mikope | D141: 281002.7048 | E141: =IF(INTRO!$E$48="","",ROUND($D141*INTRO!$E$48,0)) -> 47770 | F141: =IF(INTRO!$E$49="","",ROUND($D141*INTRO!$E$49,0)) -> 98351 | G141: =IF(INTRO!$E$50="","",ROUND($D141*INTRO!$E$50,0)) -> 129261 | H141: 1 | I141: 1 | J141: 3 | K141: 0 | L141: 1 | M141: =IF(INTRO!$E$37="Endemic",IF($H141>0,IF($H141=4,"Unknown",IF($H141=99,"Stopped",$D141)),0),"Not required") -> 281002.7048 | N141: =IF(INTRO!$E$39="Endemic", IF($I141>0, IF($I141=4,"Unknown",IF($I141=99,"Stopped",$D141)), 0),"Not required") -> 281002.7048 | O141: =IF(INTRO!$E$41="Endemic", IF(AND($J141>1,$J141<5), IF($J141=4, "Unknown", E141+F141), 0),"Not required") -> 146121 | P141: =IF(INTRO!$E$43="Endemic", IF(AND($K141>0,$K141<5), IF($K141=4,"Unknown", IF($K141=1, $F141*0.33, IF($K141=2, $F141*0.5+$G141*0.2, SUM(F141:G141)))), 0),"Not required") -> 0 | Q141: 1 | R141: 1 | S141: 2 | T141: 0 | Y141: 13994 | Z141: Mikope
A142: =IF(INTRO!$E$33<>0,INTRO!$E$33, " ") -> DRC | B142: KASAI | C142: Mushenge | D142: 187330.5393 | E142: =IF(INTRO!$E$48="","",ROUND($D142*INTRO!$E$48,0)) -> 31846 | F142: =IF(INTRO!$E$49="","",ROUND($D142*INTRO!$E$49,0)) -> 65566 | G142: =IF(INTRO!$E$50="","",ROUND($D142*INTRO!$E$50,0)) -> 86172 | H142: 1 | I142: 1 | J142: 3 | K142: 0 | L142: 1 | M142: =IF(INTRO!$E$37="Endemic",IF($H142>0,IF($H142=4,"Unknown",IF($H142=99,"Stopped",$D142)),0),"Not required") -> 187330.5393 | N142: =IF(INTRO!$E$39="Endemic", IF($I142>0, IF($I142=4,"Unknown",IF($I142=99,"Stopped",$D142)), 0),"Not required") -> 187330.5393 | O142: =IF(INTRO!$E$41="Endemic", IF(AND($J142>1,$J142<5), IF($J142=4, "Unknown", E142+F142), 0),"Not required") -> 97412 | P142: =IF(INTRO!$E$43="Endemic", IF(AND($K142>0,$K142<5), IF($K142=4,"Unknown", IF($K142=1, $F142*0.33, IF($K142=2, $F142*0.5+$G142*0.2, SUM(F142:G142)))), 0),"Not required") -> 0 | Q142: 1 | R142: 1 | S142: 2 | T142: 0 | Y142: 13995 | Z142: Mushenge
A143: =IF(INTRO!$E$33<>0,INTRO!$E$33, " ") -> DRC | B143: KASAI | C143: Mutenna | D143: 320465.0021 | E143: =IF(INTRO!$E$48="","",ROUND($D143*INTRO!$E$48,0)) -> 54479 | F143: =IF(INTRO!$E$49="","",ROUND($D143*INTRO!$E$49,0)) -> 112163 | G143: =IF(INTRO!$E$50="","",ROUND($D143*INTRO!$E$50,0)) -> 147414 | H143: 1 | I143: 1 | J143: 1 | K143: 0 | L143: 0 | M143: =IF(INTRO!$E$37="Endemic",IF($H143>0,IF($H143=4,"Unknown",IF($H143=99,"Stopped",$D143)),0),"Not required") -> 320465.0021 | N143: =IF(INTRO!$E$39="Endemic", IF($I143>0, IF($I143=4,"Unknown",IF($I143=99,"Stopped",$D143)), 0),"Not required") -> 320465.0021 | O143: =IF(INTRO!$E$41="Endemic", IF(AND($J143>1,$J143<5), IF($J143=4, "Unknown", E143+F143), 0),"Not required") -> 0 | P143: =IF(INTRO!$E$43="Endemic", IF(AND($K143>0,$K143<5), IF($K143=4,"Unknown", IF($K143=1, $F143*0.33, IF($K143=2, $F143*0.5+$G143*0.2, SUM(F143:G143)))), 0),"Not required") -> 0 | Q143: 1 | R143: 1 | S143: 0 | T143: 0 | Y143: 13997 | Z143: Mutenna
A144: =IF(INTRO!$E$33<>0,INTRO!$E$33, " ") -> DRC | B144: KASAI | C144: Mweka | D144: 237545.0581 | E144: =IF(INTRO!$E$48="","",ROUND($D144*INTRO!$E$48,0)) -> 40383 | F144: =IF(INTRO!$E$49="","",ROUND($D144*INTRO!$E$49,0)) -> 83141 | G144: =IF(INTRO!$E$50="","",ROUND($D144*INTRO!$E$50,0)) -> 109271 | H144: 0 | I144: 1 | J144: 2 | K144: 0 | L144: 1 | M144: =IF(INTRO!$E$37="Endemic",IF($H144>0,IF($H144=4,"Unknown",IF($H144=99,"Stopped",$D144)),0),"Not required") -> 0 | N144: =IF(INTRO!$E$39="Endemic", IF($I144>0, IF($I144=4,"Unknown",IF($I144=99,"Stopped",$D144)), 0),"Not required") -> 237545.0581 | O144: =IF(INTRO!$E$41="Endemic", IF(AND($J144>1,$J144<5), IF($J144=4, "Unknown", E144+F144), 0),"Not required") -> 123524 | P144: =IF(INTRO!$E$43="Endemic", IF(AND($K144>0,$K144<5), IF($K144=4,"Unknown", IF($K144=1, $F144*0.33, IF($K144=2, $F144*0.5+$G144*0.2, SUM(F144:G144)))), 0),"Not required") -> 0 | Q144: 0 | R144: 1 | S144: 1 | T144: 0 | Y144: 13999 | Z144: Mweka
A145: =IF(INTRO!$E$33<>0,INTRO!$E$33, " ") -> DRC | B145: KASAI | C145: Ndjoko Punda | D145: 196700.4081 | E145: =IF(INTRO!$E$48="","",ROUND($D145*INTRO!$E$48,0)) -> 33439 | F145: =IF(INTRO!$E$49="","",ROUND($D145*INTRO!$E$49,0)) -> 68845 | G145: =IF(INTRO!$E$50="","",ROUND($D145*INTRO!$E$50,0)) -> 90482 | H145: 1 | I145: 1 | J145: 3 | K145: 0 | L145: 1 | M145: =IF(INTRO!$E$37="Endemic",IF($H145>0,IF($H145=4,"Unknown",IF($H145=99,"Stopped",$D145)),0),"Not required") -> 196700.4081 | N145: =IF(INTRO!$E$39="Endemic", IF($I145>0, IF($I145=4,"Unknown",IF($I145=99,"Stopped",$D145)), 0),"Not required") -> 196700.4081 | O145: =IF(INTRO!$E$41="Endemic", IF(AND($J145>1,$J145<5), IF($J145=4, "Unknown", E145+F145), 0),"Not required") -> 102284 | P145: =IF(INTRO!$E$43="Endemic", IF(AND($K145>0,$K145<5), IF($K145=4,"Unknown", IF($K145=1, $F145*0.33, IF($K145=2, $F145*0.5+$G145*0.2, SUM(F145:G145)))), 0),"Not required") -> 0 | Q145: 1 | R145: 1 | S145: 2 | T145: 0 | Y145: 14003 | Z145: Ndjoko Punda
A146: =IF(INTRO!$E$33<>0,INTRO!$E$33, " ") -> DRC | B146: KASAI | C146: Nyanga | D146: 124703.4905 | E146: =IF(INTRO!$E$48="","",ROUND($D146*INTRO!$E$48,0)) -> 21200 | F146: =IF(INTRO!$E$49="","",ROUND($D146*INTRO!$E$49,0)) -> 43646 | G146: =IF(INTRO!$E$50="","",ROUND($D146*INTRO!$E$50,0)) -> 57364 | H146: 1 | I146: 1 | J146: 1 | K146: 0 | L146: 1 | M146: =IF(INTRO!$E$37="Endemic",IF($H146>0,IF($H146=4,"Unknown",IF($H146=99,"Stopped",$D146)),0),"Not required") -> 124703.4905 | N146: =IF(INTRO!$E$39="Endemic", IF($I146>0, IF($I146=4,"Unknown",IF($I146=99,"Stopped",$D146)), 0),"Not required") -> 124703.4905 | O146: =IF(INTRO!$E$41="Endemic", IF(AND($J146>1,$J146<5), IF($J146=4, "Unknown", E146+F146), 0),"Not required") -> 0 | P146: =IF(INTRO!$E$43="Endemic", IF(AND($K146>0,$K146<5), IF($K146=4,"Unknown", IF($K146=1, $F146*0.33, IF($K146=2, $F146*0.5+$G146*0.2, SUM(F146:G146)))), 0),"Not required") -> 0 | Q146: 1 | R146: 1 | S146: 0 | T146: 0 | Y146: 14004 | Z146: Nyanga
A147: =IF(INTRO!$E$33<>0,INTRO!$E$33, " ") -> DRC | B147: KASAI | C147: Tshikapa | D147: 440872.9085 | E147: =IF(INTRO!$E$48="","",ROUND($D147*INTRO!$E$48,0)) -> 74948 | F147: =IF(INTRO!$E$49="","",ROUND($D147*INTRO!$E$49,0)) -> 154306 | G147: =IF(INTRO!$E$50="","",ROUND($D147*INTRO!$E$50,0)) -> 202802 | H147: 0 | I147: 1 | J147: 1 | K147: 0 | L147: 1 | M147: =IF(INTRO!$E$37="Endemic",IF($H147>0,IF($H147=4,"Unknown",IF($H147=99,"Stopped",$D147)),0),"Not required") -> 0 | N147: =IF(INTRO!$E$39="Endemic", IF($I147>0, IF($I147=4,"Unknown",IF($I147=99,"Stopped",$D147)), 0),"Not required") -> 440872.9085 | O147: =IF(INTRO!$E$41="Endemic", IF(AND($J147>1,$J147<5), IF($J147=4, "Unknown", E147+F147), 0),"Not required") -> 0 | P147: =IF(INTRO!$E$43="Endemic", IF(AND($K147>0,$K147<5), IF($K147=4,"Unknown", IF($K147=1, $F147*0.33, IF($K147=2, $F147*0.5+$G147*0.2, SUM(F147:G147)))), 0),"Not required") -> 0 | Q147: 0 | R147: 1 | S147: 0 | T147: 0 | Y147: 14006 | Z147: Tshikapa
A148: =IF(INTRO!$E$33<>0,INTRO!$E$33, " ") -> DRC | B148: KASAI CENTRAL | C148: Bena Leke | D148: 329861.3934 | E148: =IF(INTRO!$E$48="","",ROUND($D148*INTRO!$E$48,0)) -> 56076 | F148: =IF(INTRO!$E$49="","",ROUND($D148*INTRO!$E$49,0)) -> 115451 | G148: =IF(INTRO!$E$50="","",ROUND($D148*INTRO!$E$50,0)) -> 151736 | H148: 0 | I148: 1 | J148: 3 | K148: 0 | L148: 1 | M148: =IF(INTRO!$E$37="Endemic",IF($H148>0,IF($H148=4,"Unknown",IF($H148=99,"Stopped",$D148)),0),"Not required") -> 0 | N148: =IF(INTRO!$E$39="Endemic", IF($I148>0, IF($I148=4,"Unknown",IF($I148=99,"Stopped",$D148)), 0),"Not required") -> 329861.3934 | O148: =IF(INTRO!$E$41="Endemic", IF(AND($J148>1,$J148<5), IF($J148=4, "Unknown", E148+F148), 0),"Not required") -> 171527 | P148: =IF(INTRO!$E$43="Endemic", IF(AND($K148>0,$K148<5), IF($K148=4,"Unknown", IF($K148=1, $F148*0.33, IF($K148=2, $F148*0.5+$G148*0.2, SUM(F148:G148)))), 0),"Not required") -> 0 | Q148: 0 | R148: 1 | S148: 2 | T148: 0 | Y148: 13969 | Z148: Bena Leke
A149: =IF(INTRO!$E$33<>0,INTRO!$E$33, " ") -> DRC | B149: KASAI CENTRAL | C149: Bena Tshadi | D149: 130172.43 | E149: =IF(INTRO!$E$48="","",ROUND($D149*INTRO!$E$48,0)) -> 22129 | F149: =IF(INTRO!$E$49="","",ROUND($D149*INTRO!$E$49,0)) -> 45560 | G149: =IF(INTRO!$E$50="","",ROUND($D149*INTRO!$E$50,0)) -> 59879 | H149: 0 | I149: 1 | J149: 3 | K149: 0 | L149: 4 | M149: =IF(INTRO!$E$37="Endemic",IF($H149>0,IF($H149=4,"Unknown",IF($H149=99,"Stopped",$D149)),0),"Not required") -> 0 | N149: =IF(INTRO!$E$39="Endemic", IF($I149>0, IF($I149=4,"Unknown",IF($I149=99,"Stopped",$D149)), 0),"Not required") -> 130172.43 | O149: =IF(INTRO!$E$41="Endemic", IF(AND($J149>1,$J149<5), IF($J149=4, "Unknown", E149+F149), 0),"Not required") -> 67689 | P149: =IF(INTRO!$E$43="Endemic", IF(AND($K149>0,$K149<5), IF($K149=4,"Unknown", IF($K149=1, $F149*0.33, IF($K149=2, $F149*0.5+$G149*0.2, SUM(F149:G149)))), 0),"Not required") -> 0 | Q149: 0 | R149: 1 | S149: 2 | T149: 0 | Y149: 13982 | Z149: Bena Tshadi
A150: =IF(INTRO!$E$33<>0,INTRO!$E$33, " ") -> DRC | B150: KASAI CENTRAL | C150: Bilonda | D150: 107882.921 | E150: =IF(INTRO!$E$48="","",ROUND($D150*INTRO!$E$48,0)) -> 18340 | F150: =IF(INTRO!$E$49="","",ROUND($D150*INTRO!$E$49,0)) -> 37759 | G150: =IF(INTRO!$E$50="","",ROUND($D150*INTRO!$E$50,0)) -> 49626 | H150: 1 | I150: 1 | J150: 2 | K150: 0 | L150: 1 | M150: =IF(INTRO!$E$37="Endemic",IF($H150>0,IF($H150=4,"Unknown",IF($H150=99,"Stopped",$D150)),0),"Not required") -> 107882.921 | N150: =IF(INTRO!$E$39="Endemic", IF($I150>0, IF($I150=4,"Unknown",IF($I150=99,"Stopped",$D150)), 0),"Not required") -> 107882.921 | O150: =IF(INTRO!$E$41="Endemic", IF(AND($J150>1,$J150<5), IF($J150=4, "Unknown", E150+F150), 0),"Not required") -> 56099 | P150: =IF(INTRO!$E$43="Endemic", IF(AND($K150>0,$K150<5), IF($K150=4,"Unknown", IF($K150=1, $F150*0.33, IF($K150=2, $F150*0.5+$G150*0.2, SUM(F150:G150)))), 0),"Not required") -> 0 | Q150: 1 | R150: 1 | S150: 1 | T150: 0 | Y150: 13970 | Z150: Bilonda
A151: =IF(INTRO!$E$33<>0,INTRO!$E$33, " ") -> DRC | B151: KASAI CENTRAL | C151: Bobozo | D151: 62937.8925 | E151: =IF(INTRO!$E$48="","",ROUND($D151*INTRO!$E$48,0)) -> 10699 | F151: =IF(INTRO!$E$49="","",ROUND($D151*INTRO!$E$49,0)) -> 22028 | G151: =IF(INTRO!$E$50="","",ROUND($D151*INTRO!$E$50,0)) -> 28951 | H151: 0 | I151: 1 | J151: 2 | K151: 0 | L151: 4 | M151: =IF(INTRO!$E$37="Endemic",IF($H151>0,IF($H151=4,"Unknown",IF($H151=99,"Stopped",$D151)),0),"Not required") -> 0 | N151: =IF(INTRO!$E$39="Endemic", IF($I151>0, IF($I151=4,"Unknown",IF($I151=99,"Stopped",$D151)), 0),"Not required") -> 62937.8925 | O151: =IF(INTRO!$E$41="Endemic", IF(AND($J151>1,$J151<5), IF($J151=4, "Unknown", E151+F151), 0),"Not required") -> 32727 | P151: =IF(INTRO!$E$43="Endemic", IF(AND($K151>0,$K151<5), IF($K151=4,"Unknown", IF($K151=1, $F151*0.33, IF($K151=2, $F151*0.5+$G151*0.2, SUM(F151:G151)))), 0),"Not required") -> 0 | Q151: 0 | R151: 1 | S151: 1 | T151: 0 | Y151: 13971 | Z151: Bobozo
A152: =IF(INTRO!$E$33<>0,INTRO!$E$33, " ") -> DRC | B152: KASAI CENTRAL | C152: Bukonde | D152: 119893.3699 | E152: =IF(INTRO!$E$48="","",ROUND($D152*INTRO!$E$48,0)) -> 20382 | F152: =IF(INTRO!$E$49="","",ROUND($D152*INTRO!$E$49,0)) -> 41963 | G152: =IF(INTRO!$E$50="","",ROUND($D152*INTRO!$E$50,0)) -> 55151 | H152: 0 | I152: 1 | J152: 2 | K152: 1 | L152: 1 | M152: =IF(INTRO!$E$37="Endemic",IF($H152>0,IF($H152=4,"Unknown",IF($H152=99,"Stopped",$D152)),0),"Not required") -> 0 | N152: =IF(INTRO!$E$39="Endemic", IF($I152>0, IF($I152=4,"Unknown",IF($I152=99,"Stopped",$D152)), 0),"Not required") -> 119893.3699 | O152: =IF(INTRO!$E$41="Endemic", IF(AND($J152>1,$J152<5), IF($J152=4, "Unknown", E152+F152), 0),"Not required") -> 62345 | P152: =IF(INTRO!$E$43="Endemic", IF(AND($K152>0,$K152<5), IF($K152=4,"Unknown", IF($K152=1, $F152*0.33, IF($K152=2, $F152*0.5+$G152*0.2, SUM(F152:G152)))), 0),"Not required") -> 13847.79 | Q152: 0 | R152: 1 | S152: 1 | T152: 1 | Y152: 14338 | Z152: Bukonde
A153: =IF(INTRO!$E$33<>0,INTRO!$E$33, " ") -> DRC | B153: KASAI CENTRAL | C153: Demba | D153: 378813.4412 | E153: =IF(INTRO!$E$48="","",ROUND($D153*INTRO!$E$48,0)) -> 64398 | F153: =IF(INTRO!$E$49="","",ROUND($D153*INTRO!$E$49,0)) -> 132585 | G153: =IF(INTRO!$E$50="","",ROUND($D153*INTRO!$E$50,0)) -> 174254 | H153: 0 | I153: 1 | J153: 2 | K153: 0 | L153: 1 | M153: =IF(INTRO!$E$37="Endemic",IF($H153>0,IF($H153=4,"Unknown",IF($H153=99,"Stopped",$D153)),0),"Not required") -> 0 | N153: =IF(INTRO!$E$39="Endemic", IF($I153>0, IF($I153=4,"Unknown",IF($I153=99,"Stopped",$D153)), 0),"Not required") -> 378813.4412 | O153: =IF(INTRO!$E$41="Endemic", IF(AND($J153>1,$J153<5), IF($J153=4, "Unknown", E153+F153), 0),"Not required") -> 196983 | P153: =IF(INTRO!$E$43="Endemic", IF(AND($K153>0,$K153<5), IF($K153=4,"Unknown", IF($K153=1, $F153*0.33, IF($K153=2, $F153*0.5+$G153*0.2, SUM(F153:G153)))), 0),"Not required") -> 0 | Q153: 0 | R153: 1 | S153: 1 | T153: 0 | Y153: 13974 | Z153: Demba
A154: =IF(INTRO!$E$33<>0,INTRO!$E$33, " ") -> DRC | B154: KASAI CENTRAL | C154: Dibaya | D154: 204360.1061 | E154: =IF(INTRO!$E$48="","",ROUND($D154*INTRO!$E$48,0)) -> 34741 | F154: =IF(INTRO!$E$49="","",ROUND($D154*INTRO!$E$49,0)) -> 71526 | G154: =IF(INTRO!$E$50="","",ROUND($D154*INTRO!$E$50,0)) -> 94006 | H154: 0 | I154: 1 | J154: 2 | K154: 0 | L154: 0 | M154: =IF(INTRO!$E$37="Endemic",IF($H154>0,IF($H154=4,"Unknown",IF($H154=99,"Stopped",$D154)),0),"Not required") -> 0 | N154: =IF(INTRO!$E$39="Endemic", IF($I154>0, IF($I154=4,"Unknown",IF($I154=99,"Stopped",$D154)), 0),"Not required") -> 204360.1061 | O154: =IF(INTRO!$E$41="Endemic", IF(AND($J154>1,$J154<5), IF($J154=4, "Unknown", E154+F154), 0),"Not required") -> 106267 | P154: =IF(INTRO!$E$43="Endemic", IF(AND($K154>0,$K154<5), IF($K154=4,"Unknown", IF($K154=1, $F154*0.33, IF($K154=2, $F154*0.5+$G154*0.2, SUM(F154:G154)))), 0),"Not required") -> 0 | Q154: 0 | R154: 1 | S154: 1 | T154: 0 | Y154: 13975 | Z154: Dibaya
A155: =IF(INTRO!$E$33<>0,INTRO!$E$33, " ") -> DRC | B155: KASAI CENTRAL | C155: Kalomda | D155: 166802.1243 | E155: =IF(INTRO!$E$48="","",ROUND($D155*INTRO!$E$48,0)) -> 28356 | F155: =IF(INTRO!$E$49="","",ROUND($D155*INTRO!$E$49,0)) -> 58381 | G155: =IF(INTRO!$E$50="","",ROUND($D155*INTRO!$E$50,0)) -> 76729 | H155: 1 | I155: 1 | J155: 2 | K155: 0 | L155: 1 | M155: =IF(INTRO!$E$37="Endemic",IF($H155>0,IF($H155=4,"Unknown",IF($H155=99,"Stopped",$D155)),0),"Not required") -> 166802.1243 | N155: =IF(INTRO!$E$39="Endemic", IF($I155>0, IF($I155=4,"Unknown",IF($I155=99,"Stopped",$D155)), 0),"Not required") -> 166802.1243 | O155: =IF(INTRO!$E$41="Endemic", IF(AND($J155>1,$J155<5), IF($J155=4, "Unknown", E155+F155), 0),"Not required") -> 86737 | P155: =IF(INTRO!$E$43="Endemic", IF(AND($K155>0,$K155<5), IF($K155=4,"Unknown", IF($K155=1, $F155*0.33, IF($K155=2, $F155*0.5+$G155*0.2, SUM(F155:G155)))), 0),"Not required") -> 0 | Q155: 1 | R155: 1 | S155: 1 | T155: 0 | Y155: 14332 | Z155: Kalomda
A156: =IF(INTRO!$E$33<>0,INTRO!$E$33, " ") -> DRC | B156: KASAI CENTRAL | C156: Kananga | D156: 341018.8787 | E156: =IF(INTRO!$E$48="","",ROUND($D156*INTRO!$E$48,0)) -> 57973 | F156: =IF(INTRO!$E$49="","",ROUND($D156*INTRO!$E$49,0)) -> 119357 | G156: =IF(INTRO!$E$50="","",ROUND($D156*INTRO!$E$50,0)) -> 156869 | H156: 1 | I156: 1 | J156: 2 | K156: 0 | L156: 1 | M156: =IF(INTRO!$E$37="Endemic",IF($H156>0,IF($H156=4,"Unknown",IF($H156=99,"Stopped",$D156)),0),"Not required") -> 341018.8787 | N156: =IF(INTRO!$E$39="Endemic", IF($I156>0, IF($I156=4,"Unknown",IF($I156=99,"Stopped",$D156)), 0),"Not required") -> 341018.8787 | O156: =IF(INTRO!$E$41="Endemic", IF(AND($J156>1,$J156<5), IF($J156=4, "Unknown", E156+F156), 0),"Not required") -> 177330 | P156: =IF(INTRO!$E$43="Endemic", IF(AND($K156>0,$K156<5), IF($K156=4,"Unknown", IF($K156=1, $F156*0.33, IF($K156=2, $F156*0.5+$G156*0.2, SUM(F156:G156)))), 0),"Not required") -> 0 | Q156: 1 | R156: 1 | S156: 1 | T156: 0 | Y156: 13980 | Z156: Kananga
A157: =IF(INTRO!$E$33<>0,INTRO!$E$33, " ") -> DRC | B157: KASAI CENTRAL | C157: Katende | D157: 111528.1734 | E157: =IF(INTRO!$E$48="","",ROUND($D157*INTRO!$E$48,0)) -> 18960 | F157: =IF(INTRO!$E$49="","",ROUND($D157*INTRO!$E$49,0)) -> 39035 | G157: =IF(INTRO!$E$50="","",ROUND($D157*INTRO!$E$50,0)) -> 51303 | H157: 1 | I157: 1 | J157: 3 | K157: 0 | L157: 1 | M157: =IF(INTRO!$E$37="Endemic",IF($H157>0,IF($H157=4,"Unknown",IF($H157=99,"Stopped",$D157)),0),"Not required") -> 111528.1734 | N157: =IF(INTRO!$E$39="Endemic", IF($I157>0, IF($I157=4,"Unknown",IF($I157=99,"Stopped",$D157)), 0),"Not required") -> 111528.1734 | O157: =IF(INTRO!$E$41="Endemic", IF(AND($J157>1,$J157<5), IF($J157=4, "Unknown", E157+F157), 0),"Not required") -> 57995 | P157: =IF(INTRO!$E$43="Endemic", IF(AND($K157>0,$K157<5), IF($K157=4,"Unknown", IF($K157=1, $F157*0.33, IF($K157=2, $F157*0.5+$G157*0.2, SUM(F157:G157)))), 0),"Not required") -> 0 | Q157: 1 | R157: 1 | S157: 2 | T157: 0 | Y157: 13983 | Z157: Katende
A158: =IF(INTRO!$E$33<>0,INTRO!$E$33, " ") -> DRC | B158: KASAI CENTRAL | C158: Katoka | D158: 155762.3989 | E158: =IF(INTRO!$E$48="","",ROUND($D158*INTRO!$E$48,0)) -> 26480 | F158: =IF(INTRO!$E$49="","",ROUND($D158*INTRO!$E$49,0)) -> 54517 | G158: =IF(INTRO!$E$50="","",ROUND($D158*INTRO!$E$50,0)) -> 71651 | H158: 0 | I158: 1 | J158: 1 | K158: 1 | L158: 1 | M158: =IF(INTRO!$E$37="Endemic",IF($H158>0,IF($H158=4,"Unknown",IF($H158=99,"Stopped",$D158)),0),"Not required") -> 0 | N158: =IF(INTRO!$E$39="Endemic", IF($I158>0, IF($I158=4,"Unknown",IF($I158=99,"Stopped",$D158)), 0),"Not required") -> 155762.3989 | O158: =IF(INTRO!$E$41="Endemic", IF(AND($J158>1,$J158<5), IF($J158=4, "Unknown", E158+F158), 0),"Not required") -> 0 | P158: =IF(INTRO!$E$43="Endemic", IF(AND($K158>0,$K158<5), IF($K158=4,"Unknown", IF($K158=1, $F158*0.33, IF($K158=2, $F158*0.5+$G158*0.2, SUM(F158:G158)))), 0),"Not required") -> 17990.61 | Q158: 0 | R158: 1 | S158: 0 | T158: 1 | Y158: 13984 | Z158: Katoka
A159: =IF(INTRO!$E$33<>0,INTRO!$E$33, " ") -> DRC | B159: KASAI CENTRAL | C159: Luambo | D159: 302853.0012 | E159: =IF(INTRO!$E$48="","",ROUND($D159*INTRO!$E$48,0)) -> 51485 | F159: =IF(INTRO!$E$49="","",ROUND($D159*INTRO!$E$49,0)) -> 105999 | G159: =IF(INTRO!$E$50="","",ROUND($D159*INTRO!$E$50,0)) -> 139312 | H159: 1 | I159: 1 | J159: 3 | K159: 1 | L159: 1 | M159: =IF(INTRO!$E$37="Endemic",IF($H159>0,IF($H159=4,"Unknown",IF($H159=99,"Stopped",$D159)),0),"Not required") -> 302853.0012 | N159: =IF(INTRO!$E$39="Endemic", IF($I159>0, IF($I159=4,"Unknown",IF($I159=99,"Stopped",$D159)), 0),"Not required") -> 302853.0012 | O159: =IF(INTRO!$E$41="Endemic", IF(AND($J159>1,$J159<5), IF($J159=4, "Unknown", E159+F159), 0),"Not required") -> 157484 | P159: =IF(INTRO!$E$43="Endemic", IF(AND($K159>0,$K159<5), IF($K159=4,"Unknown", IF($K159=1, $F159*0.33, IF($K159=2, $F159*0.5+$G159*0.2, SUM(F159:G159)))), 0),"Not required") -> 34979.67 | Q159: 1 | R159: 1 | S159: 2 | T159: 1 | Y159: 13986 | Z159: Luambo
A160: =IF(INTRO!$E$33<>0,INTRO!$E$33, " ") -> DRC | B160: KASAI CENTRAL | C160: Lubondaie | D160: 168411.5096 | E160: =IF(INTRO!$E$48="","",ROUND($D160*INTRO!$E$48,0)) -> 28630 | F160: =IF(INTRO!$E$49="","",ROUND($D160*INTRO!$E$49,0)) -> 58944 | G160: =IF(INTRO!$E$50="","",ROUND($D160*INTRO!$E$50,0)) -> 77469 | H160: 0 | I160: 1 | J160: 3 | K160: 1 | L160: 0 | M160: =IF(INTRO!$E$37="Endemic",IF($H160>0,IF($H160=4,"Unknown",IF($H160=99,"Stopped",$D160)),0),"Not required") -> 0 | N160: =IF(INTRO!$E$39="Endemic", IF($I160>0, IF($I160=4,"Unknown",IF($I160=99,"Stopped",$D160)), 0),"Not required") -> 168411.5096 | O160: =IF(INTRO!$E$41="Endemic", IF(AND($J160>1,$J160<5), IF($J160=4, "Unknown", E160+F160), 0),"Not required") -> 87574 | P160: =IF(INTRO!$E$43="Endemic", IF(AND($K160>0,$K160<5), IF($K160=4,"Unknown", IF($K160=1, $F160*0.33, IF($K160=2, $F160*0.5+$G160*0.2, SUM(F160:G160)))), 0),"Not required") -> 19451.52 | Q160: 0 | R160: 1 | S160: 2 | T160: 1 | Y160: 13987 | Z160: Lubondaie
A161: =IF(INTRO!$E$33<>0,INTRO!$E$33, " ") -> DRC | B161: KASAI CENTRAL | C161: Lubunga (1) | D161: 120990.3405 | E161: =IF(INTRO!$E$48="","",ROUND($D161*INTRO!$E$48,0)) -> 20568 | F161: =IF(INTRO!$E$49="","",ROUND($D161*INTRO!$E$49,0)) -> 42347 | G161: =IF(INTRO!$E$50="","",ROUND($D161*INTRO!$E$50,0)) -> 55656 | H161: 0 | I161: 1 | J161: 3 | K161: 2 | L161: 1 | M161: =IF(INTRO!$E$37="Endemic",IF($H161>0,IF($H161=4,"Unknown",IF($H161=99,"Stopped",$D161)),0),"Not required") -> 0 | N161: =IF(INTRO!$E$39="Endemic", IF($I161>0, IF($I161=4,"Unknown",IF($I161=99,"Stopped",$D161)), 0),"Not required") -> 120990.3405 | O161: =IF(INTRO!$E$41="Endemic", IF(AND($J161>1,$J161<5), IF($J161=4, "Unknown", E161+F161), 0),"Not required") -> 62915 | P161: =IF(INTRO!$E$43="Endemic", IF(AND($K161>0,$K161<5), IF($K161=4,"Unknown", IF($K161=1, $F161*0.33, IF($K161=2, $F161*0.5+$G161*0.2, SUM(F161:G161)))), 0),"Not required") -> 32304.7 | Q161: 0 | R161: 1 | S161: 2 | T161: 0 | Y161: 14257 | Z161: Lubunga (1)
A162: =IF(INTRO!$E$33<>0,INTRO!$E$33, " ") -> DRC | B162: KASAI CENTRAL | C162: Luiza | D162: 195906.8549 | E162: =IF(INTRO!$E$48="","",ROUND($D162*INTRO!$E$48,0)) -> 33304 | F162: =IF(INTRO!$E$49="","",ROUND($D162*INTRO!$E$49,0)) -> 68567 | G162: =IF(INTRO!$E$50="","",ROUND($D162*INTRO!$E$50,0)) -> 90117 | H162: 0 | I162: 1 | J162: 2 | K162: 0 | L162: 0 | M162: =IF(INTRO!$E$37="Endemic",IF($H162>0,IF($H162=4,"Unknown",IF($H162=99,"Stopped",$D162)),0),"Not required") -> 0 | N162: =IF(INTRO!$E$39="Endemic", IF($I162>0, IF($I162=4,"Unknown",IF($I162=99,"Stopped",$D162)), 0),"Not required") -> 195906.8549 | O162: =IF(INTRO!$E$41="Endemic", IF(AND($J162>1,$J162<5), IF($J162=4, "Unknown", E162+F162), 0),"Not required") -> 101871 | P162: =IF(INTRO!$E$43="Endemic", IF(AND($K162>0,$K162<5), IF($K162=4,"Unknown", IF($K162=1, $F162*0.33, IF($K162=2, $F162*0.5+$G162*0.2, SUM(F162:G162)))), 0),"Not required") -> 0 | Q162: 0 | R162: 1 | S162: 1 | T162: 0 | Y162: 13990 | Z162: Luiza
A163: =IF(INTRO!$E$33<>0,INTRO!$E$33, " ") -> DRC | B163: KASAI CENTRAL | C163: Lukonga | D163: 320669.7558 | E163: =IF(INTRO!$E$48="","",ROUND($D163*INTRO!$E$48,0)) -> 54514 | F163: =IF(INTRO!$E$49="","",ROUND($D163*INTRO!$E$49,0)) -> 112234 | G163: =IF(INTRO!$E$50="","",ROUND($D163*INTRO!$E$50,0)) -> 147508 | H163: 1 | I163: 1 | J163: 2 | K163: 1 | L163: 1 | M163: =IF(INTRO!$E$37="Endemic",IF($H163>0,IF($H163=4,"Unknown",IF($H163=99,"Stopped",$D163)),0),"Not required") -> 320669.7558 | N163: =IF(INTRO!$E$39="Endemic", IF($I163>0, IF($I163=4,"Unknown",IF($I163=99,"Stopped",$D163)), 0),"Not required") -> 320669.7558 | O163: =IF(INTRO!$E$41="Endemic", IF(AND($J163>1,$J163<5), IF($J163=4, "Unknown", E163+F163), 0),"Not required") -> 166748 | P163: =IF(INTRO!$E$43="Endemic", IF(AND($K163>0,$K163<5), IF($K163=4,"Unknown", IF($K163=1, $F163*0.33, IF($K163=2, $F163*0.5+$G163*0.2, SUM(F163:G163)))), 0),"Not required") -> 37037.22 | Q163: 1 | R163: 1 | S163: 1 | T163: 1 | Y163: 13991 | Z163: Lukonga
A164: =IF(INTRO!$E$33<>0,INTRO!$E$33, " ") -> DRC | B164: KASAI CENTRAL | C164: Mikalayi | D164: 254607.5128 | E164: =IF(INTRO!$E$48="","",ROUND($D164*INTRO!$E$48,0)) -> 43283 | F164: =IF(INTRO!$E$49="","",ROUND($D164*INTRO!$E$49,0)) -> 89113 | G164: =IF(INTRO!$E$50="","",ROUND($D164*INTRO!$E$50,0)) -> 117119 | H164: 0 | I164: 1 | J164: 3 | K164: 0 | L164: 1 | M164: =IF(INTRO!$E$37="Endemic",IF($H164>0,IF($H164=4,"Unknown",IF($H164=99,"Stopped",$D164)),0),"Not required") -> 0 | N164: =IF(INTRO!$E$39="Endemic", IF($I164>0, IF($I164=4,"Unknown",IF($I164=99,"Stopped",$D164)), 0),"Not required") -> 254607.5128 | O164: =IF(INTRO!$E$41="Endemic", IF(AND($J164>1,$J164<5), IF($J164=4, "Unknown", E164+F164), 0),"Not required") -> 132396 | P164: =IF(INTRO!$E$43="Endemic", IF(AND($K164>0,$K164<5), IF($K164=4,"Unknown", IF($K164=1, $F164*0.33, IF($K164=2, $F164*0.5+$G164*0.2, SUM(F164:G164)))), 0),"Not required") -> 0 | Q164: 0 | R164: 1 | S164: 2 | T164: 0 | Y164: 13993 | Z164: Mikalayi
A165: =IF(INTRO!$E$33<>0,INTRO!$E$33, " ") -> DRC | B165: KASAI CENTRAL | C165: Musuika | D165: 238605.9581 | E165: =IF(INTRO!$E$48="","",ROUND($D165*INTRO!$E$48,0)) -> 40563 | F165: =IF(INTRO!$E$49="","",ROUND($D165*INTRO!$E$49,0)) -> 83512 | G165: =IF(INTRO!$E$50="","",ROUND($D165*INTRO!$E$50,0)) -> 109759 | H165: 1 | I165: 1 | J165: 3 | K165: 0 | L165: 0 | M165: =IF(INTRO!$E$37="Endemic",IF($H165>0,IF($H165=4,"Unknown",IF($H165=99,"Stopped",$D165)),0),"Not required") -> 238605.9581 | N165: =IF(INTRO!$E$39="Endemic", IF($I165>0, IF($I165=4,"Unknown",IF($I165=99,"Stopped",$D165)), 0),"Not required") -> 238605.9581 | O165: =IF(INTRO!$E$41="Endemic", IF(AND($J165>1,$J165<5), IF($J165=4, "Unknown", E165+F165), 0),"Not required") -> 124075 | P165: =IF(INTRO!$E$43="Endemic", IF(AND($K165>0,$K165<5), IF($K165=4,"Unknown", IF($K165=1, $F165*0.33, IF($K165=2, $F165*0.5+$G165*0.2, SUM(F165:G165)))), 0),"Not required") -> 0 | Q165: 1 | R165: 1 | S165: 2 | T165: 0 | Y165: 13996 | Z165: Musuika
A166: =IF(INTRO!$E$33<>0,INTRO!$E$33, " ") -> DRC | B166: KASAI CENTRAL | C166: Mutoto | D166: 151431.8051 | E166: =IF(INTRO!$E$48="","",ROUND($D166*INTRO!$E$48,0)) -> 25743 | F166: =IF(INTRO!$E$49="","",ROUND($D166*INTRO!$E$49,0)) -> 53001 | G166: =IF(INTRO!$E$50="","",ROUND($D166*INTRO!$E$50,0)) -> 69659 | H166: 1 | I166: 1 | J166: 3 | K166: 0 | L166: 1 | M166: =IF(INTRO!$E$37="Endemic",IF($H166>0,IF($H166=4,"Unknown",IF($H166=99,"Stopped",$D166)),0),"Not required") -> 151431.8051 | N166: =IF(INTRO!$E$39="Endemic", IF($I166>0, IF($I166=4,"Unknown",IF($I166=99,"Stopped",$D166)), 0),"Not required") -> 151431.8051 | O166: =IF(INTRO!$E$41="Endemic", IF(AND($J166>1,$J166<5), IF($J166=4, "Unknown", E166+F166), 0),"Not required") -> 78744 | P166: =IF(INTRO!$E$43="Endemic", IF(AND($K166>0,$K166<5), IF($K166=4,"Unknown", IF($K166=1, $F166*0.33, IF($K166=2, $F166*0.5+$G166*0.2, SUM(F166:G166)))), 0),"Not required") -> 0 | Q166: 1 | R166: 1 | S166: 2 | T166: 0 | Y166: 13998 | Z166: Mutoto
A167: =IF(INTRO!$E$33<>0,INTRO!$E$33, " ") -> DRC | B167: KASAI CENTRAL | C167: Mwetshi | D167: 137618.8871 | E167: =IF(INTRO!$E$48="","",ROUND($D167*INTRO!$E$48,0)) -> 23395 | F167: =IF(INTRO!$E$49="","",ROUND($D167*INTRO!$E$49,0)) -> 48167 | G167: =IF(INTRO!$E$50="","",ROUND($D167*INTRO!$E$50,0)) -> 63305 | H167: 0 | I167: 1 | J167: 3 | K167: 1 | L167: 1 | M167: =IF(INTRO!$E$37="Endemic",IF($H167>0,IF($H167=4,"Unknown",IF($H167=99,"Stopped",$D167)),0),"Not required") -> 0 | N167: =IF(INTRO!$E$39="Endemic", IF($I167>0, IF($I167=4,"Unknown",IF($I167=99,"Stopped",$D167)), 0),"Not required") -> 137618.8871 | O167: =IF(INTRO!$E$41="Endemic", IF(AND($J167>1,$J167<5), IF($J167=4, "Unknown", E167+F167), 0),"Not required") -> 71562 | P167: =IF(INTRO!$E$43="Endemic", IF(AND($K167>0,$K167<5), IF($K167=4,"Unknown", IF($K167=1, $F167*0.33, IF($K167=2, $F167*0.5+$G167*0.2, SUM(F167:G167)))), 0),"Not required") -> 15895.11 | Q167: 0 | R167: 1 | S167: 2 | T167: 1 | Y167: 14000 | Z167: Mwetshi
A168: =IF(INTRO!$E$33<>0,INTRO!$E$33, " ") -> DRC | B168: KASAI CENTRAL | C168: Ndekesha | D168: 177162.8737 | E168: =IF(INTRO!$E$48="","",ROUND($D168*INTRO!$E$48,0)) -> 30118 | F168: =IF(INTRO!$E$49="","",ROUND($D168*INTRO!$E$49,0)) -> 62007 | G168: =IF(INTRO!$E$50="","",ROUND($D168*INTRO!$E$50,0)) -> 81495 | H168: 0 | I168: 1 | J168: 2 | K168: 0 | L168: 1 | M168: =IF(INTRO!$E$37="Endemic",IF($H168>0,IF($H168=4,"Unknown",IF($H168=99,"Stopped",$D168)),0),"Not required") -> 0 | N168: =IF(INTRO!$E$39="Endemic", IF($I168>0, IF($I168=4,"Unknown",IF($I168=99,"Stopped",$D168)), 0),"Not required") -> 177162.8737 | O168: =IF(INTRO!$E$41="Endemic", IF(AND($J168>1,$J168<5), IF($J168=4, "Unknown", E168+F168), 0),"Not required") -> 92125 | P168: =IF(INTRO!$E$43="Endemic", IF(AND($K168>0,$K168<5), IF($K168=4,"Unknown", IF($K168=1, $F168*0.33, IF($K168=2, $F168*0.5+$G168*0.2, SUM(F168:G168)))), 0),"Not required") -> 0 | Q168: 0 | R168: 1 | S168: 1 | T168: 0 | Y168: 14001 | Z168: Ndekesha
A169: =IF(INTRO!$E$33<>0,INTRO!$E$33, " ") -> DRC | B169: KASAI CENTRAL | C169: Ndesha | D169: 108127.9889 | E169: =IF(INTRO!$E$48="","",ROUND($D169*INTRO!$E$48,0)) -> 18382 | F169: =IF(INTRO!$E$49="","",ROUND($D169*INTRO!$E$49,0)) -> 37845 | G169: =IF(INTRO!$E$50="","",ROUND($D169*INTRO!$E$50,0)) -> 49739 | H169: 0 | I169: 1 | J169: 2 | K169: 0 | L169: 1 | M169: =IF(INTRO!$E$37="Endemic",IF($H169>0,IF($H169=4,"Unknown",IF($H169=99,"Stopped",$D169)),0),"Not required") -> 0 | N169: =IF(INTRO!$E$39="Endemic", IF($I169>0, IF($I169=4,"Unknown",IF($I169=99,"Stopped",$D169)), 0),"Not required") -> 108127.9889 | O169: =IF(INTRO!$E$41="Endemic", IF(AND($J169>1,$J169<5), IF($J169=4, "Unknown", E169+F169), 0),"Not required") -> 56227 | P169: =IF(INTRO!$E$43="Endemic", IF(AND($K169>0,$K169<5), IF($K169=4,"Unknown", IF($K169=1, $F169*0.33, IF($K169=2, $F169*0.5+$G169*0.2, SUM(F169:G169)))), 0),"Not required") -> 0 | Q169: 0 | R169: 1 | S169: 1 | T169: 0 | Y169: 14002 | Z169: Ndesha
A170: =IF(INTRO!$E$33<>0,INTRO!$E$33, " ") -> DRC | B170: KASAI CENTRAL | C170: Tshibala | D170: 272248.158 | E170: =IF(INTRO!$E$48="","",ROUND($D170*INTRO!$E$48,0)) -> 46282 | F170: =IF(INTRO!$E$49="","",ROUND($D170*INTRO!$E$49,0)) -> 95287 | G170: =IF(INTRO!$E$50="","",ROUND($D170*INTRO!$E$50,0)) -> 125234 | H170: 1 | I170: 1 | J170: 2 | K170: 0 | L170: 1 | M170: =IF(INTRO!$E$37="Endemic",IF($H170>0,IF($H170=4,"Unknown",IF($H170=99,"Stopped",$D170)),0),"Not required") -> 272248.158 | N170: =IF(INTRO!$E$39="Endemic", IF($I170>0, IF($I170=4,"Unknown",IF($I170=99,"Stopped",$D170)), 0),"Not required") -> 272248.158 | O170: =IF(INTRO!$E$41="Endemic", IF(AND($J170>1,$J170<5), IF($J170=4, "Unknown", E170+F170), 0),"Not required") -> 141569 | P170: =IF(INTRO!$E$43="Endemic", IF(AND($K170>0,$K170<5), IF($K170=4,"Unknown", IF($K170=1, $F170*0.33, IF($K170=2, $F170*0.5+$G170*0.2, SUM(F170:G170)))), 0),"Not required") -> 0 | Q170: 1 | R170: 1 | S170: 1 | T170: 0 | Y170: 14005 | Z170: Tshibala
A171: =IF(INTRO!$E$33<>0,INTRO!$E$33, " ") -> DRC | B171: KASAI CENTRAL | C171: Tshikaji | D171: 139632.4753 | E171: =IF(INTRO!$E$48="","",ROUND($D171*INTRO!$E$48,0)) -> 23738 | F171: =IF(INTRO!$E$49="","",ROUND($D171*INTRO!$E$49,0)) -> 48871 | G171: =IF(INTRO!$E$50="","",ROUND($D171*INTRO!$E$50,0)) -> 64231 | H171: 0 | I171: 1 | J171: 3 | K171: 0 | L171: 1 | M171: =IF(INTRO!$E$37="Endemic",IF($H171>0,IF($H171=4,"Unknown",IF($H171=99,"Stopped",$D171)),0),"Not required") -> 0 | N171: =IF(INTRO!$E$39="Endemic", IF($I171>0, IF($I171=4,"Unknown",IF($I171=99,"Stopped",$D171)), 0),"Not required") -> 139632.4753 | O171: =IF(INTRO!$E$41="Endemic", IF(AND($J171>1,$J171<5), IF($J171=4, "Unknown", E171+F171), 0),"Not required") -> 72609 | P171: =IF(INTRO!$E$43="Endemic", IF(AND($K171>0,$K171<5), IF($K171=4,"Unknown", IF($K171=1, $F171*0.33, IF($K171=2, $F171*0.5+$G171*0.2, SUM(F171:G171)))), 0),"Not required") -> 0 | Q171: 0 | R171: 1 | S171: 2 | T171: 0 | Y171: 14058 | Z171: Tshikaji
A172: =IF(INTRO!$E$33<>0,INTRO!$E$33, " ") -> DRC | B172: KASAI CENTRAL | C172: Tshikula | D172: 160428.2371 | E172: =IF(INTRO!$E$48="","",ROUND($D172*INTRO!$E$48,0)) -> 27273 | F172: =IF(INTRO!$E$49="","",ROUND($D172*INTRO!$E$49,0)) -> 56150 | G172: =IF(INTRO!$E$50="","",ROUND($D172*INTRO!$E$50,0)) -> 73797 | H172: 0 | I172: 1 | J172: 2 | K172: 0 | L172: 1 | M172: =IF(INTRO!$E$37="Endemic",IF($H172>0,IF($H172=4,"Unknown",IF($H172=99,"Stopped",$D172)),0),"Not required") -> 0 | N172: =IF(INTRO!$E$39="Endemic", IF($I172>0, IF($I172=4,"Unknown",IF($I172=99,"Stopped",$D172)), 0),"Not required") -> 160428.2371 | O172: =IF(INTRO!$E$41="Endemic", IF(AND($J172>1,$J172<5), IF($J172=4, "Unknown", E172+F172), 0),"Not required") -> 83423 | P172: =IF(INTRO!$E$43="Endemic", IF(AND($K172>0,$K172<5), IF($K172=4,"Unknown", IF($K172=1, $F172*0.33, IF($K172=2, $F172*0.5+$G172*0.2, SUM(F172:G172)))), 0),"Not required") -> 0 | Q172: 0 | R172: 1 | S172: 1 | T172: 0 | Y172: 14007 | Z172: Tshikula
A173: =IF(INTRO!$E$33<>0,INTRO!$E$33, " ") -> DRC | B173: KASAI CENTRAL | C173: Yangala | D173: 174562.6078 | E173: =IF(INTRO!$E$48="","",ROUND($D173*INTRO!$E$48,0)) -> 29676 | F173: =IF(INTRO!$E$49="","",ROUND($D173*INTRO!$E$49,0)) -> 61097 | G173: =IF(INTRO!$E$50="","",ROUND($D173*INTRO!$E$50,0)) -> 80299 | H173: 1 | I173: 1 | J173: 2 | K173: 1 | L173: 0 | M173: =IF(INTRO!$E$37="Endemic",IF($H173>0,IF($H173=4,"Unknown",IF($H173=99,"Stopped",$D173)),0),"Not required") -> 174562.6078 | N173: =IF(INTRO!$E$39="Endemic", IF($I173>0, IF($I173=4,"Unknown",IF($I173=99,"Stopped",$D173)), 0),"Not required") -> 174562.6078 | O173: =IF(INTRO!$E$41="Endemic", IF(AND($J173>1,$J173<5), IF($J173=4, "Unknown", E173+F173), 0),"Not required") -> 90773 | P173: =IF(INTRO!$E$43="Endemic", IF(AND($K173>0,$K173<5), IF($K173=4,"Unknown", IF($K173=1, $F173*0.33, IF($K173=2, $F173*0.5+$G173*0.2, SUM(F173:G173)))), 0),"Not required") -> 20162.01 | Q173: 1 | R173: 1 | S173: 1 | T173: 1 | Y173: 14008 | Z173: Yangala
A174: =IF(INTRO!$E$33<>0,INTRO!$E$33, " ") -> DRC | B174: KASAI ORIENTAL | C174: Bibanga | D174: 166387.3124 | E174: =IF(INTRO!$E$48="","",ROUND($D174*INTRO!$E$48,0)) -> 28286 | F174: =IF(INTRO!$E$49="","",ROUND($D174*INTRO!$E$49,0)) -> 58236 | G174: =IF(INTRO!$E$50="","",ROUND($D174*INTRO!$E$50,0)) -> 76538 | H174: 1 | I174: 1 | J174: 1 | K174: 2 | L174: 0 | M174: =IF(INTRO!$E$37="Endemic",IF($H174>0,IF($H174=4,"Unknown",IF($H174=99,"Stopped",$D174)),0),"Not required") -> 166387.3124 | N174: =IF(INTRO!$E$39="Endemic", IF($I174>0, IF($I174=4,"Unknown",IF($I174=99,"Stopped",$D174)), 0),"Not required") -> 166387.3124 | O174: =IF(INTRO!$E$41="Endemic", IF(AND($J174>1,$J174<5), IF($J174=4, "Unknown", E174+F174), 0),"Not required") -> 0 | P174: =IF(INTRO!$E$43="Endemic", IF(AND($K174>0,$K174<5), IF($K174=4,"Unknown", IF($K174=1, $F174*0.33, IF($K174=2, $F174*0.5+$G174*0.2, SUM(F174:G174)))), 0),"Not required") -> 44425.6 | Q174: 1 | R174: 1 | S174: 0 | T174: 1 | Y174: 14010 | Z174: Bibanga
A175: =IF(INTRO!$E$33<>0,INTRO!$E$33, " ") -> DRC | B175: KASAI ORIENTAL | C175: Bimpemba | D175: 272631.73 | E175: =IF(INTRO!$E$48="","",ROUND($D175*INTRO!$E$48,0)) -> 46347 | F175: =IF(INTRO!$E$49="","",ROUND($D175*INTRO!$E$49,0)) -> 95421 | G175: =IF(INTRO!$E$50="","",ROUND($D175*INTRO!$E$50,0)) -> 125411 | H175: 0 | I175: 0 | J175: 1 | K175: 2 | L175: 0 | M175: =IF(INTRO!$E$37="Endemic",IF($H175>0,IF($H175=4,"Unknown",IF($H175=99,"Stopped",$D175)),0),"Not required") -> 0 | N175: =IF(INTRO!$E$39="Endemic", IF($I175>0, IF($I175=4,"Unknown",IF($I175=99,"Stopped",$D175)), 0),"Not required") -> 0 | O175: =IF(INTRO!$E$41="Endemic", IF(AND($J175>1,$J175<5), IF($J175=4, "Unknown", E175+F175), 0),"Not required") -> 0 | P175: =IF(INTRO!$E$43="Endemic", IF(AND($K175>0,$K175<5), IF($K175=4,"Unknown", IF($K175=1, $F175*0.33, IF($K175=2, $F175*0.5+$G175*0.2, SUM(F175:G175)))), 0),"Not required") -> 72792.7 | Q175: 0 | R175: 0 | S175: 0 | T175: 0 | Y175: 14011 | Z175: Bimpemba
A176: =IF(INTRO!$E$33<>0,INTRO!$E$33, " ") -> DRC | B176: KASAI ORIENTAL | C176: Bonzola | D176: 197480.1696 | E176: =IF(INTRO!$E$48="","",ROUND($D176*INTRO!$E$48,0)) -> 33572 | F176: =IF(INTRO!$E$49="","",ROUND($D176*INTRO!$E$49,0)) -> 69118 | G176: =IF(INTRO!$E$50="","",ROUND($D176*INTRO!$E$50,0)) -> 90841 | H176: 1 | I176: 0 | J176: 1 | K176: 1 | L176: 0 | M176: =IF(INTRO!$E$37="Endemic",IF($H176>0,IF($H176=4,"Unknown",IF($H176=99,"Stopped",$D176)),0),"Not required") -> 197480.1696 | N176: =IF(INTRO!$E$39="Endemic", IF($I176>0, IF($I176=4,"Unknown",IF($I176=99,"Stopped",$D176)), 0),"Not required") -> 0 | O176: =IF(INTRO!$E$41="Endemic", IF(AND($J176>1,$J176<5), IF($J176=4, "Unknown", E176+F176), 0),"Not required") -> 0 | P176: =IF(INTRO!$E$43="Endemic", IF(AND($K176>0,$K176<5), IF($K176=4,"Unknown", IF($K176=1, $F176*0.33, IF($K176=2, $F176*0.5+$G176*0.2, SUM(F176:G176)))), 0),"Not required") -> 22808.94 | Q176: 1 | R176: 0 | S176: 0 | T176: 1 | Y176: 14012 | Z176: Bonzola
A177: =IF(INTRO!$E$33<>0,INTRO!$E$33, " ") -> DRC | B177: KASAI ORIENTAL | C177: Dibindi | D177: 285265.401 | E177: =IF(INTRO!$E$48="","",ROUND($D177*INTRO!$E$48,0)) -> 48495 | F177: =IF(INTRO!$E$49="","",ROUND($D177*INTRO!$E$49,0)) -> 99843 | G177: =IF(INTRO!$E$50="","",ROUND($D177*INTRO!$E$50,0)) -> 131222 | H177: 0 | I177: 0 | J177: 2 | K177: 2 | L177: 0 | M177: =IF(INTRO!$E$37="Endemic",IF($H177>0,IF($H177=4,"Unknown",IF($H177=99,"Stopped",$D177)),0),"Not required") -> 0 | N177: =IF(INTRO!$E$39="Endemic", IF($I177>0, IF($I177=4,"Unknown",IF($I177=99,"Stopped",$D177)), 0),"Not required") -> 0 | O177: =IF(INTRO!$E$41="Endemic", IF(AND($J177>1,$J177<5), IF($J177=4, "Unknown", E177+F177), 0),"Not required") -> 148338 | P177: =IF(INTRO!$E$43="Endemic", IF(AND($K177>0,$K177<5), IF($K177=4,"Unknown", IF($K177=1, $F177*0.33, IF($K177=2, $F177*0.5+$G177*0.2, SUM(F177:G177)))), 0),"Not required") -> 76165.9 | Q177: 0 | R177: 0 | S177: 1 | T177: 0 | Y177: 14013 | Z177: Dibindi
A178: =IF(INTRO!$E$33<>0,INTRO!$E$33, " ") -> DRC | B178: KASAI ORIENTAL | C178: Diulu | D178: 416102.49 | E178: =IF(INTRO!$E$48="","",ROUND($D178*INTRO!$E$48,0)) -> 70737 | F178: =IF(INTRO!$E$49="","",ROUND($D178*INTRO!$E$49,0)) -> 145636 | G178: =IF(INTRO!$E$50="","",ROUND($D178*INTRO!$E$50,0)) -> 191407 | H178: 0 | I178: 0 | J178: 1 | K178: 2 | L178: 0 | M178: =IF(INTRO!$E$37="Endemic",IF($H178>0,IF($H178=4,"Unknown",IF($H178=99,"Stopped",$D178)),0),"Not required") -> 0 | N178: =IF(INTRO!$E$39="Endemic", IF($I178>0, IF($I178=4,"Unknown",IF($I178=99,"Stopped",$D178)), 0),"Not required") -> 0 | O178: =IF(INTRO!$E$41="Endemic", IF(AND($J178>1,$J178<5), IF($J178=4, "Unknown", E178+F178), 0),"Not required") -> 0 | P178: =IF(INTRO!$E$43="Endemic", IF(AND($K178>0,$K178<5), IF($K178=4,"Unknown", IF($K178=1, $F178*0.33, IF($K178=2, $F178*0.5+$G178*0.2, SUM(F178:G178)))), 0),"Not required") -> 111099.4 | Q178: 0 | R178: 0 | S178: 0 | T178: 0 | Y178: 14014 | Z178: Diulu
A179: =IF(INTRO!$E$33<>0,INTRO!$E$33, " ") -> DRC | B179: KASAI ORIENTAL | C179: Kabeya Kamuanga | D179: 206530.7075 | E179: =IF(INTRO!$E$48="","",ROUND($D179*INTRO!$E$48,0)) -> 35110 | F179: =IF(INTRO!$E$49="","",ROUND($D179*INTRO!$E$49,0)) -> 72286 | G179: =IF(INTRO!$E$50="","",ROUND($D179*INTRO!$E$50,0)) -> 95004 | H179: 0 | I179: 1 | J179: 1 | K179: 2 | L179: 0 | M179: =IF(INTRO!$E$37="Endemic",IF($H179>0,IF($H179=4,"Unknown",IF($H179=99,"Stopped",$D179)),0),"Not required") -> 0 | N179: =IF(INTRO!$E$39="Endemic", IF($I179>0, IF($I179=4,"Unknown",IF($I179=99,"Stopped",$D179)), 0),"Not required") -> 206530.7075 | O179: =IF(INTRO!$E$41="Endemic", IF(AND($J179>1,$J179<5), IF($J179=4, "Unknown", E179+F179), 0),"Not required") -> 0 | P179: =IF(INTRO!$E$43="Endemic", IF(AND($K179>0,$K179<5), IF($K179=4,"Unknown", IF($K179=1, $F179*0.33, IF($K179=2, $F179*0.5+$G179*0.2, SUM(F179:G179)))), 0),"Not required") -> 55143.8 | Q179: 0 | R179: 1 | S179: 0 | T179: 1 | Y179: 14016 | Z179: Kabeya Kamuanga
A180: =IF(INTRO!$E$33<>0,INTRO!$E$33, " ") -> DRC | B180: KASAI ORIENTAL | C180: Kansele | D180: 286635.0229 | E180: =IF(INTRO!$E$48="","",ROUND($D180*INTRO!$E$48,0)) -> 48728 | F180: =IF(INTRO!$E$49="","",ROUND($D180*INTRO!$E$49,0)) -> 100322 | G180: =IF(INTRO!$E$50="","",ROUND($D180*INTRO!$E$50,0)) -> 131852 | H180: 0 | I180: 0 | J180: 2 | K180: 1 | L180: 0 | M180: =IF(INTRO!$E$37="Endemic",IF($H180>0,IF($H180=4,"Unknown",IF($H180=99,"Stopped",$D180)),0),"Not required") -> 0 | N180: =IF(INTRO!$E$39="Endemic", IF($I180>0, IF($I180=4,"Unknown",IF($I180=99,"Stopped",$D180)), 0),"Not required") -> 0 | O180: =IF(INTRO!$E$41="Endemic", IF(AND($J180>1,$J180<5), IF($J180=4, "Unknown", E180+F180), 0),"Not required") -> 149050 | P180: =IF(INTRO!$E$43="Endemic", IF(AND($K180>0,$K180<5), IF($K180=4,"Unknown", IF($K180=1, $F180*0.33, IF($K180=2, $F180*0.5+$G180*0.2, SUM(F180:G180)))), 0),"Not required") -> 33106.26 | Q180: 0 | R180: 0 | S180: 1 | T180: 1 | Y180: 14024 | Z180: Kansele
A181: =IF(INTRO!$E$33<>0,INTRO!$E$33, " ") -> DRC | B181: KASAI ORIENTAL | C181: Kasansa | D181: 233353.4422 | E181: =IF(INTRO!$E$48="","",ROUND($D181*INTRO!$E$48,0)) -> 39670 | F181: =IF(INTRO!$E$49="","",ROUND($D181*INTRO!$E$49,0)) -> 81674 | G181: =IF(INTRO!$E$50="","",ROUND($D181*INTRO!$E$50,0)) -> 107343 | H181: 0 | I181: 1 | J181: 1 | K181: 2 | L181: 0 | M181: =IF(INTRO!$E$37="Endemic",IF($H181>0,IF($H181=4,"Unknown",IF($H181=99,"Stopped",$D181)),0),"Not required") -> 0 | N181: =IF(INTRO!$E$39="Endemic", IF($I181>0, IF($I181=4,"Unknown",IF($I181=99,"Stopped",$D181)), 0),"Not required") -> 233353.4422 | O181: =IF(INTRO!$E$41="Endemic", IF(AND($J181>1,$J181<5), IF($J181=4, "Unknown", E181+F181), 0),"Not required") -> 0 | P181: =IF(INTRO!$E$43="Endemic", IF(AND($K181>0,$K181<5), IF($K181=4,"Unknown", IF($K181=1, $F181*0.33, IF($K181=2, $F181*0.5+$G181*0.2, SUM(F181:G181)))), 0),"Not required") -> 62305.6 | Q181: 0 | R181: 1 | S181: 0 | T181: 1 | Y181: 14025 | Z181: Kasansa
A182: =IF(INTRO!$E$33<>0,INTRO!$E$33, " ") -> DRC | B182: KASAI ORIENTAL | C182: Lubilanji | D182: 289093.1282 | E182: =IF(INTRO!$E$48="","",ROUND($D182*INTRO!$E$48,0)) -> 49146 | F182: =IF(INTRO!$E$49="","",ROUND($D182*INTRO!$E$49,0)) -> 101183 | G182: =IF(INTRO!$E$50="","",ROUND($D182*INTRO!$E$50,0)) -> 132983 | H182: 1 | I182: 0 | J182: 2 | K182: 2 | L182: 0 | M182: =IF(INTRO!$E$37="Endemic",IF($H182>0,IF($H182=4,"Unknown",IF($H182=99,"Stopped",$D182)),0),"Not required") -> 289093.1282 | N182: =IF(INTRO!$E$39="Endemic", IF($I182>0, IF($I182=4,"Unknown",IF($I182=99,"Stopped",$D182)), 0),"Not required") -> 0 | O182: =IF(INTRO!$E$41="Endemic", IF(AND($J182>1,$J182<5), IF($J182=4, "Unknown", E182+F182), 0),"Not required") -> 150329 | P182: =IF(INTRO!$E$43="Endemic", IF(AND($K182>0,$K182<5), IF($K182=4,"Unknown", IF($K182=1, $F182*0.33, IF($K182=2, $F182*0.5+$G182*0.2, SUM(F182:G182)))), 0),"Not required") -> 77188.1 | Q182: 1 | R182: 0 | S182: 1 | T182: 0 | Y182: 14031 | Z182: Lubilanji
A183: =IF(INTRO!$E$33<>0,INTRO!$E$33, " ") -> DRC | B183: KASAI ORIENTAL | C183: Lukelenge | D183: 295266.5053 | E183: =IF(INTRO!$E$48="","",ROUND($D183*INTRO!$E$48,0)) -> 50195 | F183: =IF(INTRO!$E$49="","",ROUND($D183*INTRO!$E$49,0)) -> 103343 | G183: =IF(INTRO!$E$50="","",ROUND($D183*INTRO!$E$50,0)) -> 135823 | H183: 0 | I183: 0 | J183: 1 | K183: 2 | L183: 0 | M183: =IF(INTRO!$E$37="Endemic",IF($H183>0,IF($H183=4,"Unknown",IF($H183=99,"Stopped",$D183)),0),"Not required") -> 0 | N183: =IF(INTRO!$E$39="Endemic", IF($I183>0, IF($I183=4,"Unknown",IF($I183=99,"Stopped",$D183)), 0),"Not required") -> 0 | O183: =IF(INTRO!$E$41="Endemic", IF(AND($J183>1,$J183<5), IF($J183=4, "Unknown", E183+F183), 0),"Not required") -> 0 | P183: =IF(INTRO!$E$43="Endemic", IF(AND($K183>0,$K183<5), IF($K183=4,"Unknown", IF($K183=1, $F183*0.33, IF($K183=2, $F183*0.5+$G183*0.2, SUM(F183:G183)))), 0),"Not required") -> 78836.1 | Q183: 0 | R183: 0 | S183: 0 | T183: 1 | Y183: 14033 | Z183: Lukelenge
A184: =IF(INTRO!$E$33<>0,INTRO!$E$33, " ") -> DRC | B184: KASAI ORIENTAL | C184: Miabi | D184: 175657.4566 | E184: =IF(INTRO!$E$48="","",ROUND($D184*INTRO!$E$48,0)) -> 29862 | F184: =IF(INTRO!$E$49="","",ROUND($D184*INTRO!$E$49,0)) -> 61480 | G184: =IF(INTRO!$E$50="","",ROUND($D184*INTRO!$E$50,0)) -> 80802 | H184: 0 | I184: 1 | J184: 1 | K184: 1 | L184: 0 | M184: =IF(INTRO!$E$37="Endemic",IF($H184>0,IF($H184=4,"Unknown",IF($H184=99,"Stopped",$D184)),0),"Not required") -> 0 | N184: =IF(INTRO!$E$39="Endemic", IF($I184>0, IF($I184=4,"Unknown",IF($I184=99,"Stopped",$D184)), 0),"Not required") -> 175657.4566 | O184: =IF(INTRO!$E$41="Endemic", IF(AND($J184>1,$J184<5), IF($J184=4, "Unknown", E184+F184), 0),"Not required") -> 0 | P184: =IF(INTRO!$E$43="Endemic", IF(AND($K184>0,$K184<5), IF($K184=4,"Unknown", IF($K184=1, $F184*0.33, IF($K184=2, $F184*0.5+$G184*0.2, SUM(F184:G184)))), 0),"Not required") -> 20288.4 | Q184: 0 | R184: 1 | S184: 0 | T184: 1 | Y184: 14037 | Z184: Miabi
A185: =IF(INTRO!$E$33<>0,INTRO!$E$33, " ") -> DRC | B185: KASAI ORIENTAL | C185: Mpokolo | D185: 304909.0254 | E185: =IF(INTRO!$E$48="","",ROUND($D185*INTRO!$E$48,0)) -> 51835 | F185: =IF(INTRO!$E$49="","",ROUND($D185*INTRO!$E$49,0)) -> 106718 | G185: =IF(INTRO!$E$50="","",ROUND($D185*INTRO!$E$50,0)) -> 140258 | H185: 1 | I185: 0 | J185: 1 | K185: 2 | L185: 0 | M185: =IF(INTRO!$E$37="Endemic",IF($H185>0,IF($H185=4,"Unknown",IF($H185=99,"Stopped",$D185)),0),"Not required") -> 304909.0254 | N185: =IF(INTRO!$E$39="Endemic", IF($I185>0, IF($I185=4,"Unknown",IF($I185=99,"Stopped",$D185)), 0),"Not required") -> 0 | O185: =IF(INTRO!$E$41="Endemic", IF(AND($J185>1,$J185<5), IF($J185=4, "Unknown", E185+F185), 0),"Not required") -> 0 | P185: =IF(INTRO!$E$43="Endemic", IF(AND($K185>0,$K185<5), IF($K185=4,"Unknown", IF($K185=1, $F185*0.33, IF($K185=2, $F185*0.5+$G185*0.2, SUM(F185:G185)))), 0),"Not required") -> 81410.6 | Q185: 1 | R185: 0 | S185: 0 | T185: 1 | Y185: 14039 | Z185: Mpokolo
A186: =IF(INTRO!$E$33<>0,INTRO!$E$33, " ") -> DRC | B186: KASAI ORIENTAL | C186: Mukumbi | D186: 204188.2403 | E186: =IF(INTRO!$E$48="","",ROUND($D186*INTRO!$E$48,0)) -> 34712 | F186: =IF(INTRO!$E$49="","",ROUND($D186*INTRO!$E$49,0)) -> 71466 | G186: =IF(INTRO!$E$50="","",ROUND($D186*INTRO!$E$50,0)) -> 93927 | H186: 1 | I186: 1 | J186: 1 | K186: 2 | L186: 0 | M186: =IF(INTRO!$E$37="Endemic",IF($H186>0,IF($H186=4,"Unknown",IF($H186=99,"Stopped",$D186)),0),"Not required") -> 204188.2403 | N186: =IF(INTRO!$E$39="Endemic", IF($I186>0, IF($I186=4,"Unknown",IF($I186=99,"Stopped",$D186)), 0),"Not required") -> 204188.2403 | O186: =IF(INTRO!$E$41="Endemic", IF(AND($J186>1,$J186<5), IF($J186=4, "Unknown", E186+F186), 0),"Not required") -> 0 | P186: =IF(INTRO!$E$43="Endemic", IF(AND($K186>0,$K186<5), IF($K186=4,"Unknown", IF($K186=1, $F186*0.33, IF($K186=2, $F186*0.5+$G186*0.2, SUM(F186:G186)))), 0),"Not required") -> 54518.4 | Q186: 1 | R186: 1 | S186: 0 | T186: 0 | Y186: 14040 | Z186: Mukumbi
A187: =IF(INTRO!$E$33<>0,INTRO!$E$33, " ") -> DRC | B187: KASAI ORIENTAL | C187: Muya | D187: 354757.5337 | E187: =IF(INTRO!$E$48="","",ROUND($D187*INTRO!$E$48,0)) -> 60309 | F187: =IF(INTRO!$E$49="","",ROUND($D187*INTRO!$E$49,0)) -> 124165 | G187: =IF(INTRO!$E$50="","",ROUND($D187*INTRO!$E$50,0)) -> 163188 | H187: 0 | I187: 0 | J187: 1 | K187: 2 | L187: 0 | M187: =IF(INTRO!$E$37="Endemic",IF($H187>0,IF($H187=4,"Unknown",IF($H187=99,"Stopped",$D187)),0),"Not required") -> 0 | N187: =IF(INTRO!$E$39="Endemic", IF($I187>0, IF($I187=4,"Unknown",IF($I187=99,"Stopped",$D187)), 0),"Not required") -> 0 | O187: =IF(INTRO!$E$41="Endemic", IF(AND($J187>1,$J187<5), IF($J187=4, "Unknown", E187+F187), 0),"Not required") -> 0 | P187: =IF(INTRO!$E$43="Endemic", IF(AND($K187>0,$K187<5), IF($K187=4,"Unknown", IF($K187=1, $F187*0.33, IF($K187=2, $F187*0.5+$G187*0.2, SUM(F187:G187)))), 0),"Not required") -> 94720.1 | Q187: 0 | R187: 0 | S187: 0 | T187: 1 | Y187: 14042 | Z187: Muya
A188: =IF(INTRO!$E$33<>0,INTRO!$E$33, " ") -> DRC | B188: KASAI ORIENTAL | C188: Nzaba | D188: 256814.1848 | E188: =IF(INTRO!$E$48="","",ROUND($D188*INTRO!$E$48,0)) -> 43658 | F188: =IF(INTRO!$E$49="","",ROUND($D188*INTRO!$E$49,0)) -> 89885 | G188: =IF(INTRO!$E$50="","",ROUND($D188*INTRO!$E$50,0)) -> 118135 | H188: 0 | I188: 0 | J188: 1 | K188: 1 | L188: 0 | M188: =IF(INTRO!$E$37="Endemic",IF($H188>0,IF($H188=4,"Unknown",IF($H188=99,"Stopped",$D188)),0),"Not required") -> 0 | N188: =IF(INTRO!$E$39="Endemic", IF($I188>0, IF($I188=4,"Unknown",IF($I188=99,"Stopped",$D188)), 0),"Not required") -> 0 | O188: =IF(INTRO!$E$41="Endemic", IF(AND($J188>1,$J188<5), IF($J188=4, "Unknown", E188+F188), 0),"Not required") -> 0 | P188: =IF(INTRO!$E$43="Endemic", IF(AND($K188>0,$K188<5), IF($K188=4,"Unknown", IF($K188=1, $F188*0.33, IF($K188=2, $F188*0.5+$G188*0.2, SUM(F188:G188)))), 0),"Not required") -> 29662.05 | Q188: 0 | R188: 0 | S188: 0 | T188: 0 | Y188: 14045 | Z188: Nzaba
A189: =IF(INTRO!$E$33<>0,INTRO!$E$33, " ") -> DRC | B189: KASAI ORIENTAL | C189: Tshilenge | D189: 326888.7516 | E189: =IF(INTRO!$E$48="","",ROUND($D189*INTRO!$E$48,0)) -> 55571 | F189: =IF(INTRO!$E$49="","",ROUND($D189*INTRO!$E$49,0)) -> 114411 | G189: =IF(INTRO!$E$50="","",ROUND($D189*INTRO!$E$50,0)) -> 150369 | H189: 0 | I189: 1 | J189: 2 | K189: 2 | L189: 0 | M189: =IF(INTRO!$E$37="Endemic",IF($H189>0,IF($H189=4,"Unknown",IF($H189=99,"Stopped",$D189)),0),"Not required") -> 0 | N189: =IF(INTRO!$E$39="Endemic", IF($I189>0, IF($I189=4,"Unknown",IF($I189=99,"Stopped",$D189)), 0),"Not required") -> 326888.7516 | O189: =IF(INTRO!$E$41="Endemic", IF(AND($J189>1,$J189<5), IF($J189=4, "Unknown", E189+F189), 0),"Not required") -> 169982 | P189: =IF(INTRO!$E$43="Endemic", IF(AND($K189>0,$K189<5), IF($K189=4,"Unknown", IF($K189=1, $F189*0.33, IF($K189=2, $F189*0.5+$G189*0.2, SUM(F189:G189)))), 0),"Not required") -> 87279.3 | Q189: 0 | R189: 1 | S189: 1 | T189: 1 | Y189: 14049 | Z189: Tshilenge
A190: =IF(INTRO!$E$33<>0,INTRO!$E$33, " ") -> DRC | B190: KASAI ORIENTAL | C190: Tshilundu | D190: 204299.6348 | E190: =IF(INTRO!$E$48="","",ROUND($D190*INTRO!$E$48,0)) -> 34731 | F190: =IF(INTRO!$E$49="","",ROUND($D190*INTRO!$E$49,0)) -> 71505 | G190: =IF(INTRO!$E$50="","",ROUND($D190*INTRO!$E$50,0)) -> 93978 | H190: 0 | I190: 1 | J190: 1 | K190: 1 | L190: 0 | M190: =IF(INTRO!$E$37="Endemic",IF($H190>0,IF($H190=4,"Unknown",IF($H190=99,"Stopped",$D190)),0),"Not required") -> 0 | N190: =IF(INTRO!$E$39="Endemic", IF($I190>0, IF($I190=4,"Unknown",IF($I190=99,"Stopped",$D190)), 0),"Not required") -> 204299.6348 | O190: =IF(INTRO!$E$41="Endemic", IF(AND($J190>1,$J190<5), IF($J190=4, "Unknown", E190+F190), 0),"Not required") -> 0 | P190: =IF(INTRO!$E$43="Endemic", IF(AND($K190>0,$K190<5), IF($K190=4,"Unknown", IF($K190=1, $F190*0.33, IF($K190=2, $F190*0.5+$G190*0.2, SUM(F190:G190)))), 0),"Not required") -> 23596.65 | Q190: 0 | R190: 1 | S190: 0 | T190: 1 | Y190: 14050 | Z190: Tshilundu
A191: =IF(INTRO!$E$33<>0,INTRO!$E$33, " ") -> DRC | B191: KASAI ORIENTAL | C191: Tshitenge | D191: 260915.6242 | E191: =IF(INTRO!$E$48="","",ROUND($D191*INTRO!$E$48,0)) -> 44356 | F191: =IF(INTRO!$E$49="","",ROUND($D191*INTRO!$E$49,0)) -> 91320 | G191: =IF(INTRO!$E$50="","",ROUND($D191*INTRO!$E$50,0)) -> 120021 | H191: 1 | I191: 1 | J191: 1 | K191: 2 | L191: 0 | M191: =IF(INTRO!$E$37="Endemic",IF($H191>0,IF($H191=4,"Unknown",IF($H191=99,"Stopped",$D191)),0),"Not required") -> 260915.6242 | N191: =IF(INTRO!$E$39="Endemic", IF($I191>0, IF($I191=4,"Unknown",IF($I191=99,"Stopped",$D191)), 0),"Not required") -> 260915.6242 | O191: =IF(INTRO!$E$41="Endemic", IF(AND($J191>1,$J191<5), IF($J191=4, "Unknown", E191+F191), 0),"Not required") -> 0 | P191: =IF(INTRO!$E$43="Endemic", IF(AND($K191>0,$K191<5), IF($K191=4,"Unknown", IF($K191=1, $F191*0.33, IF($K191=2, $F191*0.5+$G191*0.2, SUM(F191:G191)))), 0),"Not required") -> 69664.2 | Q191: 1 | R191: 1 | S191: 0 | T191: 1 | Y191: 14057 | Z191: Tshitenge
A192: =IF(INTRO!$E$33<>0,INTRO!$E$33, " ") -> DRC | B192: KASAI ORIENTAL | C192: Tshitshimbi | D192: 202488.6785 | E192: =IF(INTRO!$E$48="","",ROUND($D192*INTRO!$E$48,0)) -> 34423 | F192: =IF(INTRO!$E$49="","",ROUND($D192*INTRO!$E$49,0)) -> 70871 | G192: =IF(INTRO!$E$50="","",ROUND($D192*INTRO!$E$50,0)) -> 93145 | H192: 0 | I192: 1 | J192: 1 | K192: 2 | L192: 0 | M192: =IF(INTRO!$E$37="Endemic",IF($H192>0,IF($H192=4,"Unknown",IF($H192=99,"Stopped",$D192)),0),"Not required") -> 0 | N192: =IF(INTRO!$E$39="Endemic", IF($I192>0, IF($I192=4,"Unknown",IF($I192=99,"Stopped",$D192)), 0),"Not required") -> 202488.6785 | O192: =IF(INTRO!$E$41="Endemic", IF(AND($J192>1,$J192<5), IF($J192=4, "Unknown", E192+F192), 0),"Not required") -> 0 | P192: =IF(INTRO!$E$43="Endemic", IF(AND($K192>0,$K192<5), IF($K192=4,"Unknown", IF($K192=1, $F192*0.33, IF($K192=2, $F192*0.5+$G192*0.2, SUM(F192:G192)))), 0),"Not required") -> 54064.5 | Q192: 0 | R192: 1 | S192: 0 | T192: 1 | Y192: 14051 | Z192: Tshitshimbi
A193: =IF(INTRO!$E$33<>0,INTRO!$E$33, " ") -> DRC | B193: KINSHASA | C193: Bandalungwa | D193: 202267.28 | E193: =IF(INTRO!$E$48="","",ROUND($D193*INTRO!$E$48,0)) -> 34385 | F193: =IF(INTRO!$E$49="","",ROUND($D193*INTRO!$E$49,0)) -> 70794 | G193: =IF(INTRO!$E$50="","",ROUND($D193*INTRO!$E$50,0)) -> 93043 | H193: 0 | I193: 0 | J193: 3 | K193: 1 | L193: 1 | M193: =IF(INTRO!$E$37="Endemic",IF($H193>0,IF($H193=4,"Unknown",IF($H193=99,"Stopped",$D193)),0),"Not required") -> 0 | N193: =IF(INTRO!$E$39="Endemic", IF($I193>0, IF($I193=4,"Unknown",IF($I193=99,"Stopped",$D193)), 0),"Not required") -> 0 | O193: =IF(INTRO!$E$41="Endemic", IF(AND($J193>1,$J193<5), IF($J193=4, "Unknown", E193+F193), 0),"Not required") -> 105179 | P193: =IF(INTRO!$E$43="Endemic", IF(AND($K193>0,$K193<5), IF($K193=4,"Unknown", IF($K193=1, $F193*0.33, IF($K193=2, $F193*0.5+$G193*0.2, SUM(F193:G193)))), 0),"Not required") -> 23362.02 | Q193: 0 | R193: 0 | S193: 0 | T193: 0 | Y193: 14126 | Z193: Bandalungwa
A194: =IF(INTRO!$E$33<>0,INTRO!$E$33, " ") -> DRC | B194: KINSHASA | C194: Barumbu | D194: 169083.77 | E194: =IF(INTRO!$E$48="","",ROUND($D194*INTRO!$E$48,0)) -> 28744 | F194: =IF(INTRO!$E$49="","",ROUND($D194*INTRO!$E$49,0)) -> 59179 | G194: =IF(INTRO!$E$50="","",ROUND($D194*INTRO!$E$50,0)) -> 77779 | H194: 0 | I194: 0 | J194: 3 | K194: 1 | L194: 1 | M194: =IF(INTRO!$E$37="Endemic",IF($H194>0,IF($H194=4,"Unknown",IF($H194=99,"Stopped",$D194)),0),"Not required") -> 0 | N194: =IF(INTRO!$E$39="Endemic", IF($I194>0, IF($I194=4,"Unknown",IF($I194=99,"Stopped",$D194)), 0),"Not required") -> 0 | O194: =IF(INTRO!$E$41="Endemic", IF(AND($J194>1,$J194<5), IF($J194=4, "Unknown", E194+F194), 0),"Not required") -> 87923 | P194: =IF(INTRO!$E$43="Endemic", IF(AND($K194>0,$K194<5), IF($K194=4,"Unknown", IF($K194=1, $F194*0.33, IF($K194=2, $F194*0.5+$G194*0.2, SUM(F194:G194)))), 0),"Not required") -> 19529.07 | Q194: 0 | R194: 0 | S194: 0 | T194: 0 | Y194: 14127 | Z194: Barumbu
A195: =IF(INTRO!$E$33<>0,INTRO!$E$33, " ") -> DRC | B195: KINSHASA | C195: Binza-Metéo | D195: 447038.54 | E195: =IF(INTRO!$E$48="","",ROUND($D195*INTRO!$E$48,0)) -> 75997 | F195: =IF(INTRO!$E$49="","",ROUND($D195*INTRO!$E$49,0)) -> 156463 | G195: =IF(INTRO!$E$50="","",ROUND($D195*INTRO!$E$50,0)) -> 205638 | H195: 0 | I195: 0 | J195: 3 | K195: 1 | L195: 1 | M195: =IF(INTRO!$E$37="Endemic",IF($H195>0,IF($H195=4,"Unknown",IF($H195=99,"Stopped",$D195)),0),"Not required") -> 0 | N195: =IF(INTRO!$E$39="Endemic", IF($I195>0, IF($I195=4,"Unknown",IF($I195=99,"Stopped",$D195)), 0),"Not required") -> 0 | O195: =IF(INTRO!$E$41="Endemic", IF(AND($J195>1,$J195<5), IF($J195=4, "Unknown", E195+F195), 0),"Not required") -> 232460 | P195: =IF(INTRO!$E$43="Endemic", IF(AND($K195>0,$K195<5), IF($K195=4,"Unknown", IF($K195=1, $F195*0.33, IF($K195=2, $F195*0.5+$G195*0.2, SUM(F195:G195)))), 0),"Not required") -> 51632.79 | Q195: 0 | R195: 0 | S195: 0 | T195: 0 | Y195: 14128 | Z195: Binza-Metéo
A196: =IF(INTRO!$E$33<>0,INTRO!$E$33, " ") -> DRC | B196: KINSHASA | C196: Binza-Ozone | D196: 46555.4747 | E196: =IF(INTRO!$E$48="","",ROUND($D196*INTRO!$E$48,0)) -> 7914 | F196: =IF(INTRO!$E$49="","",ROUND($D196*INTRO!$E$49,0)) -> 16294 | G196: =IF(INTRO!$E$50="","",ROUND($D196*INTRO!$E$50,0)) -> 21416 | H196: 0 | I196: 1 | J196: 3 | K196: 1 | L196: 1 | M196: =IF(INTRO!$E$37="Endemic",IF($H196>0,IF($H196=4,"Unknown",IF($H196=99,"Stopped",$D196)),0),"Not required") -> 0 | N196: =IF(INTRO!$E$39="Endemic", IF($I196>0, IF($I196=4,"Unknown",IF($I196=99,"Stopped",$D196)), 0),"Not required") -> 46555.4747 | O196: =IF(INTRO!$E$41="Endemic", IF(AND($J196>1,$J196<5), IF($J196=4, "Unknown", E196+F196), 0),"Not required") -> 24208 | P196: =IF(INTRO!$E$43="Endemic", IF(AND($K196>0,$K196<5), IF($K196=4,"Unknown", IF($K196=1, $F196*0.33, IF($K196=2, $F196*0.5+$G196*0.2, SUM(F196:G196)))), 0),"Not required") -> 5377.02 | Q196: 0 | R196: 1 | S196: 0 | T196: 0 | Y196: 14129 | Z196: Binza-Ozone
A197: =IF(INTRO!$E$33<>0,INTRO!$E$33, " ") -> DRC | B197: KINSHASA | C197: Biyela | D197: 250578.4 | E197: =IF(INTRO!$E$48="","",ROUND($D197*INTRO!$E$48,0)) -> 42598 | F197: =IF(INTRO!$E$49="","",ROUND($D197*INTRO!$E$49,0)) -> 87702 | G197: =IF(INTRO!$E$50="","",ROUND($D197*INTRO!$E$50,0)) -> 115266 | H197: 0 | I197: 0 | J197: 3 | K197: 1 | L197: 1 | M197: =IF(INTRO!$E$37="Endemic",IF($H197>0,IF($H197=4,"Unknown",IF($H197=99,"Stopped",$D197)),0),"Not required") -> 0 | N197: =IF(INTRO!$E$39="Endemic", IF($I197>0, IF($I197=4,"Unknown",IF($I197=99,"Stopped",$D197)), 0),"Not required") -> 0 | O197: =IF(INTRO!$E$41="Endemic", IF(AND($J197>1,$J197<5), IF($J197=4, "Unknown", E197+F197), 0),"Not required") -> 130300 | P197: =IF(INTRO!$E$43="Endemic", IF(AND($K197>0,$K197<5), IF($K197=4,"Unknown", IF($K197=1, $F197*0.33, IF($K197=2, $F197*0.5+$G197*0.2, SUM(F197:G197)))), 0),"Not required") -> 28941.66 | Q197: 0 | R197: 0 | S197: 0 | T197: 0 | Y197: 14130 | Z197: Biyela
A198: =IF(INTRO!$E$33<>0,INTRO!$E$33, " ") -> DRC | B198: KINSHASA | C198: Bumbu | D198: 461337 | E198: =IF(INTRO!$E$48="","",ROUND($D198*INTRO!$E$48,0)) -> 78427 | F198: =IF(INTRO!$E$49="","",ROUND($D198*INTRO!$E$49,0)) -> 161468 | G198: =IF(INTRO!$E$50="","",ROUND($D198*INTRO!$E$50,0)) -> 212215 | H198: 0 | I198: 0 | J198: 3 | K198: 1 | L198: 1 | M198: =IF(INTRO!$E$37="Endemic",IF($H198>0,IF($H198=4,"Unknown",IF($H198=99,"Stopped",$D198)),0),"Not required") -> 0 | N198: =IF(INTRO!$E$39="Endemic", IF($I198>0, IF($I198=4,"Unknown",IF($I198=99,"Stopped",$D198)), 0),"Not required") -> 0 | O198: =IF(INTRO!$E$41="Endemic", IF(AND($J198>1,$J198<5), IF($J198=4, "Unknown", E198+F198), 0),"Not required") -> 239895 | P198: =IF(INTRO!$E$43="Endemic", IF(AND($K198>0,$K198<5), IF($K198=4,"Unknown", IF($K198=1, $F198*0.33, IF($K198=2, $F198*0.5+$G198*0.2, SUM(F198:G198)))), 0),"Not required") -> 53284.44 | Q198: 0 | R198: 0 | S198: 0 | T198: 0 | Y198: 14131 | Z198: Bumbu
A199: =IF(INTRO!$E$33<>0,INTRO!$E$33, " ") -> DRC | B199: KINSHASA | C199: Gombe | D199: 36299.26 | E199: =IF(INTRO!$E$48="","",ROUND($D199*INTRO!$E$48,0)) -> 6171 | F199: =IF(INTRO!$E$49="","",ROUND($D199*INTRO!$E$49,0)) -> 12705 | G199: =IF(INTRO!$E$50="","",ROUND($D199*INTRO!$E$50,0)) -> 16698 | H199: 0 | I199: 0 | J199: 3 | K199: 1 | L199: 0 | M199: =IF(INTRO!$E$37="Endemic",IF($H199>0,IF($H199=4,"Unknown",IF($H199=99,"Stopped",$D199)),0),"Not required") -> 0 | N199: =IF(INTRO!$E$39="Endemic", IF($I199>0, IF($I199=4,"Unknown",IF($I199=99,"Stopped",$D199)), 0),"Not required") -> 0 | O199: =IF(INTRO!$E$41="Endemic", IF(AND($J199>1,$J199<5), IF($J199=4, "Unknown", E199+F199), 0),"Not required") -> 18876 | P199: =IF(INTRO!$E$43="Endemic", IF(AND($K199>0,$K199<5), IF($K199=4,"Unknown", IF($K199=1, $F199*0.33, IF($K199=2, $F199*0.5+$G199*0.2, SUM(F199:G199)))), 0),"Not required") -> 4192.65 | Q199: 0 | R199: 0 | S199: 0 | T199: 0 | Y199: 14132 | Z199: Gombe
A200: =IF(INTRO!$E$33<>0,INTRO!$E$33, " ") -> DRC | B200: KINSHASA | C200: Kalamu I | D200: 162390.83 | E200: =IF(INTRO!$E$48="","",ROUND($D200*INTRO!$E$48,0)) -> 27606 | F200: =IF(INTRO!$E$49="","",ROUND($D200*INTRO!$E$49,0)) -> 56837 | G200: =IF(INTRO!$E$50="","",ROUND($D200*INTRO!$E$50,0)) -> 74700 | H200: 0 | I200: 0 | J200: 3 | K200: 1 | L200: 0 | M200: =IF(INTRO!$E$37="Endemic",IF($H200>0,IF($H200=4,"Unknown",IF($H200=99,"Stopped",$D200)),0),"Not required") -> 0 | N200: =IF(INTRO!$E$39="Endemic", IF($I200>0, IF($I200=4,"Unknown",IF($I200=99,"Stopped",$D200)), 0),"Not required") -> 0 | O200: =IF(INTRO!$E$41="Endemic", IF(AND($J200>1,$J200<5), IF($J200=4, "Unknown", E200+F200), 0),"Not required") -> 84443 | P200: =IF(INTRO!$E$43="Endemic", IF(AND($K200>0,$K200<5), IF($K200=4,"Unknown", IF($K200=1, $F200*0.33, IF($K200=2, $F200*0.5+$G200*0.2, SUM(F200:G200)))), 0),"Not required") -> 18756.21 | Q200: 0 | R200: 0 | S200: 0 | T200: 0 | Y200: 14133 | Z200: Kalamu I
A201: =IF(INTRO!$E$33<>0,INTRO!$E$33, " ") -> DRC | B201: KINSHASA | C201: Kalamu II | D201: 144943.66 | E201: =IF(INTRO!$E$48="","",ROUND($D201*INTRO!$E$48,0)) -> 24640 | F201: =IF(INTRO!$E$49="","",ROUND($D201*INTRO!$E$49,0)) -> 50730 | G201: =IF(INTRO!$E$50="","",ROUND($D201*INTRO!$E$50,0)) -> 66674 | H201: 0 | I201: 0 | J201: 3 | K201: 1 | L201: 0 | M201: =IF(INTRO!$E$37="Endemic",IF($H201>0,IF($H201=4,"Unknown",IF($H201=99,"Stopped",$D201)),0),"Not required") -> 0 | N201: =IF(INTRO!$E$39="Endemic", IF($I201>0, IF($I201=4,"Unknown",IF($I201=99,"Stopped",$D201)), 0),"Not required") -> 0 | O201: =IF(INTRO!$E$41="Endemic", IF(AND($J201>1,$J201<5), IF($J201=4, "Unknown", E201+F201), 0),"Not required") -> 75370 | P201: =IF(INTRO!$E$43="Endemic", IF(AND($K201>0,$K201<5), IF($K201=4,"Unknown", IF($K201=1, $F201*0.33, IF($K201=2, $F201*0.5+$G201*0.2, SUM(F201:G201)))), 0),"Not required") -> 16740.9 | Q201: 0 | R201: 0 | S201: 0 | T201: 0 | Y201: 14134 | Z201: Kalamu II
A202: =IF(INTRO!$E$33<>0,INTRO!$E$33, " ") -> DRC | B202: KINSHASA | C202: Kasa Vubu | D202: 147924.48 | E202: =IF(INTRO!$E$48="","",ROUND($D202*INTRO!$E$48,0)) -> 25147 | F202: =IF(INTRO!$E$49="","",ROUND($D202*INTRO!$E$49,0)) -> 51774 | G202: =IF(INTRO!$E$50="","",ROUND($D202*INTRO!$E$50,0)) -> 68045 | H202: 0 | I202: 0 | J202: 3 | K202: 1 | L202: 0 | M202: =IF(INTRO!$E$37="Endemic",IF($H202>0,IF($H202=4,"Unknown",IF($H202=99,"Stopped",$D202)),0),"Not required") -> 0 | N202: =IF(INTRO!$E$39="Endemic", IF($I202>0, IF($I202=4,"Unknown",IF($I202=99,"Stopped",$D202)), 0),"Not required") -> 0 | O202: =IF(INTRO!$E$41="Endemic", IF(AND($J202>1,$J202<5), IF($J202=4, "Unknown", E202+F202), 0),"Not required") -> 76921 | P202: =IF(INTRO!$E$43="Endemic", IF(AND($K202>0,$K202<5), IF($K202=4,"Unknown", IF($K202=1, $F202*0.33, IF($K202=2, $F202*0.5+$G202*0.2, SUM(F202:G202)))), 0),"Not required") -> 17085.42 | Q202: 0 | R202: 0 | S202: 0 | T202: 0 | Y202: 14135 | Z202: Kasa Vubu
A203: =IF(INTRO!$E$33<>0,INTRO!$E$33, " ") -> DRC | B203: KINSHASA | C203: Kikimi | D203: 286193.74 | E203: =IF(INTRO!$E$48="","",ROUND($D203*INTRO!$E$48,0)) -> 48653 | F203: =IF(INTRO!$E$49="","",ROUND($D203*INTRO!$E$49,0)) -> 100168 | G203: =IF(INTRO!$E$50="","",ROUND($D203*INTRO!$E$50,0)) -> 131649 | H203: 0 | I203: 0 | J203: 3 | K203: 1 | L203: 1 | M203: =IF(INTRO!$E$37="Endemic",IF($H203>0,IF($H203=4,"Unknown",IF($H203=99,"Stopped",$D203)),0),"Not required") -> 0 | N203: =IF(INTRO!$E$39="Endemic", IF($I203>0, IF($I203=4,"Unknown",IF($I203=99,"Stopped",$D203)), 0),"Not required") -> 0 | O203: =IF(INTRO!$E$41="Endemic", IF(AND($J203>1,$J203<5), IF($J203=4, "Unknown", E203+F203), 0),"Not required") -> 148821 | P203: =IF(INTRO!$E$43="Endemic", IF(AND($K203>0,$K203<5), IF($K203=4,"Unknown", IF($K203=1, $F203*0.33, IF($K203=2, $F203*0.5+$G203*0.2, SUM(F203:G203)))), 0),"Not required") -> 33055.44 | Q203: 0 | R203: 0 | S203: 0 | T203: 0 | Y203: 14136 | Z203: Kikimi
... 324 more rows

Sheet ALB_MBD
A1: Albendazole (ALB) and Mebendazole (MBD)
A2: Administrative structure, eligible population by age group, treatment plan and information about tablets
A4: TOTAL | D4: =SUM(D$9:D$1000) -> 16993145 | E4: =SUM(E$9:E$1000) -> 34985892 | F4: =SUM(F$9:F$1000) -> 51979037 | I4: =SUM(I$9:I$1000) -> 28052267 | J4: =SUM(J$9:J$1000) -> 8568256 | M4: =SUM(M$9:M$1000) -> 12010136 | N4: =SUM(N$9:N$1000) -> 14463152 | O4: =SUM(O$9:O$1000) -> 0 | P4: =SUM(P$9:P$1000) -> 26473288 | Q4: =SUM(Q$9:Q$1000) -> 0 | R4: =SUM(R$9:R$1000) -> 0 | S4: 0 | T4: 0 | U4: 0 | V4: 45188779 | W4: 226062 | X4: 0 | Y4: 14463152 | Z4: 72403 | AA4: 0 | AB4: 0 | AC4: 0
A6: Country administrative structure | D6: Population requiring treatment with ALB/MBD | G6: Treatment plan | I6: People covered by PELF with ALB | J6: Loa endemic areas | L6: Select medicine for treatment of STH | M6: Target population | U6: Albendazole (ALB) | AA6: Mebendazole (MBD)
A7: Country | B7: Province/State | C7: District | D7: PreSAC | E7: SAC | F7: Total | G7: LF | H7: STH | J7: Population | K7: Rounds planned | M7: STH (ALB) | Q7: STH (MBD) | U7: Remaining in stock (LF) | V7: Tablets to be procured (LF) | W7: Bottle (400 mg) 200 tablets (LF) | X7: Remaining in stock (STH) | Y7: Tablets to be procured for SAC (STH) | Z7: Bottle (400 mg) 200 tablets (STH) | AA7: Remaining in stock | AB7: Tablets to be procured for SAC | AC7: Bottles (500 mg) 150 tablets
M8: PreSAC | N8: SAC | O8: Other | P8: Total | Q8: PreSAC | R8: SAC | S8: Other | T8: Total
A9: =IF(AND(INTRO!$E$37="Non-endemic",INTRO!$E$41="Non-endemic")," ",IF(COUNTRY_INFO!A9=0," ",COUNTRY_INFO!A9)) -> DRC | B9: =IF(AND(INTRO!$E$37="Non-endemic",INTRO!$E$41="Non-endemic")," ",IF(COUNTRY_INFO!B9=0," ",COUNTRY_INFO!B9)) -> BAS UELE | C9: =IF(AND(INTRO!$E$37="Non-endemic",INTRO!$E$41="Non-endemic")," ",IF(COUNTRY_INFO!C9=0," ",COUNTRY_INFO!C9)) -> Aketi | D9: =IF(AND(INTRO!$E$37="Non-endemic",INTRO!$E$41="Non-endemic"),0,IF(AND(OR(COUNTRY_INFO!$H9=0,COUNTRY_INFO!$H9=4,COUNTRY_INFO!$H9=99),OR(COUNTRY_INFO!$J9=0,COUNTRY_INFO!$J9=4)),0,COUNTRY_INFO!$E9)) -> 23264 | E9: =IF(AND(INTRO!$E$37="Non-endemic",INTRO!$E$41="Non-endemic"),0,IF(AND(OR(COUNTRY_INFO!$H9=0,COUNTRY_INFO!$H9=4,COUNTRY_INFO!$H9=99),OR(COUNTRY_INFO!$J9=0,COUNTRY_INFO!$J9=4)),0,COUNTRY_INFO!$F9)) -> 47896 | F9: =SUM(D9:E9) -> 71160 | G9: =IF(AND(INTRO!$E$37="Non-endemic",INTRO!$E$41="Non-endemic"),0,COUNTRY_INFO!Q9) -> 1 | H9: =IF(AND(INTRO!$E$37="Non-endemic",INTRO!$E$41="Non-endemic"),0,COUNTRY_INFO!S9) -> 0 | I9: =IF($G9=1,IVM!$G9,0) -> 110845 | J9: =IF($G9=0, " ", IF(COUNTRY_INFO!$H9=1, IF(COUNTRY_INFO!$L9=1, 0," ")," ")) -> 0 | L9: ALB | M9: =IF($L9="ALB", IF(INTRO!$E$39="Non-endemic",IF($H9<>0,$D9*($H9-$G9),0),$D9*$H9), 0) -> 0 | N9: =IF($L9="ALB", IF($H9=0, 0, IF(AND($I9=0, OR($J9=0,$J9=" ")), $E9*$H9, IF(AND($I9=0, $J9>0), IF(($H9-$K9)<=0, 0, $E9*(MAX($H9,$K9)-MIN($H9,$K9))), IF(AND($I9>0, $J9=0), $E9*($H9-$G9), IF($J9=" ", 0, $J9*$E9/($I9+$J9)*$K9+$I9*$E9/($I9+$J9)*($H9-$G9)))))), 0) -> 0 | P9: =SUM(M9:O9) -> 0 | Q9: =IF($L9="MBD", IF(INTRO!$E$39="Non-endemic",IF($H9<>0,$D9*($H9-$G9),0),$D9*$H9),0) -> 0 | R9: =IF($L9="MBD", IF($H9<>0,IF($I9=0, $E9*$H9, $E9*($H9-$G9)),0), 0 ) -> 0 | T9: =SUM(Q9:S9) -> 0 | V9: =IF($J9<>" ", IF(($I9+$J9*$K9)>$U9, ($I9+$J9*$K9)-$U9,0), IF($I9>$U9, $I9-$U9, 0)) -> 110845 | W9: =IF($J9<>" ", ROUNDUP(($I9+$J9*$K9)/200,0), ROUNDUP($I9/200,0)) -> 555 | Y9: =IF($N9>$X9,$N9-$X9,0) -> 0 | Z9: =ROUNDUP($N9/200,0) -> 0 | AB9: =IF($R9>$AA9,$R9-$AA9,0) -> 0 | AC9: =ROUNDUP($R9/150,0) -> 0
A10: =IF(AND(INTRO!$E$37="Non-endemic",INTRO!$E$41="Non-endemic")," ",IF(COUNTRY_INFO!A10=0," ",COUNTRY_INFO!A10)) -> DRC | B10: =IF(AND(INTRO!$E$37="Non-endemic",INTRO!$E$41="Non-endemic")," ",IF(COUNTRY_INFO!B10=0," ",COUNTRY_INFO!B10)) -> BAS UELE | C10: =IF(AND(INTRO!$E$37="Non-endemic",INTRO!$E$41="Non-endemic")," ",IF(COUNTRY_INFO!C10=0," ",COUNTRY_INFO!C10)) -> Ango | D10: =IF(AND(INTRO!$E$37="Non-endemic",INTRO!$E$41="Non-endemic"),0,IF(AND(OR(COUNTRY_INFO!$H10=0,COUNTRY_INFO!$H10=4,COUNTRY_INFO!$H10=99),OR(COUNTRY_INFO!$J10=0,COUNTRY_INFO!$J10=4)),0,COUNTRY_INFO!$E10)) -> 21278 | E10: =IF(AND(INTRO!$E$37="Non-endemic",INTRO!$E$41="Non-endemic"),0,IF(AND(OR(COUNTRY_INFO!$H10=0,COUNTRY_INFO!$H10=4,COUNTRY_INFO!$H10=99),OR(COUNTRY_INFO!$J10=0,COUNTRY_INFO!$J10=4)),0,COUNTRY_INFO!$F10)) -> 43808 | F10: =SUM(D10:E10) -> 65086 | G10: =IF(AND(INTRO!$E$37="Non-endemic",INTRO!$E$41="Non-endemic"),0,COUNTRY_INFO!Q10) -> 0 | H10: =IF(AND(INTRO!$E$37="Non-endemic",INTRO!$E$41="Non-endemic"),0,COUNTRY_INFO!S10) -> 2 | I10: =IF($G10=1,IVM!$G10,0) -> 0 | J10: =IF($G10=0, " ", IF(COUNTRY_INFO!$H10=1, IF(COUNTRY_INFO!$L10=1, 0," ")," ")) ->  | L10: ALB | M10: =IF($L10="ALB", IF(INTRO!$E$39="Non-endemic",IF($H10<>0,$D10*($H10-$G10),0),$D10*$H10), 0) -> 42556 | N10: 87616 | P10: =SUM(M10:O10) -> 130172 | Q10: =IF($L10="MBD", IF(INTRO!$E$39="Non-endemic",IF($H10<>0,$D10*($H10-$G10),0),$D10*$H10),0) -> 0 | R10: 0 | T10: =SUM(Q10:S10) -> 0 | V10: 0 | W10: 0 | Y10: 87616 | Z10: 439 | AB10: 0 | AC10: 0
A11: =IF(AND(INTRO!$E$37="Non-endemic",INTRO!$E$41="Non-endemic")," ",IF(COUNTRY_INFO!A11=0," ",COUNTRY_INFO!A11)) -> DRC | B11: =IF(AND(INTRO!$E$37="Non-endemic",INTRO!$E$41="Non-endemic")," ",IF(COUNTRY_INFO!B11=0," ",COUNTRY_INFO!B11)) -> BAS UELE | C11: =IF(AND(INTRO!$E$37="Non-endemic",INTRO!$E$41="Non-endemic")," ",IF(COUNTRY_INFO!C11=0," ",COUNTRY_INFO!C11)) -> Bili (Bas-Ueles) | D11: =IF(AND(INTRO!$E$37="Non-endemic",INTRO!$E$41="Non-endemic"),0,IF(AND(OR(COUNTRY_INFO!$H11=0,COUNTRY_INFO!$H11=4,COUNTRY_INFO!$H11=99),OR(COUNTRY_INFO!$J11=0,COUNTRY_INFO!$J11=4)),0,COUNTRY_INFO!$E11)) -> 12692 | E11: =IF(AND(INTRO!$E$37="Non-endemic",INTRO!$E$41="Non-endemic"),0,IF(AND(OR(COUNTRY_INFO!$H11=0,COUNTRY_INFO!$H11=4,COUNTRY_INFO!$H11=99),OR(COUNTRY_INFO!$J11=0,COUNTRY_INFO!$J11=4)),0,COUNTRY_INFO!$F11)) -> 26130 | F11: 38822 | G11: =IF(AND(INTRO!$E$37="Non-endemic",INTRO!$E$41="Non-endemic"),0,COUNTRY_INFO!Q11) -> 0 | H11: =IF(AND(INTRO!$E$37="Non-endemic",INTRO!$E$41="Non-endemic"),0,COUNTRY_INFO!S11) -> 1 | I11: =IF($G11=1,IVM!$G11,0) -> 0 | J11: =IF($G11=0, " ", IF(COUNTRY_INFO!$H11=1, IF(COUNTRY_INFO!$L11=1, 0," ")," ")) ->  | L11: ALB | M11: =IF($L11="ALB", IF(INTRO!$E$39="Non-endemic",IF($H11<>0,$D11*($H11-$G11),0),$D11*$H11), 0) -> 12692 | N11: 26130 | P11: 38822 | Q11: =IF($L11="MBD", IF(INTRO!$E$39="Non-endemic",IF($H11<>0,$D11*($H11-$G11),0),$D11*$H11),0) -> 0 | R11: 0 | T11: 0 | V11: 0 | W11: 0 | Y11: 26130 | Z11: 131 | AB11: 0 | AC11: 0
A12: =IF(AND(INTRO!$E$37="Non-endemic",INTRO!$E$41="Non-endemic")," ",IF(COUNTRY_INFO!A12=0," ",COUNTRY_INFO!A12)) -> DRC | B12: =IF(AND(INTRO!$E$37="Non-endemic",INTRO!$E$41="Non-endemic")," ",IF(COUNTRY_INFO!B12=0," ",COUNTRY_INFO!B12)) -> BAS UELE | C12: =IF(AND(INTRO!$E$37="Non-endemic",INTRO!$E$41="Non-endemic")," ",IF(COUNTRY_INFO!C12=0," ",COUNTRY_INFO!C12)) -> Bondo | D12: =IF(AND(INTRO!$E$37="Non-endemic",INTRO!$E$41="Non-endemic"),0,IF(AND(OR(COUNTRY_INFO!$H12=0,COUNTRY_INFO!$H12=4,COUNTRY_INFO!$H12=99),OR(COUNTRY_INFO!$J12=0,COUNTRY_INFO!$J12=4)),0,COUNTRY_INFO!$E12)) -> 25071 | E12: =IF(AND(INTRO!$E$37="Non-endemic",INTRO!$E$41="Non-endemic"),0,IF(AND(OR(COUNTRY_INFO!$H12=0,COUNTRY_INFO!$H12=4,COUNTRY_INFO!$H12=99),OR(COUNTRY_INFO!$J12=0,COUNTRY_INFO!$J12=4)),0,COUNTRY_INFO!$F12)) -> 51617 | F12: 76688 | G12: =IF(AND(INTRO!$E$37="Non-endemic",INTRO!$E$41="Non-endemic"),0,COUNTRY_INFO!Q12) -> 1 | H12: =IF(AND(INTRO!$E$37="Non-endemic",INTRO!$E$41="Non-endemic"),0,COUNTRY_INFO!S12) -> 1 | I12: =IF($G12=1,IVM!$G12,0) -> 119456 | J12: =IF($G12=0, " ", IF(COUNTRY_INFO!$H12=1, IF(COUNTRY_INFO!$L12=1, 0," ")," ")) -> 0 | L12: ALB | M12: =IF($L12="ALB", IF(INTRO!$E$39="Non-endemic",IF($H12<>0,$D12*($H12-$G12),0),$D12*$H12), 0) -> 25071 | N12: 0 | P12: 25071 | Q12: =IF($L12="MBD", IF(INTRO!$E$39="Non-endemic",IF($H12<>0,$D12*($H12-$G12),0),$D12*$H12),0) -> 0 | R12: 0 | T12: 0 | V12: 119456 | W12: 598 | Y12: 0 | Z12: 0 | AB12: 0 | AC12: 0
A13: =IF(AND(INTRO!$E$37="Non-endemic",INTRO!$E$41="Non-endemic")," ",IF(COUNTRY_INFO!A13=0," ",COUNTRY_INFO!A13)) -> DRC | B13: =IF(AND(INTRO!$E$37="Non-endemic",INTRO!$E$41="Non-endemic")," ",IF(COUNTRY_INFO!B13=0," ",COUNTRY_INFO!B13)) -> BAS UELE | C13: =IF(AND(INTRO!$E$37="Non-endemic",INTRO!$E$41="Non-endemic")," ",IF(COUNTRY_INFO!C13=0," ",COUNTRY_INFO!C13)) -> Buta | D13: =IF(AND(INTRO!$E$37="Non-endemic",INTRO!$E$41="Non-endemic"),0,IF(AND(OR(COUNTRY_INFO!$H13=0,COUNTRY_INFO!$H13=4,COUNTRY_INFO!$H13=99),OR(COUNTRY_INFO!$J13=0,COUNTRY_INFO!$J13=4)),0,COUNTRY_INFO!$E13)) -> 36583 | E13: =IF(AND(INTRO!$E$37="Non-endemic",INTRO!$E$41="Non-endemic"),0,IF(AND(OR(COUNTRY_INFO!$H13=0,COUNTRY_INFO!$H13=4,COUNTRY_INFO!$H13=99),OR(COUNTRY_INFO!$J13=0,COUNTRY_INFO!$J13=4)),0,COUNTRY_INFO!$F13)) -> 75318 | F13: 111901 | G13: =IF(AND(INTRO!$E$37="Non-endemic",INTRO!$E$41="Non-endemic"),0,COUNTRY_INFO!Q13) -> 1 | H13: =IF(AND(INTRO!$E$37="Non-endemic",INTRO!$E$41="Non-endemic"),0,COUNTRY_INFO!S13) -> 1 | I13: =IF($G13=1,IVM!$G13,0) -> 174307 | J13: =IF($G13=0, " ", IF(COUNTRY_INFO!$H13=1, IF(COUNTRY_INFO!$L13=1, 0," ")," ")) -> 0 | L13: ALB | M13: =IF($L13="ALB", IF(INTRO!$E$39="Non-endemic",IF($H13<>0,$D13*($H13-$G13),0),$D13*$H13), 0) -> 36583 | N13: 0 | P13: 36583 | Q13: =IF($L13="MBD", IF(INTRO!$E$39="Non-endemic",IF($H13<>0,$D13*($H13-$G13),0),$D13*$H13),0) -> 0 | R13: 0 | T13: 0 | V13: 174307 | W13: 872 | Y13: 0 | Z13: 0 | AB13: 0 | AC13: 0
A14: =IF(AND(INTRO!$E$37="Non-endemic",INTRO!$E$41="Non-endemic")," ",IF(COUNTRY_INFO!A14=0," ",COUNTRY_INFO!A14)) -> DRC | B14: =IF(AND(INTRO!$E$37="Non-endemic",INTRO!$E$41="Non-endemic")," ",IF(COUNTRY_INFO!B14=0," ",COUNTRY_INFO!B14)) -> BAS UELE | C14: =IF(AND(INTRO!$E$37="Non-endemic",INTRO!$E$41="Non-endemic")," ",IF(COUNTRY_INFO!C14=0," ",COUNTRY_INFO!C14)) -> Dingela | D14: =IF(AND(INTRO!$E$37="Non-endemic",INTRO!$E$41="Non-endemic"),0,IF(AND(OR(COUNTRY_INFO!$H14=0,COUNTRY_INFO!$H14=4,COUNTRY_INFO!$H14=99),OR(COUNTRY_INFO!$J14=0,COUNTRY_INFO!$J14=4)),0,COUNTRY_INFO!$E14)) -> 24642 | E14: =IF(AND(INTRO!$E$37="Non-endemic",INTRO!$E$41="Non-endemic"),0,IF(AND(OR(COUNTRY_INFO!$H14=0,COUNTRY_INFO!$H14=4,COUNTRY_INFO!$H14=99),OR(COUNTRY_INFO!$J14=0,COUNTRY_INFO!$J14=4)),0,COUNTRY_INFO!$F14)) -> 50734 | F14: 75376 | G14: =IF(AND(INTRO!$E$37="Non-endemic",INTRO!$E$41="Non-endemic"),0,COUNTRY_INFO!Q14) -> 0 | H14: =IF(AND(INTRO!$E$37="Non-endemic",INTRO!$E$41="Non-endemic"),0,COUNTRY_INFO!S14) -> 2 | I14: =IF($G14=1,IVM!$G14,0) -> 0 | J14: =IF($G14=0, " ", IF(COUNTRY_INFO!$H14=1, IF(COUNTRY_INFO!$L14=1, 0," ")," ")) ->  | L14: ALB | M14: =IF($L14="ALB", IF(INTRO!$E$39="Non-endemic",IF($H14<>0,$D14*($H14-$G14),0),$D14*$H14), 0) -> 49284 | N14: 101468 | P14: 150752 | Q14: =IF($L14="MBD", IF(INTRO!$E$39="Non-endemic",IF($H14<>0,$D14*($H14-$G14),0),$D14*$H14),0) -> 0 | R14: 0 | T14: 0 | V14: 0 | W14: 0 | Y14: 101468 | Z14: 508 | AB14: 0 | AC14: 0
A15: =IF(AND(INTRO!$E$37="Non-endemic",INTRO!$E$41="Non-endemic")," ",IF(COUNTRY_INFO!A15=0," ",COUNTRY_INFO!A15)) -> DRC | B15: =IF(AND(INTRO!$E$37="Non-endemic",INTRO!$E$41="Non-endemic")," ",IF(COUNTRY_INFO!B15=0," ",COUNTRY_INFO!B15)) -> BAS UELE | C15: =IF(AND(INTRO!$E$37="Non-endemic",INTRO!$E$41="Non-endemic")," ",IF(COUNTRY_INFO!C15=0," ",COUNTRY_INFO!C15)) -> Likati | D15: =IF(AND(INTRO!$E$37="Non-endemic",INTRO!$E$41="Non-endemic"),0,IF(AND(OR(COUNTRY_INFO!$H15=0,COUNTRY_INFO!$H15=4,COUNTRY_INFO!$H15=99),OR(COUNTRY_INFO!$J15=0,COUNTRY_INFO!$J15=4)),0,COUNTRY_INFO!$E15)) -> 14732 | E15: =IF(AND(INTRO!$E$37="Non-endemic",INTRO!$E$41="Non-endemic"),0,IF(AND(OR(COUNTRY_INFO!$H15=0,COUNTRY_INFO!$H15=4,COUNTRY_INFO!$H15=99),OR(COUNTRY_INFO!$J15=0,COUNTRY_INFO!$J15=4)),0,COUNTRY_INFO!$F15)) -> 30330 | F15: 45062 | G15: =IF(AND(INTRO!$E$37="Non-endemic",INTRO!$E$41="Non-endemic"),0,COUNTRY_INFO!Q15) -> 1 | H15: =IF(AND(INTRO!$E$37="Non-endemic",INTRO!$E$41="Non-endemic"),0,COUNTRY_INFO!S15) -> 0 | I15: =IF($G15=1,IVM!$G15,0) -> 70192 | J15: =IF($G15=0, " ", IF(COUNTRY_INFO!$H15=1, IF(COUNTRY_INFO!$L15=1, 0," ")," ")) -> 0 | L15: ALB | M15: =IF($L15="ALB", IF(INTRO!$E$39="Non-endemic",IF($H15<>0,$D15*($H15-$G15),0),$D15*$H15), 0) -> 0 | N15: 0 | P15: 0 | Q15: =IF($L15="MBD", IF(INTRO!$E$39="Non-endemic",IF($H15<>0,$D15*($H15-$G15),0),$D15*$H15),0) -> 0 | R15: 0 | T15: 0 | V15: 70192 | W15: 351 | Y15: 0 | Z15: 0 | AB15: 0 | AC15: 0
A16: =IF(AND(INTRO!$E$37="Non-endemic",INTRO!$E$41="Non-endemic")," ",IF(COUNTRY_INFO!A16=0," ",COUNTRY_INFO!A16)) -> DRC | B16: =IF(AND(INTRO!$E$37="Non-endemic",INTRO!$E$41="Non-endemic")," ",IF(COUNTRY_INFO!B16=0," ",COUNTRY_INFO!B16)) -> BAS UELE | C16: =IF(AND(INTRO!$E$37="Non-endemic",INTRO!$E$41="Non-endemic")," ",IF(COUNTRY_INFO!C16=0," ",COUNTRY_INFO!C16)) -> Monga | D16: =IF(AND(INTRO!$E$37="Non-endemic",INTRO!$E$41="Non-endemic"),0,IF(AND(OR(COUNTRY_INFO!$H16=0,COUNTRY_INFO!$H16=4,COUNTRY_INFO!$H16=99),OR(COUNTRY_INFO!$J16=0,COUNTRY_INFO!$J16=4)),0,COUNTRY_INFO!$E16)) -> 16052 | E16: =IF(AND(INTRO!$E$37="Non-endemic",INTRO!$E$41="Non-endemic"),0,IF(AND(OR(COUNTRY_INFO!$H16=0,COUNTRY_INFO!$H16=4,COUNTRY_INFO!$H16=99),OR(COUNTRY_INFO!$J16=0,COUNTRY_INFO!$J16=4)),0,COUNTRY_INFO!$F16)) -> 33049 | F16: 49101 | G16: =IF(AND(INTRO!$E$37="Non-endemic",INTRO!$E$41="Non-endemic"),0,COUNTRY_INFO!Q16) -> 1 | H16: =IF(AND(INTRO!$E$37="Non-endemic",INTRO!$E$41="Non-endemic"),0,COUNTRY_INFO!S16) -> 1 | I16: =IF($G16=1,IVM!$G16,0) -> 76485 | J16: =IF($G16=0, " ", IF(COUNTRY_INFO!$H16=1, IF(COUNTRY_INFO!$L16=1, 0," ")," ")) -> 0 | L16: ALB | M16: =IF($L16="ALB", IF(INTRO!$E$39="Non-endemic",IF($H16<>0,$D16*($H16-$G16),0),$D16*$H16), 0) -> 16052 | N16: 0 | P16: 16052 | Q16: =IF($L16="MBD", IF(INTRO!$E$39="Non-endemic",IF($H16<>0,$D16*($H16-$G16),0),$D16*$H16),0) -> 0 | R16: 0 | T16: 0 | V16: 76485 | W16: 383 | Y16: 0 | Z16: 0 | AB16: 0 | AC16: 0
A17: =IF(AND(INTRO!$E$37="Non-endemic",INTRO!$E$41="Non-endemic")," ",IF(COUNTRY_INFO!A17=0," ",COUNTRY_INFO!A17)) -> DRC | B17: =IF(AND(INTRO!$E$37="Non-endemic",INTRO!$E$41="Non-endemic")," ",IF(COUNTRY_INFO!B17=0," ",COUNTRY_INFO!B17)) -> BAS UELE | C17: =IF(AND(INTRO!$E$37="Non-endemic",INTRO!$E$41="Non-endemic")," ",IF(COUNTRY_INFO!C17=0," ",COUNTRY_INFO!C17)) -> Poko | D17: =IF(AND(INTRO!$E$37="Non-endemic",INTRO!$E$41="Non-endemic"),0,IF(AND(OR(COUNTRY_INFO!$H17=0,COUNTRY_INFO!$H17=4,COUNTRY_INFO!$H17=99),OR(COUNTRY_INFO!$J17=0,COUNTRY_INFO!$J17=4)),0,COUNTRY_INFO!$E17)) -> 24711 | E17: =IF(AND(INTRO!$E$37="Non-endemic",INTRO!$E$41="Non-endemic"),0,IF(AND(OR(COUNTRY_INFO!$H17=0,COUNTRY_INFO!$H17=4,COUNTRY_INFO!$H17=99),OR(COUNTRY_INFO!$J17=0,COUNTRY_INFO!$J17=4)),0,COUNTRY_INFO!$F17)) -> 50876 | F17: 75587 | G17: =IF(AND(INTRO!$E$37="Non-endemic",INTRO!$E$41="Non-endemic"),0,COUNTRY_INFO!Q17) -> 1 | H17: =IF(AND(INTRO!$E$37="Non-endemic",INTRO!$E$41="Non-endemic"),0,COUNTRY_INFO!S17) -> 1 | I17: =IF($G17=1,IVM!$G17,0) -> 117742 | J17: =IF($G17=0, " ", IF(COUNTRY_INFO!$H17=1, IF(COUNTRY_INFO!$L17=1, 0," ")," ")) -> 0 | L17: ALB | M17: =IF($L17="ALB", IF(INTRO!$E$39="Non-endemic",IF($H17<>0,$D17*($H17-$G17),0),$D17*$H17), 0) -> 24711 | N17: 0 | P17: 24711 | Q17: =IF($L17="MBD", IF(INTRO!$E$39="Non-endemic",IF($H17<>0,$D17*($H17-$G17),0),$D17*$H17),0) -> 0 | R17: 0 | T17: 0 | V17: 117742 | W17: 589 | Y17: 0 | Z17: 0 | AB17: 0 | AC17: 0
A18: =IF(AND(INTRO!$E$37="Non-endemic",INTRO!$E$41="Non-endemic")," ",IF(COUNTRY_INFO!A18=0," ",COUNTRY_INFO!A18)) -> DRC | B18: =IF(AND(INTRO!$E$37="Non-endemic",INTRO!$E$41="Non-endemic")," ",IF(COUNTRY_INFO!B18=0," ",COUNTRY_INFO!B18)) -> BAS UELE | C18: =IF(AND(INTRO!$E$37="Non-endemic",INTRO!$E$41="Non-endemic")," ",IF(COUNTRY_INFO!C18=0," ",COUNTRY_INFO!C18)) -> Titule | D18: =IF(AND(INTRO!$E$37="Non-endemic",INTRO!$E$41="Non-endemic"),0,IF(AND(OR(COUNTRY_INFO!$H18=0,COUNTRY_INFO!$H18=4,COUNTRY_INFO!$H18=99),OR(COUNTRY_INFO!$J18=0,COUNTRY_INFO!$J18=4)),0,COUNTRY_INFO!$E18)) -> 15088 | E18: =IF(AND(INTRO!$E$37="Non-endemic",INTRO!$E$41="Non-endemic"),0,IF(AND(OR(COUNTRY_INFO!$H18=0,COUNTRY_INFO!$H18=4,COUNTRY_INFO!$H18=99),OR(COUNTRY_INFO!$J18=0,COUNTRY_INFO!$J18=4)),0,COUNTRY_INFO!$F18)) -> 31063 | F18: 46151 | G18: =IF(AND(INTRO!$E$37="Non-endemic",INTRO!$E$41="Non-endemic"),0,COUNTRY_INFO!Q18) -> 0 | H18: =IF(AND(INTRO!$E$37="Non-endemic",INTRO!$E$41="Non-endemic"),0,COUNTRY_INFO!S18) -> 2 | I18: =IF($G18=1,IVM!$G18,0) -> 0 | J18: =IF($G18=0, " ", IF(COUNTRY_INFO!$H18=1, IF(COUNTRY_INFO!$L18=1, 0," ")," ")) ->  | L18: ALB | M18: =IF($L18="ALB", IF(INTRO!$E$39="Non-endemic",IF($H18<>0,$D18*($H18-$G18),0),$D18*$H18), 0) -> 30176 | N18: 62126 | P18: 92302 | Q18: =IF($L18="MBD", IF(INTRO!$E$39="Non-endemic",IF($H18<>0,$D18*($H18-$G18),0),$D18*$H18),0) -> 0 | R18: 0 | T18: 0 | V18: 0 | W18: 0 | Y18: 62126 | Z18: 311 | AB18: 0 | AC18: 0
A19: =IF(AND(INTRO!$E$37="Non-endemic",INTRO!$E$41="Non-endemic")," ",IF(COUNTRY_INFO!A19=0," ",COUNTRY_INFO!A19)) -> DRC | B19: =IF(AND(INTRO!$E$37="Non-endemic",INTRO!$E$41="Non-endemic")," ",IF(COUNTRY_INFO!B19=0," ",COUNTRY_INFO!B19)) -> BAS UELE | C19: =IF(AND(INTRO!$E$37="Non-endemic",INTRO!$E$41="Non-endemic")," ",IF(COUNTRY_INFO!C19=0," ",COUNTRY_INFO!C19)) -> Viadana | D19: =IF(AND(INTRO!$E$37="Non-endemic",INTRO!$E$41="Non-endemic"),0,IF(AND(OR(COUNTRY_INFO!$H19=0,COUNTRY_INFO!$H19=4,COUNTRY_INFO!$H19=99),OR(COUNTRY_INFO!$J19=0,COUNTRY_INFO!$J19=4)),0,COUNTRY_INFO!$E19)) -> 21117 | E19: =IF(AND(INTRO!$E$37="Non-endemic",INTRO!$E$41="Non-endemic"),0,IF(AND(OR(COUNTRY_INFO!$H19=0,COUNTRY_INFO!$H19=4,COUNTRY_INFO!$H19=99),OR(COUNTRY_INFO!$J19=0,COUNTRY_INFO!$J19=4)),0,COUNTRY_INFO!$F19)) -> 43476 | F19: 64593 | G19: =IF(AND(INTRO!$E$37="Non-endemic",INTRO!$E$41="Non-endemic"),0,COUNTRY_INFO!Q19) -> 1 | H19: =IF(AND(INTRO!$E$37="Non-endemic",INTRO!$E$41="Non-endemic"),0,COUNTRY_INFO!S19) -> 2 | I19: =IF($G19=1,IVM!$G19,0) -> 100616 | J19: =IF($G19=0, " ", IF(COUNTRY_INFO!$H19=1, IF(COUNTRY_INFO!$L19=1, 0," ")," ")) -> 0 | L19: ALB | M19: =IF($L19="ALB", IF(INTRO!$E$39="Non-endemic",IF($H19<>0,$D19*($H19-$G19),0),$D19*$H19), 0) -> 42234 | N19: 43476 | P19: 85710 | Q19: =IF($L19="MBD", IF(INTRO!$E$39="Non-endemic",IF($H19<>0,$D19*($H19-$G19),0),$D19*$H19),0) -> 0 | R19: 0 | T19: 0 | V19: 100616 | W19: 504 | Y19: 43476 | Z19: 218 | AB19: 0 | AC19: 0
A20: =IF(AND(INTRO!$E$37="Non-endemic",INTRO!$E$41="Non-endemic")," ",IF(COUNTRY_INFO!A20=0," ",COUNTRY_INFO!A20)) -> DRC | B20: =IF(AND(INTRO!$E$37="Non-endemic",INTRO!$E$41="Non-endemic")," ",IF(COUNTRY_INFO!B20=0," ",COUNTRY_INFO!B20)) -> EQUATEUR | C20: =IF(AND(INTRO!$E$37="Non-endemic",INTRO!$E$41="Non-endemic")," ",IF(COUNTRY_INFO!C20=0," ",COUNTRY_INFO!C20)) -> Basankusu | D20: =IF(AND(INTRO!$E$37="Non-endemic",INTRO!$E$41="Non-endemic"),0,IF(AND(OR(COUNTRY_INFO!$H20=0,COUNTRY_INFO!$H20=4,COUNTRY_INFO!$H20=99),OR(COUNTRY_INFO!$J20=0,COUNTRY_INFO!$J20=4)),0,COUNTRY_INFO!$E20)) -> 46918 | E20: =IF(AND(INTRO!$E$37="Non-endemic",INTRO!$E$41="Non-endemic"),0,IF(AND(OR(COUNTRY_INFO!$H20=0,COUNTRY_INFO!$H20=4,COUNTRY_INFO!$H20=99),OR(COUNTRY_INFO!$J20=0,COUNTRY_INFO!$J20=4)),0,COUNTRY_INFO!$F20)) -> 96595 | F20: 143513 | G20: =IF(AND(INTRO!$E$37="Non-endemic",INTRO!$E$41="Non-endemic"),0,COUNTRY_INFO!Q20) -> 1 | H20: =IF(AND(INTRO!$E$37="Non-endemic",INTRO!$E$41="Non-endemic"),0,COUNTRY_INFO!S20) -> 2 | I20: =IF($G20=1,IVM!$G20,0) -> 223549 | J20: =IF($G20=0, " ", IF(COUNTRY_INFO!$H20=1, IF(COUNTRY_INFO!$L20=1, 0," ")," ")) -> 0 | L20: ALB | M20: =IF($L20="ALB", IF(INTRO!$E$39="Non-endemic",IF($H20<>0,$D20*($H20-$G20),0),$D20*$H20), 0) -> 93836 | N20: 96595 | P20: 190431 | Q20: =IF($L20="MBD", IF(INTRO!$E$39="Non-endemic",IF($H20<>0,$D20*($H20-$G20),0),$D20*$H20),0) -> 0 | R20: 0 | T20: 0 | V20: 223549 | W20: 1118 | Y20: 96595 | Z20: 483 | AB20: 0 | AC20: 0
A21: =IF(AND(INTRO!$E$37="Non-endemic",INTRO!$E$41="Non-endemic")," ",IF(COUNTRY_INFO!A21=0," ",COUNTRY_INFO!A21)) -> DRC | B21: =IF(AND(INTRO!$E$37="Non-endemic",INTRO!$E$41="Non-endemic")," ",IF(COUNTRY_INFO!B21=0," ",COUNTRY_INFO!B21)) -> EQUATEUR | C21: =IF(AND(INTRO!$E$37="Non-endemic",INTRO!$E$41="Non-endemic")," ",IF(COUNTRY_INFO!C21=0," ",COUNTRY_INFO!C21)) -> Bikoro | D21: =IF(AND(INTRO!$E$37="Non-endemic",INTRO!$E$41="Non-endemic"),0,IF(AND(OR(COUNTRY_INFO!$H21=0,COUNTRY_INFO!$H21=4,COUNTRY_INFO!$H21=99),OR(COUNTRY_INFO!$J21=0,COUNTRY_INFO!$J21=4)),0,COUNTRY_INFO!$E21)) -> 29409 | E21: =IF(AND(INTRO!$E$37="Non-endemic",INTRO!$E$41="Non-endemic"),0,IF(AND(OR(COUNTRY_INFO!$H21=0,COUNTRY_INFO!$H21=4,COUNTRY_INFO!$H21=99),OR(COUNTRY_INFO!$J21=0,COUNTRY_INFO!$J21=4)),0,COUNTRY_INFO!$F21)) -> 60548 | F21: 89957 | G21: =IF(AND(INTRO!$E$37="Non-endemic",INTRO!$E$41="Non-endemic"),0,COUNTRY_INFO!Q21) -> 1 | H21: =IF(AND(INTRO!$E$37="Non-endemic",INTRO!$E$41="Non-endemic"),0,COUNTRY_INFO!S21) -> 2 | I21: =IF($G21=1,IVM!$G21,0) -> 0 | J21: 140126 | K21: 2 | L21: ALB | M21: =IF($L21="ALB", IF(INTRO!$E$39="Non-endemic",IF($H21<>0,$D21*($H21-$G21),0),$D21*$H21), 0) -> 58818 | N21: 0 | P21: 58818 | Q21: =IF($L21="MBD", IF(INTRO!$E$39="Non-endemic",IF($H21<>0,$D21*($H21-$G21),0),$D21*$H21),0) -> 0 | R21: 0 | T21: 0 | V21: 280252 | W21: 1402 | Y21: 0 | Z21: 0 | AB21: 0 | AC21: 0
A22: =IF(AND(INTRO!$E$37="Non-endemic",INTRO!$E$41="Non-endemic")," ",IF(COUNTRY_INFO!A22=0," ",COUNTRY_INFO!A22)) -> DRC | B22: =IF(AND(INTRO!$E$37="Non-endemic",INTRO!$E$41="Non-endemic")," ",IF(COUNTRY_INFO!B22=0," ",COUNTRY_INFO!B22)) -> EQUATEUR | C22: =IF(AND(INTRO!$E$37="Non-endemic",INTRO!$E$41="Non-endemic")," ",IF(COUNTRY_INFO!C22=0," ",COUNTRY_INFO!C22)) -> Bolenge | D22: =IF(AND(INTRO!$E$37="Non-endemic",INTRO!$E$41="Non-endemic"),0,IF(AND(OR(COUNTRY_INFO!$H22=0,COUNTRY_INFO!$H22=4,COUNTRY_INFO!$H22=99),OR(COUNTRY_INFO!$J22=0,COUNTRY_INFO!$J22=4)),0,COUNTRY_INFO!$E22)) -> 18967 | E22: =IF(AND(INTRO!$E$37="Non-endemic",INTRO!$E$41="Non-endemic"),0,IF(AND(OR(COUNTRY_INFO!$H22=0,COUNTRY_INFO!$H22=4,COUNTRY_INFO!$H22=99),OR(COUNTRY_INFO!$J22=0,COUNTRY_INFO!$J22=4)),0,COUNTRY_INFO!$F22)) -> 39049 | F22: 58016 | G22: =IF(AND(INTRO!$E$37="Non-endemic",INTRO!$E$41="Non-endemic"),0,COUNTRY_INFO!Q22) -> 0 | H22: =IF(AND(INTRO!$E$37="Non-endemic",INTRO!$E$41="Non-endemic"),0,COUNTRY_INFO!S22) -> 2 | I22: =IF($G22=1,IVM!$G22,0) -> 0 | J22: =IF($G22=0, " ", IF(COUNTRY_INFO!$H22=1, IF(COUNTRY_INFO!$L22=1, 0," ")," ")) ->  | L22: ALB | M22: =IF($L22="ALB", IF(INTRO!$E$39="Non-endemic",IF($H22<>0,$D22*($H22-$G22),0),$D22*$H22), 0) -> 37934 | N22: 78098 | P22: 116032 | Q22: =IF($L22="MBD", IF(INTRO!$E$39="Non-endemic",IF($H22<>0,$D22*($H22-$G22),0),$D22*$H22),0) -> 0 | R22: 0 | T22: 0 | V22: 0 | W22: 0 | Y22: 78098 | Z22: 391 | AB22: 0 | AC22: 0
A23: =IF(AND(INTRO!$E$37="Non-endemic",INTRO!$E$41="Non-endemic")," ",IF(COUNTRY_INFO!A23=0," ",COUNTRY_INFO!A23)) -> DRC | B23: =IF(AND(INTRO!$E$37="Non-endemic",INTRO!$E$41="Non-endemic")," ",IF(COUNTRY_INFO!B23=0," ",COUNTRY_INFO!B23)) -> EQUATEUR | C23: =IF(AND(INTRO!$E$37="Non-endemic",INTRO!$E$41="Non-endemic")," ",IF(COUNTRY_INFO!C23=0," ",COUNTRY_INFO!C23)) -> Bolomba | D23: =IF(AND(INTRO!$E$37="Non-endemic",INTRO!$E$41="Non-endemic"),0,IF(AND(OR(COUNTRY_INFO!$H23=0,COUNTRY_INFO!$H23=4,COUNTRY_INFO!$H23=99),OR(COUNTRY_INFO!$J23=0,COUNTRY_INFO!$J23=4)),0,COUNTRY_INFO!$E23)) -> 105563 | E23: =IF(AND(INTRO!$E$37="Non-endemic",INTRO!$E$41="Non-endemic"),0,IF(AND(OR(COUNTRY_INFO!$H23=0,COUNTRY_INFO!$H23=4,COUNTRY_INFO!$H23=99),OR(COUNTRY_INFO!$J23=0,COUNTRY_INFO!$J23=4)),0,COUNTRY_INFO!$F23)) -> 217336 | F23: 322899 | G23: =IF(AND(INTRO!$E$37="Non-endemic",INTRO!$E$41="Non-endemic"),0,COUNTRY_INFO!Q23) -> 1 | H23: =IF(AND(INTRO!$E$37="Non-endemic",INTRO!$E$41="Non-endemic"),0,COUNTRY_INFO!S23) -> 2 | I23: =IF($G23=1,IVM!$G23,0) -> 502978 | J23: =IF($G23=0, " ", IF(COUNTRY_INFO!$H23=1, IF(COUNTRY_INFO!$L23=1, 0," ")," ")) -> 0 | L23: ALB | M23: =IF($L23="ALB", IF(INTRO!$E$39="Non-endemic",IF($H23<>0,$D23*($H23-$G23),0),$D23*$H23), 0) -> 211126 | N23: 217336 | P23: 428462 | Q23: =IF($L23="MBD", IF(INTRO!$E$39="Non-endemic",IF($H23<>0,$D23*($H23-$G23),0),$D23*$H23),0) -> 0 | R23: 0 | T23: 0 | V23: 502978 | W23: 2515 | Y23: 217336 | Z23: 1087 | AB23: 0 | AC23: 0
A24: =IF(AND(INTRO!$E$37="Non-endemic",INTRO!$E$41="Non-endemic")," ",IF(COUNTRY_INFO!A24=0," ",COUNTRY_INFO!A24)) -> DRC | B24: =IF(AND(INTRO!$E$37="Non-endemic",INTRO!$E$41="Non-endemic")," ",IF(COUNTRY_INFO!B24=0," ",COUNTRY_INFO!B24)) -> EQUATEUR | C24: =IF(AND(INTRO!$E$37="Non-endemic",INTRO!$E$41="Non-endemic")," ",IF(COUNTRY_INFO!C24=0," ",COUNTRY_INFO!C24)) -> Bomongo | D24: =IF(AND(INTRO!$E$37="Non-endemic",INTRO!$E$41="Non-endemic"),0,IF(AND(OR(COUNTRY_INFO!$H24=0,COUNTRY_INFO!$H24=4,COUNTRY_INFO!$H24=99),OR(COUNTRY_INFO!$J24=0,COUNTRY_INFO!$J24=4)),0,COUNTRY_INFO!$E24)) -> 20784 | E24: =IF(AND(INTRO!$E$37="Non-endemic",INTRO!$E$41="Non-endemic"),0,IF(AND(OR(COUNTRY_INFO!$H24=0,COUNTRY_INFO!$H24=4,COUNTRY_INFO!$H24=99),OR(COUNTRY_INFO!$J24=0,COUNTRY_INFO!$J24=4)),0,COUNTRY_INFO!$F24)) -> 42791 | F24: 63575 | G24: =IF(AND(INTRO!$E$37="Non-endemic",INTRO!$E$41="Non-endemic"),0,COUNTRY_INFO!Q24) -> 1 | H24: =IF(AND(INTRO!$E$37="Non-endemic",INTRO!$E$41="Non-endemic"),0,COUNTRY_INFO!S24) -> 1 | I24: =IF($G24=1,IVM!$G24,0) -> 0 | J24: 99031 | K24: 2 | L24: ALB | M24: =IF($L24="ALB", IF(INTRO!$E$39="Non-endemic",IF($H24<>0,$D24*($H24-$G24),0),$D24*$H24), 0) -> 20784 | N24: 0 | P24: 20784 | Q24: =IF($L24="MBD", IF(INTRO!$E$39="Non-endemic",IF($H24<>0,$D24*($H24-$G24),0),$D24*$H24),0) -> 0 | R24: 0 | T24: 0 | V24: 198062 | W24: 991 | Y24: 0 | Z24: 0 | AB24: 0 | AC24: 0
A25: =IF(AND(INTRO!$E$37="Non-endemic",INTRO!$E$41="Non-endemic")," ",IF(COUNTRY_INFO!A25=0," ",COUNTRY_INFO!A25)) -> DRC | B25: =IF(AND(INTRO!$E$37="Non-endemic",INTRO!$E$41="Non-endemic")," ",IF(COUNTRY_INFO!B25=0," ",COUNTRY_INFO!B25)) -> EQUATEUR | C25: =IF(AND(INTRO!$E$37="Non-endemic",INTRO!$E$41="Non-endemic")," ",IF(COUNTRY_INFO!C25=0," ",COUNTRY_INFO!C25)) -> Djombo | D25: =IF(AND(INTRO!$E$37="Non-endemic",INTRO!$E$41="Non-endemic"),0,IF(AND(OR(COUNTRY_INFO!$H25=0,COUNTRY_INFO!$H25=4,COUNTRY_INFO!$H25=99),OR(COUNTRY_INFO!$J25=0,COUNTRY_INFO!$J25=4)),0,COUNTRY_INFO!$E25)) -> 22785 | E25: =IF(AND(INTRO!$E$37="Non-endemic",INTRO!$E$41="Non-endemic"),0,IF(AND(OR(COUNTRY_INFO!$H25=0,COUNTRY_INFO!$H25=4,COUNTRY_INFO!$H25=99),OR(COUNTRY_INFO!$J25=0,COUNTRY_INFO!$J25=4)),0,COUNTRY_INFO!$F25)) -> 46910 | F25: 69695 | G25: =IF(AND(INTRO!$E$37="Non-endemic",INTRO!$E$41="Non-endemic"),0,COUNTRY_INFO!Q25) -> 1 | H25: =IF(AND(INTRO!$E$37="Non-endemic",INTRO!$E$41="Non-endemic"),0,COUNTRY_INFO!S25) -> 2 | I25: =IF($G25=1,IVM!$G25,0) -> 108563 | J25: =IF($G25=0, " ", IF(COUNTRY_INFO!$H25=1, IF(COUNTRY_INFO!$L25=1, 0," ")," ")) -> 0 | L25: ALB | M25: =IF($L25="ALB", IF(INTRO!$E$39="Non-endemic",IF($H25<>0,$D25*($H25-$G25),0),$D25*$H25), 0) -> 45570 | N25: 46910 | P25: 92480 | Q25: =IF($L25="MBD", IF(INTRO!$E$39="Non-endemic",IF($H25<>0,$D25*($H25-$G25),0),$D25*$H25),0) -> 0 | R25: 0 | T25: 0 | V25: 108563 | W25: 543 | Y25: 46910 | Z25: 235 | AB25: 0 | AC25: 0
A26: =IF(AND(INTRO!$E$37="Non-endemic",INTRO!$E$41="Non-endemic")," ",IF(COUNTRY_INFO!A26=0," ",COUNTRY_INFO!A26)) -> DRC | B26: =IF(AND(INTRO!$E$37="Non-endemic",INTRO!$E$41="Non-endemic")," ",IF(COUNTRY_INFO!B26=0," ",COUNTRY_INFO!B26)) -> EQUATEUR | C26: =IF(AND(INTRO!$E$37="Non-endemic",INTRO!$E$41="Non-endemic")," ",IF(COUNTRY_INFO!C26=0," ",COUNTRY_INFO!C26)) -> Iboko | D26: =IF(AND(INTRO!$E$37="Non-endemic",INTRO!$E$41="Non-endemic"),0,IF(AND(OR(COUNTRY_INFO!$H26=0,COUNTRY_INFO!$H26=4,COUNTRY_INFO!$H26=99),OR(COUNTRY_INFO!$J26=0,COUNTRY_INFO!$J26=4)),0,COUNTRY_INFO!$E26)) -> 22267 | E26: =IF(AND(INTRO!$E$37="Non-endemic",INTRO!$E$41="Non-endemic"),0,IF(AND(OR(COUNTRY_INFO!$H26=0,COUNTRY_INFO!$H26=4,COUNTRY_INFO!$H26=99),OR(COUNTRY_INFO!$J26=0,COUNTRY_INFO!$J26=4)),0,COUNTRY_INFO!$F26)) -> 45845 | F26: 68112 | G26: =IF(AND(INTRO!$E$37="Non-endemic",INTRO!$E$41="Non-endemic"),0,COUNTRY_INFO!Q26) -> 0 | H26: =IF(AND(INTRO!$E$37="Non-endemic",INTRO!$E$41="Non-endemic"),0,COUNTRY_INFO!S26) -> 1 | I26: =IF($G26=1,IVM!$G26,0) -> 0 | J26: =IF($G26=0, " ", IF(COUNTRY_INFO!$H26=1, IF(COUNTRY_INFO!$L26=1, 0," ")," ")) ->  | L26: ALB | M26: =IF($L26="ALB", IF(INTRO!$E$39="Non-endemic",IF($H26<>0,$D26*($H26-$G26),0),$D26*$H26), 0) -> 22267 | N26: 45845 | P26: 68112 | Q26: =IF($L26="MBD", IF(INTRO!$E$39="Non-endemic",IF($H26<>0,$D26*($H26-$G26),0),$D26*$H26),0) -> 0 | R26: 0 | T26: 0 | V26: 0 | W26: 0 | Y26: 45845 | Z26: 230 | AB26: 0 | AC26: 0
A27: =IF(AND(INTRO!$E$37="Non-endemic",INTRO!$E$41="Non-endemic")," ",IF(COUNTRY_INFO!A27=0," ",COUNTRY_INFO!A27)) -> DRC | B27: =IF(AND(INTRO!$E$37="Non-endemic",INTRO!$E$41="Non-endemic")," ",IF(COUNTRY_INFO!B27=0," ",COUNTRY_INFO!B27)) -> EQUATEUR | C27: =IF(AND(INTRO!$E$37="Non-endemic",INTRO!$E$41="Non-endemic")," ",IF(COUNTRY_INFO!C27=0," ",COUNTRY_INFO!C27)) -> Ingende | D27: =IF(AND(INTRO!$E$37="Non-endemic",INTRO!$E$41="Non-endemic"),0,IF(AND(OR(COUNTRY_INFO!$H27=0,COUNTRY_INFO!$H27=4,COUNTRY_INFO!$H27=99),OR(COUNTRY_INFO!$J27=0,COUNTRY_INFO!$J27=4)),0,COUNTRY_INFO!$E27)) -> 28757 | E27: =IF(AND(INTRO!$E$37="Non-endemic",INTRO!$E$41="Non-endemic"),0,IF(AND(OR(COUNTRY_INFO!$H27=0,COUNTRY_INFO!$H27=4,COUNTRY_INFO!$H27=99),OR(COUNTRY_INFO!$J27=0,COUNTRY_INFO!$J27=4)),0,COUNTRY_INFO!$F27)) -> 59205 | F27: 87962 | G27: =IF(AND(INTRO!$E$37="Non-endemic",INTRO!$E$41="Non-endemic"),0,COUNTRY_INFO!Q27) -> 1 | H27: =IF(AND(INTRO!$E$37="Non-endemic",INTRO!$E$41="Non-endemic"),0,COUNTRY_INFO!S27) -> 2 | I27: =IF($G27=1,IVM!$G27,0) -> 137017 | J27: =IF($G27=0, " ", IF(COUNTRY_INFO!$H27=1, IF(COUNTRY_INFO!$L27=1, 0," ")," ")) -> 0 | L27: ALB | M27: =IF($L27="ALB", IF(INTRO!$E$39="Non-endemic",IF($H27<>0,$D27*($H27-$G27),0),$D27*$H27), 0) -> 57514 | N27: 59205 | P27: 116719 | Q27: =IF($L27="MBD", IF(INTRO!$E$39="Non-endemic",IF($H27<>0,$D27*($H27-$G27),0),$D27*$H27),0) -> 0 | R27: 0 | T27: 0 | V27: 137017 | W27: 686 | Y27: 59205 | Z27: 297 | AB27: 0 | AC27: 0
A28: =IF(AND(INTRO!$E$37="Non-endemic",INTRO!$E$41="Non-endemic")," ",IF(COUNTRY_INFO!A28=0," ",COUNTRY_INFO!A28)) -> DRC | B28: =IF(AND(INTRO!$E$37="Non-endemic",INTRO!$E$41="Non-endemic")," ",IF(COUNTRY_INFO!B28=0," ",COUNTRY_INFO!B28)) -> EQUATEUR | C28: =IF(AND(INTRO!$E$37="Non-endemic",INTRO!$E$41="Non-endemic")," ",IF(COUNTRY_INFO!C28=0," ",COUNTRY_INFO!C28)) -> Irebu | D28: =IF(AND(INTRO!$E$37="Non-endemic",INTRO!$E$41="Non-endemic"),0,IF(AND(OR(COUNTRY_INFO!$H28=0,COUNTRY_INFO!$H28=4,COUNTRY_INFO!$H28=99),OR(COUNTRY_INFO!$J28=0,COUNTRY_INFO!$J28=4)),0,COUNTRY_INFO!$E28)) -> 7240 | E28: =IF(AND(INTRO!$E$37="Non-endemic",INTRO!$E$41="Non-endemic"),0,IF(AND(OR(COUNTRY_INFO!$H28=0,COUNTRY_INFO!$H28=4,COUNTRY_INFO!$H28=99),OR(COUNTRY_INFO!$J28=0,COUNTRY_INFO!$J28=4)),0,COUNTRY_INFO!$F28)) -> 14906 | F28: 22146 | G28: =IF(AND(INTRO!$E$37="Non-endemic",INTRO!$E$41="Non-endemic"),0,COUNTRY_INFO!Q28) -> 0 | H28: =IF(AND(INTRO!$E$37="Non-endemic",INTRO!$E$41="Non-endemic"),0,COUNTRY_INFO!S28) -> 0 | I28: =IF($G28=1,IVM!$G28,0) -> 0 | J28: =IF($G28=0, " ", IF(COUNTRY_INFO!$H28=1, IF(COUNTRY_INFO!$L28=1, 0," ")," ")) ->  | L28: ALB | M28: =IF($L28="ALB", IF(INTRO!$E$39="Non-endemic",IF($H28<>0,$D28*($H28-$G28),0),$D28*$H28), 0) -> 0 | N28: 0 | P28: 0 | Q28: =IF($L28="MBD", IF(INTRO!$E$39="Non-endemic",IF($H28<>0,$D28*($H28-$G28),0),$D28*$H28),0) -> 0 | R28: 0 | T28: 0 | V28: 0 | W28: 0 | Y28: 0 | Z28: 0 | AB28: 0 | AC28: 0
A29: =IF(AND(INTRO!$E$37="Non-endemic",INTRO!$E$41="Non-endemic")," ",IF(COUNTRY_INFO!A29=0," ",COUNTRY_INFO!A29)) -> DRC | B29: =IF(AND(INTRO!$E$37="Non-endemic",INTRO!$E$41="Non-endemic")," ",IF(COUNTRY_INFO!B29=0," ",COUNTRY_INFO!B29)) -> EQUATEUR | C29: =IF(AND(INTRO!$E$37="Non-endemic",INTRO!$E$41="Non-endemic")," ",IF(COUNTRY_INFO!C29=0," ",COUNTRY_INFO!C29)) -> Lilanga Bobangi | D29: =IF(AND(INTRO!$E$37="Non-endemic",INTRO!$E$41="Non-endemic"),0,IF(AND(OR(COUNTRY_INFO!$H29=0,COUNTRY_INFO!$H29=4,COUNTRY_INFO!$H29=99),OR(COUNTRY_INFO!$J29=0,COUNTRY_INFO!$J29=4)),0,COUNTRY_INFO!$E29)) -> 16039 | E29: =IF(AND(INTRO!$E$37="Non-endemic",INTRO!$E$41="Non-endemic"),0,IF(AND(OR(COUNTRY_INFO!$H29=0,COUNTRY_INFO!$H29=4,COUNTRY_INFO!$H29=99),OR(COUNTRY_INFO!$J29=0,COUNTRY_INFO!$J29=4)),0,COUNTRY_INFO!$F29)) -> 33022 | F29: 49061 | G29: =IF(AND(INTRO!$E$37="Non-endemic",INTRO!$E$41="Non-endemic"),0,COUNTRY_INFO!Q29) -> 0 | H29: =IF(AND(INTRO!$E$37="Non-endemic",INTRO!$E$41="Non-endemic"),0,COUNTRY_INFO!S29) -> 1 | I29: =IF($G29=1,IVM!$G29,0) -> 0 | J29: =IF($G29=0, " ", IF(COUNTRY_INFO!$H29=1, IF(COUNTRY_INFO!$L29=1, 0," ")," ")) ->  | L29: ALB | M29: =IF($L29="ALB", IF(INTRO!$E$39="Non-endemic",IF($H29<>0,$D29*($H29-$G29),0),$D29*$H29), 0) -> 16039 | N29: 33022 | P29: 49061 | Q29: =IF($L29="MBD", IF(INTRO!$E$39="Non-endemic",IF($H29<>0,$D29*($H29-$G29),0),$D29*$H29),0) -> 0 | R29: 0 | T29: 0 | V29: 0 | W29: 0 | Y29: 33022 | Z29: 166 | AB29: 0 | AC29: 0
A30: =IF(AND(INTRO!$E$37="Non-endemic",INTRO!$E$41="Non-endemic")," ",IF(COUNTRY_INFO!A30=0," ",COUNTRY_INFO!A30)) -> DRC | B30: =IF(AND(INTRO!$E$37="Non-endemic",INTRO!$E$41="Non-endemic")," ",IF(COUNTRY_INFO!B30=0," ",COUNTRY_INFO!B30)) -> EQUATEUR | C30: =IF(AND(INTRO!$E$37="Non-endemic",INTRO!$E$41="Non-endemic")," ",IF(COUNTRY_INFO!C30=0," ",COUNTRY_INFO!C30)) -> Lotumbe | D30: =IF(AND(INTRO!$E$37="Non-endemic",INTRO!$E$41="Non-endemic"),0,IF(AND(OR(COUNTRY_INFO!$H30=0,COUNTRY_INFO!$H30=4,COUNTRY_INFO!$H30=99),OR(COUNTRY_INFO!$J30=0,COUNTRY_INFO!$J30=4)),0,COUNTRY_INFO!$E30)) -> 23581 | E30: =IF(AND(INTRO!$E$37="Non-endemic",INTRO!$E$41="Non-endemic"),0,IF(AND(OR(COUNTRY_INFO!$H30=0,COUNTRY_INFO!$H30=4,COUNTRY_INFO!$H30=99),OR(COUNTRY_INFO!$J30=0,COUNTRY_INFO!$J30=4)),0,COUNTRY_INFO!$F30)) -> 48549 | F30: 72130 | G30: =IF(AND(INTRO!$E$37="Non-endemic",INTRO!$E$41="Non-endemic"),0,COUNTRY_INFO!Q30) -> 0 | H30: =IF(AND(INTRO!$E$37="Non-endemic",INTRO!$E$41="Non-endemic"),0,COUNTRY_INFO!S30) -> 2 | I30: =IF($G30=1,IVM!$G30,0) -> 0 | J30: =IF($G30=0, " ", IF(COUNTRY_INFO!$H30=1, IF(COUNTRY_INFO!$L30=1, 0," ")," ")) ->  | L30: ALB | M30: =IF($L30="ALB", IF(INTRO!$E$39="Non-endemic",IF($H30<>0,$D30*($H30-$G30),0),$D30*$H30), 0) -> 47162 | N30: 97098 | P30: 144260 | Q30: =IF($L30="MBD", IF(INTRO!$E$39="Non-endemic",IF($H30<>0,$D30*($H30-$G30),0),$D30*$H30),0) -> 0 | R30: 0 | T30: 0 | V30: 0 | W30: 0 | Y30: 97098 | Z30: 486 | AB30: 0 | AC30: 0
A31: =IF(AND(INTRO!$E$37="Non-endemic",INTRO!$E$41="Non-endemic")," ",IF(COUNTRY_INFO!A31=0," ",COUNTRY_INFO!A31)) -> DRC | B31: =IF(AND(INTRO!$E$37="Non-endemic",INTRO!$E$41="Non-endemic")," ",IF(COUNTRY_INFO!B31=0," ",COUNTRY_INFO!B31)) -> EQUATEUR | C31: =IF(AND(INTRO!$E$37="Non-endemic",INTRO!$E$41="Non-endemic")," ",IF(COUNTRY_INFO!C31=0," ",COUNTRY_INFO!C31)) -> Lukolela | D31: =IF(AND(INTRO!$E$37="Non-endemic",INTRO!$E$41="Non-endemic"),0,IF(AND(OR(COUNTRY_INFO!$H31=0,COUNTRY_INFO!$H31=4,COUNTRY_INFO!$H31=99),OR(COUNTRY_INFO!$J31=0,COUNTRY_INFO!$J31=4)),0,COUNTRY_INFO!$E31)) -> 28656 | E31: =IF(AND(INTRO!$E$37="Non-endemic",INTRO!$E$41="Non-endemic"),0,IF(AND(OR(COUNTRY_INFO!$H31=0,COUNTRY_INFO!$H31=4,COUNTRY_INFO!$H31=99),OR(COUNTRY_INFO!$J31=0,COUNTRY_INFO!$J31=4)),0,COUNTRY_INFO!$F31)) -> 58997 | F31: 87653 | G31: =IF(AND(INTRO!$E$37="Non-endemic",INTRO!$E$41="Non-endemic"),0,COUNTRY_INFO!Q31) -> 0 | H31: =IF(AND(INTRO!$E$37="Non-endemic",INTRO!$E$41="Non-endemic"),0,COUNTRY_INFO!S31) -> 0 | I31: =IF($G31=1,IVM!$G31,0) -> 0 | J31: =IF($G31=0, " ", IF(COUNTRY_INFO!$H31=1, IF(COUNTRY_INFO!$L31=1, 0," ")," ")) ->  | L31: ALB | M31: =IF($L31="ALB", IF(INTRO!$E$39="Non-endemic",IF($H31<>0,$D31*($H31-$G31),0),$D31*$H31), 0) -> 0 | N31: 0 | P31: 0 | Q31: =IF($L31="MBD", IF(INTRO!$E$39="Non-endemic",IF($H31<>0,$D31*($H31-$G31),0),$D31*$H31),0) -> 0 | R31: 0 | T31: 0 | V31: 0 | W31: 0 | Y31: 0 | Z31: 0 | AB31: 0 | AC31: 0
A32: =IF(AND(INTRO!$E$37="Non-endemic",INTRO!$E$41="Non-endemic")," ",IF(COUNTRY_INFO!A32=0," ",COUNTRY_INFO!A32)) -> DRC | B32: =IF(AND(INTRO!$E$37="Non-endemic",INTRO!$E$41="Non-endemic")," ",IF(COUNTRY_INFO!B32=0," ",COUNTRY_INFO!B32)) -> EQUATEUR | C32: =IF(AND(INTRO!$E$37="Non-endemic",INTRO!$E$41="Non-endemic")," ",IF(COUNTRY_INFO!C32=0," ",COUNTRY_INFO!C32)) -> Makanza | D32: =IF(AND(INTRO!$E$37="Non-endemic",INTRO!$E$41="Non-endemic"),0,IF(AND(OR(COUNTRY_INFO!$H32=0,COUNTRY_INFO!$H32=4,COUNTRY_INFO!$H32=99),OR(COUNTRY_INFO!$J32=0,COUNTRY_INFO!$J32=4)),0,COUNTRY_INFO!$E32)) -> 23089 | E32: =IF(AND(INTRO!$E$37="Non-endemic",INTRO!$E$41="Non-endemic"),0,IF(AND(OR(COUNTRY_INFO!$H32=0,COUNTRY_INFO!$H32=4,COUNTRY_INFO!$H32=99),OR(COUNTRY_INFO!$J32=0,COUNTRY_INFO!$J32=4)),0,COUNTRY_INFO!$F32)) -> 47536 | F32: 70625 | G32: =IF(AND(INTRO!$E$37="Non-endemic",INTRO!$E$41="Non-endemic"),0,COUNTRY_INFO!Q32) -> 0 | H32: =IF(AND(INTRO!$E$37="Non-endemic",INTRO!$E$41="Non-endemic"),0,COUNTRY_INFO!S32) -> 1 | I32: =IF($G32=1,IVM!$G32,0) -> 0 | J32: =IF($G32=0, " ", IF(COUNTRY_INFO!$H32=1, IF(COUNTRY_INFO!$L32=1, 0," ")," ")) ->  | L32: ALB | M32: =IF($L32="ALB", IF(INTRO!$E$39="Non-endemic",IF($H32<>0,$D32*($H32-$G32),0),$D32*$H32), 0) -> 23089 | N32: 47536 | P32: 70625 | Q32: =IF($L32="MBD", IF(INTRO!$E$39="Non-endemic",IF($H32<>0,$D32*($H32-$G32),0),$D32*$H32),0) -> 0 | R32: 0 | T32: 0 | V32: 0 | W32: 0 | Y32: 47536 | Z32: 238 | AB32: 0 | AC32: 0
A33: =IF(AND(INTRO!$E$37="Non-endemic",INTRO!$E$41="Non-endemic")," ",IF(COUNTRY_INFO!A33=0," ",COUNTRY_INFO!A33)) -> DRC | B33: =IF(AND(INTRO!$E$37="Non-endemic",INTRO!$E$41="Non-endemic")," ",IF(COUNTRY_INFO!B33=0," ",COUNTRY_INFO!B33)) -> EQUATEUR | C33: =IF(AND(INTRO!$E$37="Non-endemic",INTRO!$E$41="Non-endemic")," ",IF(COUNTRY_INFO!C33=0," ",COUNTRY_INFO!C33)) -> Mampoko | D33: =IF(AND(INTRO!$E$37="Non-endemic",INTRO!$E$41="Non-endemic"),0,IF(AND(OR(COUNTRY_INFO!$H33=0,COUNTRY_INFO!$H33=4,COUNTRY_INFO!$H33=99),OR(COUNTRY_INFO!$J33=0,COUNTRY_INFO!$J33=4)),0,COUNTRY_INFO!$E33)) -> 21478 | E33: =IF(AND(INTRO!$E$37="Non-endemic",INTRO!$E$41="Non-endemic"),0,IF(AND(OR(COUNTRY_INFO!$H33=0,COUNTRY_INFO!$H33=4,COUNTRY_INFO!$H33=99),OR(COUNTRY_INFO!$J33=0,COUNTRY_INFO!$J33=4)),0,COUNTRY_INFO!$F33)) -> 44220 | F33: 65698 | G33: =IF(AND(INTRO!$E$37="Non-endemic",INTRO!$E$41="Non-endemic"),0,COUNTRY_INFO!Q33) -> 1 | H33: =IF(AND(INTRO!$E$37="Non-endemic",INTRO!$E$41="Non-endemic"),0,COUNTRY_INFO!S33) -> 0 | I33: =IF($G33=1,IVM!$G33,0) -> 102338 | J33: =IF($G33=0, " ", IF(COUNTRY_INFO!$H33=1, IF(COUNTRY_INFO!$L33=1, 0," ")," ")) -> 0 | L33: ALB | M33: =IF($L33="ALB", IF(INTRO!$E$39="Non-endemic",IF($H33<>0,$D33*($H33-$G33),0),$D33*$H33), 0) -> 0 | N33: 0 | P33: 0 | Q33: =IF($L33="MBD", IF(INTRO!$E$39="Non-endemic",IF($H33<>0,$D33*($H33-$G33),0),$D33*$H33),0) -> 0 | R33: 0 | T33: 0 | V33: 102338 | W33: 512 | Y33: 0 | Z33: 0 | AB33: 0 | AC33: 0
A34: =IF(AND(INTRO!$E$37="Non-endemic",INTRO!$E$41="Non-endemic")," ",IF(COUNTRY_INFO!A34=0," ",COUNTRY_INFO!A34)) -> DRC | B34: =IF(AND(INTRO!$E$37="Non-endemic",INTRO!$E$41="Non-endemic")," ",IF(COUNTRY_INFO!B34=0," ",COUNTRY_INFO!B34)) -> EQUATEUR | C34: =IF(AND(INTRO!$E$37="Non-endemic",INTRO!$E$41="Non-endemic")," ",IF(COUNTRY_INFO!C34=0," ",COUNTRY_INFO!C34)) -> Mbandaka | D34: =IF(AND(INTRO!$E$37="Non-endemic",INTRO!$E$41="Non-endemic"),0,IF(AND(OR(COUNTRY_INFO!$H34=0,COUNTRY_INFO!$H34=4,COUNTRY_INFO!$H34=99),OR(COUNTRY_INFO!$J34=0,COUNTRY_INFO!$J34=4)),0,COUNTRY_INFO!$E34)) -> 33898 | E34: =IF(AND(INTRO!$E$37="Non-endemic",INTRO!$E$41="Non-endemic"),0,IF(AND(OR(COUNTRY_INFO!$H34=0,COUNTRY_INFO!$H34=4,COUNTRY_INFO!$H34=99),OR(COUNTRY_INFO!$J34=0,COUNTRY_INFO!$J34=4)),0,COUNTRY_INFO!$F34)) -> 69789 | F34: 103687 | G34: =IF(AND(INTRO!$E$37="Non-endemic",INTRO!$E$41="Non-endemic"),0,COUNTRY_INFO!Q34) -> 1 | H34: =IF(AND(INTRO!$E$37="Non-endemic",INTRO!$E$41="Non-endemic"),0,COUNTRY_INFO!S34) -> 0 | I34: =IF($G34=1,IVM!$G34,0) -> 0 | J34: 161512 | K34: 2 | L34: ALB | M34: =IF($L34="ALB", IF(INTRO!$E$39="Non-endemic",IF($H34<>0,$D34*($H34-$G34),0),$D34*$H34), 0) -> 0 | N34: 0 | P34: 0 | Q34: =IF($L34="MBD", IF(INTRO!$E$39="Non-endemic",IF($H34<>0,$D34*($H34-$G34),0),$D34*$H34),0) -> 0 | R34: 0 | T34: 0 | V34: 323024 | W34: 1616 | Y34: 0 | Z34: 0 | AB34: 0 | AC34: 0
A35: =IF(AND(INTRO!$E$37="Non-endemic",INTRO!$E$41="Non-endemic")," ",IF(COUNTRY_INFO!A35=0," ",COUNTRY_INFO!A35)) -> DRC | B35: =IF(AND(INTRO!$E$37="Non-endemic",INTRO!$E$41="Non-endemic")," ",IF(COUNTRY_INFO!B35=0," ",COUNTRY_INFO!B35)) -> EQUATEUR | C35: =IF(AND(INTRO!$E$37="Non-endemic",INTRO!$E$41="Non-endemic")," ",IF(COUNTRY_INFO!C35=0," ",COUNTRY_INFO!C35)) -> Monieka | D35: =IF(AND(INTRO!$E$37="Non-endemic",INTRO!$E$41="Non-endemic"),0,IF(AND(OR(COUNTRY_INFO!$H35=0,COUNTRY_INFO!$H35=4,COUNTRY_INFO!$H35=99),OR(COUNTRY_INFO!$J35=0,COUNTRY_INFO!$J35=4)),0,COUNTRY_INFO!$E35)) -> 15137 | E35: =IF(AND(INTRO!$E$37="Non-endemic",INTRO!$E$41="Non-endemic"),0,IF(AND(OR(COUNTRY_INFO!$H35=0,COUNTRY_INFO!$H35=4,COUNTRY_INFO!$H35=99),OR(COUNTRY_INFO!$J35=0,COUNTRY_INFO!$J35=4)),0,COUNTRY_INFO!$F35)) -> 31165 | F35: 46302 | G35: =IF(AND(INTRO!$E$37="Non-endemic",INTRO!$E$41="Non-endemic"),0,COUNTRY_INFO!Q35) -> 1 | H35: =IF(AND(INTRO!$E$37="Non-endemic",INTRO!$E$41="Non-endemic"),0,COUNTRY_INFO!S35) -> 0 | I35: =IF($G35=1,IVM!$G35,0) -> 72125 | J35: =IF($G35=0, " ", IF(COUNTRY_INFO!$H35=1, IF(COUNTRY_INFO!$L35=1, 0," ")," ")) -> 0 | L35: ALB | M35: =IF($L35="ALB", IF(INTRO!$E$39="Non-endemic",IF($H35<>0,$D35*($H35-$G35),0),$D35*$H35), 0) -> 0 | N35: 0 | P35: 0 | Q35: =IF($L35="MBD", IF(INTRO!$E$39="Non-endemic",IF($H35<>0,$D35*($H35-$G35),0),$D35*$H35),0) -> 0 | R35: 0 | T35: 0 | V35: 72125 | W35: 361 | Y35: 0 | Z35: 0 | AB35: 0 | AC35: 0
A36: =IF(AND(INTRO!$E$37="Non-endemic",INTRO!$E$41="Non-endemic")," ",IF(COUNTRY_INFO!A36=0," ",COUNTRY_INFO!A36)) -> DRC | B36: =IF(AND(INTRO!$E$37="Non-endemic",INTRO!$E$41="Non-endemic")," ",IF(COUNTRY_INFO!B36=0," ",COUNTRY_INFO!B36)) -> EQUATEUR | C36: =IF(AND(INTRO!$E$37="Non-endemic",INTRO!$E$41="Non-endemic")," ",IF(COUNTRY_INFO!C36=0," ",COUNTRY_INFO!C36)) -> Ntondo | D36: =IF(AND(INTRO!$E$37="Non-endemic",INTRO!$E$41="Non-endemic"),0,IF(AND(OR(COUNTRY_INFO!$H36=0,COUNTRY_INFO!$H36=4,COUNTRY_INFO!$H36=99),OR(COUNTRY_INFO!$J36=0,COUNTRY_INFO!$J36=4)),0,COUNTRY_INFO!$E36)) -> 13123 | E36: =IF(AND(INTRO!$E$37="Non-endemic",INTRO!$E$41="Non-endemic"),0,IF(AND(OR(COUNTRY_INFO!$H36=0,COUNTRY_INFO!$H36=4,COUNTRY_INFO!$H36=99),OR(COUNTRY_INFO!$J36=0,COUNTRY_INFO!$J36=4)),0,COUNTRY_INFO!$F36)) -> 27019 | F36: 40142 | G36: =IF(AND(INTRO!$E$37="Non-endemic",INTRO!$E$41="Non-endemic"),0,COUNTRY_INFO!Q36) -> 1 | H36: =IF(AND(INTRO!$E$37="Non-endemic",INTRO!$E$41="Non-endemic"),0,COUNTRY_INFO!S36) -> 2 | I36: =IF($G36=1,IVM!$G36,0) -> 0 | J36: 62529 | K36: 2 | L36: ALB | M36: =IF($L36="ALB", IF(INTRO!$E$39="Non-endemic",IF($H36<>0,$D36*($H36-$G36),0),$D36*$H36), 0) -> 26246 | N36: 0 | P36: 26246 | Q36: =IF($L36="MBD", IF(INTRO!$E$39="Non-endemic",IF($H36<>0,$D36*($H36-$G36),0),$D36*$H36),0) -> 0 | R36: 0 | T36: 0 | V36: 125058 | W36: 626 | Y36: 0 | Z36: 0 | AB36: 0 | AC36: 0
A37: =IF(AND(INTRO!$E$37="Non-endemic",INTRO!$E$41="Non-endemic")," ",IF(COUNTRY_INFO!A37=0," ",COUNTRY_INFO!A37)) -> DRC | B37: =IF(AND(INTRO!$E$37="Non-endemic",INTRO!$E$41="Non-endemic")," ",IF(COUNTRY_INFO!B37=0," ",COUNTRY_INFO!B37)) -> EQUATEUR | C37: =IF(AND(INTRO!$E$37="Non-endemic",INTRO!$E$41="Non-endemic")," ",IF(COUNTRY_INFO!C37=0," ",COUNTRY_INFO!C37)) -> Wangata | D37: =IF(AND(INTRO!$E$37="Non-endemic",INTRO!$E$41="Non-endemic"),0,IF(AND(OR(COUNTRY_INFO!$H37=0,COUNTRY_INFO!$H37=4,COUNTRY_INFO!$H37=99),OR(COUNTRY_INFO!$J37=0,COUNTRY_INFO!$J37=4)),0,COUNTRY_INFO!$E37)) -> 31851 | E37: =IF(AND(INTRO!$E$37="Non-endemic",INTRO!$E$41="Non-endemic"),0,IF(AND(OR(COUNTRY_INFO!$H37=0,COUNTRY_INFO!$H37=4,COUNTRY_INFO!$H37=99),OR(COUNTRY_INFO!$J37=0,COUNTRY_INFO!$J37=4)),0,COUNTRY_INFO!$F37)) -> 65576 | F37: 97427 | G37: =IF(AND(INTRO!$E$37="Non-endemic",INTRO!$E$41="Non-endemic"),0,COUNTRY_INFO!Q37) -> 1 | H37: =IF(AND(INTRO!$E$37="Non-endemic",INTRO!$E$41="Non-endemic"),0,COUNTRY_INFO!S37) -> 2 | I37: =IF($G37=1,IVM!$G37,0) -> 151761 | J37: =IF($G37=0, " ", IF(COUNTRY_INFO!$H37=1, IF(COUNTRY_INFO!$L37=1, 0," ")," ")) -> 0 | L37: ALB | M37: =IF($L37="ALB", IF(INTRO!$E$39="Non-endemic",IF($H37<>0,$D37*($H37-$G37),0),$D37*$H37), 0) -> 63702 | N37: 65576 | P37: 129278 | Q37: =IF($L37="MBD", IF(INTRO!$E$39="Non-endemic",IF($H37<>0,$D37*($H37-$G37),0),$D37*$H37),0) -> 0 | R37: 0 | T37: 0 | V37: 151761 | W37: 759 | Y37: 65576 | Z37: 328 | AB37: 0 | AC37: 0
A38: =IF(AND(INTRO!$E$37="Non-endemic",INTRO!$E$41="Non-endemic")," ",IF(COUNTRY_INFO!A38=0," ",COUNTRY_INFO!A38)) -> DRC | B38: =IF(AND(INTRO!$E$37="Non-endemic",INTRO!$E$41="Non-endemic")," ",IF(COUNTRY_INFO!B38=0," ",COUNTRY_INFO!B38)) -> HAUT KATANGA | C38: =IF(AND(INTRO!$E$37="Non-endemic",INTRO!$E$41="Non-endemic")," ",IF(COUNTRY_INFO!C38=0," ",COUNTRY_INFO!C38)) -> Kafubu | D38: =IF(AND(INTRO!$E$37="Non-endemic",INTRO!$E$41="Non-endemic"),0,IF(AND(OR(COUNTRY_INFO!$H38=0,COUNTRY_INFO!$H38=4,COUNTRY_INFO!$H38=99),OR(COUNTRY_INFO!$J38=0,COUNTRY_INFO!$J38=4)),0,COUNTRY_INFO!$E38)) -> 17883 | E38: =IF(AND(INTRO!$E$37="Non-endemic",INTRO!$E$41="Non-endemic"),0,IF(AND(OR(COUNTRY_INFO!$H38=0,COUNTRY_INFO!$H38=4,COUNTRY_INFO!$H38=99),OR(COUNTRY_INFO!$J38=0,COUNTRY_INFO!$J38=4)),0,COUNTRY_INFO!$F38)) -> 36817 | F38: 54700 | G38: =IF(AND(INTRO!$E$37="Non-endemic",INTRO!$E$41="Non-endemic"),0,COUNTRY_INFO!Q38) -> 0 | H38: =IF(AND(INTRO!$E$37="Non-endemic",INTRO!$E$41="Non-endemic"),0,COUNTRY_INFO!S38) -> 0 | I38: =IF($G38=1,IVM!$G38,0) -> 0 | J38: =IF($G38=0, " ", IF(COUNTRY_INFO!$H38=1, IF(COUNTRY_INFO!$L38=1, 0," ")," ")) ->  | L38: ALB | M38: =IF($L38="ALB", IF(INTRO!$E$39="Non-endemic",IF($H38<>0,$D38*($H38-$G38),0),$D38*$H38), 0) -> 0 | N38: 0 | P38: 0 | Q38: =IF($L38="MBD", IF(INTRO!$E$39="Non-endemic",IF($H38<>0,$D38*($H38-$G38),0),$D38*$H38),0) -> 0 | R38: 0 | T38: 0 | V38: 0 | W38: 0 | Y38: 0 | Z38: 0 | AB38: 0 | AC38: 0
A39: =IF(AND(INTRO!$E$37="Non-endemic",INTRO!$E$41="Non-endemic")," ",IF(COUNTRY_INFO!A39=0," ",COUNTRY_INFO!A39)) -> DRC | B39: =IF(AND(INTRO!$E$37="Non-endemic",INTRO!$E$41="Non-endemic")," ",IF(COUNTRY_INFO!B39=0," ",COUNTRY_INFO!B39)) -> HAUT KATANGA | C39: =IF(AND(INTRO!$E$37="Non-endemic",INTRO!$E$41="Non-endemic")," ",IF(COUNTRY_INFO!C39=0," ",COUNTRY_INFO!C39)) -> Kamalondo | D39: =IF(AND(INTRO!$E$37="Non-endemic",INTRO!$E$41="Non-endemic"),0,IF(AND(OR(COUNTRY_INFO!$H39=0,COUNTRY_INFO!$H39=4,COUNTRY_INFO!$H39=99),OR(COUNTRY_INFO!$J39=0,COUNTRY_INFO!$J39=4)),0,COUNTRY_INFO!$E39)) -> 9170 | E39: =IF(AND(INTRO!$E$37="Non-endemic",INTRO!$E$41="Non-endemic"),0,IF(AND(OR(COUNTRY_INFO!$H39=0,COUNTRY_INFO!$H39=4,COUNTRY_INFO!$H39=99),OR(COUNTRY_INFO!$J39=0,COUNTRY_INFO!$J39=4)),0,COUNTRY_INFO!$F39)) -> 18880 | F39: 28050 | G39: =IF(AND(INTRO!$E$37="Non-endemic",INTRO!$E$41="Non-endemic"),0,COUNTRY_INFO!Q39) -> 0 | H39: =IF(AND(INTRO!$E$37="Non-endemic",INTRO!$E$41="Non-endemic"),0,COUNTRY_INFO!S39) -> 1 | I39: =IF($G39=1,IVM!$G39,0) -> 0 | J39: =IF($G39=0, " ", IF(COUNTRY_INFO!$H39=1, IF(COUNTRY_INFO!$L39=1, 0," ")," ")) ->  | L39: ALB | M39: =IF($L39="ALB", IF(INTRO!$E$39="Non-endemic",IF($H39<>0,$D39*($H39-$G39),0),$D39*$H39), 0) -> 9170 | N39: 18880 | P39: 28050 | Q39: =IF($L39="MBD", IF(INTRO!$E$39="Non-endemic",IF($H39<>0,$D39*($H39-$G39),0),$D39*$H39),0) -> 0 | R39: 0 | T39: 0 | V39: 0 | W39: 0 | Y39: 18880 | Z39: 95 | AB39: 0 | AC39: 0
A40: =IF(AND(INTRO!$E$37="Non-endemic",INTRO!$E$41="Non-endemic")," ",IF(COUNTRY_INFO!A40=0," ",COUNTRY_INFO!A40)) -> DRC | B40: =IF(AND(INTRO!$E$37="Non-endemic",INTRO!$E$41="Non-endemic")," ",IF(COUNTRY_INFO!B40=0," ",COUNTRY_INFO!B40)) -> HAUT KATANGA | C40: =IF(AND(INTRO!$E$37="Non-endemic",INTRO!$E$41="Non-endemic")," ",IF(COUNTRY_INFO!C40=0," ",COUNTRY_INFO!C40)) -> Kambove | D40: =IF(AND(INTRO!$E$37="Non-endemic",INTRO!$E$41="Non-endemic"),0,IF(AND(OR(COUNTRY_INFO!$H40=0,COUNTRY_INFO!$H40=4,COUNTRY_INFO!$H40=99),OR(COUNTRY_INFO!$J40=0,COUNTRY_INFO!$J40=4)),0,COUNTRY_INFO!$E40)) -> 22172 | E40: =IF(AND(INTRO!$E$37="Non-endemic",INTRO!$E$41="Non-endemic"),0,IF(AND(OR(COUNTRY_INFO!$H40=0,COUNTRY_INFO!$H40=4,COUNTRY_INFO!$H40=99),OR(COUNTRY_INFO!$J40=0,COUNTRY_INFO!$J40=4)),0,COUNTRY_INFO!$F40)) -> 45647 | F40: 67819 | G40: =IF(AND(INTRO!$E$37="Non-endemic",INTRO!$E$41="Non-endemic"),0,COUNTRY_INFO!Q40) -> 0 | H40: =IF(AND(INTRO!$E$37="Non-endemic",INTRO!$E$41="Non-endemic"),0,COUNTRY_INFO!S40) -> 0 | I40: =IF($G40=1,IVM!$G40,0) -> 0 | J40: =IF($G40=0, " ", IF(COUNTRY_INFO!$H40=1, IF(COUNTRY_INFO!$L40=1, 0," ")," ")) ->  | L40: ALB | M40: =IF($L40="ALB", IF(INTRO!$E$39="Non-endemic",IF($H40<>0,$D40*($H40-$G40),0),$D40*$H40), 0) -> 0 | N40: 0 | P40: 0 | Q40: =IF($L40="MBD", IF(INTRO!$E$39="Non-endemic",IF($H40<>0,$D40*($H40-$G40),0),$D40*$H40),0) -> 0 | R40: 0 | T40: 0 | V40: 0 | W40: 0 | Y40: 0 | Z40: 0 | AB40: 0 | AC40: 0
A41: =IF(AND(INTRO!$E$37="Non-endemic",INTRO!$E$41="Non-endemic")," ",IF(COUNTRY_INFO!A41=0," ",COUNTRY_INFO!A41)) -> DRC | B41: =IF(AND(INTRO!$E$37="Non-endemic",INTRO!$E$41="Non-endemic")," ",IF(COUNTRY_INFO!B41=0," ",COUNTRY_INFO!B41)) -> HAUT KATANGA | C41: =IF(AND(INTRO!$E$37="Non-endemic",INTRO!$E$41="Non-endemic")," ",IF(COUNTRY_INFO!C41=0," ",COUNTRY_INFO!C41)) -> Kampemba | D41: =IF(AND(INTRO!$E$37="Non-endemic",INTRO!$E$41="Non-endemic"),0,IF(AND(OR(COUNTRY_INFO!$H41=0,COUNTRY_INFO!$H41=4,COUNTRY_INFO!$H41=99),OR(COUNTRY_INFO!$J41=0,COUNTRY_INFO!$J41=4)),0,COUNTRY_INFO!$E41)) -> 77378 | E41: =IF(AND(INTRO!$E$37="Non-endemic",INTRO!$E$41="Non-endemic"),0,IF(AND(OR(COUNTRY_INFO!$H41=0,COUNTRY_INFO!$H41=4,COUNTRY_INFO!$H41=99),OR(COUNTRY_INFO!$J41=0,COUNTRY_INFO!$J41=4)),0,COUNTRY_INFO!$F41)) -> 159308 | F41: 236686 | G41: =IF(AND(INTRO!$E$37="Non-endemic",INTRO!$E$41="Non-endemic"),0,COUNTRY_INFO!Q41) -> 0 | H41: =IF(AND(INTRO!$E$37="Non-endemic",INTRO!$E$41="Non-endemic"),0,COUNTRY_INFO!S41) -> 0 | I41: =IF($G41=1,IVM!$G41,0) -> 0 | J41: =IF($G41=0, " ", IF(COUNTRY_INFO!$H41=1, IF(COUNTRY_INFO!$L41=1, 0," ")," ")) ->  | L41: ALB | M41: =IF($L41="ALB", IF(INTRO!$E$39="Non-endemic",IF($H41<>0,$D41*($H41-$G41),0),$D41*$H41), 0) -> 0 | N41: 0 | P41: 0 | Q41: =IF($L41="MBD", IF(INTRO!$E$39="Non-endemic",IF($H41<>0,$D41*($H41-$G41),0),$D41*$H41),0) -> 0 | R41: 0 | T41: 0 | V41: 0 | W41: 0 | Y41: 0 | Z41: 0 | AB41: 0 | AC41: 0
A42: =IF(AND(INTRO!$E$37="Non-endemic",INTRO!$E$41="Non-endemic")," ",IF(COUNTRY_INFO!A42=0," ",COUNTRY_INFO!A42)) -> DRC | B42: =IF(AND(INTRO!$E$37="Non-endemic",INTRO!$E$41="Non-endemic")," ",IF(COUNTRY_INFO!B42=0," ",COUNTRY_INFO!B42)) -> HAUT KATANGA | C42: =IF(AND(INTRO!$E$37="Non-endemic",INTRO!$E$41="Non-endemic")," ",IF(COUNTRY_INFO!C42=0," ",COUNTRY_INFO!C42)) -> Kapolobwe | D42: =IF(AND(INTRO!$E$37="Non-endemic",INTRO!$E$41="Non-endemic"),0,IF(AND(OR(COUNTRY_INFO!$H42=0,COUNTRY_INFO!$H42=4,COUNTRY_INFO!$H42=99),OR(COUNTRY_INFO!$J42=0,COUNTRY_INFO!$J42=4)),0,COUNTRY_INFO!$E42)) -> 0 | E42: =IF(AND(INTRO!$E$37="Non-endemic",INTRO!$E$41="Non-endemic"),0,IF(AND(OR(COUNTRY_INFO!$H42=0,COUNTRY_INFO!$H42=4,COUNTRY_INFO!$H42=99),OR(COUNTRY_INFO!$J42=0,COUNTRY_INFO!$J42=4)),0,COUNTRY_INFO!$F42)) -> 0 | F42: 0 | G42: =IF(AND(INTRO!$E$37="Non-endemic",INTRO!$E$41="Non-endemic"),0,COUNTRY_INFO!Q42) -> 0 | H42: =IF(AND(INTRO!$E$37="Non-endemic",INTRO!$E$41="Non-endemic"),0,COUNTRY_INFO!S42) -> 0 | I42: =IF($G42=1,IVM!$G42,0) -> 0 | J42: =IF($G42=0, " ", IF(COUNTRY_INFO!$H42=1, IF(COUNTRY_INFO!$L42=1, 0," ")," ")) ->  | L42: ALB | M42: =IF($L42="ALB", IF(INTRO!$E$39="Non-endemic",IF($H42<>0,$D42*($H42-$G42),0),$D42*$H42), 0) -> 0 | N42: 0 | P42: 0 | Q42: =IF($L42="MBD", IF(INTRO!$E$39="Non-endemic",IF($H42<>0,$D42*($H42-$G42),0),$D42*$H42),0) -> 0 | R42: 0 | T42: 0 | V42: 0 | W42: 0 | Y42: 0 | Z42: 0 | AB42: 0 | AC42: 0
A43: =IF(AND(INTRO!$E$37="Non-endemic",INTRO!$E$41="Non-endemic")," ",IF(COUNTRY_INFO!A43=0," ",COUNTRY_INFO!A43)) -> DRC | B43: =IF(AND(INTRO!$E$37="Non-endemic",INTRO!$E$41="Non-endemic")," ",IF(COUNTRY_INFO!B43=0," ",COUNTRY_INFO!B43)) -> HAUT KATANGA | C43: =IF(AND(INTRO!$E$37="Non-endemic",INTRO!$E$41="Non-endemic")," ",IF(COUNTRY_INFO!C43=0," ",COUNTRY_INFO!C43)) -> Kasenga | D43: =IF(AND(INTRO!$E$37="Non-endemic",INTRO!$E$41="Non-endemic"),0,IF(AND(OR(COUNTRY_INFO!$H43=0,COUNTRY_INFO!$H43=4,COUNTRY_INFO!$H43=99),OR(COUNTRY_INFO!$J43=0,COUNTRY_INFO!$J43=4)),0,COUNTRY_INFO!$E43)) -> 25881 | E43: =IF(AND(INTRO!$E$37="Non-endemic",INTRO!$E$41="Non-endemic"),0,IF(AND(OR(COUNTRY_INFO!$H43=0,COUNTRY_INFO!$H43=4,COUNTRY_INFO!$H43=99),OR(COUNTRY_INFO!$J43=0,COUNTRY_INFO!$J43=4)),0,COUNTRY_INFO!$F43)) -> 53284 | F43: 79165 | G43: =IF(AND(INTRO!$E$37="Non-endemic",INTRO!$E$41="Non-endemic"),0,COUNTRY_INFO!Q43) -> 1 | H43: =IF(AND(INTRO!$E$37="Non-endemic",INTRO!$E$41="Non-endemic"),0,COUNTRY_INFO!S43) -> 0 | I43: =IF($G43=1,IVM!$G43,0) -> 123315 | J43: =IF($G43=0, " ", IF(COUNTRY_INFO!$H43=1, IF(COUNTRY_INFO!$L43=1, 0," ")," ")) ->  | L43: ALB | M43: =IF($L43="ALB", IF(INTRO!$E$39="Non-endemic",IF($H43<>0,$D43*($H43-$G43),0),$D43*$H43), 0) -> 0 | N43: 0 | P43: 0 | Q43: =IF($L43="MBD", IF(INTRO!$E$39="Non-endemic",IF($H43<>0,$D43*($H43-$G43),0),$D43*$H43),0) -> 0 | R43: 0 | T43: 0 | V43: 123315 | W43: 617 | Y43: 0 | Z43: 0 | AB43: 0 | AC43: 0
A44: =IF(AND(INTRO!$E$37="Non-endemic",INTRO!$E$41="Non-endemic")," ",IF(COUNTRY_INFO!A44=0," ",COUNTRY_INFO!A44)) -> DRC | B44: =IF(AND(INTRO!$E$37="Non-endemic",INTRO!$E$41="Non-endemic")," ",IF(COUNTRY_INFO!B44=0," ",COUNTRY_INFO!B44)) -> HAUT KATANGA | C44: =IF(AND(INTRO!$E$37="Non-endemic",INTRO!$E$41="Non-endemic")," ",IF(COUNTRY_INFO!C44=0," ",COUNTRY_INFO!C44)) -> Kashobwe | D44: =IF(AND(INTRO!$E$37="Non-endemic",INTRO!$E$41="Non-endemic"),0,IF(AND(OR(COUNTRY_INFO!$H44=0,COUNTRY_INFO!$H44=4,COUNTRY_INFO!$H44=99),OR(COUNTRY_INFO!$J44=0,COUNTRY_INFO!$J44=4)),0,COUNTRY_INFO!$E44)) -> 28561 | E44: =IF(AND(INTRO!$E$37="Non-endemic",INTRO!$E$41="Non-endemic"),0,IF(AND(OR(COUNTRY_INFO!$H44=0,COUNTRY_INFO!$H44=4,COUNTRY_INFO!$H44=99),OR(COUNTRY_INFO!$J44=0,COUNTRY_INFO!$J44=4)),0,COUNTRY_INFO!$F44)) -> 58803 | F44: 87364 | G44: =IF(AND(INTRO!$E$37="Non-endemic",INTRO!$E$41="Non-endemic"),0,COUNTRY_INFO!Q44) -> 0 | H44: =IF(AND(INTRO!$E$37="Non-endemic",INTRO!$E$41="Non-endemic"),0,COUNTRY_INFO!S44) -> 0 | I44: =IF($G44=1,IVM!$G44,0) -> 0 | J44: =IF($G44=0, " ", IF(COUNTRY_INFO!$H44=1, IF(COUNTRY_INFO!$L44=1, 0," ")," ")) ->  | L44: ALB | M44: =IF($L44="ALB", IF(INTRO!$E$39="Non-endemic",IF($H44<>0,$D44*($H44-$G44),0),$D44*$H44), 0) -> 0 | N44: 0 | P44: 0 | Q44: =IF($L44="MBD", IF(INTRO!$E$39="Non-endemic",IF($H44<>0,$D44*($H44-$G44),0),$D44*$H44),0) -> 0 | R44: 0 | T44: 0 | V44: 0 | W44: 0 | Y44: 0 | Z44: 0 | AB44: 0 | AC44: 0
A45: =IF(AND(INTRO!$E$37="Non-endemic",INTRO!$E$41="Non-endemic")," ",IF(COUNTRY_INFO!A45=0," ",COUNTRY_INFO!A45)) -> DRC | B45: =IF(AND(INTRO!$E$37="Non-endemic",INTRO!$E$41="Non-endemic")," ",IF(COUNTRY_INFO!B45=0," ",COUNTRY_INFO!B45)) -> HAUT KATANGA | C45: =IF(AND(INTRO!$E$37="Non-endemic",INTRO!$E$41="Non-endemic")," ",IF(COUNTRY_INFO!C45=0," ",COUNTRY_INFO!C45)) -> Katuba | D45: =IF(AND(INTRO!$E$37="Non-endemic",INTRO!$E$41="Non-endemic"),0,IF(AND(OR(COUNTRY_INFO!$H45=0,COUNTRY_INFO!$H45=4,COUNTRY_INFO!$H45=99),OR(COUNTRY_INFO!$J45=0,COUNTRY_INFO!$J45=4)),0,COUNTRY_INFO!$E45)) -> 33681 | E45: =IF(AND(INTRO!$E$37="Non-endemic",INTRO!$E$41="Non-endemic"),0,IF(AND(OR(COUNTRY_INFO!$H45=0,COUNTRY_INFO!$H45=4,COUNTRY_INFO!$H45=99),OR(COUNTRY_INFO!$J45=0,COUNTRY_INFO!$J45=4)),0,COUNTRY_INFO!$F45)) -> 69342 | F45: 103023 | G45: =IF(AND(INTRO!$E$37="Non-endemic",INTRO!$E$41="Non-endemic"),0,COUNTRY_INFO!Q45) -> 0 | H45: =IF(AND(INTRO!$E$37="Non-endemic",INTRO!$E$41="Non-endemic"),0,COUNTRY_INFO!S45) -> 1 | I45: =IF($G45=1,IVM!$G45,0) -> 0 | J45: =IF($G45=0, " ", IF(COUNTRY_INFO!$H45=1, IF(COUNTRY_INFO!$L45=1, 0," ")," ")) ->  | L45: ALB | M45: =IF($L45="ALB", IF(INTRO!$E$39="Non-endemic",IF($H45<>0,$D45*($H45-$G45),0),$D45*$H45), 0) -> 33681 | N45: 69342 | P45: 103023 | Q45: =IF($L45="MBD", IF(INTRO!$E$39="Non-endemic",IF($H45<>0,$D45*($H45-$G45),0),$D45*$H45),0) -> 0 | R45: 0 | T45: 0 | V45: 0 | W45: 0 | Y45: 69342 | Z45: 347 | AB45: 0 | AC45: 0
A46: =IF(AND(INTRO!$E$37="Non-endemic",INTRO!$E$41="Non-endemic")," ",IF(COUNTRY_INFO!A46=0," ",COUNTRY_INFO!A46)) -> DRC | B46: =IF(AND(INTRO!$E$37="Non-endemic",INTRO!$E$41="Non-endemic")," ",IF(COUNTRY_INFO!B46=0," ",COUNTRY_INFO!B46)) -> HAUT KATANGA | C46: =IF(AND(INTRO!$E$37="Non-endemic",INTRO!$E$41="Non-endemic")," ",IF(COUNTRY_INFO!C46=0," ",COUNTRY_INFO!C46)) -> Kenya | D46: =IF(AND(INTRO!$E$37="Non-endemic",INTRO!$E$41="Non-endemic"),0,IF(AND(OR(COUNTRY_INFO!$H46=0,COUNTRY_INFO!$H46=4,COUNTRY_INFO!$H46=99),OR(COUNTRY_INFO!$J46=0,COUNTRY_INFO!$J46=4)),0,COUNTRY_INFO!$E46)) -> 37740 | E46: =IF(AND(INTRO!$E$37="Non-endemic",INTRO!$E$41="Non-endemic"),0,IF(AND(OR(COUNTRY_INFO!$H46=0,COUNTRY_INFO!$H46=4,COUNTRY_INFO!$H46=99),OR(COUNTRY_INFO!$J46=0,COUNTRY_INFO!$J46=4)),0,COUNTRY_INFO!$F46)) -> 77701 | F46: 115441 | G46: =IF(AND(INTRO!$E$37="Non-endemic",INTRO!$E$41="Non-endemic"),0,COUNTRY_INFO!Q46) -> 1 | H46: =IF(AND(INTRO!$E$37="Non-endemic",INTRO!$E$41="Non-endemic"),0,COUNTRY_INFO!S46) -> 0 | I46: =IF($G46=1,IVM!$G46,0) -> 179822 | J46: =IF($G46=0, " ", IF(COUNTRY_INFO!$H46=1, IF(COUNTRY_INFO!$L46=1, 0," ")," ")) ->  | L46: ALB | M46: =IF($L46="ALB", IF(INTRO!$E$39="Non-endemic",IF($H46<>0,$D46*($H46-$G46),0),$D46*$H46), 0) -> 0 | N46: 0 | P46: 0 | Q46: =IF($L46="MBD", IF(INTRO!$E$39="Non-endemic",IF($H46<>0,$D46*($H46-$G46),0),$D46*$H46),0) -> 0 | R46: 0 | T46: 0 | V46: 179822 | W46: 900 | Y46: 0 | Z46: 0 | AB46: 0 | AC46: 0
A47: =IF(AND(INTRO!$E$37="Non-endemic",INTRO!$E$41="Non-endemic")," ",IF(COUNTRY_INFO!A47=0," ",COUNTRY_INFO!A47)) -> DRC | B47: =IF(AND(INTRO!$E$37="Non-endemic",INTRO!$E$41="Non-endemic")," ",IF(COUNTRY_INFO!B47=0," ",COUNTRY_INFO!B47)) -> HAUT KATANGA | C47: =IF(AND(INTRO!$E$37="Non-endemic",INTRO!$E$41="Non-endemic")," ",IF(COUNTRY_INFO!C47=0," ",COUNTRY_INFO!C47)) -> Kikula | D47: =IF(AND(INTRO!$E$37="Non-endemic",INTRO!$E$41="Non-endemic"),0,IF(AND(OR(COUNTRY_INFO!$H47=0,COUNTRY_INFO!$H47=4,COUNTRY_INFO!$H47=99),OR(COUNTRY_INFO!$J47=0,COUNTRY_INFO!$J47=4)),0,COUNTRY_INFO!$E47)) -> 0 | E47: =IF(AND(INTRO!$E$37="Non-endemic",INTRO!$E$41="Non-endemic"),0,IF(AND(OR(COUNTRY_INFO!$H47=0,COUNTRY_INFO!$H47=4,COUNTRY_INFO!$H47=99),OR(COUNTRY_INFO!$J47=0,COUNTRY_INFO!$J47=4)),0,COUNTRY_INFO!$F47)) -> 0 | F47: 0 | G47: =IF(AND(INTRO!$E$37="Non-endemic",INTRO!$E$41="Non-endemic"),0,COUNTRY_INFO!Q47) -> 0 | H47: =IF(AND(INTRO!$E$37="Non-endemic",INTRO!$E$41="Non-endemic"),0,COUNTRY_INFO!S47) -> 0 | I47: =IF($G47=1,IVM!$G47,0) -> 0 | J47: =IF($G47=0, " ", IF(COUNTRY_INFO!$H47=1, IF(COUNTRY_INFO!$L47=1, 0," ")," ")) ->  | L47: ALB | M47: =IF($L47="ALB", IF(INTRO!$E$39="Non-endemic",IF($H47<>0,$D47*($H47-$G47),0),$D47*$H47), 0) -> 0 | N47: 0 | P47: 0 | Q47: =IF($L47="MBD", IF(INTRO!$E$39="Non-endemic",IF($H47<>0,$D47*($H47-$G47),0),$D47*$H47),0) -> 0 | R47: 0 | T47: 0 | V47: 0 | W47: 0 | Y47: 0 | Z47: 0 | AB47: 0 | AC47: 0
A48: =IF(AND(INTRO!$E$37="Non-endemic",INTRO!$E$41="Non-endemic")," ",IF(COUNTRY_INFO!A48=0," ",COUNTRY_INFO!A48)) -> DRC | B48: =IF(AND(INTRO!$E$37="Non-endemic",INTRO!$E$41="Non-endemic")," ",IF(COUNTRY_INFO!B48=0," ",COUNTRY_INFO!B48)) -> HAUT KATANGA | C48: =IF(AND(INTRO!$E$37="Non-endemic",INTRO!$E$41="Non-endemic")," ",IF(COUNTRY_INFO!C48=0," ",COUNTRY_INFO!C48)) -> Kilela Balanda | D48: =IF(AND(INTRO!$E$37="Non-endemic",INTRO!$E$41="Non-endemic"),0,IF(AND(OR(COUNTRY_INFO!$H48=0,COUNTRY_INFO!$H48=4,COUNTRY_INFO!$H48=99),OR(COUNTRY_INFO!$J48=0,COUNTRY_INFO!$J48=4)),0,COUNTRY_INFO!$E48)) -> 18477 | E48: =IF(AND(INTRO!$E$37="Non-endemic",INTRO!$E$41="Non-endemic"),0,IF(AND(OR(COUNTRY_INFO!$H48=0,COUNTRY_INFO!$H48=4,COUNTRY_INFO!$H48=99),OR(COUNTRY_INFO!$J48=0,COUNTRY_INFO!$J48=4)),0,COUNTRY_INFO!$F48)) -> 38042 | F48: 56519 | G48: =IF(AND(INTRO!$E$37="Non-endemic",INTRO!$E$41="Non-endemic"),0,COUNTRY_INFO!Q48) -> 0 | H48: =IF(AND(INTRO!$E$37="Non-endemic",INTRO!$E$41="Non-endemic"),0,COUNTRY_INFO!S48) -> 0 | I48: =IF($G48=1,IVM!$G48,0) -> 0 | J48: =IF($G48=0, " ", IF(COUNTRY_INFO!$H48=1, IF(COUNTRY_INFO!$L48=1, 0," ")," ")) ->  | L48: ALB | M48: =IF($L48="ALB", IF(INTRO!$E$39="Non-endemic",IF($H48<>0,$D48*($H48-$G48),0),$D48*$H48), 0) -> 0 | N48: 0 | P48: 0 | Q48: =IF($L48="MBD", IF(INTRO!$E$39="Non-endemic",IF($H48<>0,$D48*($H48-$G48),0),$D48*$H48),0) -> 0 | R48: 0 | T48: 0 | V48: 0 | W48: 0 | Y48: 0 | Z48: 0 | AB48: 0 | AC48: 0
A49: =IF(AND(INTRO!$E$37="Non-endemic",INTRO!$E$41="Non-endemic")," ",IF(COUNTRY_INFO!A49=0," ",COUNTRY_INFO!A49)) -> DRC | B49: =IF(AND(INTRO!$E$37="Non-endemic",INTRO!$E$41="Non-endemic")," ",IF(COUNTRY_INFO!B49=0," ",COUNTRY_INFO!B49)) -> HAUT KATANGA | C49: =IF(AND(INTRO!$E$37="Non-endemic",INTRO!$E$41="Non-endemic")," ",IF(COUNTRY_INFO!C49=0," ",COUNTRY_INFO!C49)) -> Kilwa | D49: =IF(AND(INTRO!$E$37="Non-endemic",INTRO!$E$41="Non-endemic"),0,IF(AND(OR(COUNTRY_INFO!$H49=0,COUNTRY_INFO!$H49=4,COUNTRY_INFO!$H49=99),OR(COUNTRY_INFO!$J49=0,COUNTRY_INFO!$J49=4)),0,COUNTRY_INFO!$E49)) -> 64045 | E49: =IF(AND(INTRO!$E$37="Non-endemic",INTRO!$E$41="Non-endemic"),0,IF(AND(OR(COUNTRY_INFO!$H49=0,COUNTRY_INFO!$H49=4,COUNTRY_INFO!$H49=99),OR(COUNTRY_INFO!$J49=0,COUNTRY_INFO!$J49=4)),0,COUNTRY_INFO!$F49)) -> 131858 | F49: 195903 | G49: =IF(AND(INTRO!$E$37="Non-endemic",INTRO!$E$41="Non-endemic"),0,COUNTRY_INFO!Q49) -> 1 | H49: =IF(AND(INTRO!$E$37="Non-endemic",INTRO!$E$41="Non-endemic"),0,COUNTRY_INFO!S49) -> 0 | I49: =IF($G49=1,IVM!$G49,0) -> 305157 | J49: =IF($G49=0, " ", IF(COUNTRY_INFO!$H49=1, IF(COUNTRY_INFO!$L49=1, 0," ")," ")) ->  | L49: ALB | M49: =IF($L49="ALB", IF(INTRO!$E$39="Non-endemic",IF($H49<>0,$D49*($H49-$G49),0),$D49*$H49), 0) -> 0 | N49: 0 | P49: 0 | Q49: =IF($L49="MBD", IF(INTRO!$E$39="Non-endemic",IF($H49<>0,$D49*($H49-$G49),0),$D49*$H49),0) -> 0 | R49: 0 | T49: 0 | V49: 305157 | W49: 1526 | Y49: 0 | Z49: 0 | AB49: 0 | AC49: 0
A50: =IF(AND(INTRO!$E$37="Non-endemic",INTRO!$E$41="Non-endemic")," ",IF(COUNTRY_INFO!A50=0," ",COUNTRY_INFO!A50)) -> DRC | B50: =IF(AND(INTRO!$E$37="Non-endemic",INTRO!$E$41="Non-endemic")," ",IF(COUNTRY_INFO!B50=0," ",COUNTRY_INFO!B50)) -> HAUT KATANGA | C50: =IF(AND(INTRO!$E$37="Non-endemic",INTRO!$E$41="Non-endemic")," ",IF(COUNTRY_INFO!C50=0," ",COUNTRY_INFO!C50)) -> Kipushi | D50: =IF(AND(INTRO!$E$37="Non-endemic",INTRO!$E$41="Non-endemic"),0,IF(AND(OR(COUNTRY_INFO!$H50=0,COUNTRY_INFO!$H50=4,COUNTRY_INFO!$H50=99),OR(COUNTRY_INFO!$J50=0,COUNTRY_INFO!$J50=4)),0,COUNTRY_INFO!$E50)) -> 39870 | E50: =IF(AND(INTRO!$E$37="Non-endemic",INTRO!$E$41="Non-endemic"),0,IF(AND(OR(COUNTRY_INFO!$H50=0,COUNTRY_INFO!$H50=4,COUNTRY_INFO!$H50=99),OR(COUNTRY_INFO!$J50=0,COUNTRY_INFO!$J50=4)),0,COUNTRY_INFO!$F50)) -> 82085 | F50: 121955 | G50: =IF(AND(INTRO!$E$37="Non-endemic",INTRO!$E$41="Non-endemic"),0,COUNTRY_INFO!Q50) -> 1 | H50: =IF(AND(INTRO!$E$37="Non-endemic",INTRO!$E$41="Non-endemic"),0,COUNTRY_INFO!S50) -> 0 | I50: =IF($G50=1,IVM!$G50,0) -> 189968 | J50: =IF($G50=0, " ", IF(COUNTRY_INFO!$H50=1, IF(COUNTRY_INFO!$L50=1, 0," ")," ")) ->  | L50: ALB | M50: =IF($L50="ALB", IF(INTRO!$E$39="Non-endemic",IF($H50<>0,$D50*($H50-$G50),0),$D50*$H50), 0) -> 0 | N50: 0 | P50: 0 | Q50: =IF($L50="MBD", IF(INTRO!$E$39="Non-endemic",IF($H50<>0,$D50*($H50-$G50),0),$D50*$H50),0) -> 0 | R50: 0 | T50: 0 | V50: 189968 | W50: 950 | Y50: 0 | Z50: 0 | AB50: 0 | AC50: 0
A51: =IF(AND(INTRO!$E$37="Non-endemic",INTRO!$E$41="Non-endemic")," ",IF(COUNTRY_INFO!A51=0," ",COUNTRY_INFO!A51)) -> DRC | B51: =IF(AND(INTRO!$E$37="Non-endemic",INTRO!$E$41="Non-endemic")," ",IF(COUNTRY_INFO!B51=0," ",COUNTRY_INFO!B51)) -> HAUT KATANGA | C51: =IF(AND(INTRO!$E$37="Non-endemic",INTRO!$E$41="Non-endemic")," ",IF(COUNTRY_INFO!C51=0," ",COUNTRY_INFO!C51)) -> Kisanga | D51: =IF(AND(INTRO!$E$37="Non-endemic",INTRO!$E$41="Non-endemic"),0,IF(AND(OR(COUNTRY_INFO!$H51=0,COUNTRY_INFO!$H51=4,COUNTRY_INFO!$H51=99),OR(COUNTRY_INFO!$J51=0,COUNTRY_INFO!$J51=4)),0,COUNTRY_INFO!$E51)) -> 47686 | E51: =IF(AND(INTRO!$E$37="Non-endemic",INTRO!$E$41="Non-endemic"),0,IF(AND(OR(COUNTRY_INFO!$H51=0,COUNTRY_INFO!$H51=4,COUNTRY_INFO!$H51=99),OR(COUNTRY_INFO!$J51=0,COUNTRY_INFO!$J51=4)),0,COUNTRY_INFO!$F51)) -> 98178 | F51: 145864 | G51: =IF(AND(INTRO!$E$37="Non-endemic",INTRO!$E$41="Non-endemic"),0,COUNTRY_INFO!Q51) -> 1 | H51: =IF(AND(INTRO!$E$37="Non-endemic",INTRO!$E$41="Non-endemic"),0,COUNTRY_INFO!S51) -> 0 | I51: =IF($G51=1,IVM!$G51,0) -> 227211 | J51: =IF($G51=0, " ", IF(COUNTRY_INFO!$H51=1, IF(COUNTRY_INFO!$L51=1, 0," ")," ")) ->  | L51: ALB | M51: =IF($L51="ALB", IF(INTRO!$E$39="Non-endemic",IF($H51<>0,$D51*($H51-$G51),0),$D51*$H51), 0) -> 0 | N51: 0 | P51: 0 | Q51: =IF($L51="MBD", IF(INTRO!$E$39="Non-endemic",IF($H51<>0,$D51*($H51-$G51),0),$D51*$H51),0) -> 0 | R51: 0 | T51: 0 | V51: 227211 | W51: 1137 | Y51: 0 | Z51: 0 | AB51: 0 | AC51: 0
A52: =IF(AND(INTRO!$E$37="Non-endemic",INTRO!$E$41="Non-endemic")," ",IF(COUNTRY_INFO!A52=0," ",COUNTRY_INFO!A52)) -> DRC | B52: =IF(AND(INTRO!$E$37="Non-endemic",INTRO!$E$41="Non-endemic")," ",IF(COUNTRY_INFO!B52=0," ",COUNTRY_INFO!B52)) -> HAUT KATANGA | C52: =IF(AND(INTRO!$E$37="Non-endemic",INTRO!$E$41="Non-endemic")," ",IF(COUNTRY_INFO!C52=0," ",COUNTRY_INFO!C52)) -> Kowe | D52: =IF(AND(INTRO!$E$37="Non-endemic",INTRO!$E$41="Non-endemic"),0,IF(AND(OR(COUNTRY_INFO!$H52=0,COUNTRY_INFO!$H52=4,COUNTRY_INFO!$H52=99),OR(COUNTRY_INFO!$J52=0,COUNTRY_INFO!$J52=4)),0,COUNTRY_INFO!$E52)) -> 8962 | E52: =IF(AND(INTRO!$E$37="Non-endemic",INTRO!$E$41="Non-endemic"),0,IF(AND(OR(COUNTRY_INFO!$H52=0,COUNTRY_INFO!$H52=4,COUNTRY_INFO!$H52=99),OR(COUNTRY_INFO!$J52=0,COUNTRY_INFO!$J52=4)),0,COUNTRY_INFO!$F52)) -> 18452 | F52: 27414 | G52: =IF(AND(INTRO!$E$37="Non-endemic",INTRO!$E$41="Non-endemic"),0,COUNTRY_INFO!Q52) -> 0 | H52: =IF(AND(INTRO!$E$37="Non-endemic",INTRO!$E$41="Non-endemic"),0,COUNTRY_INFO!S52) -> 1 | I52: =IF($G52=1,IVM!$G52,0) -> 0 | J52: =IF($G52=0, " ", IF(COUNTRY_INFO!$H52=1, IF(COUNTRY_INFO!$L52=1, 0," ")," ")) ->  | L52: ALB | M52: =IF($L52="ALB", IF(INTRO!$E$39="Non-endemic",IF($H52<>0,$D52*($H52-$G52),0),$D52*$H52), 0) -> 8962 | N52: 18452 | P52: 27414 | Q52: =IF($L52="MBD", IF(INTRO!$E$39="Non-endemic",IF($H52<>0,$D52*($H52-$G52),0),$D52*$H52),0) -> 0 | R52: 0 | T52: 0 | V52: 0 | W52: 0 | Y52: 18452 | Z52: 93 | AB52: 0 | AC52: 0
A53: =IF(AND(INTRO!$E$37="Non-endemic",INTRO!$E$41="Non-endemic")," ",IF(COUNTRY_INFO!A53=0," ",COUNTRY_INFO!A53)) -> DRC | B53: =IF(AND(INTRO!$E$37="Non-endemic",INTRO!$E$41="Non-endemic")," ",IF(COUNTRY_INFO!B53=0," ",COUNTRY_INFO!B53)) -> HAUT KATANGA | C53: =IF(AND(INTRO!$E$37="Non-endemic",INTRO!$E$41="Non-endemic")," ",IF(COUNTRY_INFO!C53=0," ",COUNTRY_INFO!C53)) -> Likasi | D53: =IF(AND(INTRO!$E$37="Non-endemic",INTRO!$E$41="Non-endemic"),0,IF(AND(OR(COUNTRY_INFO!$H53=0,COUNTRY_INFO!$H53=4,COUNTRY_INFO!$H53=99),OR(COUNTRY_INFO!$J53=0,COUNTRY_INFO!$J53=4)),0,COUNTRY_INFO!$E53)) -> 32005 | E53: =IF(AND(INTRO!$E$37="Non-endemic",INTRO!$E$41="Non-endemic"),0,IF(AND(OR(COUNTRY_INFO!$H53=0,COUNTRY_INFO!$H53=4,COUNTRY_INFO!$H53=99),OR(COUNTRY_INFO!$J53=0,COUNTRY_INFO!$J53=4)),0,COUNTRY_INFO!$F53)) -> 65892 | F53: 97897 | G53: =IF(AND(INTRO!$E$37="Non-endemic",INTRO!$E$41="Non-endemic"),0,COUNTRY_INFO!Q53) -> 1 | H53: =IF(AND(INTRO!$E$37="Non-endemic",INTRO!$E$41="Non-endemic"),0,COUNTRY_INFO!S53) -> 0 | I53: =IF($G53=1,IVM!$G53,0) -> 152494 | J53: =IF($G53=0, " ", IF(COUNTRY_INFO!$H53=1, IF(COUNTRY_INFO!$L53=1, 0," ")," ")) ->  | L53: ALB | M53: =IF($L53="ALB", IF(INTRO!$E$39="Non-endemic",IF($H53<>0,$D53*($H53-$G53),0),$D53*$H53), 0) -> 0 | N53: 0 | P53: 0 | Q53: =IF($L53="MBD", IF(INTRO!$E$39="Non-endemic",IF($H53<>0,$D53*($H53-$G53),0),$D53*$H53),0) -> 0 | R53: 0 | T53: 0 | V53: 152494 | W53: 763 | Y53: 0 | Z53: 0 | AB53: 0 | AC53: 0
A54: =IF(AND(INTRO!$E$37="Non-endemic",INTRO!$E$41="Non-endemic")," ",IF(COUNTRY_INFO!A54=0," ",COUNTRY_INFO!A54)) -> DRC | B54: =IF(AND(INTRO!$E$37="Non-endemic",INTRO!$E$41="Non-endemic")," ",IF(COUNTRY_INFO!B54=0," ",COUNTRY_INFO!B54)) -> HAUT KATANGA | C54: =IF(AND(INTRO!$E$37="Non-endemic",INTRO!$E$41="Non-endemic")," ",IF(COUNTRY_INFO!C54=0," ",COUNTRY_INFO!C54)) -> Lubumbashi | D54: =IF(AND(INTRO!$E$37="Non-endemic",INTRO!$E$41="Non-endemic"),0,IF(AND(OR(COUNTRY_INFO!$H54=0,COUNTRY_INFO!$H54=4,COUNTRY_INFO!$H54=99),OR(COUNTRY_INFO!$J54=0,COUNTRY_INFO!$J54=4)),0,COUNTRY_INFO!$E54)) -> 33020 | E54: =IF(AND(INTRO!$E$37="Non-endemic",INTRO!$E$41="Non-endemic"),0,IF(AND(OR(COUNTRY_INFO!$H54=0,COUNTRY_INFO!$H54=4,COUNTRY_INFO!$H54=99),OR(COUNTRY_INFO!$J54=0,COUNTRY_INFO!$J54=4)),0,COUNTRY_INFO!$F54)) -> 67982 | F54: 101002 | G54: =IF(AND(INTRO!$E$37="Non-endemic",INTRO!$E$41="Non-endemic"),0,COUNTRY_INFO!Q54) -> 1 | H54: =IF(AND(INTRO!$E$37="Non-endemic",INTRO!$E$41="Non-endemic"),0,COUNTRY_INFO!S54) -> 0 | I54: =IF($G54=1,IVM!$G54,0) -> 157330 | J54: =IF($G54=0, " ", IF(COUNTRY_INFO!$H54=1, IF(COUNTRY_INFO!$L54=1, 0," ")," ")) ->  | L54: ALB | M54: =IF($L54="ALB", IF(INTRO!$E$39="Non-endemic",IF($H54<>0,$D54*($H54-$G54),0),$D54*$H54), 0) -> 0 | N54: 0 | P54: 0 | Q54: =IF($L54="MBD", IF(INTRO!$E$39="Non-endemic",IF($H54<>0,$D54*($H54-$G54),0),$D54*$H54),0) -> 0 | R54: 0 | T54: 0 | V54: 157330 | W54: 787 | Y54: 0 | Z54: 0 | AB54: 0 | AC54: 0
A55: =IF(AND(INTRO!$E$37="Non-endemic",INTRO!$E$41="Non-endemic")," ",IF(COUNTRY_INFO!A55=0," ",COUNTRY_INFO!A55)) -> DRC | B55: =IF(AND(INTRO!$E$37="Non-endemic",INTRO!$E$41="Non-endemic")," ",IF(COUNTRY_INFO!B55=0," ",COUNTRY_INFO!B55)) -> HAUT KATANGA | C55: =IF(AND(INTRO!$E$37="Non-endemic",INTRO!$E$41="Non-endemic")," ",IF(COUNTRY_INFO!C55=0," ",COUNTRY_INFO!C55)) -> Lukafu | D55: =IF(AND(INTRO!$E$37="Non-endemic",INTRO!$E$41="Non-endemic"),0,IF(AND(OR(COUNTRY_INFO!$H55=0,COUNTRY_INFO!$H55=4,COUNTRY_INFO!$H55=99),OR(COUNTRY_INFO!$J55=0,COUNTRY_INFO!$J55=4)),0,COUNTRY_INFO!$E55)) -> 16862 | E55: =IF(AND(INTRO!$E$37="Non-endemic",INTRO!$E$41="Non-endemic"),0,IF(AND(OR(COUNTRY_INFO!$H55=0,COUNTRY_INFO!$H55=4,COUNTRY_INFO!$H55=99),OR(COUNTRY_INFO!$J55=0,COUNTRY_INFO!$J55=4)),0,COUNTRY_INFO!$F55)) -> 34715 | F55: 51577 | G55: =IF(AND(INTRO!$E$37="Non-endemic",INTRO!$E$41="Non-endemic"),0,COUNTRY_INFO!Q55) -> 1 | H55: =IF(AND(INTRO!$E$37="Non-endemic",INTRO!$E$41="Non-endemic"),0,COUNTRY_INFO!S55) -> 0 | I55: =IF($G55=1,IVM!$G55,0) -> 80341 | J55: =IF($G55=0, " ", IF(COUNTRY_INFO!$H55=1, IF(COUNTRY_INFO!$L55=1, 0," ")," ")) ->  | L55: ALB | M55: =IF($L55="ALB", IF(INTRO!$E$39="Non-endemic",IF($H55<>0,$D55*($H55-$G55),0),$D55*$H55), 0) -> 0 | N55: 0 | P55: 0 | Q55: =IF($L55="MBD", IF(INTRO!$E$39="Non-endemic",IF($H55<>0,$D55*($H55-$G55),0),$D55*$H55),0) -> 0 | R55: 0 | T55: 0 | V55: 80341 | W55: 402 | Y55: 0 | Z55: 0 | AB55: 0 | AC55: 0
A56: =IF(AND(INTRO!$E$37="Non-endemic",INTRO!$E$41="Non-endemic")," ",IF(COUNTRY_INFO!A56=0," ",COUNTRY_INFO!A56)) -> DRC | B56: =IF(AND(INTRO!$E$37="Non-endemic",INTRO!$E$41="Non-endemic")," ",IF(COUNTRY_INFO!B56=0," ",COUNTRY_INFO!B56)) -> HAUT KATANGA | C56: =IF(AND(INTRO!$E$37="Non-endemic",INTRO!$E$41="Non-endemic")," ",IF(COUNTRY_INFO!C56=0," ",COUNTRY_INFO!C56)) -> Mitwaba | D56: =IF(AND(INTRO!$E$37="Non-endemic",INTRO!$E$41="Non-endemic"),0,IF(AND(OR(COUNTRY_INFO!$H56=0,COUNTRY_INFO!$H56=4,COUNTRY_INFO!$H56=99),OR(COUNTRY_INFO!$J56=0,COUNTRY_INFO!$J56=4)),0,COUNTRY_INFO!$E56)) -> 19298 | E56: =IF(AND(INTRO!$E$37="Non-endemic",INTRO!$E$41="Non-endemic"),0,IF(AND(OR(COUNTRY_INFO!$H56=0,COUNTRY_INFO!$H56=4,COUNTRY_INFO!$H56=99),OR(COUNTRY_INFO!$J56=0,COUNTRY_INFO!$J56=4)),0,COUNTRY_INFO!$F56)) -> 39731 | F56: 59029 | G56: =IF(AND(INTRO!$E$37="Non-endemic",INTRO!$E$41="Non-endemic"),0,COUNTRY_INFO!Q56) -> 1 | H56: =IF(AND(INTRO!$E$37="Non-endemic",INTRO!$E$41="Non-endemic"),0,COUNTRY_INFO!S56) -> 0 | I56: =IF($G56=1,IVM!$G56,0) -> 91949 | J56: =IF($G56=0, " ", IF(COUNTRY_INFO!$H56=1, IF(COUNTRY_INFO!$L56=1, 0," ")," ")) ->  | L56: ALB | M56: =IF($L56="ALB", IF(INTRO!$E$39="Non-endemic",IF($H56<>0,$D56*($H56-$G56),0),$D56*$H56), 0) -> 0 | N56: 0 | P56: 0 | Q56: =IF($L56="MBD", IF(INTRO!$E$39="Non-endemic",IF($H56<>0,$D56*($H56-$G56),0),$D56*$H56),0) -> 0 | R56: 0 | T56: 0 | V56: 91949 | W56: 460 | Y56: 0 | Z56: 0 | AB56: 0 | AC56: 0
A57: =IF(AND(INTRO!$E$37="Non-endemic",INTRO!$E$41="Non-endemic")," ",IF(COUNTRY_INFO!A57=0," ",COUNTRY_INFO!A57)) -> DRC | B57: =IF(AND(INTRO!$E$37="Non-endemic",INTRO!$E$41="Non-endemic")," ",IF(COUNTRY_INFO!B57=0," ",COUNTRY_INFO!B57)) -> HAUT KATANGA | C57: =IF(AND(INTRO!$E$37="Non-endemic",INTRO!$E$41="Non-endemic")," ",IF(COUNTRY_INFO!C57=0," ",COUNTRY_INFO!C57)) -> Mufunga Sampwe | D57: =IF(AND(INTRO!$E$37="Non-endemic",INTRO!$E$41="Non-endemic"),0,IF(AND(OR(COUNTRY_INFO!$H57=0,COUNTRY_INFO!$H57=4,COUNTRY_INFO!$H57=99),OR(COUNTRY_INFO!$J57=0,COUNTRY_INFO!$J57=4)),0,COUNTRY_INFO!$E57)) -> 31589 | E57: =IF(AND(INTRO!$E$37="Non-endemic",INTRO!$E$41="Non-endemic"),0,IF(AND(OR(COUNTRY_INFO!$H57=0,COUNTRY_INFO!$H57=4,COUNTRY_INFO!$H57=99),OR(COUNTRY_INFO!$J57=0,COUNTRY_INFO!$J57=4)),0,COUNTRY_INFO!$F57)) -> 65037 | F57: 96626 | G57: =IF(AND(INTRO!$E$37="Non-endemic",INTRO!$E$41="Non-endemic"),0,COUNTRY_INFO!Q57) -> 1 | H57: =IF(AND(INTRO!$E$37="Non-endemic",INTRO!$E$41="Non-endemic"),0,COUNTRY_INFO!S57) -> 0 | I57: =IF($G57=1,IVM!$G57,0) -> 150514 | J57: =IF($G57=0, " ", IF(COUNTRY_INFO!$H57=1, IF(COUNTRY_INFO!$L57=1, 0," ")," ")) ->  | L57: ALB | M57: =IF($L57="ALB", IF(INTRO!$E$39="Non-endemic",IF($H57<>0,$D57*($H57-$G57),0),$D57*$H57), 0) -> 0 | N57: 0 | P57: 0 | Q57: =IF($L57="MBD", IF(INTRO!$E$39="Non-endemic",IF($H57<>0,$D57*($H57-$G57),0),$D57*$H57),0) -> 0 | R57: 0 | T57: 0 | V57: 150514 | W57: 753 | Y57: 0 | Z57: 0 | AB57: 0 | AC57: 0
A58: =IF(AND(INTRO!$E$37="Non-endemic",INTRO!$E$41="Non-endemic")," ",IF(COUNTRY_INFO!A58=0," ",COUNTRY_INFO!A58)) -> DRC | B58: =IF(AND(INTRO!$E$37="Non-endemic",INTRO!$E$41="Non-endemic")," ",IF(COUNTRY_INFO!B58=0," ",COUNTRY_INFO!B58)) -> HAUT KATANGA | C58: =IF(AND(INTRO!$E$37="Non-endemic",INTRO!$E$41="Non-endemic")," ",IF(COUNTRY_INFO!C58=0," ",COUNTRY_INFO!C58)) -> Mumbunda | D58: =IF(AND(INTRO!$E$37="Non-endemic",INTRO!$E$41="Non-endemic"),0,IF(AND(OR(COUNTRY_INFO!$H58=0,COUNTRY_INFO!$H58=4,COUNTRY_INFO!$H58=99),OR(COUNTRY_INFO!$J58=0,COUNTRY_INFO!$J58=4)),0,COUNTRY_INFO!$E58)) -> 27289 | E58: =IF(AND(INTRO!$E$37="Non-endemic",INTRO!$E$41="Non-endemic"),0,IF(AND(OR(COUNTRY_INFO!$H58=0,COUNTRY_INFO!$H58=4,COUNTRY_INFO!$H58=99),OR(COUNTRY_INFO!$J58=0,COUNTRY_INFO!$J58=4)),0,COUNTRY_INFO!$F58)) -> 56183 | F58: 83472 | G58: =IF(AND(INTRO!$E$37="Non-endemic",INTRO!$E$41="Non-endemic"),0,COUNTRY_INFO!Q58) -> 0 | H58: =IF(AND(INTRO!$E$37="Non-endemic",INTRO!$E$41="Non-endemic"),0,COUNTRY_INFO!S58) -> 0 | I58: =IF($G58=1,IVM!$G58,0) -> 0 | J58: =IF($G58=0, " ", IF(COUNTRY_INFO!$H58=1, IF(COUNTRY_INFO!$L58=1, 0," ")," ")) ->  | L58: ALB | M58: =IF($L58="ALB", IF(INTRO!$E$39="Non-endemic",IF($H58<>0,$D58*($H58-$G58),0),$D58*$H58), 0) -> 0 | N58: 0 | P58: 0 | Q58: =IF($L58="MBD", IF(INTRO!$E$39="Non-endemic",IF($H58<>0,$D58*($H58-$G58),0),$D58*$H58),0) -> 0 | R58: 0 | T58: 0 | V58: 0 | W58: 0 | Y58: 0 | Z58: 0 | AB58: 0 | AC58: 0
A59: =IF(AND(INTRO!$E$37="Non-endemic",INTRO!$E$41="Non-endemic")," ",IF(COUNTRY_INFO!A59=0," ",COUNTRY_INFO!A59)) -> DRC | B59: =IF(AND(INTRO!$E$37="Non-endemic",INTRO!$E$41="Non-endemic")," ",IF(COUNTRY_INFO!B59=0," ",COUNTRY_INFO!B59)) -> HAUT KATANGA | C59: =IF(AND(INTRO!$E$37="Non-endemic",INTRO!$E$41="Non-endemic")," ",IF(COUNTRY_INFO!C59=0," ",COUNTRY_INFO!C59)) -> Panda | D59: =IF(AND(INTRO!$E$37="Non-endemic",INTRO!$E$41="Non-endemic"),0,IF(AND(OR(COUNTRY_INFO!$H59=0,COUNTRY_INFO!$H59=4,COUNTRY_INFO!$H59=99),OR(COUNTRY_INFO!$J59=0,COUNTRY_INFO!$J59=4)),0,COUNTRY_INFO!$E59)) -> 15810 | E59: =IF(AND(INTRO!$E$37="Non-endemic",INTRO!$E$41="Non-endemic"),0,IF(AND(OR(COUNTRY_INFO!$H59=0,COUNTRY_INFO!$H59=4,COUNTRY_INFO!$H59=99),OR(COUNTRY_INFO!$J59=0,COUNTRY_INFO!$J59=4)),0,COUNTRY_INFO!$F59)) -> 32549 | F59: 48359 | G59: =IF(AND(INTRO!$E$37="Non-endemic",INTRO!$E$41="Non-endemic"),0,COUNTRY_INFO!Q59) -> 0 | H59: =IF(AND(INTRO!$E$37="Non-endemic",INTRO!$E$41="Non-endemic"),0,COUNTRY_INFO!S59) -> 0 | I59: =IF($G59=1,IVM!$G59,0) -> 0 | J59: =IF($G59=0, " ", IF(COUNTRY_INFO!$H59=1, IF(COUNTRY_INFO!$L59=1, 0," ")," ")) ->  | L59: ALB | M59: =IF($L59="ALB", IF(INTRO!$E$39="Non-endemic",IF($H59<>0,$D59*($H59-$G59),0),$D59*$H59), 0) -> 0 | N59: 0 | P59: 0 | Q59: =IF($L59="MBD", IF(INTRO!$E$39="Non-endemic",IF($H59<>0,$D59*($H59-$G59),0),$D59*$H59),0) -> 0 | R59: 0 | T59: 0 | V59: 0 | W59: 0 | Y59: 0 | Z59: 0 | AB59: 0 | AC59: 0
A60: =IF(AND(INTRO!$E$37="Non-endemic",INTRO!$E$41="Non-endemic")," ",IF(COUNTRY_INFO!A60=0," ",COUNTRY_INFO!A60)) -> DRC | B60: =IF(AND(INTRO!$E$37="Non-endemic",INTRO!$E$41="Non-endemic")," ",IF(COUNTRY_INFO!B60=0," ",COUNTRY_INFO!B60)) -> HAUT KATANGA | C60: =IF(AND(INTRO!$E$37="Non-endemic",INTRO!$E$41="Non-endemic")," ",IF(COUNTRY_INFO!C60=0," ",COUNTRY_INFO!C60)) -> Pweto | D60: =IF(AND(INTRO!$E$37="Non-endemic",INTRO!$E$41="Non-endemic"),0,IF(AND(OR(COUNTRY_INFO!$H60=0,COUNTRY_INFO!$H60=4,COUNTRY_INFO!$H60=99),OR(COUNTRY_INFO!$J60=0,COUNTRY_INFO!$J60=4)),0,COUNTRY_INFO!$E60)) -> 44195 | E60: =IF(AND(INTRO!$E$37="Non-endemic",INTRO!$E$41="Non-endemic"),0,IF(AND(OR(COUNTRY_INFO!$H60=0,COUNTRY_INFO!$H60=4,COUNTRY_INFO!$H60=99),OR(COUNTRY_INFO!$J60=0,COUNTRY_INFO!$J60=4)),0,COUNTRY_INFO!$F60)) -> 90990 | F60: 135185 | G60: =IF(AND(INTRO!$E$37="Non-endemic",INTRO!$E$41="Non-endemic"),0,COUNTRY_INFO!Q60) -> 0 | H60: =IF(AND(INTRO!$E$37="Non-endemic",INTRO!$E$41="Non-endemic"),0,COUNTRY_INFO!S60) -> 0 | I60: =IF($G60=1,IVM!$G60,0) -> 0 | J60: =IF($G60=0, " ", IF(COUNTRY_INFO!$H60=1, IF(COUNTRY_INFO!$L60=1, 0," ")," ")) ->  | L60: ALB | M60: =IF($L60="ALB", IF(INTRO!$E$39="Non-endemic",IF($H60<>0,$D60*($H60-$G60),0),$D60*$H60), 0) -> 0 | N60: 0 | P60: 0 | Q60: =IF($L60="MBD", IF(INTRO!$E$39="Non-endemic",IF($H60<>0,$D60*($H60-$G60),0),$D60*$H60),0) -> 0 | R60: 0 | T60: 0 | V60: 0 | W60: 0 | Y60: 0 | Z60: 0 | AB60: 0 | AC60: 0
A61: =IF(AND(INTRO!$E$37="Non-endemic",INTRO!$E$41="Non-endemic")," ",IF(COUNTRY_INFO!A61=0," ",COUNTRY_INFO!A61)) -> DRC | B61: =IF(AND(INTRO!$E$37="Non-endemic",INTRO!$E$41="Non-endemic")," ",IF(COUNTRY_INFO!B61=0," ",COUNTRY_INFO!B61)) -> HAUT KATANGA | C61: =IF(AND(INTRO!$E$37="Non-endemic",INTRO!$E$41="Non-endemic")," ",IF(COUNTRY_INFO!C61=0," ",COUNTRY_INFO!C61)) -> Ruashi | D61: =IF(AND(INTRO!$E$37="Non-endemic",INTRO!$E$41="Non-endemic"),0,IF(AND(OR(COUNTRY_INFO!$H61=0,COUNTRY_INFO!$H61=4,COUNTRY_INFO!$H61=99),OR(COUNTRY_INFO!$J61=0,COUNTRY_INFO!$J61=4)),0,COUNTRY_INFO!$E61)) -> 49307 | E61: =IF(AND(INTRO!$E$37="Non-endemic",INTRO!$E$41="Non-endemic"),0,IF(AND(OR(COUNTRY_INFO!$H61=0,COUNTRY_INFO!$H61=4,COUNTRY_INFO!$H61=99),OR(COUNTRY_INFO!$J61=0,COUNTRY_INFO!$J61=4)),0,COUNTRY_INFO!$F61)) -> 101515 | F61: 150822 | G61: =IF(AND(INTRO!$E$37="Non-endemic",INTRO!$E$41="Non-endemic"),0,COUNTRY_INFO!Q61) -> 0 | H61: =IF(AND(INTRO!$E$37="Non-endemic",INTRO!$E$41="Non-endemic"),0,COUNTRY_INFO!S61) -> 0 | I61: =IF($G61=1,IVM!$G61,0) -> 0 | J61: =IF($G61=0, " ", IF(COUNTRY_INFO!$H61=1, IF(COUNTRY_INFO!$L61=1, 0," ")," ")) ->  | L61: ALB | M61: =IF($L61="ALB", IF(INTRO!$E$39="Non-endemic",IF($H61<>0,$D61*($H61-$G61),0),$D61*$H61), 0) -> 0 | N61: 0 | P61: 0 | Q61: =IF($L61="MBD", IF(INTRO!$E$39="Non-endemic",IF($H61<>0,$D61*($H61-$G61),0),$D61*$H61),0) -> 0 | R61: 0 | T61: 0 | V61: 0 | W61: 0 | Y61: 0 | Z61: 0 | AB61: 0 | AC61: 0
A62: =IF(AND(INTRO!$E$37="Non-endemic",INTRO!$E$41="Non-endemic")," ",IF(COUNTRY_INFO!A62=0," ",COUNTRY_INFO!A62)) -> DRC | B62: =IF(AND(INTRO!$E$37="Non-endemic",INTRO!$E$41="Non-endemic")," ",IF(COUNTRY_INFO!B62=0," ",COUNTRY_INFO!B62)) -> HAUT KATANGA | C62: =IF(AND(INTRO!$E$37="Non-endemic",INTRO!$E$41="Non-endemic")," ",IF(COUNTRY_INFO!C62=0," ",COUNTRY_INFO!C62)) -> Sakania | D62: =IF(AND(INTRO!$E$37="Non-endemic",INTRO!$E$41="Non-endemic"),0,IF(AND(OR(COUNTRY_INFO!$H62=0,COUNTRY_INFO!$H62=4,COUNTRY_INFO!$H62=99),OR(COUNTRY_INFO!$J62=0,COUNTRY_INFO!$J62=4)),0,COUNTRY_INFO!$E62)) -> 32021 | E62: =IF(AND(INTRO!$E$37="Non-endemic",INTRO!$E$41="Non-endemic"),0,IF(AND(OR(COUNTRY_INFO!$H62=0,COUNTRY_INFO!$H62=4,COUNTRY_INFO!$H62=99),OR(COUNTRY_INFO!$J62=0,COUNTRY_INFO!$J62=4)),0,COUNTRY_INFO!$F62)) -> 65925 | F62: 97946 | G62: =IF(AND(INTRO!$E$37="Non-endemic",INTRO!$E$41="Non-endemic"),0,COUNTRY_INFO!Q62) -> 1 | H62: =IF(AND(INTRO!$E$37="Non-endemic",INTRO!$E$41="Non-endemic"),0,COUNTRY_INFO!S62) -> 0 | I62: =IF($G62=1,IVM!$G62,0) -> 152570 | J62: =IF($G62=0, " ", IF(COUNTRY_INFO!$H62=1, IF(COUNTRY_INFO!$L62=1, 0," ")," ")) ->  | L62: ALB | M62: =IF($L62="ALB", IF(INTRO!$E$39="Non-endemic",IF($H62<>0,$D62*($H62-$G62),0),$D62*$H62), 0) -> 0 | N62: 0 | P62: 0 | Q62: =IF($L62="MBD", IF(INTRO!$E$39="Non-endemic",IF($H62<>0,$D62*($H62-$G62),0),$D62*$H62),0) -> 0 | R62: 0 | T62: 0 | V62: 152570 | W62: 763 | Y62: 0 | Z62: 0 | AB62: 0 | AC62: 0
A63: =IF(AND(INTRO!$E$37="Non-endemic",INTRO!$E$41="Non-endemic")," ",IF(COUNTRY_INFO!A63=0," ",COUNTRY_INFO!A63)) -> DRC | B63: =IF(AND(INTRO!$E$37="Non-endemic",INTRO!$E$41="Non-endemic")," ",IF(COUNTRY_INFO!B63=0," ",COUNTRY_INFO!B63)) -> HAUT KATANGA | C63: =IF(AND(INTRO!$E$37="Non-endemic",INTRO!$E$41="Non-endemic")," ",IF(COUNTRY_INFO!C63=0," ",COUNTRY_INFO!C63)) -> Tshamilemba | D63: =IF(AND(INTRO!$E$37="Non-endemic",INTRO!$E$41="Non-endemic"),0,IF(AND(OR(COUNTRY_INFO!$H63=0,COUNTRY_INFO!$H63=4,COUNTRY_INFO!$H63=99),OR(COUNTRY_INFO!$J63=0,COUNTRY_INFO!$J63=4)),0,COUNTRY_INFO!$E63)) -> 44690 | E63: =IF(AND(INTRO!$E$37="Non-endemic",INTRO!$E$41="Non-endemic"),0,IF(AND(OR(COUNTRY_INFO!$H63=0,COUNTRY_INFO!$H63=4,COUNTRY_INFO!$H63=99),OR(COUNTRY_INFO!$J63=0,COUNTRY_INFO!$J63=4)),0,COUNTRY_INFO!$F63)) -> 92009 | F63: 136699 | G63: =IF(AND(INTRO!$E$37="Non-endemic",INTRO!$E$41="Non-endemic"),0,COUNTRY_INFO!Q63) -> 0 | H63: =IF(AND(INTRO!$E$37="Non-endemic",INTRO!$E$41="Non-endemic"),0,COUNTRY_INFO!S63) -> 0 | I63: =IF($G63=1,IVM!$G63,0) -> 0 | J63: =IF($G63=0, " ", IF(COUNTRY_INFO!$H63=1, IF(COUNTRY_INFO!$L63=1, 0," ")," ")) ->  | L63: ALB | M63: =IF($L63="ALB", IF(INTRO!$E$39="Non-endemic",IF($H63<>0,$D63*($H63-$G63),0),$D63*$H63), 0) -> 0 | N63: 0 | P63: 0 | Q63: =IF($L63="MBD", IF(INTRO!$E$39="Non-endemic",IF($H63<>0,$D63*($H63-$G63),0),$D63*$H63),0) -> 0 | R63: 0 | T63: 0 | V63: 0 | W63: 0 | Y63: 0 | Z63: 0 | AB63: 0 | AC63: 0
A64: =IF(AND(INTRO!$E$37="Non-endemic",INTRO!$E$41="Non-endemic")," ",IF(COUNTRY_INFO!A64=0," ",COUNTRY_INFO!A64)) -> DRC | B64: =IF(AND(INTRO!$E$37="Non-endemic",INTRO!$E$41="Non-endemic")," ",IF(COUNTRY_INFO!B64=0," ",COUNTRY_INFO!B64)) -> HAUT KATANGA | C64: =IF(AND(INTRO!$E$37="Non-endemic",INTRO!$E$41="Non-endemic")," ",IF(COUNTRY_INFO!C64=0," ",COUNTRY_INFO!C64)) -> Vangu | D64: =IF(AND(INTRO!$E$37="Non-endemic",INTRO!$E$41="Non-endemic"),0,IF(AND(OR(COUNTRY_INFO!$H64=0,COUNTRY_INFO!$H64=4,COUNTRY_INFO!$H64=99),OR(COUNTRY_INFO!$J64=0,COUNTRY_INFO!$J64=4)),0,COUNTRY_INFO!$E64)) -> 25491 | E64: =IF(AND(INTRO!$E$37="Non-endemic",INTRO!$E$41="Non-endemic"),0,IF(AND(OR(COUNTRY_INFO!$H64=0,COUNTRY_INFO!$H64=4,COUNTRY_INFO!$H64=99),OR(COUNTRY_INFO!$J64=0,COUNTRY_INFO!$J64=4)),0,COUNTRY_INFO!$F64)) -> 52481 | F64: 77972 | G64: =IF(AND(INTRO!$E$37="Non-endemic",INTRO!$E$41="Non-endemic"),0,COUNTRY_INFO!Q64) -> 0 | H64: =IF(AND(INTRO!$E$37="Non-endemic",INTRO!$E$41="Non-endemic"),0,COUNTRY_INFO!S64) -> 1 | I64: =IF($G64=1,IVM!$G64,0) -> 0 | J64: =IF($G64=0, " ", IF(COUNTRY_INFO!$H64=1, IF(COUNTRY_INFO!$L64=1, 0," ")," ")) ->  | L64: ALB | M64: =IF($L64="ALB", IF(INTRO!$E$39="Non-endemic",IF($H64<>0,$D64*($H64-$G64),0),$D64*$H64), 0) -> 25491 | N64: 52481 | P64: 77972 | Q64: =IF($L64="MBD", IF(INTRO!$E$39="Non-endemic",IF($H64<>0,$D64*($H64-$G64),0),$D64*$H64),0) -> 0 | R64: 0 | T64: 0 | V64: 0 | W64: 0 | Y64: 52481 | Z64: 263 | AB64: 0 | AC64: 0
A65: =IF(AND(INTRO!$E$37="Non-endemic",INTRO!$E$41="Non-endemic")," ",IF(COUNTRY_INFO!A65=0," ",COUNTRY_INFO!A65)) -> DRC | B65: =IF(AND(INTRO!$E$37="Non-endemic",INTRO!$E$41="Non-endemic")," ",IF(COUNTRY_INFO!B65=0," ",COUNTRY_INFO!B65)) -> HAUT LOMAMI | C65: =IF(AND(INTRO!$E$37="Non-endemic",INTRO!$E$41="Non-endemic")," ",IF(COUNTRY_INFO!C65=0," ",COUNTRY_INFO!C65)) -> Bukama | D65: =IF(AND(INTRO!$E$37="Non-endemic",INTRO!$E$41="Non-endemic"),0,IF(AND(OR(COUNTRY_INFO!$H65=0,COUNTRY_INFO!$H65=4,COUNTRY_INFO!$H65=99),OR(COUNTRY_INFO!$J65=0,COUNTRY_INFO!$J65=4)),0,COUNTRY_INFO!$E65)) -> 64605 | E65: =IF(AND(INTRO!$E$37="Non-endemic",INTRO!$E$41="Non-endemic"),0,IF(AND(OR(COUNTRY_INFO!$H65=0,COUNTRY_INFO!$H65=4,COUNTRY_INFO!$H65=99),OR(COUNTRY_INFO!$J65=0,COUNTRY_INFO!$J65=4)),0,COUNTRY_INFO!$F65)) -> 133010 | F65: 197615 | G65: =IF(AND(INTRO!$E$37="Non-endemic",INTRO!$E$41="Non-endemic"),0,COUNTRY_INFO!Q65) -> 0 | H65: =IF(AND(INTRO!$E$37="Non-endemic",INTRO!$E$41="Non-endemic"),0,COUNTRY_INFO!S65) -> 0 | I65: =IF($G65=1,IVM!$G65,0) -> 0 | J65: =IF($G65=0, " ", IF(COUNTRY_INFO!$H65=1, IF(COUNTRY_INFO!$L65=1, 0," ")," ")) ->  | L65: ALB | M65: =IF($L65="ALB", IF(INTRO!$E$39="Non-endemic",IF($H65<>0,$D65*($H65-$G65),0),$D65*$H65), 0) -> 0 | N65: 0 | P65: 0 | Q65: =IF($L65="MBD", IF(INTRO!$E$39="Non-endemic",IF($H65<>0,$D65*($H65-$G65),0),$D65*$H65),0) -> 0 | R65: 0 | T65: 0 | V65: 0 | W65: 0 | Y65: 0 | Z65: 0 | AB65: 0 | AC65: 0
A66: =IF(AND(INTRO!$E$37="Non-endemic",INTRO!$E$41="Non-endemic")," ",IF(COUNTRY_INFO!A66=0," ",COUNTRY_INFO!A66)) -> DRC | B66: =IF(AND(INTRO!$E$37="Non-endemic",INTRO!$E$41="Non-endemic")," ",IF(COUNTRY_INFO!B66=0," ",COUNTRY_INFO!B66)) -> HAUT LOMAMI | C66: =IF(AND(INTRO!$E$37="Non-endemic",INTRO!$E$41="Non-endemic")," ",IF(COUNTRY_INFO!C66=0," ",COUNTRY_INFO!C66)) -> Butumba | D66: =IF(AND(INTRO!$E$37="Non-endemic",INTRO!$E$41="Non-endemic"),0,IF(AND(OR(COUNTRY_INFO!$H66=0,COUNTRY_INFO!$H66=4,COUNTRY_INFO!$H66=99),OR(COUNTRY_INFO!$J66=0,COUNTRY_INFO!$J66=4)),0,COUNTRY_INFO!$E66)) -> 38208 | E66: =IF(AND(INTRO!$E$37="Non-endemic",INTRO!$E$41="Non-endemic"),0,IF(AND(OR(COUNTRY_INFO!$H66=0,COUNTRY_INFO!$H66=4,COUNTRY_INFO!$H66=99),OR(COUNTRY_INFO!$J66=0,COUNTRY_INFO!$J66=4)),0,COUNTRY_INFO!$F66)) -> 78664 | F66: 116872 | G66: =IF(AND(INTRO!$E$37="Non-endemic",INTRO!$E$41="Non-endemic"),0,COUNTRY_INFO!Q66) -> 0 | H66: =IF(AND(INTRO!$E$37="Non-endemic",INTRO!$E$41="Non-endemic"),0,COUNTRY_INFO!S66) -> 0 | I66: =IF($G66=1,IVM!$G66,0) -> 0 | J66: =IF($G66=0, " ", IF(COUNTRY_INFO!$H66=1, IF(COUNTRY_INFO!$L66=1, 0," ")," ")) ->  | L66: ALB | M66: =IF($L66="ALB", IF(INTRO!$E$39="Non-endemic",IF($H66<>0,$D66*($H66-$G66),0),$D66*$H66), 0) -> 0 | N66: 0 | P66: 0 | Q66: =IF($L66="MBD", IF(INTRO!$E$39="Non-endemic",IF($H66<>0,$D66*($H66-$G66),0),$D66*$H66),0) -> 0 | R66: 0 | T66: 0 | V66: 0 | W66: 0 | Y66: 0 | Z66: 0 | AB66: 0 | AC66: 0
A67: =IF(AND(INTRO!$E$37="Non-endemic",INTRO!$E$41="Non-endemic")," ",IF(COUNTRY_INFO!A67=0," ",COUNTRY_INFO!A67)) -> DRC | B67: =IF(AND(INTRO!$E$37="Non-endemic",INTRO!$E$41="Non-endemic")," ",IF(COUNTRY_INFO!B67=0," ",COUNTRY_INFO!B67)) -> HAUT LOMAMI | C67: =IF(AND(INTRO!$E$37="Non-endemic",INTRO!$E$41="Non-endemic")," ",IF(COUNTRY_INFO!C67=0," ",COUNTRY_INFO!C67)) -> Kabondo Dianda | D67: =IF(AND(INTRO!$E$37="Non-endemic",INTRO!$E$41="Non-endemic"),0,IF(AND(OR(COUNTRY_INFO!$H67=0,COUNTRY_INFO!$H67=4,COUNTRY_INFO!$H67=99),OR(COUNTRY_INFO!$J67=0,COUNTRY_INFO!$J67=4)),0,COUNTRY_INFO!$E67)) -> 47101 | E67: =IF(AND(INTRO!$E$37="Non-endemic",INTRO!$E$41="Non-endemic"),0,IF(AND(OR(COUNTRY_INFO!$H67=0,COUNTRY_INFO!$H67=4,COUNTRY_INFO!$H67=99),OR(COUNTRY_INFO!$J67=0,COUNTRY_INFO!$J67=4)),0,COUNTRY_INFO!$F67)) -> 96973 | F67: 144074 | G67: =IF(AND(INTRO!$E$37="Non-endemic",INTRO!$E$41="Non-endemic"),0,COUNTRY_INFO!Q67) -> 0 | H67: =IF(AND(INTRO!$E$37="Non-endemic",INTRO!$E$41="Non-endemic"),0,COUNTRY_INFO!S67) -> 0 | I67: =IF($G67=1,IVM!$G67,0) -> 0 | J67: =IF($G67=0, " ", IF(COUNTRY_INFO!$H67=1, IF(COUNTRY_INFO!$L67=1, 0," ")," ")) ->  | L67: ALB | M67: =IF($L67="ALB", IF(INTRO!$E$39="Non-endemic",IF($H67<>0,$D67*($H67-$G67),0),$D67*$H67), 0) -> 0 | N67: 0 | P67: 0 | Q67: =IF($L67="MBD", IF(INTRO!$E$39="Non-endemic",IF($H67<>0,$D67*($H67-$G67),0),$D67*$H67),0) -> 0 | R67: 0 | T67: 0 | V67: 0 | W67: 0 | Y67: 0 | Z67: 0 | AB67: 0 | AC67: 0
A68: =IF(AND(INTRO!$E$37="Non-endemic",INTRO!$E$41="Non-endemic")," ",IF(COUNTRY_INFO!A68=0," ",COUNTRY_INFO!A68)) -> DRC | B68: =IF(AND(INTRO!$E$37="Non-endemic",INTRO!$E$41="Non-endemic")," ",IF(COUNTRY_INFO!B68=0," ",COUNTRY_INFO!B68)) -> HAUT LOMAMI | C68: =IF(AND(INTRO!$E$37="Non-endemic",INTRO!$E$41="Non-endemic")," ",IF(COUNTRY_INFO!C68=0," ",COUNTRY_INFO!C68)) -> Kabongo | D68: =IF(AND(INTRO!$E$37="Non-endemic",INTRO!$E$41="Non-endemic"),0,IF(AND(OR(COUNTRY_INFO!$H68=0,COUNTRY_INFO!$H68=4,COUNTRY_INFO!$H68=99),OR(COUNTRY_INFO!$J68=0,COUNTRY_INFO!$J68=4)),0,COUNTRY_INFO!$E68)) -> 71209 | E68: =IF(AND(INTRO!$E$37="Non-endemic",INTRO!$E$41="Non-endemic"),0,IF(AND(OR(COUNTRY_INFO!$H68=0,COUNTRY_INFO!$H68=4,COUNTRY_INFO!$H68=99),OR(COUNTRY_INFO!$J68=0,COUNTRY_INFO!$J68=4)),0,COUNTRY_INFO!$F68)) -> 146607 | F68: 217816 | G68: =IF(AND(INTRO!$E$37="Non-endemic",INTRO!$E$41="Non-endemic"),0,COUNTRY_INFO!Q68) -> 1 | H68: =IF(AND(INTRO!$E$37="Non-endemic",INTRO!$E$41="Non-endemic"),0,COUNTRY_INFO!S68) -> 0 | I68: =IF($G68=1,IVM!$G68,0) -> 339291 | J68: =IF($G68=0, " ", IF(COUNTRY_INFO!$H68=1, IF(COUNTRY_INFO!$L68=1, 0," ")," ")) ->  | L68: ALB | M68: =IF($L68="ALB", IF(INTRO!$E$39="Non-endemic",IF($H68<>0,$D68*($H68-$G68),0),$D68*$H68), 0) -> 0 | N68: 0 | P68: 0 | Q68: =IF($L68="MBD", IF(INTRO!$E$39="Non-endemic",IF($H68<>0,$D68*($H68-$G68),0),$D68*$H68),0) -> 0 | R68: 0 | T68: 0 | V68: 339291 | W68: 1697 | Y68: 0 | Z68: 0 | AB68: 0 | AC68: 0
A69: =IF(AND(INTRO!$E$37="Non-endemic",INTRO!$E$41="Non-endemic")," ",IF(COUNTRY_INFO!A69=0," ",COUNTRY_INFO!A69)) -> DRC | B69: =IF(AND(INTRO!$E$37="Non-endemic",INTRO!$E$41="Non-endemic")," ",IF(COUNTRY_INFO!B69=0," ",COUNTRY_INFO!B69)) -> HAUT LOMAMI | C69: =IF(AND(INTRO!$E$37="Non-endemic",INTRO!$E$41="Non-endemic")," ",IF(COUNTRY_INFO!C69=0," ",COUNTRY_INFO!C69)) -> Kamina | D69: =IF(AND(INTRO!$E$37="Non-endemic",INTRO!$E$41="Non-endemic"),0,IF(AND(OR(COUNTRY_INFO!$H69=0,COUNTRY_INFO!$H69=4,COUNTRY_INFO!$H69=99),OR(COUNTRY_INFO!$J69=0,COUNTRY_INFO!$J69=4)),0,COUNTRY_INFO!$E69)) -> 56461 | E69: =IF(AND(INTRO!$E$37="Non-endemic",INTRO!$E$41="Non-endemic"),0,IF(AND(OR(COUNTRY_INFO!$H69=0,COUNTRY_INFO!$H69=4,COUNTRY_INFO!$H69=99),OR(COUNTRY_INFO!$J69=0,COUNTRY_INFO!$J69=4)),0,COUNTRY_INFO!$F69)) -> 116244 | F69: 172705 | G69: =IF(AND(INTRO!$E$37="Non-endemic",INTRO!$E$41="Non-endemic"),0,COUNTRY_INFO!Q69) -> 0 | H69: =IF(AND(INTRO!$E$37="Non-endemic",INTRO!$E$41="Non-endemic"),0,COUNTRY_INFO!S69) -> 1 | I69: =IF($G69=1,IVM!$G69,0) -> 0 | J69: =IF($G69=0, " ", IF(COUNTRY_INFO!$H69=1, IF(COUNTRY_INFO!$L69=1, 0," ")," ")) ->  | L69: ALB | M69: =IF($L69="ALB", IF(INTRO!$E$39="Non-endemic",IF($H69<>0,$D69*($H69-$G69),0),$D69*$H69), 0) -> 56461 | N69: 116244 | P69: 172705 | Q69: =IF($L69="MBD", IF(INTRO!$E$39="Non-endemic",IF($H69<>0,$D69*($H69-$G69),0),$D69*$H69),0) -> 0 | R69: 0 | T69: 0 | V69: 0 | W69: 0 | Y69: 116244 | Z69: 582 | AB69: 0 | AC69: 0
A70: =IF(AND(INTRO!$E$37="Non-endemic",INTRO!$E$41="Non-endemic")," ",IF(COUNTRY_INFO!A70=0," ",COUNTRY_INFO!A70)) -> DRC | B70: =IF(AND(INTRO!$E$37="Non-endemic",INTRO!$E$41="Non-endemic")," ",IF(COUNTRY_INFO!B70=0," ",COUNTRY_INFO!B70)) -> HAUT LOMAMI | C70: =IF(AND(INTRO!$E$37="Non-endemic",INTRO!$E$41="Non-endemic")," ",IF(COUNTRY_INFO!C70=0," ",COUNTRY_INFO!C70)) -> Kamina Base (Baka) | D70: =IF(AND(INTRO!$E$37="Non-endemic",INTRO!$E$41="Non-endemic"),0,IF(AND(OR(COUNTRY_INFO!$H70=0,COUNTRY_INFO!$H70=4,COUNTRY_INFO!$H70=99),OR(COUNTRY_INFO!$J70=0,COUNTRY_INFO!$J70=4)),0,COUNTRY_INFO!$E70)) -> 6099 | E70: =IF(AND(INTRO!$E$37="Non-endemic",INTRO!$E$41="Non-endemic"),0,IF(AND(OR(COUNTRY_INFO!$H70=0,COUNTRY_INFO!$H70=4,COUNTRY_INFO!$H70=99),OR(COUNTRY_INFO!$J70=0,COUNTRY_INFO!$J70=4)),0,COUNTRY_INFO!$F70)) -> 12556 | F70: 18655 | G70: =IF(AND(INTRO!$E$37="Non-endemic",INTRO!$E$41="Non-endemic"),0,COUNTRY_INFO!Q70) -> 1 | H70: =IF(AND(INTRO!$E$37="Non-endemic",INTRO!$E$41="Non-endemic"),0,COUNTRY_INFO!S70) -> 0 | I70: =IF($G70=1,IVM!$G70,0) -> 29059 | J70: =IF($G70=0, " ", IF(COUNTRY_INFO!$H70=1, IF(COUNTRY_INFO!$L70=1, 0," ")," ")) ->  | L70: ALB | M70: =IF($L70="ALB", IF(INTRO!$E$39="Non-endemic",IF($H70<>0,$D70*($H70-$G70),0),$D70*$H70), 0) -> 0 | N70: 0 | P70: 0 | Q70: =IF($L70="MBD", IF(INTRO!$E$39="Non-endemic",IF($H70<>0,$D70*($H70-$G70),0),$D70*$H70),0) -> 0 | R70: 0 | T70: 0 | V70: 29059 | W70: 146 | Y70: 0 | Z70: 0 | AB70: 0 | AC70: 0
A71: =IF(AND(INTRO!$E$37="Non-endemic",INTRO!$E$41="Non-endemic")," ",IF(COUNTRY_INFO!A71=0," ",COUNTRY_INFO!A71)) -> DRC | B71: =IF(AND(INTRO!$E$37="Non-endemic",INTRO!$E$41="Non-endemic")," ",IF(COUNTRY_INFO!B71=0," ",COUNTRY_INFO!B71)) -> HAUT LOMAMI | C71: =IF(AND(INTRO!$E$37="Non-endemic",INTRO!$E$41="Non-endemic")," ",IF(COUNTRY_INFO!C71=0," ",COUNTRY_INFO!C71)) -> Kaniama | D71: =IF(AND(INTRO!$E$37="Non-endemic",INTRO!$E$41="Non-endemic"),0,IF(AND(OR(COUNTRY_INFO!$H71=0,COUNTRY_INFO!$H71=4,COUNTRY_INFO!$H71=99),OR(COUNTRY_INFO!$J71=0,COUNTRY_INFO!$J71=4)),0,COUNTRY_INFO!$E71)) -> 55605 | E71: =IF(AND(INTRO!$E$37="Non-endemic",INTRO!$E$41="Non-endemic"),0,IF(AND(OR(COUNTRY_INFO!$H71=0,COUNTRY_INFO!$H71=4,COUNTRY_INFO!$H71=99),OR(COUNTRY_INFO!$J71=0,COUNTRY_INFO!$J71=4)),0,COUNTRY_INFO!$F71)) -> 114481 | F71: 170086 | G71: =IF(AND(INTRO!$E$37="Non-endemic",INTRO!$E$41="Non-endemic"),0,COUNTRY_INFO!Q71) -> 1 | H71: =IF(AND(INTRO!$E$37="Non-endemic",INTRO!$E$41="Non-endemic"),0,COUNTRY_INFO!S71) -> 0 | I71: =IF($G71=1,IVM!$G71,0) -> 264942 | J71: =IF($G71=0, " ", IF(COUNTRY_INFO!$H71=1, IF(COUNTRY_INFO!$L71=1, 0," ")," ")) ->  | L71: ALB | M71: =IF($L71="ALB", IF(INTRO!$E$39="Non-endemic",IF($H71<>0,$D71*($H71-$G71),0),$D71*$H71), 0) -> 0 | N71: 0 | P71: 0 | Q71: =IF($L71="MBD", IF(INTRO!$E$39="Non-endemic",IF($H71<>0,$D71*($H71-$G71),0),$D71*$H71),0) -> 0 | R71: 0 | T71: 0 | V71: 264942 | W71: 1325 | Y71: 0 | Z71: 0 | AB71: 0 | AC71: 0
A72: =IF(AND(INTRO!$E$37="Non-endemic",INTRO!$E$41="Non-endemic")," ",IF(COUNTRY_INFO!A72=0," ",COUNTRY_INFO!A72)) -> DRC | B72: =IF(AND(INTRO!$E$37="Non-endemic",INTRO!$E$41="Non-endemic")," ",IF(COUNTRY_INFO!B72=0," ",COUNTRY_INFO!B72)) -> HAUT LOMAMI | C72: =IF(AND(INTRO!$E$37="Non-endemic",INTRO!$E$41="Non-endemic")," ",IF(COUNTRY_INFO!C72=0," ",COUNTRY_INFO!C72)) -> Kayamba | D72: =IF(AND(INTRO!$E$37="Non-endemic",INTRO!$E$41="Non-endemic"),0,IF(AND(OR(COUNTRY_INFO!$H72=0,COUNTRY_INFO!$H72=4,COUNTRY_INFO!$H72=99),OR(COUNTRY_INFO!$J72=0,COUNTRY_INFO!$J72=4)),0,COUNTRY_INFO!$E72)) -> 19371 | E72: =IF(AND(INTRO!$E$37="Non-endemic",INTRO!$E$41="Non-endemic"),0,IF(AND(OR(COUNTRY_INFO!$H72=0,COUNTRY_INFO!$H72=4,COUNTRY_INFO!$H72=99),OR(COUNTRY_INFO!$J72=0,COUNTRY_INFO!$J72=4)),0,COUNTRY_INFO!$F72)) -> 39882 | F72: 59253 | G72: =IF(AND(INTRO!$E$37="Non-endemic",INTRO!$E$41="Non-endemic"),0,COUNTRY_INFO!Q72) -> 1 | H72: =IF(AND(INTRO!$E$37="Non-endemic",INTRO!$E$41="Non-endemic"),0,COUNTRY_INFO!S72) -> 0 | I72: =IF($G72=1,IVM!$G72,0) -> 92299 | J72: =IF($G72=0, " ", IF(COUNTRY_INFO!$H72=1, IF(COUNTRY_INFO!$L72=1, 0," ")," ")) ->  | L72: ALB | M72: =IF($L72="ALB", IF(INTRO!$E$39="Non-endemic",IF($H72<>0,$D72*($H72-$G72),0),$D72*$H72), 0) -> 0 | N72: 0 | P72: 0 | Q72: =IF($L72="MBD", IF(INTRO!$E$39="Non-endemic",IF($H72<>0,$D72*($H72-$G72),0),$D72*$H72),0) -> 0 | R72: 0 | T72: 0 | V72: 92299 | W72: 462 | Y72: 0 | Z72: 0 | AB72: 0 | AC72: 0
A73: =IF(AND(INTRO!$E$37="Non-endemic",INTRO!$E$41="Non-endemic")," ",IF(COUNTRY_INFO!A73=0," ",COUNTRY_INFO!A73)) -> DRC | B73: =IF(AND(INTRO!$E$37="Non-endemic",INTRO!$E$41="Non-endemic")," ",IF(COUNTRY_INFO!B73=0," ",COUNTRY_INFO!B73)) -> HAUT LOMAMI | C73: =IF(AND(INTRO!$E$37="Non-endemic",INTRO!$E$41="Non-endemic")," ",IF(COUNTRY_INFO!C73=0," ",COUNTRY_INFO!C73)) -> Kinda | D73: =IF(AND(INTRO!$E$37="Non-endemic",INTRO!$E$41="Non-endemic"),0,IF(AND(OR(COUNTRY_INFO!$H73=0,COUNTRY_INFO!$H73=4,COUNTRY_INFO!$H73=99),OR(COUNTRY_INFO!$J73=0,COUNTRY_INFO!$J73=4)),0,COUNTRY_INFO!$E73)) -> 17444 | E73: =IF(AND(INTRO!$E$37="Non-endemic",INTRO!$E$41="Non-endemic"),0,IF(AND(OR(COUNTRY_INFO!$H73=0,COUNTRY_INFO!$H73=4,COUNTRY_INFO!$H73=99),OR(COUNTRY_INFO!$J73=0,COUNTRY_INFO!$J73=4)),0,COUNTRY_INFO!$F73)) -> 35914 | F73: 53358 | G73: =IF(AND(INTRO!$E$37="Non-endemic",INTRO!$E$41="Non-endemic"),0,COUNTRY_INFO!Q73) -> 0 | H73: =IF(AND(INTRO!$E$37="Non-endemic",INTRO!$E$41="Non-endemic"),0,COUNTRY_INFO!S73) -> 0 | I73: =IF($G73=1,IVM!$G73,0) -> 0 | J73: =IF($G73=0, " ", IF(COUNTRY_INFO!$H73=1, IF(COUNTRY_INFO!$L73=1, 0," ")," ")) ->  | L73: ALB | M73: =IF($L73="ALB", IF(INTRO!$E$39="Non-endemic",IF($H73<>0,$D73*($H73-$G73),0),$D73*$H73), 0) -> 0 | N73: 0 | P73: 0 | Q73: =IF($L73="MBD", IF(INTRO!$E$39="Non-endemic",IF($H73<>0,$D73*($H73-$G73),0),$D73*$H73),0) -> 0 | R73: 0 | T73: 0 | V73: =IF($J73<>" ", IF(($I73+$J73*$K73)>$U73, ($I73+$J73*$K73)-$U73,0), IF($I73>$U73, $I73-$U73, 0)) -> 0 | W73: =IF($J73<>" ", ROUNDUP(($I73+$J73*$K73)/200,0), ROUNDUP($I73/200,0)) -> 0 | Y73: 0 | Z73: 0 | AB73: 0 | AC73: 0
A74: =IF(AND(INTRO!$E$37="Non-endemic",INTRO!$E$41="Non-endemic")," ",IF(COUNTRY_INFO!A74=0," ",COUNTRY_INFO!A74)) -> DRC | B74: =IF(AND(INTRO!$E$37="Non-endemic",INTRO!$E$41="Non-endemic")," ",IF(COUNTRY_INFO!B74=0," ",COUNTRY_INFO!B74)) -> HAUT LOMAMI | C74: =IF(AND(INTRO!$E$37="Non-endemic",INTRO!$E$41="Non-endemic")," ",IF(COUNTRY_INFO!C74=0," ",COUNTRY_INFO!C74)) -> Kinkonja | D74: =IF(AND(INTRO!$E$37="Non-endemic",INTRO!$E$41="Non-endemic"),0,IF(AND(OR(COUNTRY_INFO!$H74=0,COUNTRY_INFO!$H74=4,COUNTRY_INFO!$H74=99),OR(COUNTRY_INFO!$J74=0,COUNTRY_INFO!$J74=4)),0,COUNTRY_INFO!$E74)) -> 48940 | E74: =IF(AND(INTRO!$E$37="Non-endemic",INTRO!$E$41="Non-endemic"),0,IF(AND(OR(COUNTRY_INFO!$H74=0,COUNTRY_INFO!$H74=4,COUNTRY_INFO!$H74=99),OR(COUNTRY_INFO!$J74=0,COUNTRY_INFO!$J74=4)),0,COUNTRY_INFO!$F74)) -> 100759 | F74: =SUM(D74:E74) -> 149699 | G74: =IF(AND(INTRO!$E$37="Non-endemic",INTRO!$E$41="Non-endemic"),0,COUNTRY_INFO!Q74) -> 0 | H74: =IF(AND(INTRO!$E$37="Non-endemic",INTRO!$E$41="Non-endemic"),0,COUNTRY_INFO!S74) -> 0 | I74: =IF($G74=1,IVM!$G74,0) -> 0 | J74: =IF($G74=0, " ", IF(COUNTRY_INFO!$H74=1, IF(COUNTRY_INFO!$L74=1, 0," ")," ")) ->  | L74: ALB | M74: =IF($L74="ALB", IF(INTRO!$E$39="Non-endemic",IF($H74<>0,$D74*($H74-$G74),0),$D74*$H74), 0) -> 0 | N74: =IF($L74="ALB", IF($H74=0, 0, IF(AND($I74=0, OR($J74=0,$J74=" ")), $E74*$H74, IF(AND($I74=0, $J74>0), IF(($H74-$K74)<=0, 0, $E74*(MAX($H74,$K74)-MIN($H74,$K74))), IF(AND($I74>0, $J74=0), $E74*($H74-$G74), IF($J74=" ", 0, $J74*$E74/($I74+$J74)*$K74+$I74*$E74/($I74+$J74)*($H74-$G74)))))), 0) -> 0 | P74: =SUM(M74:O74) -> 0 | Q74: =IF($L74="MBD", IF(INTRO!$E$39="Non-endemic",IF($H74<>0,$D74*($H74-$G74),0),$D74*$H74),0) -> 0 | R74: 0 | T74: =SUM(Q74:S74) -> 0 | V74: 0 | W74: 0 | Y74: 0 | Z74: 0 | AB74: 0 | AC74: 0
A75: =IF(AND(INTRO!$E$37="Non-endemic",INTRO!$E$41="Non-endemic")," ",IF(COUNTRY_INFO!A75=0," ",COUNTRY_INFO!A75)) -> DRC | B75: =IF(AND(INTRO!$E$37="Non-endemic",INTRO!$E$41="Non-endemic")," ",IF(COUNTRY_INFO!B75=0," ",COUNTRY_INFO!B75)) -> HAUT LOMAMI | C75: =IF(AND(INTRO!$E$37="Non-endemic",INTRO!$E$41="Non-endemic")," ",IF(COUNTRY_INFO!C75=0," ",COUNTRY_INFO!C75)) -> Kitenge | D75: =IF(AND(INTRO!$E$37="Non-endemic",INTRO!$E$41="Non-endemic"),0,IF(AND(OR(COUNTRY_INFO!$H75=0,COUNTRY_INFO!$H75=4,COUNTRY_INFO!$H75=99),OR(COUNTRY_INFO!$J75=0,COUNTRY_INFO!$J75=4)),0,COUNTRY_INFO!$E75)) -> 54070 | E75: =IF(AND(INTRO!$E$37="Non-endemic",INTRO!$E$41="Non-endemic"),0,IF(AND(OR(COUNTRY_INFO!$H75=0,COUNTRY_INFO!$H75=4,COUNTRY_INFO!$H75=99),OR(COUNTRY_INFO!$J75=0,COUNTRY_INFO!$J75=4)),0,COUNTRY_INFO!$F75)) -> 111321 | F75: 165391 | G75: =IF(AND(INTRO!$E$37="Non-endemic",INTRO!$E$41="Non-endemic"),0,COUNTRY_INFO!Q75) -> 0 | H75: =IF(AND(INTRO!$E$37="Non-endemic",INTRO!$E$41="Non-endemic"),0,COUNTRY_INFO!S75) -> 0 | I75: =IF($G75=1,IVM!$G75,0) -> 0 | J75: =IF($G75=0, " ", IF(COUNTRY_INFO!$H75=1, IF(COUNTRY_INFO!$L75=1, 0," ")," ")) ->  | L75: ALB | M75: =IF($L75="ALB", IF(INTRO!$E$39="Non-endemic",IF($H75<>0,$D75*($H75-$G75),0),$D75*$H75), 0) -> 0 | N75: 0 | P75: 0 | Q75: =IF($L75="MBD", IF(INTRO!$E$39="Non-endemic",IF($H75<>0,$D75*($H75-$G75),0),$D75*$H75),0) -> 0 | R75: 0 | T75: 0 | V75: 0 | W75: 0 | Y75: 0 | Z75: 0 | AB75: 0 | AC75: 0
A76: =IF(AND(INTRO!$E$37="Non-endemic",INTRO!$E$41="Non-endemic")," ",IF(COUNTRY_INFO!A76=0," ",COUNTRY_INFO!A76)) -> DRC | B76: =IF(AND(INTRO!$E$37="Non-endemic",INTRO!$E$41="Non-endemic")," ",IF(COUNTRY_INFO!B76=0," ",COUNTRY_INFO!B76)) -> HAUT LOMAMI | C76: =IF(AND(INTRO!$E$37="Non-endemic",INTRO!$E$41="Non-endemic")," ",IF(COUNTRY_INFO!C76=0," ",COUNTRY_INFO!C76)) -> Lwamba | D76: =IF(AND(INTRO!$E$37="Non-endemic",INTRO!$E$41="Non-endemic"),0,IF(AND(OR(COUNTRY_INFO!$H76=0,COUNTRY_INFO!$H76=4,COUNTRY_INFO!$H76=99),OR(COUNTRY_INFO!$J76=0,COUNTRY_INFO!$J76=4)),0,COUNTRY_INFO!$E76)) -> 26469 | E76: =IF(AND(INTRO!$E$37="Non-endemic",INTRO!$E$41="Non-endemic"),0,IF(AND(OR(COUNTRY_INFO!$H76=0,COUNTRY_INFO!$H76=4,COUNTRY_INFO!$H76=99),OR(COUNTRY_INFO!$J76=0,COUNTRY_INFO!$J76=4)),0,COUNTRY_INFO!$F76)) -> 54494 | F76: 80963 | G76: =IF(AND(INTRO!$E$37="Non-endemic",INTRO!$E$41="Non-endemic"),0,COUNTRY_INFO!Q76) -> 0 | H76: =IF(AND(INTRO!$E$37="Non-endemic",INTRO!$E$41="Non-endemic"),0,COUNTRY_INFO!S76) -> 0 | I76: =IF($G76=1,IVM!$G76,0) -> 0 | J76: =IF($G76=0, " ", IF(COUNTRY_INFO!$H76=1, IF(COUNTRY_INFO!$L76=1, 0," ")," ")) ->  | L76: ALB | M76: =IF($L76="ALB", IF(INTRO!$E$39="Non-endemic",IF($H76<>0,$D76*($H76-$G76),0),$D76*$H76), 0) -> 0 | N76: 0 | P76: 0 | Q76: =IF($L76="MBD", IF(INTRO!$E$39="Non-endemic",IF($H76<>0,$D76*($H76-$G76),0),$D76*$H76),0) -> 0 | R76: 0 | T76: 0 | V76: 0 | W76: 0 | Y76: 0 | Z76: 0 | AB76: 0 | AC76: 0
A77: =IF(AND(INTRO!$E$37="Non-endemic",INTRO!$E$41="Non-endemic")," ",IF(COUNTRY_INFO!A77=0," ",COUNTRY_INFO!A77)) -> DRC | B77: =IF(AND(INTRO!$E$37="Non-endemic",INTRO!$E$41="Non-endemic")," ",IF(COUNTRY_INFO!B77=0," ",COUNTRY_INFO!B77)) -> HAUT LOMAMI | C77: =IF(AND(INTRO!$E$37="Non-endemic",INTRO!$E$41="Non-endemic")," ",IF(COUNTRY_INFO!C77=0," ",COUNTRY_INFO!C77)) -> Malemba Nkulu | D77: =IF(AND(INTRO!$E$37="Non-endemic",INTRO!$E$41="Non-endemic"),0,IF(AND(OR(COUNTRY_INFO!$H77=0,COUNTRY_INFO!$H77=4,COUNTRY_INFO!$H77=99),OR(COUNTRY_INFO!$J77=0,COUNTRY_INFO!$J77=4)),0,COUNTRY_INFO!$E77)) -> 63313 | E77: =IF(AND(INTRO!$E$37="Non-endemic",INTRO!$E$41="Non-endemic"),0,IF(AND(OR(COUNTRY_INFO!$H77=0,COUNTRY_INFO!$H77=4,COUNTRY_INFO!$H77=99),OR(COUNTRY_INFO!$J77=0,COUNTRY_INFO!$J77=4)),0,COUNTRY_INFO!$F77)) -> 130350 | F77: 193663 | G77: =IF(AND(INTRO!$E$37="Non-endemic",INTRO!$E$41="Non-endemic"),0,COUNTRY_INFO!Q77) -> 0 | H77: =IF(AND(INTRO!$E$37="Non-endemic",INTRO!$E$41="Non-endemic"),0,COUNTRY_INFO!S77) -> 0 | I77: =IF($G77=1,IVM!$G77,0) -> 0 | J77: =IF($G77=0, " ", IF(COUNTRY_INFO!$H77=1, IF(COUNTRY_INFO!$L77=1, 0," ")," ")) ->  | L77: ALB | M77: =IF($L77="ALB", IF(INTRO!$E$39="Non-endemic",IF($H77<>0,$D77*($H77-$G77),0),$D77*$H77), 0) -> 0 | N77: 0 | P77: 0 | Q77: =IF($L77="MBD", IF(INTRO!$E$39="Non-endemic",IF($H77<>0,$D77*($H77-$G77),0),$D77*$H77),0) -> 0 | R77: 0 | T77: 0 | V77: 0 | W77: 0 | Y77: 0 | Z77: 0 | AB77: 0 | AC77: 0
A78: =IF(AND(INTRO!$E$37="Non-endemic",INTRO!$E$41="Non-endemic")," ",IF(COUNTRY_INFO!A78=0," ",COUNTRY_INFO!A78)) -> DRC | B78: =IF(AND(INTRO!$E$37="Non-endemic",INTRO!$E$41="Non-endemic")," ",IF(COUNTRY_INFO!B78=0," ",COUNTRY_INFO!B78)) -> HAUT LOMAMI | C78: =IF(AND(INTRO!$E$37="Non-endemic",INTRO!$E$41="Non-endemic")," ",IF(COUNTRY_INFO!C78=0," ",COUNTRY_INFO!C78)) -> Mukanga | D78: =IF(AND(INTRO!$E$37="Non-endemic",INTRO!$E$41="Non-endemic"),0,IF(AND(OR(COUNTRY_INFO!$H78=0,COUNTRY_INFO!$H78=4,COUNTRY_INFO!$H78=99),OR(COUNTRY_INFO!$J78=0,COUNTRY_INFO!$J78=4)),0,COUNTRY_INFO!$E78)) -> 39668 | E78: =IF(AND(INTRO!$E$37="Non-endemic",INTRO!$E$41="Non-endemic"),0,IF(AND(OR(COUNTRY_INFO!$H78=0,COUNTRY_INFO!$H78=4,COUNTRY_INFO!$H78=99),OR(COUNTRY_INFO!$J78=0,COUNTRY_INFO!$J78=4)),0,COUNTRY_INFO!$F78)) -> 81669 | F78: 121337 | G78: =IF(AND(INTRO!$E$37="Non-endemic",INTRO!$E$41="Non-endemic"),0,COUNTRY_INFO!Q78) -> 0 | H78: =IF(AND(INTRO!$E$37="Non-endemic",INTRO!$E$41="Non-endemic"),0,COUNTRY_INFO!S78) -> 0 | I78: =IF($G78=1,IVM!$G78,0) -> 0 | J78: =IF($G78=0, " ", IF(COUNTRY_INFO!$H78=1, IF(COUNTRY_INFO!$L78=1, 0," ")," ")) ->  | L78: ALB | M78: =IF($L78="ALB", IF(INTRO!$E$39="Non-endemic",IF($H78<>0,$D78*($H78-$G78),0),$D78*$H78), 0) -> 0 | N78: 0 | P78: 0 | Q78: =IF($L78="MBD", IF(INTRO!$E$39="Non-endemic",IF($H78<>0,$D78*($H78-$G78),0),$D78*$H78),0) -> 0 | R78: 0 | T78: 0 | V78: 0 | W78: 0 | Y78: 0 | Z78: 0 | AB78: 0 | AC78: 0
A79: =IF(AND(INTRO!$E$37="Non-endemic",INTRO!$E$41="Non-endemic")," ",IF(COUNTRY_INFO!A79=0," ",COUNTRY_INFO!A79)) -> DRC | B79: =IF(AND(INTRO!$E$37="Non-endemic",INTRO!$E$41="Non-endemic")," ",IF(COUNTRY_INFO!B79=0," ",COUNTRY_INFO!B79)) -> HAUT LOMAMI | C79: =IF(AND(INTRO!$E$37="Non-endemic",INTRO!$E$41="Non-endemic")," ",IF(COUNTRY_INFO!C79=0," ",COUNTRY_INFO!C79)) -> Mulongo | D79: =IF(AND(INTRO!$E$37="Non-endemic",INTRO!$E$41="Non-endemic"),0,IF(AND(OR(COUNTRY_INFO!$H79=0,COUNTRY_INFO!$H79=4,COUNTRY_INFO!$H79=99),OR(COUNTRY_INFO!$J79=0,COUNTRY_INFO!$J79=4)),0,COUNTRY_INFO!$E79)) -> 52275 | E79: =IF(AND(INTRO!$E$37="Non-endemic",INTRO!$E$41="Non-endemic"),0,IF(AND(OR(COUNTRY_INFO!$H79=0,COUNTRY_INFO!$H79=4,COUNTRY_INFO!$H79=99),OR(COUNTRY_INFO!$J79=0,COUNTRY_INFO!$J79=4)),0,COUNTRY_INFO!$F79)) -> 107625 | F79: 159900 | G79: =IF(AND(INTRO!$E$37="Non-endemic",INTRO!$E$41="Non-endemic"),0,COUNTRY_INFO!Q79) -> 0 | H79: =IF(AND(INTRO!$E$37="Non-endemic",INTRO!$E$41="Non-endemic"),0,COUNTRY_INFO!S79) -> 0 | I79: =IF($G79=1,IVM!$G79,0) -> 0 | J79: =IF($G79=0, " ", IF(COUNTRY_INFO!$H79=1, IF(COUNTRY_INFO!$L79=1, 0," ")," ")) ->  | L79: ALB | M79: =IF($L79="ALB", IF(INTRO!$E$39="Non-endemic",IF($H79<>0,$D79*($H79-$G79),0),$D79*$H79), 0) -> 0 | N79: 0 | P79: 0 | Q79: =IF($L79="MBD", IF(INTRO!$E$39="Non-endemic",IF($H79<>0,$D79*($H79-$G79),0),$D79*$H79),0) -> 0 | R79: 0 | T79: 0 | V79: 0 | W79: 0 | Y79: 0 | Z79: 0 | AB79: 0 | AC79: 0
